Workbook

Sheet Explications
B45: Evolution
B46: V6 | C46: 2009/02 | D46: LL - AF | E46: Mise en place de la feuille de saisie des chronos, passage à 100 pilotes / 20 manches / 4 groupe scoring
B47: V5 | C47: 2009/01 | D47: LL | E47: Automatisation du classement évolutif
B48: V4 | C48: 2008/07 | D48: LL | E48: Mise en place du calcul avec gestion du group scoring
B49: V1..V3 | E49: diverses adaptations et évolutions

Sheet Pilotes
ED1: Meilleur temps | EG1: =IF(COUNTIF(_TM3,"")<>6,MIN(_TM3),"") ->  | EH1: Pilote 8 | EI1: =IF(COUNTIF(_TM13,"")<>6,MIN(_TM13),"") -> 
B2: CLUB : | C2: CMR Rodez | ED2: 1 à 10 | EE2: =MIN(EG1:EH10) -> 0 | EF2: Pilote 6 | EG2: =IF(COUNTIF(_TM4,"")<>6,MIN(_TM4),"") ->  | EH2: Pilote 1 | EI2: =IF(COUNTIF(_TM14,"")<>6,MIN(_TM14),"") -> 
B3: LIEU : | C3: Panat | ED3: 11 à 20 | EE3: =IF(COUNTIF(EI1:EI10,"")<10,MIN(EI1:EJ10),"") ->  | EG3: =IF(COUNTIF(_TM5,"")<>6,MIN(_TM5),"") ->  | EH3: Pilote 1 | EI3: =IF(COUNTIF(_TM15,"")<>6,MIN(_TM15),"") -> 
B4: DATE : | C4: 30 et 31 Mars 2019 | ED4: Compet | EE4: =MIN(EE2:EE3) -> 0 | EF4: Pilote 6 | EG4: =IF(COUNTIF(_TM6,"")<>6,MIN(_TM6),"") ->  | EH4: Pilote 1 | EI4: =IF(COUNTIF(_TM16,"")<>6,MIN(_TM16),"") -> 
B9: Extraction du fichier du site de F3F | K9: Eléments à rajouter
A10: Lig | B10: Name - First name | C10: Country | D10: Tel | E10: Club | F10: No Licence | G10: Freq F3F | H10: Freq F3F Secours | I10: Freq 60 | J10: Freq 60 Secours | K10: Commentaire | L10: Inscrit (O/N) | M10: Rang CDF | N10: Dossard | O10: Fréq Affectée | P10: Equipe | Q10: Groupe Série 1 | R10: Classt Fin Série 1 | S10: Groupe Série 2 | T10: Classt Fin Série 2 | U10: Groupe Série 3 | V10: Classt Fin Série 3 | W10: Groupe Série 4
A11: 1 | B11: FOUCHER Jean-Luc | C11: France | G11: 2,4 | N11: 1 | Q11: 1
A12: 2 | B12: DOUSSAUD Alexandre | C12: France | G12: 2,4 | N12: 2 | Q12: 1
A13: 5 | B13: BRAHIER Mickael | C13: France | G13: 2,4 | N13: 3 | Q13: 1
A14: 4 | B14: DELARBRE Serge | C14: France | G14: 2,4 | N14: 4 | Q14: 1
A15: 3 | B15: LANES Sébastien | C15: France | G15: 2,4 | N15: 5 | Q15: 1
A16: 7 | B16: CHABAUD Sébastien | C16: France | G16: 2,4 | N16: 6 | Q16: 1
A17: 17 | B17: DIATTA Pierre | C17: France | G17: 2,4 | N17: 7 | Q17: 1
A18: 9 | B18: FRICKE Andreas | C18: France | G18: 2,4 | N18: 8 | Q18: 1
A19: 10 | B19: SORBA Remy | C19: France | G19: 2,4 | N19: 9 | Q19: 1
A20: 11 | B20: DEGUELLE J-Bastien | C20: France | G20: 2,4 | N20: 10 | Q20: 1
A21: 6 | B21: DESANDRE Alain | C21: France | G21: 2,4 | N21: 11 | Q21: 1
A22: 14 | B22: DELARBRE Marie-Helene | C22: France | G22: 2,4 | N22: 12 | Q22: 1
A23: 12 | B23: LAFARGE Pascal | C23: France | G23: 2,4 | N23: 13 | Q23: 1
A24: 13 | B24: DAL HAVA Herve | C24: France | G24: 2,4 | N24: 14 | Q24: 1
A25: 22 | B25: LANES Philippe | C25: France | G25: 2,4 | N25: 15 | Q25: 1
A26: 16 | B26: GABANON Aubry | C26: France | G26: 2,4 | N26: 16 | Q26: 1
A27: 8 | Q27: 1
A28: 18 | Q28: 1
A29: 19 | Q29: 1
A30: 15 | Q30: 1
A31: 21 | Q31: 1
A32: 20 | Q32: 1
A33: 23 | Q33: 1
A34: 24 | Q34: 1
A35: 25 | Q35: 1
A36: 26 | Q36: 1
A37: 27 | Q37: 1
A38: 28 | Q38: 1
A39: 29 | Q39: 1
A40: 30 | Q40: 1
A41: 31 | Q41: 1
A42: 32 | Q42: 1
A43: 33 | Q43: 1
A44: 34 | Q44: 1
A45: 35 | Q45: 1
A46: 36 | Q46: 1
A47: 37 | Q47: 1
A48: 38 | Q48: 1
A49: 39 | Q49: 1
A50: 40 | Q50: 1
A51: 41 | Q51: 1
A52: 42 | Q52: 1
A53: 43 | Q53: 1
A54: 44 | Q54: 1
A55: 45 | Q55: 1
A56: 46 | Q56: 1
A57: 47 | Q57: 1
A58: 48 | Q58: 1
A59: 49 | Q59: 1
A60: 50 | Q60: 1
A61: 51 | Q61: 1
A62: 52 | Q62: 1
A63: 53 | Q63: 1
A64: 54 | Q64: 1
A65: 55 | Q65: 1
A66: 56 | Q66: 1
A67: 57 | Q67: 1
A68: 58
A69: 59
A70: 60
A71: 61
A72: 62
A73: 63
A74: 64
A75: 65
A76: 66
A77: 67
A78: 68
A79: 69
A80: 70
A81: 71
A82: 72
A83: 73
A84: 74
A85: 75
A86: 76
A87: 77
A88: 78
A89: 79
A90: 80
A91: 81
A92: 82
A93: 83
A94: 84
A95: 85
A96: 86
A97: 87
A98: 88
A99: 89
A100: 90
A101: 91
A102: 92
A103: 93
A104: 94
A105: 95
A106: 96
A107: 97
A108: 98
A109: 99
A110: 100

Sheet Equipes
B2: CLUB : | C2: =Pilotes!C2 -> CMR Rodez
B3: LIEU : | C3: =Pilotes!C3 -> Panat
B4: DATE : | C4: =Pilotes!C4 -> 30 et 31 Mars 2019
B10: =Pilotes!P10 -> Equipe | C10: Nom équipe | D10: Nb Pilotes | K10: =B10 -> Equipe | L10: =K10 -> Equipe | M10: =L10 -> Equipe | N10: Equipe | O10: Equipe | P10: Equipe | Q10: Equipe | R10: Equipe | S10: Equipe | T10: Equipe | U10: Equipe | V10: Equipe | W10: Equipe | X10: Equipe | Y10: Equipe | Z10: Equipe | AA10: Equipe | AB10: Equipe | AC10: Equipe | AD10: Equipe | AE10: Equipe | AF10: Equipe | AG10: Equipe | AH10: Equipe | AI10: Equipe | AJ10: Equipe | AK10: Equipe | AL10: Equipe | AM10: Equipe | AN10: Equipe | AO10: Equipe | AP10: Equipe | AQ10: Equipe | AR10: Equipe | AS10: Equipe
B11: 1 | D11: =DCOUNTA(Pilotes!B$10:P$110,Pilotes!P$10,K10:K11) -> 0 | K11: =B11 -> 1 | L11: =B12 -> 2 | M11: =B13 -> 3 | N11: =B14 -> 4 | O11: =B15 -> 5 | P11: =B16 -> 6 | Q11: =B17 -> 7 | R11: =B18 -> 8 | S11: =B19 -> 9 | T11: =B20 -> 10 | U11: =B21 -> 11 | V11: =B22 -> 12 | W11: =B23 -> 13 | X11: =B24 -> 14 | Y11: =B25 -> 15 | Z11: =B26 -> 16 | AA11: =B27 -> 17 | AB11: =B28 -> 18 | AC11: =B29 -> 19 | AD11: =B30 -> 20 | AE11: =B31 -> 21 | AF11: =B32 -> 22 | AG11: =B33 -> 23 | AH11: =B34 -> 24 | AI11: =B35 -> 25 | AJ11: =B36 -> 26 | AK11: =B37 -> 27 | AL11: =B38 -> 28 | AM11: =B39 -> 29 | AN11: =B40 -> 30 | AO11: =B41 -> 31 | AP11: =B42 -> 32 | AQ11: =B43 -> 33 | AR11: =B44 -> 34 | AS11: =B45 -> 35
B12: 2 | D12: =DCOUNTA(Pilotes!B$10:P$110,Pilotes!P$10,L10:L11) -> 0
B13: 3 | D13: =DCOUNTA(Pilotes!B$10:P$110,Pilotes!P$10,M10:M11) -> 0
B14: 4 | D14: =DCOUNTA(Pilotes!B$10:P$110,Pilotes!P$10,N10:N11) -> 0
B15: 5 | D15: =DCOUNTA(Pilotes!B$10:P$110,Pilotes!P$10,O10:O11) -> 0
B16: 6 | D16: =DCOUNTA(Pilotes!B$10:P$110,Pilotes!P$10,P10:P11) -> 0
B17: 7 | D17: =DCOUNTA(Pilotes!B$10:P$110,Pilotes!P$10,Q10:Q11) -> 0
B18: 8 | D18: =DCOUNTA(Pilotes!B$10:P$110,Pilotes!P$10,R10:R11) -> 0
B19: 9 | D19: =DCOUNTA(Pilotes!B$10:P$110,Pilotes!P$10,S10:S11) -> 0
B20: 10 | D20: =DCOUNTA(Pilotes!B$10:P$110,Pilotes!P$10,T10:T11) -> 0
B21: 11 | D21: =DCOUNTA(Pilotes!B$10:P$110,Pilotes!P$10,U10:U11) -> 0
B22: 12 | D22: =DCOUNTA(Pilotes!B$10:P$110,Pilotes!P$10,V10:V11) -> 0
B23: 13 | D23: =DCOUNTA(Pilotes!B$10:P$110,Pilotes!P$10,W10:W11) -> 0
B24: 14 | D24: =DCOUNTA(Pilotes!B$10:P$110,Pilotes!P$10,X10:X11) -> 0
B25: 15 | D25: =DCOUNTA(Pilotes!B$10:P$110,Pilotes!P$10,Y10:Y11) -> 0
B26: 16 | D26: =DCOUNTA(Pilotes!B$10:P$110,Pilotes!P$10,Z10:Z11) -> 0
B27: 17 | D27: =DCOUNTA(Pilotes!B$10:P$110,Pilotes!P$10,AA10:AA11) -> 0
B28: 18 | D28: =DCOUNTA(Pilotes!B$10:P$110,Pilotes!P$10,AB10:AB11) -> 0
B29: 19 | D29: =DCOUNTA(Pilotes!B$10:P$110,Pilotes!P$10,AC10:AC11) -> 0
B30: 20 | D30: =DCOUNTA(Pilotes!B$10:P$110,Pilotes!P$10,AD10:AD11) -> 0
B31: 21 | D31: =DCOUNTA(Pilotes!B$10:P$110,Pilotes!P$10,AE10:AE11) -> 0
B32: 22 | D32: =DCOUNTA(Pilotes!B$10:P$110,Pilotes!P$10,AF10:AF11) -> 0
B33: 23 | D33: =DCOUNTA(Pilotes!B$10:P$110,Pilotes!P$10,AG10:AG11) -> 0
B34: 24 | D34: =DCOUNTA(Pilotes!B$10:P$110,Pilotes!P$10,AH10:AH11) -> 0
B35: 25 | D35: =DCOUNTA(Pilotes!B$10:P$110,Pilotes!P$10,AI10:AI11) -> 0
B36: 26 | D36: =DCOUNTA(Pilotes!B$10:P$110,Pilotes!P$10,AJ10:AJ11) -> 0
B37: 27 | D37: =DCOUNTA(Pilotes!B$10:P$110,Pilotes!P$10,AK10:AK11) -> 0
B38: 28 | D38: =DCOUNTA(Pilotes!B$10:P$110,Pilotes!P$10,AL10:AL11) -> 0
B39: 29 | D39: =DCOUNTA(Pilotes!B$10:P$110,Pilotes!P$10,AM10:AM11) -> 0
B40: 30 | D40: =DCOUNTA(Pilotes!B$10:P$110,Pilotes!P$10,AN10:AN11) -> 0
B41: 31 | D41: =DCOUNTA(Pilotes!B$10:P$110,Pilotes!P$10,AO10:AO11) -> 0
B42: 32 | D42: =DCOUNTA(Pilotes!B$10:P$110,Pilotes!P$10,AP10:AP11) -> 0
B43: 33 | D43: =DCOUNTA(Pilotes!B$10:P$110,Pilotes!P$10,AQ10:AQ11) -> 0
B44: 34 | D44: =DCOUNTA(Pilotes!B$10:P$110,Pilotes!P$10,AR10:AR11) -> 0
B45: 35 | D45: =DCOUNTA(Pilotes!B$10:P$110,Pilotes!P$10,AS10:AS11) -> 0

Sheet Impression Concurrents DC
N1: Feuille des directeurs de course
B2: CLUB : | C2: =Pilotes!C2 -> CMR Rodez | E2: Série | G2: 1 | H2: Manche départ | I2: 25
B3: LIEU : | C3: =Pilotes!C3 -> Panat | E3: Nord | F3: Pente | G3: Sud | H3: Heure Début
B4: DATE : | C4: =Pilotes!C4 -> 30 et 31 Mars 2019 | H4: Heure Fin
B7: Gpe | C7: Nom | D7: Dossard | E7: FREQ | F7: =I2 -> 25 | H7: =F7+1 -> 26 | J7: =H7+1 -> 27 | L7: =J7+1 -> 28 | N7: Commentaire
F8: Temps | G8: Pénalité | H8: Temps | I8: Pénalité | J8: Temps | K8: Pénalité | L8: Temps | M8: Pénalité
B9: =IF(Pilotes!$B11<>"",Pilotes!Q11,"") -> 1 | C9: =IF(Pilotes!$B11<>"",Pilotes!B11,"") -> FOUCHER Jean-Luc | D9: =IF(Pilotes!$B11<>"",Pilotes!N11,"") -> 1 | E9: =IF(Pilotes!$B11<>"",Pilotes!O11,"") -> 0
B10: =IF(Pilotes!$B12<>"",Pilotes!Q12,"") -> 1 | C10: =IF(Pilotes!$B12<>"",Pilotes!B12,"") -> DOUSSAUD Alexandre | D10: =IF(Pilotes!$B12<>"",Pilotes!N12,"") -> 2 | E10: =IF(Pilotes!$B12<>"",Pilotes!O12,"") -> 0
B11: =IF(Pilotes!$B13<>"",Pilotes!Q13,"") -> 1 | C11: =IF(Pilotes!$B13<>"",Pilotes!B13,"") -> BRAHIER Mickael | D11: =IF(Pilotes!$B13<>"",Pilotes!N13,"") -> 3 | E11: =IF(Pilotes!$B13<>"",Pilotes!O13,"") -> 0
B12: =IF(Pilotes!$B14<>"",Pilotes!Q14,"") -> 1 | C12: =IF(Pilotes!$B14<>"",Pilotes!B14,"") -> DELARBRE Serge | D12: =IF(Pilotes!$B14<>"",Pilotes!N14,"") -> 4 | E12: =IF(Pilotes!$B14<>"",Pilotes!O14,"") -> 0
B13: =IF(Pilotes!$B15<>"",Pilotes!Q15,"") -> 1 | C13: =IF(Pilotes!$B15<>"",Pilotes!B15,"") -> LANES Sébastien | D13: =IF(Pilotes!$B15<>"",Pilotes!N15,"") -> 5 | E13: =IF(Pilotes!$B15<>"",Pilotes!O15,"") -> 0
B14: =IF(Pilotes!$B16<>"",Pilotes!Q16,"") -> 1 | C14: =IF(Pilotes!$B16<>"",Pilotes!B16,"") -> CHABAUD Sébastien | D14: =IF(Pilotes!$B16<>"",Pilotes!N16,"") -> 6 | E14: =IF(Pilotes!$B16<>"",Pilotes!O16,"") -> 0
B15: =IF(Pilotes!$B17<>"",Pilotes!Q17,"") -> 1 | C15: =IF(Pilotes!$B17<>"",Pilotes!B17,"") -> DIATTA Pierre | D15: =IF(Pilotes!$B17<>"",Pilotes!N17,"") -> 7 | E15: =IF(Pilotes!$B17<>"",Pilotes!O17,"") -> 0
B16: =IF(Pilotes!$B18<>"",Pilotes!Q18,"") -> 1 | C16: =IF(Pilotes!$B18<>"",Pilotes!B18,"") -> FRICKE Andreas | D16: =IF(Pilotes!$B18<>"",Pilotes!N18,"") -> 8 | E16: =IF(Pilotes!$B18<>"",Pilotes!O18,"") -> 0
B17: =IF(Pilotes!$B19<>"",Pilotes!Q19,"") -> 1 | C17: =IF(Pilotes!$B19<>"",Pilotes!B19,"") -> SORBA Remy | D17: =IF(Pilotes!$B19<>"",Pilotes!N19,"") -> 9 | E17: =IF(Pilotes!$B19<>"",Pilotes!O19,"") -> 0
B18: =IF(Pilotes!$B20<>"",Pilotes!Q20,"") -> 1 | C18: =IF(Pilotes!$B20<>"",Pilotes!B20,"") -> DEGUELLE J-Bastien | D18: =IF(Pilotes!$B20<>"",Pilotes!N20,"") -> 10 | E18: =IF(Pilotes!$B20<>"",Pilotes!O20,"") -> 0
B19: =IF(Pilotes!$B21<>"",Pilotes!Q21,"") -> 1 | C19: =IF(Pilotes!$B21<>"",Pilotes!B21,"") -> DESANDRE Alain | D19: =IF(Pilotes!$B21<>"",Pilotes!N21,"") -> 11 | E19: =IF(Pilotes!$B21<>"",Pilotes!O21,"") -> 0
B20: =IF(Pilotes!$B22<>"",Pilotes!Q22,"") -> 1 | C20: =IF(Pilotes!$B22<>"",Pilotes!B22,"") -> DELARBRE Marie-Helene | D20: =IF(Pilotes!$B22<>"",Pilotes!N22,"") -> 12 | E20: =IF(Pilotes!$B22<>"",Pilotes!O22,"") -> 0
B21: =IF(Pilotes!$B23<>"",Pilotes!Q23,"") -> 1 | C21: =IF(Pilotes!$B23<>"",Pilotes!B23,"") -> LAFARGE Pascal | D21: =IF(Pilotes!$B23<>"",Pilotes!N23,"") -> 13 | E21: =IF(Pilotes!$B23<>"",Pilotes!O23,"") -> 0
B22: =IF(Pilotes!$B24<>"",Pilotes!Q24,"") -> 1 | C22: =IF(Pilotes!$B24<>"",Pilotes!B24,"") -> DAL HAVA Herve | D22: =IF(Pilotes!$B24<>"",Pilotes!N24,"") -> 14 | E22: =IF(Pilotes!$B24<>"",Pilotes!O24,"") -> 0
B23: =IF(Pilotes!$B25<>"",Pilotes!Q25,"") -> 1 | C23: =IF(Pilotes!$B25<>"",Pilotes!B25,"") -> LANES Philippe | D23: =IF(Pilotes!$B25<>"",Pilotes!N25,"") -> 15 | E23: =IF(Pilotes!$B25<>"",Pilotes!O25,"") -> 0
B24: =IF(Pilotes!$B26<>"",Pilotes!Q26,"") -> 1 | C24: =IF(Pilotes!$B26<>"",Pilotes!B26,"") -> GABANON Aubry | D24: =IF(Pilotes!$B26<>"",Pilotes!N26,"") -> 16 | E24: =IF(Pilotes!$B26<>"",Pilotes!O26,"") -> 0
B25: =IF(Pilotes!$B27<>"",Pilotes!Q27,"") ->  | C25: =IF(Pilotes!$B27<>"",Pilotes!B27,"") ->  | D25: =IF(Pilotes!$B27<>"",Pilotes!N27,"") ->  | E25: =IF(Pilotes!$B27<>"",Pilotes!O27,"") -> 
B26: =IF(Pilotes!$B28<>"",Pilotes!Q28,"") ->  | C26: =IF(Pilotes!$B28<>"",Pilotes!B28,"") ->  | D26: =IF(Pilotes!$B28<>"",Pilotes!N28,"") ->  | E26: =IF(Pilotes!$B28<>"",Pilotes!O28,"") -> 
B27: =IF(Pilotes!$B29<>"",Pilotes!Q29,"") ->  | C27: =IF(Pilotes!$B29<>"",Pilotes!B29,"") ->  | D27: =IF(Pilotes!$B29<>"",Pilotes!N29,"") ->  | E27: =IF(Pilotes!$B29<>"",Pilotes!O29,"") -> 
B28: =IF(Pilotes!$B30<>"",Pilotes!Q30,"") ->  | C28: =IF(Pilotes!$B30<>"",Pilotes!B30,"") ->  | D28: =IF(Pilotes!$B30<>"",Pilotes!N30,"") ->  | E28: =IF(Pilotes!$B30<>"",Pilotes!O30,"") -> 
B29: =IF(Pilotes!$B31<>"",Pilotes!Q31,"") ->  | C29: =IF(Pilotes!$B31<>"",Pilotes!B31,"") ->  | D29: =IF(Pilotes!$B31<>"",Pilotes!N31,"") ->  | E29: =IF(Pilotes!$B31<>"",Pilotes!O31,"") -> 
B30: =IF(Pilotes!$B32<>"",Pilotes!Q32,"") ->  | C30: =IF(Pilotes!$B32<>"",Pilotes!B32,"") ->  | D30: =IF(Pilotes!$B32<>"",Pilotes!N32,"") ->  | E30: =IF(Pilotes!$B32<>"",Pilotes!O32,"") -> 
B31: =IF(Pilotes!$B33<>"",Pilotes!Q33,"") ->  | C31: =IF(Pilotes!$B33<>"",Pilotes!B33,"") ->  | D31: =IF(Pilotes!$B33<>"",Pilotes!N33,"") ->  | E31: =IF(Pilotes!$B33<>"",Pilotes!O33,"") -> 
B32: =IF(Pilotes!$B34<>"",Pilotes!Q34,"") ->  | C32: =IF(Pilotes!$B34<>"",Pilotes!B34,"") ->  | D32: =IF(Pilotes!$B34<>"",Pilotes!N34,"") ->  | E32: =IF(Pilotes!$B34<>"",Pilotes!O34,"") -> 
B33: =IF(Pilotes!$B35<>"",Pilotes!Q35,"") ->  | C33: =IF(Pilotes!$B35<>"",Pilotes!B35,"") ->  | D33: =IF(Pilotes!$B35<>"",Pilotes!N35,"") ->  | E33: =IF(Pilotes!$B35<>"",Pilotes!O35,"") -> 
B34: =IF(Pilotes!$B36<>"",Pilotes!Q36,"") ->  | C34: =IF(Pilotes!$B36<>"",Pilotes!B36,"") ->  | D34: =IF(Pilotes!$B36<>"",Pilotes!N36,"") ->  | E34: =IF(Pilotes!$B36<>"",Pilotes!O36,"") -> 
B35: =IF(Pilotes!$B37<>"",Pilotes!Q37,"") ->  | C35: =IF(Pilotes!$B37<>"",Pilotes!B37,"") ->  | D35: =IF(Pilotes!$B37<>"",Pilotes!N37,"") ->  | E35: =IF(Pilotes!$B37<>"",Pilotes!O37,"") -> 
B36: =IF(Pilotes!$B38<>"",Pilotes!Q38,"") ->  | C36: =IF(Pilotes!$B38<>"",Pilotes!B38,"") ->  | D36: =IF(Pilotes!$B38<>"",Pilotes!N38,"") ->  | E36: =IF(Pilotes!$B38<>"",Pilotes!O38,"") -> 
B37: =IF(Pilotes!$B39<>"",Pilotes!Q39,"") ->  | C37: =IF(Pilotes!$B39<>"",Pilotes!B39,"") ->  | D37: =IF(Pilotes!$B39<>"",Pilotes!N39,"") ->  | E37: =IF(Pilotes!$B39<>"",Pilotes!O39,"") -> 
B38: =IF(Pilotes!$B40<>"",Pilotes!Q40,"") ->  | C38: =IF(Pilotes!$B40<>"",Pilotes!B40,"") ->  | D38: =IF(Pilotes!$B40<>"",Pilotes!N40,"") ->  | E38: =IF(Pilotes!$B40<>"",Pilotes!O40,"") -> 
B39: =IF(Pilotes!$B41<>"",Pilotes!Q41,"") ->  | C39: =IF(Pilotes!$B41<>"",Pilotes!B41,"") ->  | D39: =IF(Pilotes!$B41<>"",Pilotes!N41,"") ->  | E39: =IF(Pilotes!$B41<>"",Pilotes!O41,"") -> 
B40: =IF(Pilotes!$B42<>"",Pilotes!Q42,"") ->  | C40: =IF(Pilotes!$B42<>"",Pilotes!B42,"") ->  | D40: =IF(Pilotes!$B42<>"",Pilotes!N42,"") ->  | E40: =IF(Pilotes!$B42<>"",Pilotes!O42,"") -> 
B41: =IF(Pilotes!$B43<>"",Pilotes!Q43,"") ->  | C41: =IF(Pilotes!$B43<>"",Pilotes!B43,"") ->  | D41: =IF(Pilotes!$B43<>"",Pilotes!N43,"") ->  | E41: =IF(Pilotes!$B43<>"",Pilotes!O43,"") -> 
B42: =IF(Pilotes!$B44<>"",Pilotes!Q44,"") ->  | C42: =IF(Pilotes!$B44<>"",Pilotes!B44,"") ->  | D42: =IF(Pilotes!$B44<>"",Pilotes!N44,"") ->  | E42: =IF(Pilotes!$B44<>"",Pilotes!O44,"") -> 
B43: =IF(Pilotes!$B45<>"",Pilotes!Q45,"") ->  | C43: =IF(Pilotes!$B45<>"",Pilotes!B45,"") ->  | D43: =IF(Pilotes!$B45<>"",Pilotes!N45,"") ->  | E43: =IF(Pilotes!$B45<>"",Pilotes!O45,"") -> 
B44: =IF(Pilotes!$B46<>"",Pilotes!Q46,"") ->  | C44: =IF(Pilotes!$B46<>"",Pilotes!B46,"") ->  | D44: =IF(Pilotes!$B46<>"",Pilotes!N46,"") ->  | E44: =IF(Pilotes!$B46<>"",Pilotes!O46,"") -> 
B45: =IF(Pilotes!$B47<>"",Pilotes!U47,"") ->  | C45: =IF(Pilotes!$B47<>"",Pilotes!B47,"") ->  | D45: =IF(Pilotes!$B47<>"",Pilotes!N47,"") ->  | E45: =IF(Pilotes!$B47<>"",Pilotes!O47,"") -> 
B46: =IF(Pilotes!$B48<>"",Pilotes!U48,"") ->  | C46: =IF(Pilotes!$B48<>"",Pilotes!B48,"") ->  | D46: =IF(Pilotes!$B48<>"",Pilotes!N48,"") ->  | E46: =IF(Pilotes!$B48<>"",Pilotes!O48,"") -> 
B47: =IF(Pilotes!$B49<>"",Pilotes!U49,"") ->  | C47: =IF(Pilotes!$B49<>"",Pilotes!B49,"") ->  | D47: =IF(Pilotes!$B49<>"",Pilotes!N49,"") ->  | E47: =IF(Pilotes!$B49<>"",Pilotes!O49,"") -> 
B48: =IF(Pilotes!$B50<>"",Pilotes!U50,"") ->  | C48: =IF(Pilotes!$B50<>"",Pilotes!B50,"") ->  | D48: =IF(Pilotes!$B50<>"",Pilotes!N50,"") ->  | E48: =IF(Pilotes!$B50<>"",Pilotes!O50,"") -> 
B49: =IF(Pilotes!$B51<>"",Pilotes!U51,"") ->  | C49: =IF(Pilotes!$B51<>"",Pilotes!B51,"") ->  | D49: =IF(Pilotes!$B51<>"",Pilotes!N51,"") ->  | E49: =IF(Pilotes!$B51<>"",Pilotes!O51,"") -> 
B50: =IF(Pilotes!$B52<>"",Pilotes!U52,"") ->  | C50: =IF(Pilotes!$B52<>"",Pilotes!B52,"") ->  | D50: =IF(Pilotes!$B52<>"",Pilotes!N52,"") ->  | E50: =IF(Pilotes!$B52<>"",Pilotes!O52,"") -> 
B51: =IF(Pilotes!$B53<>"",Pilotes!U53,"") ->  | C51: =IF(Pilotes!$B53<>"",Pilotes!B53,"") ->  | D51: =IF(Pilotes!$B53<>"",Pilotes!N53,"") ->  | E51: =IF(Pilotes!$B53<>"",Pilotes!O53,"") -> 
B52: =IF(Pilotes!$B54<>"",Pilotes!U54,"") ->  | C52: =IF(Pilotes!$B54<>"",Pilotes!B54,"") ->  | D52: =IF(Pilotes!$B54<>"",Pilotes!N54,"") ->  | E52: =IF(Pilotes!$B54<>"",Pilotes!O54,"") -> 
B53: =IF(Pilotes!$B55<>"",Pilotes!U55,"") ->  | C53: =IF(Pilotes!$B55<>"",Pilotes!B55,"") ->  | D53: =IF(Pilotes!$B55<>"",Pilotes!N55,"") ->  | E53: =IF(Pilotes!$B55<>"",Pilotes!O55,"") -> 
B54: =IF(Pilotes!$B56<>"",Pilotes!U56,"") ->  | C54: =IF(Pilotes!$B56<>"",Pilotes!B56,"") ->  | D54: =IF(Pilotes!$B56<>"",Pilotes!N56,"") ->  | E54: =IF(Pilotes!$B56<>"",Pilotes!O56,"") -> 
B55: =IF(Pilotes!$B57<>"",Pilotes!U57,"") ->  | C55: =IF(Pilotes!$B57<>"",Pilotes!B57,"") ->  | D55: =IF(Pilotes!$B57<>"",Pilotes!N57,"") ->  | E55: =IF(Pilotes!$B57<>"",Pilotes!O57,"") -> 
B56: =IF(Pilotes!$B58<>"",Pilotes!U58,"") ->  | C56: =IF(Pilotes!$B58<>"",Pilotes!B58,"") ->  | D56: =IF(Pilotes!$B58<>"",Pilotes!N58,"") ->  | E56: =IF(Pilotes!$B58<>"",Pilotes!O58,"") -> 
B57: =IF(Pilotes!$B59<>"",Pilotes!U59,"") ->  | C57: =IF(Pilotes!$B59<>"",Pilotes!B59,"") ->  | D57: =IF(Pilotes!$B59<>"",Pilotes!N59,"") ->  | E57: =IF(Pilotes!$B59<>"",Pilotes!O59,"") -> 
B58: =IF(Pilotes!$B60<>"",Pilotes!U60,"") ->  | C58: =IF(Pilotes!$B60<>"",Pilotes!B60,"") ->  | D58: =IF(Pilotes!$B60<>"",Pilotes!N60,"") ->  | E58: =IF(Pilotes!$B60<>"",Pilotes!O60,"") -> 
B59: =IF(Pilotes!$B61<>"",Pilotes!U61,"") ->  | C59: =IF(Pilotes!$B61<>"",Pilotes!B61,"") ->  | D59: =IF(Pilotes!$B61<>"",Pilotes!N61,"") ->  | E59: =IF(Pilotes!$B61<>"",Pilotes!O61,"") -> 
B60: =IF(Pilotes!$B62<>"",Pilotes!U62,"") ->  | C60: =IF(Pilotes!$B62<>"",Pilotes!B62,"") ->  | D60: =IF(Pilotes!$B62<>"",Pilotes!N62,"") ->  | E60: =IF(Pilotes!$B62<>"",Pilotes!O62,"") -> 
B61: =IF(Pilotes!$B63<>"",Pilotes!U63,"") ->  | C61: =IF(Pilotes!$B63<>"",Pilotes!B63,"") ->  | D61: =IF(Pilotes!$B63<>"",Pilotes!N63,"") ->  | E61: =IF(Pilotes!$B63<>"",Pilotes!O63,"") -> 
B62: =IF(Pilotes!$B64<>"",Pilotes!U64,"") ->  | C62: =IF(Pilotes!$B64<>"",Pilotes!B64,"") ->  | D62: =IF(Pilotes!$B64<>"",Pilotes!N64,"") ->  | E62: =IF(Pilotes!$B64<>"",Pilotes!O64,"") -> 
B63: =IF(Pilotes!$B65<>"",Pilotes!U65,"") ->  | C63: =IF(Pilotes!$B65<>"",Pilotes!B65,"") ->  | D63: =IF(Pilotes!$B65<>"",Pilotes!N65,"") ->  | E63: =IF(Pilotes!$B65<>"",Pilotes!O65,"") -> 
B64: =IF(Pilotes!$B66<>"",Pilotes!U66,"") ->  | C64: =IF(Pilotes!$B66<>"",Pilotes!B66,"") ->  | D64: =IF(Pilotes!$B66<>"",Pilotes!N66,"") ->  | E64: =IF(Pilotes!$B66<>"",Pilotes!O66,"") -> 
B65: =IF(Pilotes!$B67<>"",Pilotes!U67,"") ->  | C65: =IF(Pilotes!$B67<>"",Pilotes!B67,"") ->  | D65: =IF(Pilotes!$B67<>"",Pilotes!N67,"") ->  | E65: =IF(Pilotes!$B67<>"",Pilotes!O67,"") -> 
B66: =IF(Pilotes!$B68<>"",Pilotes!Q68,"") ->  | C66: =IF(Pilotes!$B68<>"",Pilotes!B68,"") ->  | D66: =IF(Pilotes!$B68<>"",Pilotes!N68,"") ->  | E66: =IF(Pilotes!$B68<>"",Pilotes!O68,"") -> 
B67: =IF(Pilotes!$B69<>"",Pilotes!Q69,"") ->  | C67: =IF(Pilotes!$B69<>"",Pilotes!B69,"") ->  | D67: =IF(Pilotes!$B69<>"",Pilotes!N69,"") ->  | E67: =IF(Pilotes!$B69<>"",Pilotes!O69,"") -> 
B68: =IF(Pilotes!$B70<>"",Pilotes!Q70,"") ->  | C68: =IF(Pilotes!$B70<>"",Pilotes!B70,"") ->  | D68: =IF(Pilotes!$B70<>"",Pilotes!N70,"") ->  | E68: =IF(Pilotes!$B70<>"",Pilotes!O70,"") -> 
B69: =IF(Pilotes!$B71<>"",Pilotes!Q71,"") ->  | C69: =IF(Pilotes!$B71<>"",Pilotes!B71,"") ->  | D69: =IF(Pilotes!$B71<>"",Pilotes!N71,"") ->  | E69: =IF(Pilotes!$B71<>"",Pilotes!O71,"") -> 
B70: =IF(Pilotes!$B72<>"",Pilotes!Q72,"") ->  | C70: =IF(Pilotes!$B72<>"",Pilotes!B72,"") ->  | D70: =IF(Pilotes!$B72<>"",Pilotes!N72,"") ->  | E70: =IF(Pilotes!$B72<>"",Pilotes!O72,"") -> 
B71: =IF(Pilotes!$B73<>"",Pilotes!Q73,"") ->  | C71: =IF(Pilotes!$B73<>"",Pilotes!B73,"") ->  | D71: =IF(Pilotes!$B73<>"",Pilotes!N73,"") ->  | E71: =IF(Pilotes!$B73<>"",Pilotes!O73,"") -> 
B72: =IF(Pilotes!$B74<>"",Pilotes!Q74,"") ->  | C72: =IF(Pilotes!$B74<>"",Pilotes!B74,"") ->  | D72: =IF(Pilotes!$B74<>"",Pilotes!N74,"") ->  | E72: =IF(Pilotes!$B74<>"",Pilotes!O74,"") -> 
B73: =IF(Pilotes!$B75<>"",Pilotes!Q75,"") ->  | C73: =IF(Pilotes!$B75<>"",Pilotes!B75,"") ->  | D73: =IF(Pilotes!$B75<>"",Pilotes!N75,"") ->  | E73: =IF(Pilotes!$B75<>"",Pilotes!O75,"") -> 
B74: =IF(Pilotes!$B76<>"",Pilotes!Q76,"") ->  | C74: =IF(Pilotes!$B76<>"",Pilotes!B76,"") ->  | D74: =IF(Pilotes!$B76<>"",Pilotes!N76,"") ->  | E74: =IF(Pilotes!$B76<>"",Pilotes!O76,"") -> 
B75: =IF(Pilotes!$B77<>"",Pilotes!Q77,"") ->  | C75: =IF(Pilotes!$B77<>"",Pilotes!B77,"") ->  | D75: =IF(Pilotes!$B77<>"",Pilotes!N77,"") ->  | E75: =IF(Pilotes!$B77<>"",Pilotes!O77,"") -> 
B76: =IF(Pilotes!$B78<>"",Pilotes!Q78,"") ->  | C76: =IF(Pilotes!$B78<>"",Pilotes!B78,"") ->  | D76: =IF(Pilotes!$B78<>"",Pilotes!N78,"") ->  | E76: =IF(Pilotes!$B78<>"",Pilotes!O78,"") -> 
B77: =IF(Pilotes!$B79<>"",Pilotes!Q79,"") ->  | C77: =IF(Pilotes!$B79<>"",Pilotes!B79,"") ->  | D77: =IF(Pilotes!$B79<>"",Pilotes!N79,"") ->  | E77: =IF(Pilotes!$B79<>"",Pilotes!O79,"") -> 
B78: =IF(Pilotes!$B80<>"",Pilotes!Q80,"") ->  | C78: =IF(Pilotes!$B80<>"",Pilotes!B80,"") ->  | D78: =IF(Pilotes!$B80<>"",Pilotes!N80,"") ->  | E78: =IF(Pilotes!$B80<>"",Pilotes!O80,"") -> 
B79: =IF(Pilotes!$B81<>"",Pilotes!Q81,"") ->  | C79: =IF(Pilotes!$B81<>"",Pilotes!B81,"") ->  | D79: =IF(Pilotes!$B81<>"",Pilotes!N81,"") ->  | E79: =IF(Pilotes!$B81<>"",Pilotes!O81,"") -> 
B80: =IF(Pilotes!$B82<>"",Pilotes!Q82,"") ->  | C80: =IF(Pilotes!$B82<>"",Pilotes!B82,"") ->  | D80: =IF(Pilotes!$B82<>"",Pilotes!N82,"") ->  | E80: =IF(Pilotes!$B82<>"",Pilotes!O82,"") -> 
B81: =IF(Pilotes!$B83<>"",Pilotes!Q83,"") ->  | C81: =IF(Pilotes!$B83<>"",Pilotes!B83,"") ->  | D81: =IF(Pilotes!$B83<>"",Pilotes!N83,"") ->  | E81: =IF(Pilotes!$B83<>"",Pilotes!O83,"") -> 
B82: =IF(Pilotes!$B84<>"",Pilotes!Q84,"") ->  | C82: =IF(Pilotes!$B84<>"",Pilotes!B84,"") ->  | D82: =IF(Pilotes!$B84<>"",Pilotes!N84,"") ->  | E82: =IF(Pilotes!$B84<>"",Pilotes!O84,"") -> 
B83: =IF(Pilotes!$B85<>"",Pilotes!Q85,"") ->  | C83: =IF(Pilotes!$B85<>"",Pilotes!B85,"") ->  | D83: =IF(Pilotes!$B85<>"",Pilotes!N85,"") ->  | E83: =IF(Pilotes!$B85<>"",Pilotes!O85,"") -> 
B84: =IF(Pilotes!$B86<>"",Pilotes!Q86,"") ->  | C84: =IF(Pilotes!$B86<>"",Pilotes!B86,"") ->  | D84: =IF(Pilotes!$B86<>"",Pilotes!N86,"") ->  | E84: =IF(Pilotes!$B86<>"",Pilotes!O86,"") -> 
B85: =IF(Pilotes!$B87<>"",Pilotes!Q87,"") ->  | C85: =IF(Pilotes!$B87<>"",Pilotes!B87,"") ->  | D85: =IF(Pilotes!$B87<>"",Pilotes!N87,"") ->  | E85: =IF(Pilotes!$B87<>"",Pilotes!O87,"") -> 
B86: =IF(Pilotes!$B88<>"",Pilotes!Q88,"") ->  | C86: =IF(Pilotes!$B88<>"",Pilotes!B88,"") ->  | D86: =IF(Pilotes!$B88<>"",Pilotes!N88,"") ->  | E86: =IF(Pilotes!$B88<>"",Pilotes!O88,"") -> 
B87: =IF(Pilotes!$B89<>"",Pilotes!Q89,"") ->  | C87: =IF(Pilotes!$B89<>"",Pilotes!B89,"") ->  | D87: =IF(Pilotes!$B89<>"",Pilotes!N89,"") ->  | E87: =IF(Pilotes!$B89<>"",Pilotes!O89,"") -> 
B88: =IF(Pilotes!$B90<>"",Pilotes!Q90,"") ->  | C88: =IF(Pilotes!$B90<>"",Pilotes!B90,"") ->  | D88: =IF(Pilotes!$B90<>"",Pilotes!N90,"") ->  | E88: =IF(Pilotes!$B90<>"",Pilotes!O90,"") -> 
B89: =IF(Pilotes!$B91<>"",Pilotes!Q91,"") ->  | C89: =IF(Pilotes!$B91<>"",Pilotes!B91,"") ->  | D89: =IF(Pilotes!$B91<>"",Pilotes!N91,"") ->  | E89: =IF(Pilotes!$B91<>"",Pilotes!O91,"") -> 
B90: =IF(Pilotes!$B92<>"",Pilotes!Q92,"") ->  | C90: =IF(Pilotes!$B92<>"",Pilotes!B92,"") ->  | D90: =IF(Pilotes!$B92<>"",Pilotes!N92,"") ->  | E90: =IF(Pilotes!$B92<>"",Pilotes!O92,"") -> 
B91: =IF(Pilotes!$B93<>"",Pilotes!Q93,"") ->  | C91: =IF(Pilotes!$B93<>"",Pilotes!B93,"") ->  | D91: =IF(Pilotes!$B93<>"",Pilotes!N93,"") ->  | E91: =IF(Pilotes!$B93<>"",Pilotes!O93,"") -> 
B92: =IF(Pilotes!$B94<>"",Pilotes!Q94,"") ->  | C92: =IF(Pilotes!$B94<>"",Pilotes!B94,"") ->  | D92: =IF(Pilotes!$B94<>"",Pilotes!N94,"") ->  | E92: =IF(Pilotes!$B94<>"",Pilotes!O94,"") -> 
B93: =IF(Pilotes!$B95<>"",Pilotes!Q95,"") ->  | C93: =IF(Pilotes!$B95<>"",Pilotes!B95,"") ->  | D93: =IF(Pilotes!$B95<>"",Pilotes!N95,"") ->  | E93: =IF(Pilotes!$B95<>"",Pilotes!O95,"") -> 
B94: =IF(Pilotes!$B96<>"",Pilotes!Q96,"") ->  | C94: =IF(Pilotes!$B96<>"",Pilotes!B96,"") ->  | D94: =IF(Pilotes!$B96<>"",Pilotes!N96,"") ->  | E94: =IF(Pilotes!$B96<>"",Pilotes!O96,"") -> 
B95: =IF(Pilotes!$B97<>"",Pilotes!Q97,"") ->  | C95: =IF(Pilotes!$B97<>"",Pilotes!B97,"") ->  | D95: =IF(Pilotes!$B97<>"",Pilotes!N97,"") ->  | E95: =IF(Pilotes!$B97<>"",Pilotes!O97,"") -> 
B96: =IF(Pilotes!$B98<>"",Pilotes!Q98,"") ->  | C96: =IF(Pilotes!$B98<>"",Pilotes!B98,"") ->  | D96: =IF(Pilotes!$B98<>"",Pilotes!N98,"") ->  | E96: =IF(Pilotes!$B98<>"",Pilotes!O98,"") -> 
B97: =IF(Pilotes!$B99<>"",Pilotes!Q99,"") ->  | C97: =IF(Pilotes!$B99<>"",Pilotes!B99,"") ->  | D97: =IF(Pilotes!$B99<>"",Pilotes!N99,"") ->  | E97: =IF(Pilotes!$B99<>"",Pilotes!O99,"") -> 
B98: =IF(Pilotes!$B100<>"",Pilotes!Q100,"") ->  | C98: =IF(Pilotes!$B100<>"",Pilotes!B100,"") ->  | D98: =IF(Pilotes!$B100<>"",Pilotes!N100,"") ->  | E98: =IF(Pilotes!$B100<>"",Pilotes!O100,"") -> 
B99: =IF(Pilotes!$B101<>"",Pilotes!Q101,"") ->  | C99: =IF(Pilotes!$B101<>"",Pilotes!B101,"") ->  | D99: =IF(Pilotes!$B101<>"",Pilotes!N101,"") ->  | E99: =IF(Pilotes!$B101<>"",Pilotes!O101,"") -> 
B100: =IF(Pilotes!$B102<>"",Pilotes!Q102,"") ->  | C100: =IF(Pilotes!$B102<>"",Pilotes!B102,"") ->  | D100: =IF(Pilotes!$B102<>"",Pilotes!N102,"") ->  | E100: =IF(Pilotes!$B102<>"",Pilotes!O102,"") -> 
B101: =IF(Pilotes!$B103<>"",Pilotes!Q103,"") ->  | C101: =IF(Pilotes!$B103<>"",Pilotes!B103,"") ->  | D101: =IF(Pilotes!$B103<>"",Pilotes!N103,"") ->  | E101: =IF(Pilotes!$B103<>"",Pilotes!O103,"") -> 
B102: =IF(Pilotes!$B104<>"",Pilotes!Q104,"") ->  | C102: =IF(Pilotes!$B104<>"",Pilotes!B104,"") ->  | D102: =IF(Pilotes!$B104<>"",Pilotes!N104,"") ->  | E102: =IF(Pilotes!$B104<>"",Pilotes!O104,"") -> 
B103: =IF(Pilotes!$B105<>"",Pilotes!Q105,"") ->  | C103: =IF(Pilotes!$B105<>"",Pilotes!B105,"") ->  | D103: =IF(Pilotes!$B105<>"",Pilotes!N105,"") ->  | E103: =IF(Pilotes!$B105<>"",Pilotes!O105,"") -> 
B104: =IF(Pilotes!$B106<>"",Pilotes!Q106,"") ->  | C104: =IF(Pilotes!$B106<>"",Pilotes!B106,"") ->  | D104: =IF(Pilotes!$B106<>"",Pilotes!N106,"") ->  | E104: =IF(Pilotes!$B106<>"",Pilotes!O106,"") -> 
B105: =IF(Pilotes!$B107<>"",Pilotes!Q107,"") ->  | C105: =IF(Pilotes!$B107<>"",Pilotes!B107,"") ->  | D105: =IF(Pilotes!$B107<>"",Pilotes!N107,"") ->  | E105: =IF(Pilotes!$B107<>"",Pilotes!O107,"") -> 
B106: =IF(Pilotes!$B108<>"",Pilotes!Q108,"") ->  | C106: =IF(Pilotes!$B108<>"",Pilotes!B108,"") ->  | D106: =IF(Pilotes!$B108<>"",Pilotes!N108,"") ->  | E106: =IF(Pilotes!$B108<>"",Pilotes!O108,"") -> 
B107: =IF(Pilotes!$B109<>"",Pilotes!Q109,"") ->  | C107: =IF(Pilotes!$B109<>"",Pilotes!B109,"") ->  | D107: =IF(Pilotes!$B109<>"",Pilotes!N109,"") ->  | E107: =IF(Pilotes!$B109<>"",Pilotes!O109,"") -> 
B108: =IF(Pilotes!$B110<>"",Pilotes!Q110,"") ->  | C108: =IF(Pilotes!$B110<>"",Pilotes!B110,"") ->  | D108: =IF(Pilotes!$B110<>"",Pilotes!N110,"") ->  | E108: =IF(Pilotes!$B110<>"",Pilotes!O110,"") -> 

Sheet Chronos (M1..M20)
B1: F3F - Saisie des chronos - Manches 1 à 20
B2: CLUB : | C2: =Pilotes!C2 -> CMR Rodez
B3: LIEU : | C3: =Pilotes!C3 -> Panat
B4: DATE : | C4: =Pilotes!C4 -> 30 et 31 Mars 2019
B5: Nb Manches | C5: =COUNTIF(V:V,">0") -> 19
B6: Nb Chrono | C6: =COUNT(I:I) -> 283
B7: Meilleur Chrono | C7: =MIN(Q:Q) -> 35.28 | V7: ClastM | W7: Classement de la manche en cours
R8: TEMPS | V8: ClastE | W8: Classement évolutif après cette manche (pour copier/coller vers <Prépa Gpe>
B9: Nom | C9: Dossard | D9: Freq | E9: Equipe | F9: Manche | G9: Gpe | H9: GS | I9: Temps | J9: Penalité | K9: FAI Brut | L9: FAI Net | M9: ClastM | N9: ClastE | O9: ClastG | P9: GS | Q9: Min | R9: Max | S9: Moy | T9: Nbre Concurrents | V9: ClastG | W9: Classement Général | AH9: GS | AI9: Temps | AJ9: Penalité
B10: Nom | C10: Dossard | D10: Freq | E10: Equipe | F10: Manche | G10: Gpe | H10: GS | I10: Temps | J10: Penalité | K10: FAI Brut | L10: FAI Net | M10: ClastM | N10: ClastE | O10: ClastG | P10: GS | Q10: Min | R10: Max | S10: Moy | T10: Nbre Concurrents | U10: GS | AH10: GS | AI10: Temps | AJ10: Penalité
B11: FOUCHER Jean-Luc | C11: 1 | F11: 1 | G11: 1 | H11: =IF($G11<>"",G11,"") -> 1 | I11: 54.73 | K11: =IF($B11<>"",IF(I11,(INDEX(P$11:Q$14,MATCH(H11,P$11:P$14),2)/I11)*1000,0),"") -> 761.1913028 | L11: =IF(Q$11<>"",IF($B11<>"",K11-$J11,""),"") -> 761.1913028 | M11: =IF(B11<>"",RANK(L11,L$11:L$110),"") -> 11 | N11: =IF(B11<>"",'Classement Général'!BA11,"") -> 11 | O11: =IF(B11<>"",'Calculs (M1..M20)'!A14,"") -> 11 | P11: =IF(DMIN($H10:$I111,$P$10,$U$10:$U$11)<>0,1,"") -> 1 | Q11: =IF(DMIN($H10:$I111,$I$10,$U$10:$U$11)<>0,DMIN($H10:$I111,$I$10,$U$10:$U$11),"") -> 41.66 | R11: =IF(DMAX($H10:$I111,$I$10,$U$10:$U$11)<>0,DMAX($H10:$I111,$I$10,$U$10:$U$11),"") -> 71.56 | S11: =IF($P11<>"",IF(DAVERAGE($H10:$I111,$I$10,$U$10:$U$11)<>0,DAVERAGE($H10:$I111,$I$10,$U$10:$U$11),""),"") -> 52.44066667 | T11: =IF($P11<>"",IF(DCOUNTA($H10:$I111,$I$10,$U$10:$U$11)<>0,DCOUNTA($H10:$I111,$I$10,$U$10:$U$11),""),"") -> 15 | U11: 1 | AH11: =IF($G11<>"",AG11,"") -> 0
B12: DOUSSAUD Alexandre | C12: 2 | F12: 1 | G12: 1 | H12: =IF($G12<>"",G12,"") -> 1 | I12: 58.76 | K12: 708.9857046 | L12: =IF(Q$11<>"",IF($B12<>"",K12-J12,""),"") -> 708.9857046 | M12: 12 | N12: =IF(B12<>"",'Classement Général'!BA12,"") -> 12 | O12: =IF(B12<>"",'Calculs (M1..M20)'!A15,"") -> 14 | P12: =IF(DMIN($H10:$I111,$P$10,$U$12:$U$13)<>0,2,"") ->  | Q12: =IF(DMIN($H10:$I111,$I$10,$U$12:$U$13)<>0,DMIN($H10:$I111,$I$10,$U$12:$U$13),"") ->  | R12: =IF(DMAX($H10:$I111,$I$10,$U$12:$U$13)<>0,DMAX($H10:$I111,$I$10,$U$12:$U$13),"") ->  | S12: =IF($P12<>"",IF(DAVERAGE($H10:$I111,$I$10,$U$12:$U$13)<>0,DAVERAGE($H10:$I111,$I$10,$U$12:$U$13),""),"") ->  | T12: =IF($P11<>"",IF(DCOUNTA($H10:$I111,$I$10,$U$12:$U$13)<>0,DCOUNTA($H10:$I111,$I$10,$U$12:$U$13),""),"") ->  | U12: GS | AH12: =IF($G12<>"",AG12,"") -> 0
B13: BRAHIER Mickael | C13: 3 | F13: 1 | G13: 1 | H13: 1 | I13: 41.66 | K13: 1000 | L13: 1000 | M13: 1 | N13: =IF(B13<>"",'Classement Général'!BA13,"") -> 1 | O13: =IF(B13<>"",'Calculs (M1..M20)'!A16,"") -> 8 | P13: =IF(DMIN($H10:$I111,$P$10,$U$14:$U$15)<>0,3,"") ->  | Q13: =IF(DMIN($H10:$I111,$I$10,$U$14:$U$15)<>0,DMIN($H10:$I111,$I$10,$U$14:$U$15),"") ->  | R13: =IF(DMAX($H10:$I111,$I$10,$U$14:$U$15)<>0,DMAX($H10:$I111,$I$10,$U$14:$U$15),"") ->  | S13: =IF($P13<>"",IF(DAVERAGE($H10:$I111,$I$10,$U$14:$U$15)<>0,DAVERAGE($H10:$I111,$I$10,$U$14:$U$15),""),"") ->  | T13: =IF($P13<>"",IF(DCOUNTA($H10:$I111,$I$10,$U$14:$U$15)<>0,DCOUNTA($H10:$I111,$I$10,$U$14:$U$15),""),"") ->  | U13: 2 | AH13: 0
B14: DELARBRE Serge | C14: 4 | F14: 1 | G14: 1 | H14: 1 | I14: 50.05 | K14: 832.3676324 | L14: 832.3676324 | M14: 9 | N14: =IF(B14<>"",'Classement Général'!BA14,"") -> 9 | O14: =IF(B14<>"",'Calculs (M1..M20)'!A17,"") -> 10 | P14: =IF(DMIN($H10:$I111,$P$10,$U$16:$U$17)<>0,4,"") ->  | Q14: =IF(DMIN($H10:$I111,$I$10,$U$16:$U$17)<>0,DMIN($H10:$I111,$I$10,$U$16:$U$17),"") ->  | R14: =IF(DMAX($H10:$I111,$I$10,$U$16:$U$17)<>0,DMAX($H10:$I111,$I$10,$U$16:$U$17),"") ->  | S14: =IF($P14<>"",IF(DAVERAGE($H10:$I111,$I$10,$U$16:$U$17)<>0,DAVERAGE($H10:$I111,$I$10,$U$16:$U$17),""),"") ->  | T14: =IF($P13<>"",IF(DCOUNTA($H10:$I111,$I$10,$U$16:$U$17)<>0,DCOUNTA($H10:$I111,$I$10,$U$16:$U$17),""),"") ->  | U14: GS | AH14: 0
B15: LANES Sébastien | C15: 5 | F15: 1 | G15: 1 | H15: 1 | I15: 47.49 | K15: 877.2373131 | L15: 877.2373131 | M15: 5 | N15: =IF(B15<>"",'Classement Général'!BA15,"") -> 5 | O15: =IF(B15<>"",'Calculs (M1..M20)'!A18,"") -> 2 | T15: =SUM(T11:T14) -> 15 | U15: 3 | V15: =T15 -> 15 | AH15: 0
B16: CHABAUD Sébastien | C16: 6 | F16: 1 | G16: 1 | H16: 1 | I16: 60.11 | K16: 693.0627183 | L16: 693.0627183 | M16: 13 | N16: =IF(B16<>"",'Classement Général'!BA16,"") -> 13 | O16: =IF(B16<>"",'Calculs (M1..M20)'!A19,"") -> 13 | U16: GS | AH16: 0
B17: DIATTA Pierre | C17: 7 | F17: 1 | G17: 1 | H17: 1 | I17: 51.78 | K17: 804.5577443 | L17: 804.5577443 | M17: 10 | N17: =IF(B17<>"",'Classement Général'!BA17,"") -> 10 | O17: =IF(B17<>"",'Calculs (M1..M20)'!A20,"") -> 6 | U17: 4 | AH17: 0
B18: FRICKE Andreas | C18: 8 | F18: 1 | G18: 1 | H18: 1 | I18: 44.93 | K18: 927.2201202 | L18: 927.2201202 | M18: 3 | N18: =IF(B18<>"",'Classement Général'!BA18,"") -> 3 | O18: =IF(B18<>"",'Calculs (M1..M20)'!A21,"") -> 3 | AH18: 0
B19: SORBA Remy | C19: 9 | F19: 1 | G19: 1 | H19: 1 | I19: 66.62 | K19: 625.3377364 | L19: 625.3377364 | M19: 14 | N19: =IF(B19<>"",'Classement Général'!BA19,"") -> 14 | O19: =IF(B19<>"",'Calculs (M1..M20)'!A22,"") -> 9 | AH19: 0
B20: DEGUELLE J-Bastien | C20: 10 | F20: 1 | G20: 1 | H20: 1 | I20: 49.84 | K20: 835.8747994 | L20: 835.8747994 | M20: 8 | N20: =IF(B20<>"",'Classement Général'!BA20,"") -> 8 | O20: =IF(B20<>"",'Calculs (M1..M20)'!A23,"") -> 4 | AH20: 0
B21: DESANDRE Alain | C21: 11 | F21: 1 | G21: 1 | H21: 1 | I21: 71.56 | K21: 582.1688094 | L21: 582.1688094 | M21: 15 | N21: =IF(B21<>"",'Classement Général'!BA21,"") -> 15 | O21: =IF(B21<>"",'Calculs (M1..M20)'!A24,"") -> 15 | AH21: 0
B22: DELARBRE Marie-Helene | C22: 12 | F22: 1 | G22: 1 | H22: 1 | K22: 0 | L22: 0 | M22: 16 | N22: =IF(B22<>"",'Classement Général'!BA22,"") -> 16 | O22: =IF(B22<>"",'Calculs (M1..M20)'!A25,"") -> 16 | AH22: 0
B23: LAFARGE Pascal | C23: 13 | F23: 1 | G23: 1 | H23: 1 | I23: 49.75 | K23: 837.3869347 | L23: 837.3869347 | M23: 7 | N23: =IF(B23<>"",'Classement Général'!BA23,"") -> 7 | O23: =IF(B23<>"",'Calculs (M1..M20)'!A26,"") -> 12 | AH23: 0
B24: DAL HAVA Herve | C24: 14 | F24: 1 | G24: 1 | H24: 1 | I24: 49.01 | K24: 850.030606 | L24: 850.030606 | M24: 6 | N24: =IF(B24<>"",'Classement Général'!BA24,"") -> 6 | O24: =IF(B24<>"",'Calculs (M1..M20)'!A27,"") -> 7 | AH24: 0
B25: LANES Philippe | C25: 15 | F25: 1 | G25: 1 | H25: 1 | I25: 46.43 | K25: 897.2646995 | L25: 897.2646995 | M25: 4 | N25: =IF(B25<>"",'Classement Général'!BA25,"") -> 4 | O25: =IF(B25<>"",'Calculs (M1..M20)'!A28,"") -> 5 | AH25: 0
B26: GABANON Aubry | C26: 16 | F26: 1 | G26: 1 | H26: 1 | I26: 43.89 | K26: 949.1911597 | L26: 949.1911597 | M26: 2 | N26: =IF(B26<>"",'Classement Général'!BA26,"") -> 2 | O26: =IF(B26<>"",'Calculs (M1..M20)'!A29,"") -> 1 | AH26: 0
F27: 1 | G27: 1 | H27: 1 | N27: =IF(B27<>"",'Classement Général'!BA27,"") ->  | O27: =IF(B27<>"",'Calculs (M1..M20)'!A30,"") ->  | AH27: 0
F28: 1 | G28: 1 | H28: 1 | N28: =IF(B28<>"",'Classement Général'!BA28,"") ->  | O28: =IF(B28<>"",'Calculs (M1..M20)'!A31,"") ->  | AH28: 0
F29: 1 | G29: 1 | H29: 1 | N29: =IF(B29<>"",'Classement Général'!BA29,"") ->  | O29: =IF(B29<>"",'Calculs (M1..M20)'!A32,"") ->  | AH29: 0
F30: 1 | G30: 1 | H30: 1 | N30: =IF(B30<>"",'Classement Général'!BA30,"") ->  | O30: =IF(B30<>"",'Calculs (M1..M20)'!A33,"") ->  | AH30: 0
F31: 1 | G31: 1 | H31: 1 | N31: =IF(B31<>"",'Classement Général'!BA31,"") ->  | O31: =IF(B31<>"",'Calculs (M1..M20)'!A34,"") ->  | AH31: 0
F32: 1 | G32: 1 | H32: 1 | N32: =IF(B32<>"",'Classement Général'!BA32,"") ->  | O32: =IF(B32<>"",'Calculs (M1..M20)'!A35,"") ->  | AH32: 0
F33: 1 | G33: 1 | H33: 1 | N33: =IF(B33<>"",'Classement Général'!BA33,"") ->  | O33: =IF(B33<>"",'Calculs (M1..M20)'!A36,"") ->  | AH33: 0
F34: 1 | G34: 1 | H34: 1 | N34: =IF(B34<>"",'Classement Général'!BA34,"") ->  | O34: =IF(B34<>"",'Calculs (M1..M20)'!A37,"") ->  | AH34: 0
F35: 1 | G35: 1 | H35: 1 | N35: =IF(B35<>"",'Classement Général'!BA35,"") ->  | O35: =IF(B35<>"",'Calculs (M1..M20)'!A38,"") ->  | AH35: 0
F36: 1 | G36: 1 | H36: 1 | N36: =IF(B36<>"",'Classement Général'!BA36,"") ->  | O36: =IF(B36<>"",'Calculs (M1..M20)'!A39,"") ->  | AH36: 0
F37: 1 | G37: 1 | H37: 1 | N37: =IF(B37<>"",'Classement Général'!BA37,"") ->  | O37: =IF(B37<>"",'Calculs (M1..M20)'!A40,"") ->  | AH37: 0
F38: 1 | G38: 1 | H38: 1 | N38: =IF(B38<>"",'Classement Général'!BA38,"") ->  | O38: =IF(B38<>"",'Calculs (M1..M20)'!A41,"") ->  | AH38: 0
F39: 1 | G39: 1 | H39: 1 | N39: =IF(B39<>"",'Classement Général'!BA39,"") ->  | O39: =IF(B39<>"",'Calculs (M1..M20)'!A42,"") ->  | AH39: 0
F40: 1 | G40: 1 | H40: 1 | N40: =IF(B40<>"",'Classement Général'!BA40,"") ->  | O40: =IF(B40<>"",'Calculs (M1..M20)'!A43,"") ->  | AH40: 0
F41: 1 | G41: 1 | H41: 1 | N41: =IF(B41<>"",'Classement Général'!BA41,"") ->  | O41: =IF(B41<>"",'Calculs (M1..M20)'!A44,"") ->  | AH41: 0
F42: 1 | G42: 1 | H42: 1 | N42: =IF(B42<>"",'Classement Général'!BA42,"") ->  | O42: =IF(B42<>"",'Calculs (M1..M20)'!A45,"") ->  | AH42: 0
F43: 1 | G43: 1 | H43: 1 | K43: =IF($B43<>"",IF(I43,(INDEX(P$11:Q$14,MATCH(H43,P$11:P$14),2)/I43)*1000,0),"") ->  | M43: =IF(B43<>"",RANK(L43,L$11:L$110),"") ->  | N43: =IF(B43<>"",'Classement Général'!BA43,"") ->  | O43: =IF(B43<>"",'Calculs (M1..M20)'!A46,"") ->  | AH43: 0
F44: 1 | G44: 1 | H44: 1 | L44: =IF(Q$11<>"",IF($B44<>"",K44-J44,""),"") ->  | N44: =IF(B44<>"",'Classement Général'!BA44,"") ->  | O44: =IF(B44<>"",'Calculs (M1..M20)'!A47,"") ->  | AH44: 0
F45: 1 | G45: 1 | H45: 1 | N45: =IF(B45<>"",'Classement Général'!BA45,"") ->  | O45: =IF(B45<>"",'Calculs (M1..M20)'!A48,"") ->  | AH45: 0
F46: 1 | G46: 1 | H46: 1 | N46: =IF(B46<>"",'Classement Général'!BA46,"") ->  | O46: =IF(B46<>"",'Calculs (M1..M20)'!A49,"") ->  | AH46: 0
F47: 1 | G47: 1 | H47: 1 | N47: =IF(B47<>"",'Classement Général'!BA47,"") ->  | O47: =IF(B47<>"",'Calculs (M1..M20)'!A50,"") ->  | AH47: 0
F48: 1 | G48: 1 | H48: 1 | N48: =IF(B48<>"",'Classement Général'!BA48,"") ->  | O48: =IF(B48<>"",'Calculs (M1..M20)'!A51,"") ->  | AH48: 0
F49: 1 | G49: 1 | H49: 1 | N49: =IF(B49<>"",'Classement Général'!BA49,"") ->  | O49: =IF(B49<>"",'Calculs (M1..M20)'!A52,"") ->  | AH49: 0
F50: 1 | G50: 1 | H50: 1 | N50: =IF(B50<>"",'Classement Général'!BA50,"") ->  | O50: =IF(B50<>"",'Calculs (M1..M20)'!A53,"") ->  | AH50: 0
F51: 1 | G51: 1 | H51: 1 | N51: =IF(B51<>"",'Classement Général'!BA51,"") ->  | O51: =IF(B51<>"",'Calculs (M1..M20)'!A54,"") ->  | AH51: 0
F52: 1 | G52: 1 | H52: 1 | N52: =IF(B52<>"",'Classement Général'!BA52,"") ->  | O52: =IF(B52<>"",'Calculs (M1..M20)'!A55,"") ->  | AH52: 0
F53: 1 | G53: 1 | H53: 1 | N53: =IF(B53<>"",'Classement Général'!BA53,"") ->  | O53: =IF(B53<>"",'Calculs (M1..M20)'!A56,"") ->  | AH53: 0
F54: 1 | G54: 1 | H54: 1 | N54: =IF(B54<>"",'Classement Général'!BA54,"") ->  | O54: =IF(B54<>"",'Calculs (M1..M20)'!A57,"") ->  | AH54: 0
F55: 1 | G55: 1 | H55: 1 | N55: =IF(B55<>"",'Classement Général'!BA55,"") ->  | O55: =IF(B55<>"",'Calculs (M1..M20)'!A58,"") ->  | AH55: 0
F56: 1 | G56: 1 | H56: 1 | N56: =IF(B56<>"",'Classement Général'!BA56,"") ->  | O56: =IF(B56<>"",'Calculs (M1..M20)'!A59,"") ->  | AH56: 0
F57: 1 | G57: 1 | H57: 1 | N57: =IF(B57<>"",'Classement Général'!BA57,"") ->  | O57: =IF(B57<>"",'Calculs (M1..M20)'!A60,"") ->  | AH57: 0
F58: 1 | G58: 1 | H58: 1 | N58: =IF(B58<>"",'Classement Général'!BA58,"") ->  | O58: =IF(B58<>"",'Calculs (M1..M20)'!A61,"") ->  | AH58: 0
F59: 1 | G59: 1 | H59: 1 | N59: =IF(B59<>"",'Classement Général'!BA59,"") ->  | O59: =IF(B59<>"",'Calculs (M1..M20)'!A62,"") ->  | AH59: 0
F60: 1 | G60: 1 | H60: 1 | N60: =IF(B60<>"",'Classement Général'!BA60,"") ->  | O60: =IF(B60<>"",'Calculs (M1..M20)'!A63,"") ->  | AH60: 0
F61: 1 | G61: 1 | H61: 1 | N61: =IF(B61<>"",'Classement Général'!BA61,"") ->  | O61: =IF(B61<>"",'Calculs (M1..M20)'!A64,"") ->  | AH61: 0
F62: 1 | G62: 1 | H62: 1 | N62: =IF(B62<>"",'Classement Général'!BA62,"") ->  | O62: =IF(B62<>"",'Calculs (M1..M20)'!A65,"") ->  | AH62: 0
F63: 1 | G63: 1 | H63: 1 | N63: =IF(B63<>"",'Classement Général'!BA63,"") ->  | O63: =IF(B63<>"",'Calculs (M1..M20)'!A66,"") ->  | AH63: 0
F64: 1 | G64: 1 | H64: 1 | N64: =IF(B64<>"",'Classement Général'!BA64,"") ->  | O64: =IF(B64<>"",'Calculs (M1..M20)'!A67,"") ->  | AH64: 0
F65: 1 | G65: 1 | H65: 1 | N65: =IF(B65<>"",'Classement Général'!BA65,"") ->  | O65: =IF(B65<>"",'Calculs (M1..M20)'!A68,"") ->  | AH65: 0
F66: 1 | G66: 1 | H66: 1 | N66: =IF(B66<>"",'Classement Général'!BA66,"") ->  | O66: =IF(B66<>"",'Calculs (M1..M20)'!A69,"") ->  | AH66: 0
F67: 1 | G67: 1 | H67: 1 | N67: =IF(B67<>"",'Classement Général'!BA67,"") ->  | O67: =IF(B67<>"",'Calculs (M1..M20)'!A70,"") ->  | AH67: 0
F68: 1 | N68: =IF(B68<>"",'Classement Général'!BA68,"") ->  | O68: =IF(B68<>"",'Calculs (M1..M20)'!A71,"") -> 
F69: 1 | N69: =IF(B69<>"",'Classement Général'!BA69,"") ->  | O69: =IF(B69<>"",'Calculs (M1..M20)'!A72,"") -> 
F70: 1 | N70: =IF(B70<>"",'Classement Général'!BA70,"") ->  | O70: =IF(B70<>"",'Calculs (M1..M20)'!A73,"") -> 
F71: 1 | N71: =IF(B71<>"",'Classement Général'!BA71,"") ->  | O71: =IF(B71<>"",'Calculs (M1..M20)'!A74,"") -> 
F72: 1 | N72: =IF(B72<>"",'Classement Général'!BA72,"") ->  | O72: =IF(B72<>"",'Calculs (M1..M20)'!A75,"") -> 
F73: 1 | N73: =IF(B73<>"",'Classement Général'!BA73,"") ->  | O73: =IF(B73<>"",'Calculs (M1..M20)'!A76,"") -> 
F74: 1 | N74: =IF(B74<>"",'Classement Général'!BA74,"") ->  | O74: =IF(B74<>"",'Calculs (M1..M20)'!A77,"") -> 
F75: 1 | K75: =IF($B75<>"",IF(I75,(INDEX(P$11:Q$14,MATCH(H75,P$11:P$14),2)/I75)*1000,0),"") ->  | M75: =IF(B75<>"",RANK(L75,L$11:L$110),"") ->  | N75: =IF(B75<>"",'Classement Général'!BA75,"") ->  | O75: =IF(B75<>"",'Calculs (M1..M20)'!A78,"") -> 
F76: 1 | H76: =IF($G76<>"",G76,"") ->  | L76: =IF(Q$11<>"",IF($B76<>"",K76-J76,""),"") ->  | N76: =IF(B76<>"",'Classement Général'!BA76,"") ->  | O76: =IF(B76<>"",'Calculs (M1..M20)'!A79,"") ->  | AH76: =IF($G76<>"",AG76,"") -> 
F77: 1 | N77: =IF(B77<>"",'Classement Général'!BA77,"") ->  | O77: =IF(B77<>"",'Calculs (M1..M20)'!A80,"") -> 
F78: 1 | N78: =IF(B78<>"",'Classement Général'!BA78,"") ->  | O78: =IF(B78<>"",'Calculs (M1..M20)'!A81,"") -> 
F79: 1 | N79: =IF(B79<>"",'Classement Général'!BA79,"") ->  | O79: =IF(B79<>"",'Calculs (M1..M20)'!A82,"") -> 
F80: 1 | N80: =IF(B80<>"",'Classement Général'!BA80,"") ->  | O80: =IF(B80<>"",'Calculs (M1..M20)'!A83,"") -> 
F81: 1 | N81: =IF(B81<>"",'Classement Général'!BA81,"") ->  | O81: =IF(B81<>"",'Calculs (M1..M20)'!A84,"") -> 
F82: 1 | N82: =IF(B82<>"",'Classement Général'!BA82,"") ->  | O82: =IF(B82<>"",'Calculs (M1..M20)'!A85,"") -> 
F83: 1 | N83: =IF(B83<>"",'Classement Général'!BA83,"") ->  | O83: =IF(B83<>"",'Calculs (M1..M20)'!A86,"") -> 
F84: 1 | N84: =IF(B84<>"",'Classement Général'!BA84,"") ->  | O84: =IF(B84<>"",'Calculs (M1..M20)'!A87,"") -> 
F85: 1 | N85: =IF(B85<>"",'Classement Général'!BA85,"") ->  | O85: =IF(B85<>"",'Calculs (M1..M20)'!A88,"") -> 
F86: 1 | N86: =IF(B86<>"",'Classement Général'!BA86,"") ->  | O86: =IF(B86<>"",'Calculs (M1..M20)'!A89,"") -> 
F87: 1 | N87: =IF(B87<>"",'Classement Général'!BA87,"") ->  | O87: =IF(B87<>"",'Calculs (M1..M20)'!A90,"") -> 
F88: 1 | N88: =IF(B88<>"",'Classement Général'!BA88,"") ->  | O88: =IF(B88<>"",'Calculs (M1..M20)'!A91,"") -> 
F89: 1 | N89: =IF(B89<>"",'Classement Général'!BA89,"") ->  | O89: =IF(B89<>"",'Calculs (M1..M20)'!A92,"") -> 
F90: 1 | N90: =IF(B90<>"",'Classement Général'!BA90,"") ->  | O90: =IF(B90<>"",'Calculs (M1..M20)'!A93,"") -> 
F91: 1 | N91: =IF(B91<>"",'Classement Général'!BA91,"") ->  | O91: =IF(B91<>"",'Calculs (M1..M20)'!A94,"") -> 
F92: 1 | N92: =IF(B92<>"",'Classement Général'!BA92,"") ->  | O92: =IF(B92<>"",'Calculs (M1..M20)'!A95,"") -> 
F93: 1 | N93: =IF(B93<>"",'Classement Général'!BA93,"") ->  | O93: =IF(B93<>"",'Calculs (M1..M20)'!A96,"") -> 
F94: 1 | N94: =IF(B94<>"",'Classement Général'!BA94,"") ->  | O94: =IF(B94<>"",'Calculs (M1..M20)'!A97,"") -> 
F95: 1 | N95: =IF(B95<>"",'Classement Général'!BA95,"") ->  | O95: =IF(B95<>"",'Calculs (M1..M20)'!A98,"") -> 
F96: 1 | N96: =IF(B96<>"",'Classement Général'!BA96,"") ->  | O96: =IF(B96<>"",'Calculs (M1..M20)'!A99,"") -> 
F97: 1 | N97: =IF(B97<>"",'Classement Général'!BA97,"") ->  | O97: =IF(B97<>"",'Calculs (M1..M20)'!A100,"") -> 
F98: 1 | N98: =IF(B98<>"",'Classement Général'!BA98,"") ->  | O98: =IF(B98<>"",'Calculs (M1..M20)'!A101,"") -> 
F99: 1 | N99: =IF(B99<>"",'Classement Général'!BA99,"") ->  | O99: =IF(B99<>"",'Calculs (M1..M20)'!A102,"") -> 
F100: 1 | N100: =IF(B100<>"",'Classement Général'!BA100,"") ->  | O100: =IF(B100<>"",'Calculs (M1..M20)'!A103,"") -> 
F101: 1 | N101: =IF(B101<>"",'Classement Général'!BA101,"") ->  | O101: =IF(B101<>"",'Calculs (M1..M20)'!A104,"") -> 
F102: 1 | N102: =IF(B102<>"",'Classement Général'!BA102,"") ->  | O102: =IF(B102<>"",'Calculs (M1..M20)'!A105,"") -> 
F103: 1 | N103: =IF(B103<>"",'Classement Général'!BA103,"") ->  | O103: =IF(B103<>"",'Calculs (M1..M20)'!A106,"") -> 
F104: 1 | N104: =IF(B104<>"",'Classement Général'!BA104,"") ->  | O104: =IF(B104<>"",'Calculs (M1..M20)'!A107,"") -> 
F105: 1 | N105: =IF(B105<>"",'Classement Général'!BA105,"") ->  | O105: =IF(B105<>"",'Calculs (M1..M20)'!A108,"") -> 
F106: 1 | N106: =IF(B106<>"",'Classement Général'!BA106,"") ->  | O106: =IF(B106<>"",'Calculs (M1..M20)'!A109,"") -> 
F107: 1 | M107: =IF(B107<>"",RANK(L107,L$11:L$110),"") ->  | N107: =IF(B107<>"",'Classement Général'!BA107,"") ->  | O107: =IF(B107<>"",'Calculs (M1..M20)'!A110,"") -> 
F108: 1 | L108: =IF(Q$11<>"",IF($B108<>"",K108-J108,""),"") ->  | M108: =IF(B108<>"",RANK(L108,L$11:L$110),"") ->  | N108: =IF(B108<>"",'Classement Général'!BA108,"") ->  | O108: =IF(B108<>"",'Calculs (M1..M20)'!A111,"") -> 
F109: 1 | L109: =IF(Q$11<>"",IF($B109<>"",K109-J109,""),"") ->  | M109: =IF(B109<>"",RANK(L109,L$11:L$110),"") ->  | N109: =IF(B109<>"",'Classement Général'!BA109,"") ->  | O109: =IF(B109<>"",'Calculs (M1..M20)'!A112,"") -> 
F110: 1 | L110: =IF(Q$11<>"",IF($B110<>"",K110-J110,""),"") ->  | M110: =IF(B110<>"",RANK(L110,L$11:L$110),"") ->  | N110: =IF(B110<>"",'Classement Général'!BA110,"") ->  | O110: =IF(B110<>"",'Calculs (M1..M20)'!A113,"") -> 
B111: Nom | C111: Dossard | D111: Freq | E111: Equipe | F111: Manche | G111: Gpe | H111: GS | I111: Temps | J111: Penalité | K111: FAI Brut | L111: FAI Net | M111: ClastM | N111: ClastE | O111: ClastG | P111: GS | Q111: Min | R111: Max | S111: Moy | T111: Nbre Concurrents | U111: GS | AH111: GS | AI111: Temps | AJ111: Penalité
B112: =IF(B11<>"",B11,"") -> FOUCHER Jean-Luc | C112: 1 | F112: 2 | G112: =G11 -> 1 | H112: =IF($G112<>"",G112,"") -> 1 | I112: 50.34 | K112: =IF($B112<>"",IF(I112,(INDEX(P$112:Q$115,MATCH(H112,P$112:P$115),2)/I112)*1000,0),"") -> 765.7926103 | L112: =IF(Q$112<>"",IF($B112<>"",K112-$J112,""),"") -> 765.7926103 | M112: =IF(B112<>"",RANK(L112,L$112:L$211),"") -> 10 | N112: =IF(B112<>"",'Classement Général'!BB11,"") -> 11 | O112: =IF(B112<>"",'Calculs (M1..M20)'!A14,"") -> 11 | P112: =IF(DMIN($H111:$I212,$P$10,$U$10:$U$11)<>0,1,"") -> 1 | Q112: =IF(DMIN($H111:$I212,$I$10,$U$10:$U$11)<>0,DMIN($H111:$I212,$I$10,$U$10:$U$11),"") -> 38.55 | R112: =IF(DMAX($H111:$I212,$I$10,$U$10:$U$11)<>0,DMAX($H111:$I212,$I$10,$U$10:$U$11),"") -> 63.14 | S112: =IF($P112<>"",IF(DAVERAGE($H111:$I212,$I$10,$U$10:$U$11)<>0,DAVERAGE($H111:$I212,$I$10,$U$10:$U$11),""),"") -> 48.94533333 | T112: =IF($P112<>"",IF(DCOUNTA($H111:$I212,$I$10,$U$10:$U$11)<>0,DCOUNTA($H111:$I212,$I$10,$U$10:$U$11),""),"") -> 15 | U112: 1 | AH112: 0
B113: DOUSSAUD Alexandre | C113: 2 | F113: 2 | G113: 1 | H113: 1 | I113: 54.87 | K113: 702.5697102 | L113: 702.5697102 | M113: 14 | N113: =IF(B113<>"",'Classement Général'!BB12,"") -> 14 | O113: =IF(B113<>"",'Calculs (M1..M20)'!A15,"") -> 14 | P113: =IF(DMIN($H111:$I212,$P$10,$U$12:$U$13)<>0,2,"") ->  | Q113: =IF(DMIN($H111:$I212,$I$10,$U$12:$U$13)<>0,DMIN($H111:$I212,$I$10,$U$12:$U$13),"") ->  | R113: =IF(DMAX($H111:$I212,$I$10,$U$12:$U$13)<>0,DMAX($H111:$I212,$I$10,$U$12:$U$13),"") ->  | S113: =IF($P113<>"",IF(DAVERAGE($H111:$I212,$I$10,$U$12:$U$13)<>0,DAVERAGE($H111:$I212,$I$10,$U$12:$U$13),""),"") ->  | T113: =IF($P112<>"",IF(DCOUNTA($H111:$I212,$I$10,$U$12:$U$13)<>0,DCOUNTA($H111:$I212,$I$10,$U$12:$U$13),""),"") ->  | U113: GS | AH113: 0
B114: BRAHIER Mickael | C114: 3 | F114: 2 | G114: 1 | H114: 1 | I114: 52.24 | K114: 737.9402757 | L114: 737.9402757 | M114: 12 | N114: =IF(B114<>"",'Classement Général'!BB13,"") -> 4 | O114: =IF(B114<>"",'Calculs (M1..M20)'!A16,"") -> 8 | P114: =IF(DMIN($H111:$I212,$P$10,$U$14:$U$15)<>0,3,"") ->  | Q114: =IF(DMIN($H111:$I212,$I$10,$U$14:$U$15)<>0,DMIN($H111:$I212,$I$10,$U$14:$U$15),"") ->  | R114: =IF(DMAX($H111:$I212,$I$10,$U$14:$U$15)<>0,DMAX($H111:$I212,$I$10,$U$14:$U$15),"") ->  | S114: =IF($P114<>"",IF(DAVERAGE($H111:$I212,$I$10,$U$14:$U$15)<>0,DAVERAGE($H111:$I212,$I$10,$U$14:$U$15),""),"") ->  | T114: =IF($P114<>"",IF(DCOUNTA($H111:$I212,$I$10,$U$14:$U$15)<>0,DCOUNTA($H111:$I212,$I$10,$U$14:$U$15),""),"") ->  | U114: 2 | AH114: 0
B115: DELARBRE Serge | C115: 4 | F115: 2 | G115: 1 | H115: 1 | I115: 49.5 | K115: 778.7878788 | L115: 778.7878788 | M115: 9 | N115: =IF(B115<>"",'Classement Général'!BB14,"") -> 9 | O115: =IF(B115<>"",'Calculs (M1..M20)'!A17,"") -> 10 | P115: =IF(DMIN($H111:$I212,$P$10,$U$16:$U$17)<>0,4,"") ->  | Q115: =IF(DMIN($H111:$I212,$I$10,$U$16:$U$17)<>0,DMIN($H111:$I212,$I$10,$U$16:$U$17),"") ->  | R115: =IF(DMAX($H111:$I212,$I$10,$U$16:$U$17)<>0,DMAX($H111:$I212,$I$10,$U$16:$U$17),"") ->  | S115: =IF($P115<>"",IF(DAVERAGE($H111:$I212,$I$10,$U$16:$U$17)<>0,DAVERAGE($H111:$I212,$I$10,$U$16:$U$17),""),"") ->  | T115: =IF($P114<>"",IF(DCOUNTA($H111:$I212,$I$10,$U$16:$U$17)<>0,DCOUNTA($H111:$I212,$I$10,$U$16:$U$17),""),"") ->  | U115: GS | AH115: 0
B116: LANES Sébastien | C116: 5 | F116: 2 | G116: 1 | H116: 1 | I116: 38.55 | K116: 1000 | L116: 1000 | M116: 1 | N116: =IF(B116<>"",'Classement Général'!BB15,"") -> 1 | O116: =IF(B116<>"",'Calculs (M1..M20)'!A18,"") -> 2 | T116: =SUM(T112:T115) -> 15 | U116: 3 | V116: =T116 -> 15 | AH116: 0
B117: CHABAUD Sébastien | C117: 6 | F117: 2 | G117: 1 | H117: 1 | I117: 53.64 | K117: 718.6800895 | L117: 718.6800895 | M117: 13 | N117: =IF(B117<>"",'Classement Général'!BB16,"") -> 13 | O117: =IF(B117<>"",'Calculs (M1..M20)'!A19,"") -> 13 | U117: GS | AH117: 0
B118: DIATTA Pierre | C118: 7 | F118: 2 | G118: 1 | H118: 1 | I118: 44.57 | K118: 864.9315683 | L118: 864.9315683 | M118: 4 | N118: =IF(B118<>"",'Classement Général'!BB17,"") -> 6 | O118: =IF(B118<>"",'Calculs (M1..M20)'!A20,"") -> 6 | U118: 4 | AH118: 0
B119: FRICKE Andreas | C119: 8 | F119: 2 | G119: 1 | H119: 1 | I119: 41.1 | K119: 937.9562044 | L119: 937.9562044 | M119: 2 | N119: =IF(B119<>"",'Classement Général'!BB18,"") -> 2 | O119: =IF(B119<>"",'Calculs (M1..M20)'!A21,"") -> 3 | AH119: 0
B120: SORBA Remy | C120: 9 | F120: 2 | G120: 1 | H120: 1 | I120: 48.16 | K120: 800.4568106 | L120: 800.4568106 | M120: 7 | N120: =IF(B120<>"",'Classement Général'!BB19,"") -> 12 | O120: =IF(B120<>"",'Calculs (M1..M20)'!A22,"") -> 9 | AH120: 0
B121: DEGUELLE J-Bastien | C121: 10 | F121: 2 | G121: 1 | H121: 1 | I121: 50.34 | K121: 765.7926103 | L121: 765.7926103 | M121: 10 | N121: =IF(B121<>"",'Classement Général'!BB20,"") -> 10 | O121: =IF(B121<>"",'Calculs (M1..M20)'!A23,"") -> 4 | AH121: 0
B122: DESANDRE Alain | C122: 11 | F122: 2 | G122: 1 | H122: 1 | I122: 63.14 | K122: 610.5479886 | L122: 610.5479886 | M122: 15 | N122: =IF(B122<>"",'Classement Général'!BB21,"") -> 15 | O122: =IF(B122<>"",'Calculs (M1..M20)'!A24,"") -> 15 | AH122: 0
B123: DELARBRE Marie-Helene | C123: 12 | F123: 2 | G123: 1 | H123: 1 | K123: 0 | L123: 0 | M123: 16 | N123: =IF(B123<>"",'Classement Général'!BB22,"") -> 16 | O123: =IF(B123<>"",'Calculs (M1..M20)'!A25,"") -> 16 | AH123: 0
B124: LAFARGE Pascal | C124: 13 | F124: 2 | G124: 1 | H124: 1 | I124: 46.48 | K124: 829.3889845 | L124: 829.3889845 | M124: 5 | N124: =IF(B124<>"",'Classement Général'!BB23,"") -> 7 | O124: =IF(B124<>"",'Calculs (M1..M20)'!A26,"") -> 12 | AH124: 0
B125: DAL HAVA Herve | C125: 14 | F125: 2 | G125: 1 | H125: 1 | I125: 47.62 | K125: 809.5338093 | L125: 809.5338093 | M125: 6 | N125: =IF(B125<>"",'Classement Général'!BB24,"") -> 8 | O125: =IF(B125<>"",'Calculs (M1..M20)'!A27,"") -> 7 | AH125: 0
B126: LANES Philippe | C126: 15 | F126: 2 | G126: 1 | H126: 1 | I126: 44.26 | K126: 870.9896069 | L126: 870.9896069 | M126: 3 | N126: =IF(B126<>"",'Classement Général'!BB25,"") -> 3 | O126: =IF(B126<>"",'Calculs (M1..M20)'!A28,"") -> 5 | AH126: 0
B127: GABANON Aubry | C127: 16 | F127: 2 | G127: 1 | H127: 1 | I127: 49.37 | K127: 780.8385659 | L127: 780.8385659 | M127: 8 | N127: =IF(B127<>"",'Classement Général'!BB26,"") -> 5 | O127: =IF(B127<>"",'Calculs (M1..M20)'!A29,"") -> 1 | AH127: 0
F128: 2 | G128: 1 | H128: 1 | N128: =IF(B128<>"",'Classement Général'!BB27,"") ->  | O128: =IF(B128<>"",'Calculs (M1..M20)'!A30,"") ->  | AH128: 0
F129: 2 | G129: 1 | H129: 1 | N129: =IF(B129<>"",'Classement Général'!BB28,"") ->  | O129: =IF(B129<>"",'Calculs (M1..M20)'!A31,"") ->  | AH129: 0
F130: 2 | G130: 1 | H130: 1 | N130: =IF(B130<>"",'Classement Général'!BB29,"") ->  | O130: =IF(B130<>"",'Calculs (M1..M20)'!A32,"") ->  | AH130: 0
F131: 2 | G131: 1 | H131: 1 | N131: =IF(B131<>"",'Classement Général'!BB30,"") ->  | O131: =IF(B131<>"",'Calculs (M1..M20)'!A33,"") ->  | AH131: 0
B132: =IF(B31<>"",B31,"") ->  | F132: 2 | G132: 1 | H132: 1 | N132: =IF(B132<>"",'Classement Général'!BB31,"") ->  | O132: =IF(B132<>"",'Calculs (M1..M20)'!A34,"") ->  | AH132: 0
F133: 2 | G133: 1 | H133: 1 | N133: =IF(B133<>"",'Classement Général'!BB32,"") ->  | O133: =IF(B133<>"",'Calculs (M1..M20)'!A35,"") ->  | AH133: 0
F134: 2 | G134: 1 | H134: 1 | N134: =IF(B134<>"",'Classement Général'!BB33,"") ->  | O134: =IF(B134<>"",'Calculs (M1..M20)'!A36,"") ->  | AH134: 0
F135: 2 | G135: 1 | H135: 1 | N135: =IF(B135<>"",'Classement Général'!BB34,"") ->  | O135: =IF(B135<>"",'Calculs (M1..M20)'!A37,"") ->  | AH135: 0
F136: 2 | G136: 1 | H136: 1 | N136: =IF(B136<>"",'Classement Général'!BB35,"") ->  | O136: =IF(B136<>"",'Calculs (M1..M20)'!A38,"") ->  | AH136: 0
F137: 2 | G137: 1 | H137: 1 | N137: =IF(B137<>"",'Classement Général'!BB36,"") ->  | O137: =IF(B137<>"",'Calculs (M1..M20)'!A39,"") ->  | AH137: 0
F138: 2 | G138: 1 | H138: 1 | N138: =IF(B138<>"",'Classement Général'!BB37,"") ->  | O138: =IF(B138<>"",'Calculs (M1..M20)'!A40,"") ->  | AH138: 0
F139: 2 | G139: 1 | H139: 1 | N139: =IF(B139<>"",'Classement Général'!BB38,"") ->  | O139: =IF(B139<>"",'Calculs (M1..M20)'!A41,"") ->  | AH139: 0
F140: 2 | G140: 1 | H140: 1 | N140: =IF(B140<>"",'Classement Général'!BB39,"") ->  | O140: =IF(B140<>"",'Calculs (M1..M20)'!A42,"") ->  | AH140: =IF($G140<>"",AG140,"") -> 0
F141: 2 | G141: 1 | H141: 1 | N141: =IF(B141<>"",'Classement Général'!BB40,"") ->  | O141: =IF(B141<>"",'Calculs (M1..M20)'!A43,"") ->  | AH141: 0
F142: 2 | G142: 1 | H142: 1 | N142: =IF(B142<>"",'Classement Général'!BB41,"") ->  | O142: =IF(B142<>"",'Calculs (M1..M20)'!A44,"") ->  | AH142: 0
F143: 2 | G143: 1 | H143: 1 | N143: =IF(B143<>"",'Classement Général'!BB42,"") ->  | O143: =IF(B143<>"",'Calculs (M1..M20)'!A45,"") ->  | AH143: 0
F144: 2 | G144: =G43 -> 1 | H144: 1 | K144: =IF($B144<>"",IF(I144,(INDEX(P$112:Q$115,MATCH(H144,P$112:P$115),2)/I144)*1000,0),"") ->  | L144: =IF(Q$112<>"",IF($B144<>"",K144-$J144,""),"") ->  | M144: =IF(B144<>"",RANK(L144,L$112:L$211),"") ->  | N144: =IF(B144<>"",'Classement Général'!BB43,"") ->  | O144: =IF(B144<>"",'Calculs (M1..M20)'!A46,"") ->  | AH144: 0
F145: 2 | G145: 1 | H145: 1 | N145: =IF(B145<>"",'Classement Général'!BB44,"") ->  | O145: =IF(B145<>"",'Calculs (M1..M20)'!A47,"") ->  | AH145: 0
F146: 2 | G146: 1 | H146: 1 | N146: =IF(B146<>"",'Classement Général'!BB45,"") ->  | O146: =IF(B146<>"",'Calculs (M1..M20)'!A48,"") ->  | AH146: 0
F147: 2 | G147: 1 | H147: 1 | N147: =IF(B147<>"",'Classement Général'!BB46,"") ->  | O147: =IF(B147<>"",'Calculs (M1..M20)'!A49,"") ->  | AH147: 0
F148: 2 | G148: 1 | H148: 1 | N148: =IF(B148<>"",'Classement Général'!BB47,"") ->  | O148: =IF(B148<>"",'Calculs (M1..M20)'!A50,"") ->  | AH148: 0
F149: 2 | G149: 1 | H149: 1 | N149: =IF(B149<>"",'Classement Général'!BB48,"") ->  | O149: =IF(B149<>"",'Calculs (M1..M20)'!A51,"") ->  | AH149: 0
F150: 2 | G150: 1 | H150: 1 | N150: =IF(B150<>"",'Classement Général'!BB49,"") ->  | O150: =IF(B150<>"",'Calculs (M1..M20)'!A52,"") ->  | AH150: 0
F151: 2 | G151: 1 | H151: 1 | N151: =IF(B151<>"",'Classement Général'!BB50,"") ->  | O151: =IF(B151<>"",'Calculs (M1..M20)'!A53,"") ->  | AH151: 0
B152: =IF(B51<>"",B51,"") ->  | F152: 2 | G152: 1 | H152: 1 | N152: =IF(B152<>"",'Classement Général'!BB51,"") ->  | O152: =IF(B152<>"",'Calculs (M1..M20)'!A54,"") ->  | AH152: 0
F153: 2 | G153: 1 | H153: 1 | N153: =IF(B153<>"",'Classement Général'!BB52,"") ->  | O153: =IF(B153<>"",'Calculs (M1..M20)'!A55,"") ->  | AH153: 0
F154: 2 | G154: 1 | H154: 1 | N154: =IF(B154<>"",'Classement Général'!BB53,"") ->  | O154: =IF(B154<>"",'Calculs (M1..M20)'!A56,"") ->  | AH154: 0
F155: 2 | G155: 1 | H155: 1 | N155: =IF(B155<>"",'Classement Général'!BB54,"") ->  | O155: =IF(B155<>"",'Calculs (M1..M20)'!A57,"") ->  | AH155: 0
F156: 2 | G156: 1 | H156: 1 | N156: =IF(B156<>"",'Classement Général'!BB55,"") ->  | O156: =IF(B156<>"",'Calculs (M1..M20)'!A58,"") ->  | AH156: 0
F157: 2 | G157: 1 | H157: 1 | N157: =IF(B157<>"",'Classement Général'!BB56,"") ->  | O157: =IF(B157<>"",'Calculs (M1..M20)'!A59,"") ->  | AH157: 0
F158: 2 | G158: 1 | H158: 1 | N158: =IF(B158<>"",'Classement Général'!BB57,"") ->  | O158: =IF(B158<>"",'Calculs (M1..M20)'!A60,"") ->  | AH158: 0
F159: 2 | G159: 1 | H159: 1 | N159: =IF(B159<>"",'Classement Général'!BB58,"") ->  | O159: =IF(B159<>"",'Calculs (M1..M20)'!A61,"") ->  | AH159: 0
F160: 2 | G160: 1 | H160: 1 | N160: =IF(B160<>"",'Classement Général'!BB59,"") ->  | O160: =IF(B160<>"",'Calculs (M1..M20)'!A62,"") ->  | AH160: 0
F161: 2 | G161: 1 | H161: 1 | N161: =IF(B161<>"",'Classement Général'!BB60,"") ->  | O161: =IF(B161<>"",'Calculs (M1..M20)'!A63,"") ->  | AH161: 0
F162: 2 | G162: 1 | H162: 1 | N162: =IF(B162<>"",'Classement Général'!BB61,"") ->  | O162: =IF(B162<>"",'Calculs (M1..M20)'!A64,"") ->  | AH162: 0
F163: 2 | G163: 1 | H163: 1 | N163: =IF(B163<>"",'Classement Général'!BB62,"") ->  | O163: =IF(B163<>"",'Calculs (M1..M20)'!A65,"") ->  | AH163: 0
F164: 2 | G164: 1 | H164: 1 | N164: =IF(B164<>"",'Classement Général'!BB63,"") ->  | O164: =IF(B164<>"",'Calculs (M1..M20)'!A66,"") ->  | AH164: 0
F165: 2 | G165: 1 | H165: 1 | N165: =IF(B165<>"",'Classement Général'!BB64,"") ->  | O165: =IF(B165<>"",'Calculs (M1..M20)'!A67,"") ->  | AH165: 0
F166: 2 | G166: 1 | H166: 1 | N166: =IF(B166<>"",'Classement Général'!BB65,"") ->  | O166: =IF(B166<>"",'Calculs (M1..M20)'!A68,"") ->  | AH166: 0
F167: 2 | G167: 1 | H167: 1 | N167: =IF(B167<>"",'Classement Général'!BB66,"") ->  | O167: =IF(B167<>"",'Calculs (M1..M20)'!A69,"") ->  | AH167: 0
F168: 2 | G168: 1 | H168: 1 | N168: =IF(B168<>"",'Classement Général'!BB67,"") ->  | O168: =IF(B168<>"",'Calculs (M1..M20)'!A70,"") ->  | AH168: 0
F169: 2 | G169: 0 | H169: 0 | N169: =IF(B169<>"",'Classement Général'!BB68,"") ->  | O169: =IF(B169<>"",'Calculs (M1..M20)'!A71,"") ->  | AH169: 0
F170: 2 | G170: 0 | H170: 0 | N170: =IF(B170<>"",'Classement Général'!BB69,"") ->  | O170: =IF(B170<>"",'Calculs (M1..M20)'!A72,"") ->  | AH170: 0
F171: 2 | G171: 0 | H171: 0 | N171: =IF(B171<>"",'Classement Général'!BB70,"") ->  | O171: =IF(B171<>"",'Calculs (M1..M20)'!A73,"") ->  | AH171: 0
B172: =IF(B71<>"",B71,"") ->  | F172: 2 | G172: 0 | H172: 0 | N172: =IF(B172<>"",'Classement Général'!BB71,"") ->  | O172: =IF(B172<>"",'Calculs (M1..M20)'!A74,"") ->  | AH172: 0
F173: 2 | G173: 0 | H173: 0 | N173: =IF(B173<>"",'Classement Général'!BB72,"") ->  | O173: =IF(B173<>"",'Calculs (M1..M20)'!A75,"") ->  | AH173: 0
F174: 2 | G174: 0 | H174: 0 | N174: =IF(B174<>"",'Classement Général'!BB73,"") ->  | O174: =IF(B174<>"",'Calculs (M1..M20)'!A76,"") ->  | AH174: 0
F175: 2 | G175: 0 | H175: 0 | N175: =IF(B175<>"",'Classement Général'!BB74,"") ->  | O175: =IF(B175<>"",'Calculs (M1..M20)'!A77,"") ->  | AH175: 0
F176: 2 | G176: =G75 -> 0 | H176: =IF($G176<>"",G176,"") -> 0 | K176: =IF($B176<>"",IF(I176,(INDEX(P$112:Q$115,MATCH(H176,P$112:P$115),2)/I176)*1000,0),"") ->  | L176: =IF(Q$112<>"",IF($B176<>"",K176-$J176,""),"") ->  | M176: =IF(B176<>"",RANK(L176,L$112:L$211),"") ->  | N176: =IF(B176<>"",'Classement Général'!BB75,"") ->  | O176: =IF(B176<>"",'Calculs (M1..M20)'!A78,"") ->  | AH176: 0
F177: 2 | G177: 0 | H177: 0 | N177: =IF(B177<>"",'Classement Général'!BB76,"") ->  | O177: =IF(B177<>"",'Calculs (M1..M20)'!A79,"") ->  | AH177: 0
F178: 2 | G178: 0 | H178: 0 | N178: =IF(B178<>"",'Classement Général'!BB77,"") ->  | O178: =IF(B178<>"",'Calculs (M1..M20)'!A80,"") ->  | AH178: 0
F179: 2 | G179: 0 | H179: 0 | N179: =IF(B179<>"",'Classement Général'!BB78,"") ->  | O179: =IF(B179<>"",'Calculs (M1..M20)'!A81,"") ->  | AH179: 0
F180: 2 | G180: 0 | H180: 0 | N180: =IF(B180<>"",'Classement Général'!BB79,"") ->  | O180: =IF(B180<>"",'Calculs (M1..M20)'!A82,"") ->  | AH180: 0
F181: 2 | G181: 0 | H181: 0 | N181: =IF(B181<>"",'Classement Général'!BB80,"") ->  | O181: =IF(B181<>"",'Calculs (M1..M20)'!A83,"") ->  | AH181: 0
F182: 2 | G182: 0 | H182: 0 | N182: =IF(B182<>"",'Classement Général'!BB81,"") ->  | O182: =IF(B182<>"",'Calculs (M1..M20)'!A84,"") ->  | AH182: 0
F183: 2 | G183: 0 | H183: 0 | N183: =IF(B183<>"",'Classement Général'!BB82,"") ->  | O183: =IF(B183<>"",'Calculs (M1..M20)'!A85,"") ->  | AH183: 0
F184: 2 | G184: 0 | H184: 0 | N184: =IF(B184<>"",'Classement Général'!BB83,"") ->  | O184: =IF(B184<>"",'Calculs (M1..M20)'!A86,"") ->  | AH184: 0
F185: 2 | G185: 0 | H185: 0 | N185: =IF(B185<>"",'Classement Général'!BB84,"") ->  | O185: =IF(B185<>"",'Calculs (M1..M20)'!A87,"") ->  | AH185: 0
F186: 2 | G186: 0 | H186: 0 | N186: =IF(B186<>"",'Classement Général'!BB85,"") ->  | O186: =IF(B186<>"",'Calculs (M1..M20)'!A88,"") ->  | AH186: 0
F187: 2 | G187: 0 | H187: 0 | N187: =IF(B187<>"",'Classement Général'!BB86,"") ->  | O187: =IF(B187<>"",'Calculs (M1..M20)'!A89,"") ->  | AH187: 0
F188: 2 | G188: 0 | H188: 0 | N188: =IF(B188<>"",'Classement Général'!BB87,"") ->  | O188: =IF(B188<>"",'Calculs (M1..M20)'!A90,"") ->  | AH188: 0
F189: 2 | G189: 0 | H189: 0 | N189: =IF(B189<>"",'Classement Général'!BB88,"") ->  | O189: =IF(B189<>"",'Calculs (M1..M20)'!A91,"") ->  | AH189: 0
F190: 2 | G190: 0 | H190: 0 | N190: =IF(B190<>"",'Classement Général'!BB89,"") ->  | O190: =IF(B190<>"",'Calculs (M1..M20)'!A92,"") ->  | AH190: 0
F191: 2 | G191: 0 | H191: 0 | N191: =IF(B191<>"",'Classement Général'!BB90,"") ->  | O191: =IF(B191<>"",'Calculs (M1..M20)'!A93,"") ->  | AH191: 0
B192: =IF(B91<>"",B91,"") ->  | F192: 2 | G192: 0 | H192: 0 | N192: =IF(B192<>"",'Classement Général'!BB91,"") ->  | O192: =IF(B192<>"",'Calculs (M1..M20)'!A94,"") ->  | AH192: 0
F193: 2 | G193: 0 | H193: 0 | N193: =IF(B193<>"",'Classement Général'!BB92,"") ->  | O193: =IF(B193<>"",'Calculs (M1..M20)'!A95,"") ->  | AH193: 0
F194: 2 | G194: 0 | H194: 0 | N194: =IF(B194<>"",'Classement Général'!BB93,"") ->  | O194: =IF(B194<>"",'Calculs (M1..M20)'!A96,"") ->  | AH194: 0
F195: 2 | G195: 0 | H195: 0 | N195: =IF(B195<>"",'Classement Général'!BB94,"") ->  | O195: =IF(B195<>"",'Calculs (M1..M20)'!A97,"") ->  | AH195: 0
F196: 2 | G196: 0 | H196: 0 | N196: =IF(B196<>"",'Classement Général'!BB95,"") ->  | O196: =IF(B196<>"",'Calculs (M1..M20)'!A98,"") ->  | AH196: 0
F197: 2 | G197: 0 | H197: 0 | N197: =IF(B197<>"",'Classement Général'!BB96,"") ->  | O197: =IF(B197<>"",'Calculs (M1..M20)'!A99,"") ->  | AH197: 0
F198: 2 | G198: 0 | H198: 0 | N198: =IF(B198<>"",'Classement Général'!BB97,"") ->  | O198: =IF(B198<>"",'Calculs (M1..M20)'!A100,"") ->  | AH198: 0
F199: 2 | G199: 0 | H199: 0 | N199: =IF(B199<>"",'Classement Général'!BB98,"") ->  | O199: =IF(B199<>"",'Calculs (M1..M20)'!A101,"") ->  | AH199: 0
F200: 2 | G200: 0 | H200: 0 | N200: =IF(B200<>"",'Classement Général'!BB99,"") ->  | O200: =IF(B200<>"",'Calculs (M1..M20)'!A102,"") ->  | AH200: 0
... 1830 more rows

Sheet Chronos (M21..M40)
B1: F3F - Saisie des chronos - Manches 21 à 40
B2: CLUB : | C2: =Pilotes!C2 -> CMR Rodez
B3: LIEU : | C3: =Pilotes!C3 -> Panat
B4: DATE : | C4: =Pilotes!C4 -> 30 et 31 Mars 2019
B5: Nb Manches | C5: ='Chronos (M1..M20)'!C5:E5+COUNTIF(V:V,">0") -> 19
B6: Nb Chrono | C6: =COUNT(I:I) -> 0
B7: Meilleur Chrono | C7: =MIN(Q:Q) -> 0
R8: TEMPS
B9: Nom | C9: Dossard | D9: Freq | E9: Equipe | F9: Manche | G9: Gpe | H9: GS | I9: Temps | J9: Penalité | K9: FAI Brut | L9: FAI Net | M9: ClastM | N9: ClastE | O9: ClastG | P9: GS | Q9: Min | R9: Max | S9: Moy | T9: Nbre Concurrents | AH9: GS | AI9: Temps | AJ9: Penalité
B10: Nom | C10: Dossard | D10: Freq | E10: Equipe | F10: Manche | G10: Gpe | H10: GS | I10: Temps | J10: Penalité | K10: FAI Brut | L10: FAI Net | M10: ClastM | N10: ClastE | O10: ClastG | P10: GS | Q10: Min | R10: Max | S10: Moy | T10: Nbre Concurrents | U10: GS | AH10: GS | AI10: Temps | AJ10: Penalité
B11: =IF('Chronos (M1..M20)'!B11<>"",'Chronos (M1..M20)'!B11,"") -> FOUCHER Jean-Luc | C11: =IF('Chronos (M1..M20)'!B11<>"",'Chronos (M1..M20)'!C11,"") -> 1 | D11: =IF('Chronos (M1..M20)'!B11<>"",'Chronos (M1..M20)'!D11,"") -> 0 | E11: =IF('Chronos (M1..M20)'!B11<>"",'Chronos (M1..M20)'!E11,"") -> 0 | F11: 21 | G11: ='Chronos (M1..M20)'!G1930 -> 1 | H11: =IF($G11<>"",G11,"") -> 1 | K11: =IF($B11<>"",IF(I11,(INDEX(P$11:Q$14,MATCH(H11,P$11:P$14),2)/I11)*1000,0),"") -> 0 | L11: =IF(Q$11<>"",IF($B11<>"",K11-$J11,""),"") ->  | M11: =IF(B11<>"",RANK(L11,L$11:L$110),"") ->  | N11: =IF(B11<>"",'Classement Général'!BU11,"") ->  | O11: =IF(B11<>"",'Calculs (M1..M20)'!A14,"") -> 11 | P11: =IF(DMIN($H10:$I111,$P$10,$U$10:$U$11)<>0,1,"") -> 1 | Q11: =IF(DMIN($H10:$I111,$I$10,$U$10:$U$11)<>0,DMIN($H10:$I111,$I$10,$U$10:$U$11),"") ->  | R11: =IF(DMAX($H10:$I111,$I$10,$U$10:$U$11)<>0,DMAX($H10:$I111,$I$10,$U$10:$U$11),"") ->  | S11: =IF($P11<>"",IF(DAVERAGE($H10:$I111,$I$10,$U$10:$U$11)<>0,DAVERAGE($H10:$I111,$I$10,$U$10:$U$11),""),"") ->  | T11: =IF($P11<>"",IF(DCOUNTA($H10:$I111,$I$10,$U$10:$U$11)<>0,DCOUNTA($H10:$I111,$I$10,$U$10:$U$11),""),"") ->  | U11: 1 | AH11: =IF($G11<>"",AG11,"") -> 0
B12: =IF('Chronos (M1..M20)'!B12<>"",'Chronos (M1..M20)'!B12,"") -> DOUSSAUD Alexandre | C12: =IF('Chronos (M1..M20)'!B12<>"",'Chronos (M1..M20)'!C12,"") -> 2 | D12: =IF('Chronos (M1..M20)'!B12<>"",'Chronos (M1..M20)'!D12,"") -> 0 | E12: =IF('Chronos (M1..M20)'!B12<>"",'Chronos (M1..M20)'!E12,"") -> 0 | F12: 21 | G12: ='Chronos (M1..M20)'!G1931 -> 1 | H12: =IF($G12<>"",G12,"") -> 1 | K12: 0 | L12: =IF(Q$11<>"",IF($B12<>"",K12-J12,""),"") ->  | N12: =IF(B12<>"",'Classement Général'!BU12,"") ->  | O12: =IF(B12<>"",'Calculs (M1..M20)'!A15,"") -> 14 | P12: =IF(DMIN($H10:$I111,$P$10,$U$12:$U$13)<>0,2,"") ->  | Q12: =IF(DMIN($H10:$I111,$I$10,$U$12:$U$13)<>0,DMIN($H10:$I111,$I$10,$U$12:$U$13),"") ->  | R12: =IF(DMAX($H10:$I111,$I$10,$U$12:$U$13)<>0,DMAX($H10:$I111,$I$10,$U$12:$U$13),"") ->  | S12: =IF($P12<>"",IF(DAVERAGE($H10:$I111,$I$10,$U$12:$U$13)<>0,DAVERAGE($H10:$I111,$I$10,$U$12:$U$13),""),"") ->  | T12: =IF($P11<>"",IF(DCOUNTA($H10:$I111,$I$10,$U$12:$U$13)<>0,DCOUNTA($H10:$I111,$I$10,$U$12:$U$13),""),"") ->  | U12: GS | AH12: =IF($G12<>"",AG12,"") -> 0
B13: =IF('Chronos (M1..M20)'!B13<>"",'Chronos (M1..M20)'!B13,"") -> BRAHIER Mickael | C13: =IF('Chronos (M1..M20)'!B13<>"",'Chronos (M1..M20)'!C13,"") -> 3 | D13: =IF('Chronos (M1..M20)'!B13<>"",'Chronos (M1..M20)'!D13,"") -> 0 | E13: =IF('Chronos (M1..M20)'!B13<>"",'Chronos (M1..M20)'!E13,"") -> 0 | F13: 21 | G13: ='Chronos (M1..M20)'!G1932 -> 1 | H13: 1 | K13: 0 | N13: =IF(B13<>"",'Classement Général'!BU13,"") ->  | O13: =IF(B13<>"",'Calculs (M1..M20)'!A16,"") -> 8 | P13: =IF(DMIN($H10:$I111,$P$10,$U$14:$U$15)<>0,3,"") ->  | Q13: =IF(DMIN($H10:$I111,$I$10,$U$14:$U$15)<>0,DMIN($H10:$I111,$I$10,$U$14:$U$15),"") ->  | R13: =IF(DMAX($H10:$I111,$I$10,$U$14:$U$15)<>0,DMAX($H10:$I111,$I$10,$U$14:$U$15),"") ->  | S13: =IF($P13<>"",IF(DAVERAGE($H10:$I111,$I$10,$U$14:$U$15)<>0,DAVERAGE($H10:$I111,$I$10,$U$14:$U$15),""),"") ->  | T13: =IF($P13<>"",IF(DCOUNTA($H10:$I111,$I$10,$U$14:$U$15)<>0,DCOUNTA($H10:$I111,$I$10,$U$14:$U$15),""),"") ->  | U13: 2 | AH13: 0
B14: =IF('Chronos (M1..M20)'!B14<>"",'Chronos (M1..M20)'!B14,"") -> DELARBRE Serge | C14: =IF('Chronos (M1..M20)'!B14<>"",'Chronos (M1..M20)'!C14,"") -> 4 | D14: =IF('Chronos (M1..M20)'!B14<>"",'Chronos (M1..M20)'!D14,"") -> 0 | E14: =IF('Chronos (M1..M20)'!B14<>"",'Chronos (M1..M20)'!E14,"") -> 0 | F14: 21 | G14: ='Chronos (M1..M20)'!G1933 -> 1 | H14: 1 | K14: 0 | N14: =IF(B14<>"",'Classement Général'!BU14,"") ->  | O14: =IF(B14<>"",'Calculs (M1..M20)'!A17,"") -> 10 | P14: =IF(DMIN($H10:$I111,$P$10,$U$16:$U$17)<>0,4,"") ->  | Q14: =IF(DMIN($H10:$I111,$I$10,$U$16:$U$17)<>0,DMIN($H10:$I111,$I$10,$U$16:$U$17),"") ->  | R14: =IF(DMAX($H10:$I111,$I$10,$U$16:$U$17)<>0,DMAX($H10:$I111,$I$10,$U$16:$U$17),"") ->  | S14: =IF($P14<>"",IF(DAVERAGE($H10:$I111,$I$10,$U$16:$U$17)<>0,DAVERAGE($H10:$I111,$I$10,$U$16:$U$17),""),"") ->  | T14: =IF($P13<>"",IF(DCOUNTA($H10:$I111,$I$10,$U$16:$U$17)<>0,DCOUNTA($H10:$I111,$I$10,$U$16:$U$17),""),"") ->  | U14: GS | AH14: 0
B15: =IF('Chronos (M1..M20)'!B15<>"",'Chronos (M1..M20)'!B15,"") -> LANES Sébastien | C15: =IF('Chronos (M1..M20)'!B15<>"",'Chronos (M1..M20)'!C15,"") -> 5 | D15: =IF('Chronos (M1..M20)'!B15<>"",'Chronos (M1..M20)'!D15,"") -> 0 | E15: =IF('Chronos (M1..M20)'!B15<>"",'Chronos (M1..M20)'!E15,"") -> 0 | F15: 21 | G15: ='Chronos (M1..M20)'!G1934 -> 1 | H15: 1 | K15: 0 | N15: =IF(B15<>"",'Classement Général'!BU15,"") ->  | O15: =IF(B15<>"",'Calculs (M1..M20)'!A18,"") -> 2 | T15: =SUM(T11:T14) -> 0 | U15: 3 | V15: =T15 -> 0 | AH15: 0
B16: =IF('Chronos (M1..M20)'!B16<>"",'Chronos (M1..M20)'!B16,"") -> CHABAUD Sébastien | C16: =IF('Chronos (M1..M20)'!B16<>"",'Chronos (M1..M20)'!C16,"") -> 6 | D16: =IF('Chronos (M1..M20)'!B16<>"",'Chronos (M1..M20)'!D16,"") -> 0 | E16: =IF('Chronos (M1..M20)'!B16<>"",'Chronos (M1..M20)'!E16,"") -> 0 | F16: 21 | G16: ='Chronos (M1..M20)'!G1935 -> 1 | H16: 1 | K16: 0 | N16: =IF(B16<>"",'Classement Général'!BU16,"") ->  | O16: =IF(B16<>"",'Calculs (M1..M20)'!A19,"") -> 13 | U16: GS | AH16: 0
B17: =IF('Chronos (M1..M20)'!B17<>"",'Chronos (M1..M20)'!B17,"") -> DIATTA Pierre | C17: =IF('Chronos (M1..M20)'!B17<>"",'Chronos (M1..M20)'!C17,"") -> 7 | D17: =IF('Chronos (M1..M20)'!B17<>"",'Chronos (M1..M20)'!D17,"") -> 0 | E17: =IF('Chronos (M1..M20)'!B17<>"",'Chronos (M1..M20)'!E17,"") -> 0 | F17: 21 | G17: ='Chronos (M1..M20)'!G1936 -> 1 | H17: 1 | K17: 0 | N17: =IF(B17<>"",'Classement Général'!BU17,"") ->  | O17: =IF(B17<>"",'Calculs (M1..M20)'!A20,"") -> 6 | U17: 4 | AH17: 0
B18: =IF('Chronos (M1..M20)'!B18<>"",'Chronos (M1..M20)'!B18,"") -> FRICKE Andreas | C18: =IF('Chronos (M1..M20)'!B18<>"",'Chronos (M1..M20)'!C18,"") -> 8 | D18: =IF('Chronos (M1..M20)'!B18<>"",'Chronos (M1..M20)'!D18,"") -> 0 | E18: =IF('Chronos (M1..M20)'!B18<>"",'Chronos (M1..M20)'!E18,"") -> 0 | F18: 21 | G18: ='Chronos (M1..M20)'!G1937 -> 1 | H18: 1 | K18: 0 | N18: =IF(B18<>"",'Classement Général'!BU18,"") ->  | O18: =IF(B18<>"",'Calculs (M1..M20)'!A21,"") -> 3 | AH18: 0
B19: =IF('Chronos (M1..M20)'!B19<>"",'Chronos (M1..M20)'!B19,"") -> SORBA Remy | C19: =IF('Chronos (M1..M20)'!B19<>"",'Chronos (M1..M20)'!C19,"") -> 9 | D19: =IF('Chronos (M1..M20)'!B19<>"",'Chronos (M1..M20)'!D19,"") -> 0 | E19: =IF('Chronos (M1..M20)'!B19<>"",'Chronos (M1..M20)'!E19,"") -> 0 | F19: 21 | G19: ='Chronos (M1..M20)'!G1938 -> 1 | H19: 1 | K19: 0 | N19: =IF(B19<>"",'Classement Général'!BU19,"") ->  | O19: =IF(B19<>"",'Calculs (M1..M20)'!A22,"") -> 9 | AH19: 0
B20: =IF('Chronos (M1..M20)'!B20<>"",'Chronos (M1..M20)'!B20,"") -> DEGUELLE J-Bastien | C20: =IF('Chronos (M1..M20)'!B20<>"",'Chronos (M1..M20)'!C20,"") -> 10 | D20: =IF('Chronos (M1..M20)'!B20<>"",'Chronos (M1..M20)'!D20,"") -> 0 | E20: =IF('Chronos (M1..M20)'!B20<>"",'Chronos (M1..M20)'!E20,"") -> 0 | F20: 21 | G20: ='Chronos (M1..M20)'!G1939 -> 1 | H20: 1 | K20: 0 | N20: =IF(B20<>"",'Classement Général'!BU20,"") ->  | O20: =IF(B20<>"",'Calculs (M1..M20)'!A23,"") -> 4 | AH20: 0
B21: =IF('Chronos (M1..M20)'!B21<>"",'Chronos (M1..M20)'!B21,"") -> DESANDRE Alain | C21: =IF('Chronos (M1..M20)'!B21<>"",'Chronos (M1..M20)'!C21,"") -> 11 | D21: =IF('Chronos (M1..M20)'!B21<>"",'Chronos (M1..M20)'!D21,"") -> 0 | E21: =IF('Chronos (M1..M20)'!B21<>"",'Chronos (M1..M20)'!E21,"") -> 0 | F21: 21 | G21: ='Chronos (M1..M20)'!G1940 -> 1 | H21: 1 | K21: 0 | N21: =IF(B21<>"",'Classement Général'!BU21,"") ->  | O21: =IF(B21<>"",'Calculs (M1..M20)'!A24,"") -> 15 | AH21: 0
B22: =IF('Chronos (M1..M20)'!B22<>"",'Chronos (M1..M20)'!B22,"") -> DELARBRE Marie-Helene | C22: =IF('Chronos (M1..M20)'!B22<>"",'Chronos (M1..M20)'!C22,"") -> 12 | D22: =IF('Chronos (M1..M20)'!B22<>"",'Chronos (M1..M20)'!D22,"") -> 0 | E22: =IF('Chronos (M1..M20)'!B22<>"",'Chronos (M1..M20)'!E22,"") -> 0 | F22: 21 | G22: ='Chronos (M1..M20)'!G1941 -> 1 | H22: 1 | K22: 0 | N22: =IF(B22<>"",'Classement Général'!BU22,"") ->  | O22: =IF(B22<>"",'Calculs (M1..M20)'!A25,"") -> 16 | AH22: 0
B23: =IF('Chronos (M1..M20)'!B23<>"",'Chronos (M1..M20)'!B23,"") -> LAFARGE Pascal | C23: =IF('Chronos (M1..M20)'!B23<>"",'Chronos (M1..M20)'!C23,"") -> 13 | D23: =IF('Chronos (M1..M20)'!B23<>"",'Chronos (M1..M20)'!D23,"") -> 0 | E23: =IF('Chronos (M1..M20)'!B23<>"",'Chronos (M1..M20)'!E23,"") -> 0 | F23: 21 | G23: ='Chronos (M1..M20)'!G1942 -> 1 | H23: 1 | K23: 0 | N23: =IF(B23<>"",'Classement Général'!BU23,"") ->  | O23: =IF(B23<>"",'Calculs (M1..M20)'!A26,"") -> 12 | AH23: 0
B24: =IF('Chronos (M1..M20)'!B24<>"",'Chronos (M1..M20)'!B24,"") -> DAL HAVA Herve | C24: =IF('Chronos (M1..M20)'!B24<>"",'Chronos (M1..M20)'!C24,"") -> 14 | D24: =IF('Chronos (M1..M20)'!B24<>"",'Chronos (M1..M20)'!D24,"") -> 0 | E24: =IF('Chronos (M1..M20)'!B24<>"",'Chronos (M1..M20)'!E24,"") -> 0 | F24: 21 | G24: ='Chronos (M1..M20)'!G1943 -> 1 | H24: 1 | K24: 0 | N24: =IF(B24<>"",'Classement Général'!BU24,"") ->  | O24: =IF(B24<>"",'Calculs (M1..M20)'!A27,"") -> 7 | AH24: 0
B25: =IF('Chronos (M1..M20)'!B25<>"",'Chronos (M1..M20)'!B25,"") -> LANES Philippe | C25: =IF('Chronos (M1..M20)'!B25<>"",'Chronos (M1..M20)'!C25,"") -> 15 | D25: =IF('Chronos (M1..M20)'!B25<>"",'Chronos (M1..M20)'!D25,"") -> 0 | E25: =IF('Chronos (M1..M20)'!B25<>"",'Chronos (M1..M20)'!E25,"") -> 0 | F25: 21 | G25: ='Chronos (M1..M20)'!G1944 -> 1 | H25: 1 | K25: 0 | N25: =IF(B25<>"",'Classement Général'!BU25,"") ->  | O25: =IF(B25<>"",'Calculs (M1..M20)'!A28,"") -> 5 | AH25: 0
B26: PEREZ Domingo | C26: =IF('Chronos (M1..M20)'!B26<>"",'Chronos (M1..M20)'!C26,"") -> 16 | D26: =IF('Chronos (M1..M20)'!B26<>"",'Chronos (M1..M20)'!D26,"") -> 0 | E26: =IF('Chronos (M1..M20)'!B26<>"",'Chronos (M1..M20)'!E26,"") -> 0 | F26: 21 | G26: ='Chronos (M1..M20)'!G1945 -> 1 | H26: 1 | K26: 0 | N26: =IF(B26<>"",'Classement Général'!BU26,"") ->  | O26: =IF(B26<>"",'Calculs (M1..M20)'!A29,"") -> 1 | AH26: 0
B27: LAFARGE Pascal | C27: 17 | D27: =IF('Chronos (M1..M20)'!B27<>"",'Chronos (M1..M20)'!D27,"") ->  | E27: =IF('Chronos (M1..M20)'!B27<>"",'Chronos (M1..M20)'!E27,"") ->  | F27: 21 | G27: ='Chronos (M1..M20)'!G1946 -> 1 | H27: 1 | K27: 0 | N27: =IF(B27<>"",'Classement Général'!BU27,"") ->  | O27: =IF(B27<>"",'Calculs (M1..M20)'!A30,"") ->  | AH27: 0
B28: =IF('Chronos (M1..M20)'!B28<>"",'Chronos (M1..M20)'!B28,"") ->  | C28: =IF('Chronos (M1..M20)'!B28<>"",'Chronos (M1..M20)'!C28,"") ->  | D28: =IF('Chronos (M1..M20)'!B28<>"",'Chronos (M1..M20)'!D28,"") ->  | E28: =IF('Chronos (M1..M20)'!B28<>"",'Chronos (M1..M20)'!E28,"") ->  | F28: 21 | G28: ='Chronos (M1..M20)'!G1947 -> 1 | H28: 1 | N28: =IF(B28<>"",'Classement Général'!BU28,"") ->  | O28: =IF(B28<>"",'Calculs (M1..M20)'!A31,"") ->  | AH28: 0
B29: =IF('Chronos (M1..M20)'!B29<>"",'Chronos (M1..M20)'!B29,"") ->  | C29: =IF('Chronos (M1..M20)'!B29<>"",'Chronos (M1..M20)'!C29,"") ->  | D29: =IF('Chronos (M1..M20)'!B29<>"",'Chronos (M1..M20)'!D29,"") ->  | E29: =IF('Chronos (M1..M20)'!B29<>"",'Chronos (M1..M20)'!E29,"") ->  | F29: 21 | G29: ='Chronos (M1..M20)'!G1948 -> 1 | H29: 1 | N29: =IF(B29<>"",'Classement Général'!BU29,"") ->  | O29: =IF(B29<>"",'Calculs (M1..M20)'!A32,"") ->  | AH29: 0
B30: =IF('Chronos (M1..M20)'!B30<>"",'Chronos (M1..M20)'!B30,"") ->  | C30: =IF('Chronos (M1..M20)'!B30<>"",'Chronos (M1..M20)'!C30,"") ->  | D30: =IF('Chronos (M1..M20)'!B30<>"",'Chronos (M1..M20)'!D30,"") ->  | E30: =IF('Chronos (M1..M20)'!B30<>"",'Chronos (M1..M20)'!E30,"") ->  | F30: 21 | G30: ='Chronos (M1..M20)'!G1949 -> 1 | H30: 1 | N30: =IF(B30<>"",'Classement Général'!BU30,"") ->  | O30: =IF(B30<>"",'Calculs (M1..M20)'!A33,"") ->  | AH30: 0
B31: =IF('Chronos (M1..M20)'!B31<>"",'Chronos (M1..M20)'!B31,"") ->  | C31: =IF('Chronos (M1..M20)'!B31<>"",'Chronos (M1..M20)'!C31,"") ->  | D31: =IF('Chronos (M1..M20)'!B31<>"",'Chronos (M1..M20)'!D31,"") ->  | E31: =IF('Chronos (M1..M20)'!B31<>"",'Chronos (M1..M20)'!E31,"") ->  | F31: 21 | G31: ='Chronos (M1..M20)'!G1950 -> 1 | H31: 1 | N31: =IF(B31<>"",'Classement Général'!BU31,"") ->  | O31: =IF(B31<>"",'Calculs (M1..M20)'!A34,"") ->  | AH31: 0
B32: =IF('Chronos (M1..M20)'!B32<>"",'Chronos (M1..M20)'!B32,"") ->  | C32: =IF('Chronos (M1..M20)'!B32<>"",'Chronos (M1..M20)'!C32,"") ->  | D32: =IF('Chronos (M1..M20)'!B32<>"",'Chronos (M1..M20)'!D32,"") ->  | E32: =IF('Chronos (M1..M20)'!B32<>"",'Chronos (M1..M20)'!E32,"") ->  | F32: 21 | G32: ='Chronos (M1..M20)'!G1951 -> 1 | H32: 1 | N32: =IF(B32<>"",'Classement Général'!BU32,"") ->  | O32: =IF(B32<>"",'Calculs (M1..M20)'!A35,"") ->  | AH32: 0
B33: =IF('Chronos (M1..M20)'!B33<>"",'Chronos (M1..M20)'!B33,"") ->  | C33: =IF('Chronos (M1..M20)'!B33<>"",'Chronos (M1..M20)'!C33,"") ->  | D33: =IF('Chronos (M1..M20)'!B33<>"",'Chronos (M1..M20)'!D33,"") ->  | E33: =IF('Chronos (M1..M20)'!B33<>"",'Chronos (M1..M20)'!E33,"") ->  | F33: 21 | G33: ='Chronos (M1..M20)'!G1952 -> 1 | H33: 1 | N33: =IF(B33<>"",'Classement Général'!BU33,"") ->  | O33: =IF(B33<>"",'Calculs (M1..M20)'!A36,"") ->  | AH33: 0
B34: =IF('Chronos (M1..M20)'!B34<>"",'Chronos (M1..M20)'!B34,"") ->  | C34: =IF('Chronos (M1..M20)'!B34<>"",'Chronos (M1..M20)'!C34,"") ->  | D34: =IF('Chronos (M1..M20)'!B34<>"",'Chronos (M1..M20)'!D34,"") ->  | E34: =IF('Chronos (M1..M20)'!B34<>"",'Chronos (M1..M20)'!E34,"") ->  | F34: 21 | G34: ='Chronos (M1..M20)'!G1953 -> 1 | H34: 1 | N34: =IF(B34<>"",'Classement Général'!BU34,"") ->  | O34: =IF(B34<>"",'Calculs (M1..M20)'!A37,"") ->  | AH34: 0
B35: =IF('Chronos (M1..M20)'!B35<>"",'Chronos (M1..M20)'!B35,"") ->  | C35: =IF('Chronos (M1..M20)'!B35<>"",'Chronos (M1..M20)'!C35,"") ->  | D35: =IF('Chronos (M1..M20)'!B35<>"",'Chronos (M1..M20)'!D35,"") ->  | E35: =IF('Chronos (M1..M20)'!B35<>"",'Chronos (M1..M20)'!E35,"") ->  | F35: 21 | G35: ='Chronos (M1..M20)'!G1954 -> 1 | H35: 1 | N35: =IF(B35<>"",'Classement Général'!BU35,"") ->  | O35: =IF(B35<>"",'Calculs (M1..M20)'!A38,"") ->  | AH35: 0
B36: =IF('Chronos (M1..M20)'!B36<>"",'Chronos (M1..M20)'!B36,"") ->  | C36: =IF('Chronos (M1..M20)'!B36<>"",'Chronos (M1..M20)'!C36,"") ->  | D36: =IF('Chronos (M1..M20)'!B36<>"",'Chronos (M1..M20)'!D36,"") ->  | E36: =IF('Chronos (M1..M20)'!B36<>"",'Chronos (M1..M20)'!E36,"") ->  | F36: 21 | G36: ='Chronos (M1..M20)'!G1955 -> 1 | H36: 1 | N36: =IF(B36<>"",'Classement Général'!BU36,"") ->  | O36: =IF(B36<>"",'Calculs (M1..M20)'!A39,"") ->  | AH36: 0
B37: =IF('Chronos (M1..M20)'!B37<>"",'Chronos (M1..M20)'!B37,"") ->  | C37: =IF('Chronos (M1..M20)'!B37<>"",'Chronos (M1..M20)'!C37,"") ->  | D37: =IF('Chronos (M1..M20)'!B37<>"",'Chronos (M1..M20)'!D37,"") ->  | E37: =IF('Chronos (M1..M20)'!B37<>"",'Chronos (M1..M20)'!E37,"") ->  | F37: 21 | G37: ='Chronos (M1..M20)'!G1956 -> 1 | H37: 1 | N37: =IF(B37<>"",'Classement Général'!BU37,"") ->  | O37: =IF(B37<>"",'Calculs (M1..M20)'!A40,"") ->  | AH37: 0
B38: =IF('Chronos (M1..M20)'!B38<>"",'Chronos (M1..M20)'!B38,"") ->  | C38: =IF('Chronos (M1..M20)'!B38<>"",'Chronos (M1..M20)'!C38,"") ->  | D38: =IF('Chronos (M1..M20)'!B38<>"",'Chronos (M1..M20)'!D38,"") ->  | E38: =IF('Chronos (M1..M20)'!B38<>"",'Chronos (M1..M20)'!E38,"") ->  | F38: 21 | G38: ='Chronos (M1..M20)'!G1957 -> 1 | H38: 1 | N38: =IF(B38<>"",'Classement Général'!BU38,"") ->  | O38: =IF(B38<>"",'Calculs (M1..M20)'!A41,"") ->  | AH38: 0
B39: =IF('Chronos (M1..M20)'!B39<>"",'Chronos (M1..M20)'!B39,"") ->  | C39: =IF('Chronos (M1..M20)'!B39<>"",'Chronos (M1..M20)'!C39,"") ->  | D39: =IF('Chronos (M1..M20)'!B39<>"",'Chronos (M1..M20)'!D39,"") ->  | E39: =IF('Chronos (M1..M20)'!B39<>"",'Chronos (M1..M20)'!E39,"") ->  | F39: 21 | G39: ='Chronos (M1..M20)'!G1958 -> 1 | H39: 1 | N39: =IF(B39<>"",'Classement Général'!BU39,"") ->  | O39: =IF(B39<>"",'Calculs (M1..M20)'!A42,"") ->  | AH39: 0
B40: =IF('Chronos (M1..M20)'!B40<>"",'Chronos (M1..M20)'!B40,"") ->  | C40: =IF('Chronos (M1..M20)'!B40<>"",'Chronos (M1..M20)'!C40,"") ->  | D40: =IF('Chronos (M1..M20)'!B40<>"",'Chronos (M1..M20)'!D40,"") ->  | E40: =IF('Chronos (M1..M20)'!B40<>"",'Chronos (M1..M20)'!E40,"") ->  | F40: 21 | G40: ='Chronos (M1..M20)'!G1959 -> 1 | H40: 1 | N40: =IF(B40<>"",'Classement Général'!BU40,"") ->  | O40: =IF(B40<>"",'Calculs (M1..M20)'!A43,"") ->  | AH40: 0
B41: =IF('Chronos (M1..M20)'!B41<>"",'Chronos (M1..M20)'!B41,"") ->  | C41: =IF('Chronos (M1..M20)'!B41<>"",'Chronos (M1..M20)'!C41,"") ->  | D41: =IF('Chronos (M1..M20)'!B41<>"",'Chronos (M1..M20)'!D41,"") ->  | E41: =IF('Chronos (M1..M20)'!B41<>"",'Chronos (M1..M20)'!E41,"") ->  | F41: 21 | G41: ='Chronos (M1..M20)'!G1960 -> 1 | H41: 1 | N41: =IF(B41<>"",'Classement Général'!BU41,"") ->  | O41: =IF(B41<>"",'Calculs (M1..M20)'!A44,"") ->  | AH41: 0
B42: =IF('Chronos (M1..M20)'!B42<>"",'Chronos (M1..M20)'!B42,"") ->  | C42: =IF('Chronos (M1..M20)'!B42<>"",'Chronos (M1..M20)'!C42,"") ->  | D42: =IF('Chronos (M1..M20)'!B42<>"",'Chronos (M1..M20)'!D42,"") ->  | E42: =IF('Chronos (M1..M20)'!B42<>"",'Chronos (M1..M20)'!E42,"") ->  | F42: 21 | G42: ='Chronos (M1..M20)'!G1961 -> 1 | H42: 1 | N42: =IF(B42<>"",'Classement Général'!BU42,"") ->  | O42: =IF(B42<>"",'Calculs (M1..M20)'!A45,"") ->  | AH42: 0
B43: =IF('Chronos (M1..M20)'!B43<>"",'Chronos (M1..M20)'!B43,"") ->  | C43: =IF('Chronos (M1..M20)'!B43<>"",'Chronos (M1..M20)'!C43,"") ->  | D43: =IF('Chronos (M1..M20)'!B43<>"",'Chronos (M1..M20)'!D43,"") ->  | E43: =IF('Chronos (M1..M20)'!B43<>"",'Chronos (M1..M20)'!E43,"") ->  | F43: 21 | G43: ='Chronos (M1..M20)'!G1962 -> 1 | H43: 1 | K43: =IF($B43<>"",IF(I43,(INDEX(P$11:Q$14,MATCH(H43,P$11:P$14),2)/I43)*1000,0),"") ->  | M43: =IF(B43<>"",RANK(L43,L$11:L$110),"") ->  | N43: =IF(B43<>"",'Classement Général'!BU43,"") ->  | O43: =IF(B43<>"",'Calculs (M1..M20)'!A46,"") ->  | AH43: 0
B44: =IF('Chronos (M1..M20)'!B44<>"",'Chronos (M1..M20)'!B44,"") ->  | C44: =IF('Chronos (M1..M20)'!B44<>"",'Chronos (M1..M20)'!C44,"") ->  | D44: =IF('Chronos (M1..M20)'!B44<>"",'Chronos (M1..M20)'!D44,"") ->  | E44: =IF('Chronos (M1..M20)'!B44<>"",'Chronos (M1..M20)'!E44,"") ->  | F44: 21 | G44: ='Chronos (M1..M20)'!G1963 -> 1 | H44: 1 | L44: =IF(Q$11<>"",IF($B44<>"",K44-J44,""),"") ->  | N44: =IF(B44<>"",'Classement Général'!BU44,"") ->  | O44: =IF(B44<>"",'Calculs (M1..M20)'!A47,"") ->  | AH44: 0
B45: =IF('Chronos (M1..M20)'!B45<>"",'Chronos (M1..M20)'!B45,"") ->  | C45: =IF('Chronos (M1..M20)'!B45<>"",'Chronos (M1..M20)'!C45,"") ->  | D45: =IF('Chronos (M1..M20)'!B45<>"",'Chronos (M1..M20)'!D45,"") ->  | E45: =IF('Chronos (M1..M20)'!B45<>"",'Chronos (M1..M20)'!E45,"") ->  | F45: 21 | G45: ='Chronos (M1..M20)'!G1964 -> 1 | H45: 1 | N45: =IF(B45<>"",'Classement Général'!BU45,"") ->  | O45: =IF(B45<>"",'Calculs (M1..M20)'!A48,"") ->  | AH45: 0
B46: =IF('Chronos (M1..M20)'!B46<>"",'Chronos (M1..M20)'!B46,"") ->  | C46: =IF('Chronos (M1..M20)'!B46<>"",'Chronos (M1..M20)'!C46,"") ->  | D46: =IF('Chronos (M1..M20)'!B46<>"",'Chronos (M1..M20)'!D46,"") ->  | E46: =IF('Chronos (M1..M20)'!B46<>"",'Chronos (M1..M20)'!E46,"") ->  | F46: 21 | G46: ='Chronos (M1..M20)'!G1965 -> 1 | H46: 1 | N46: =IF(B46<>"",'Classement Général'!BU46,"") ->  | O46: =IF(B46<>"",'Calculs (M1..M20)'!A49,"") ->  | AH46: 0
B47: =IF('Chronos (M1..M20)'!B47<>"",'Chronos (M1..M20)'!B47,"") ->  | C47: =IF('Chronos (M1..M20)'!B47<>"",'Chronos (M1..M20)'!C47,"") ->  | D47: =IF('Chronos (M1..M20)'!B47<>"",'Chronos (M1..M20)'!D47,"") ->  | E47: =IF('Chronos (M1..M20)'!B47<>"",'Chronos (M1..M20)'!E47,"") ->  | F47: 21 | G47: ='Chronos (M1..M20)'!G1966 -> 1 | H47: 1 | N47: =IF(B47<>"",'Classement Général'!BU47,"") ->  | O47: =IF(B47<>"",'Calculs (M1..M20)'!A50,"") ->  | AH47: 0
B48: =IF('Chronos (M1..M20)'!B48<>"",'Chronos (M1..M20)'!B48,"") ->  | C48: =IF('Chronos (M1..M20)'!B48<>"",'Chronos (M1..M20)'!C48,"") ->  | D48: =IF('Chronos (M1..M20)'!B48<>"",'Chronos (M1..M20)'!D48,"") ->  | E48: =IF('Chronos (M1..M20)'!B48<>"",'Chronos (M1..M20)'!E48,"") ->  | F48: 21 | G48: ='Chronos (M1..M20)'!G1967 -> 1 | H48: 1 | N48: =IF(B48<>"",'Classement Général'!BU48,"") ->  | O48: =IF(B48<>"",'Calculs (M1..M20)'!A51,"") ->  | AH48: 0
B49: =IF('Chronos (M1..M20)'!B49<>"",'Chronos (M1..M20)'!B49,"") ->  | C49: =IF('Chronos (M1..M20)'!B49<>"",'Chronos (M1..M20)'!C49,"") ->  | D49: =IF('Chronos (M1..M20)'!B49<>"",'Chronos (M1..M20)'!D49,"") ->  | E49: =IF('Chronos (M1..M20)'!B49<>"",'Chronos (M1..M20)'!E49,"") ->  | F49: 21 | G49: ='Chronos (M1..M20)'!G1968 -> 1 | H49: 1 | N49: =IF(B49<>"",'Classement Général'!BU49,"") ->  | O49: =IF(B49<>"",'Calculs (M1..M20)'!A52,"") ->  | AH49: 0
B50: =IF('Chronos (M1..M20)'!B50<>"",'Chronos (M1..M20)'!B50,"") ->  | C50: =IF('Chronos (M1..M20)'!B50<>"",'Chronos (M1..M20)'!C50,"") ->  | D50: =IF('Chronos (M1..M20)'!B50<>"",'Chronos (M1..M20)'!D50,"") ->  | E50: =IF('Chronos (M1..M20)'!B50<>"",'Chronos (M1..M20)'!E50,"") ->  | F50: 21 | G50: ='Chronos (M1..M20)'!G1969 -> 1 | H50: 1 | N50: =IF(B50<>"",'Classement Général'!BU50,"") ->  | O50: =IF(B50<>"",'Calculs (M1..M20)'!A53,"") ->  | AH50: 0
B51: =IF('Chronos (M1..M20)'!B51<>"",'Chronos (M1..M20)'!B51,"") ->  | C51: =IF('Chronos (M1..M20)'!B51<>"",'Chronos (M1..M20)'!C51,"") ->  | D51: =IF('Chronos (M1..M20)'!B51<>"",'Chronos (M1..M20)'!D51,"") ->  | E51: =IF('Chronos (M1..M20)'!B51<>"",'Chronos (M1..M20)'!E51,"") ->  | F51: 21 | G51: ='Chronos (M1..M20)'!G1970 -> 1 | H51: 1 | N51: =IF(B51<>"",'Classement Général'!BU51,"") ->  | O51: =IF(B51<>"",'Calculs (M1..M20)'!A54,"") ->  | AH51: 0
B52: =IF('Chronos (M1..M20)'!B52<>"",'Chronos (M1..M20)'!B52,"") ->  | C52: =IF('Chronos (M1..M20)'!B52<>"",'Chronos (M1..M20)'!C52,"") ->  | D52: =IF('Chronos (M1..M20)'!B52<>"",'Chronos (M1..M20)'!D52,"") ->  | E52: =IF('Chronos (M1..M20)'!B52<>"",'Chronos (M1..M20)'!E52,"") ->  | F52: 21 | G52: ='Chronos (M1..M20)'!G1971 -> 1 | H52: 1 | N52: =IF(B52<>"",'Classement Général'!BU52,"") ->  | O52: =IF(B52<>"",'Calculs (M1..M20)'!A55,"") ->  | AH52: 0
B53: =IF('Chronos (M1..M20)'!B53<>"",'Chronos (M1..M20)'!B53,"") ->  | C53: =IF('Chronos (M1..M20)'!B53<>"",'Chronos (M1..M20)'!C53,"") ->  | D53: =IF('Chronos (M1..M20)'!B53<>"",'Chronos (M1..M20)'!D53,"") ->  | E53: =IF('Chronos (M1..M20)'!B53<>"",'Chronos (M1..M20)'!E53,"") ->  | F53: 21 | G53: ='Chronos (M1..M20)'!G1972 -> 1 | H53: 1 | N53: =IF(B53<>"",'Classement Général'!BU53,"") ->  | O53: =IF(B53<>"",'Calculs (M1..M20)'!A56,"") ->  | AH53: 0
B54: =IF('Chronos (M1..M20)'!B54<>"",'Chronos (M1..M20)'!B54,"") ->  | C54: =IF('Chronos (M1..M20)'!B54<>"",'Chronos (M1..M20)'!C54,"") ->  | D54: =IF('Chronos (M1..M20)'!B54<>"",'Chronos (M1..M20)'!D54,"") ->  | E54: =IF('Chronos (M1..M20)'!B54<>"",'Chronos (M1..M20)'!E54,"") ->  | F54: 21 | G54: ='Chronos (M1..M20)'!G1973 -> 1 | H54: 1 | N54: =IF(B54<>"",'Classement Général'!BU54,"") ->  | O54: =IF(B54<>"",'Calculs (M1..M20)'!A57,"") ->  | AH54: 0
B55: =IF('Chronos (M1..M20)'!B55<>"",'Chronos (M1..M20)'!B55,"") ->  | C55: =IF('Chronos (M1..M20)'!B55<>"",'Chronos (M1..M20)'!C55,"") ->  | D55: =IF('Chronos (M1..M20)'!B55<>"",'Chronos (M1..M20)'!D55,"") ->  | E55: =IF('Chronos (M1..M20)'!B55<>"",'Chronos (M1..M20)'!E55,"") ->  | F55: 21 | G55: ='Chronos (M1..M20)'!G1974 -> 1 | H55: 1 | N55: =IF(B55<>"",'Classement Général'!BU55,"") ->  | O55: =IF(B55<>"",'Calculs (M1..M20)'!A58,"") ->  | AH55: 0
B56: =IF('Chronos (M1..M20)'!B56<>"",'Chronos (M1..M20)'!B56,"") ->  | C56: =IF('Chronos (M1..M20)'!B56<>"",'Chronos (M1..M20)'!C56,"") ->  | D56: =IF('Chronos (M1..M20)'!B56<>"",'Chronos (M1..M20)'!D56,"") ->  | E56: =IF('Chronos (M1..M20)'!B56<>"",'Chronos (M1..M20)'!E56,"") ->  | F56: 21 | G56: ='Chronos (M1..M20)'!G1975 -> 1 | H56: 1 | N56: =IF(B56<>"",'Classement Général'!BU56,"") ->  | O56: =IF(B56<>"",'Calculs (M1..M20)'!A59,"") ->  | AH56: 0
B57: =IF('Chronos (M1..M20)'!B57<>"",'Chronos (M1..M20)'!B57,"") ->  | C57: =IF('Chronos (M1..M20)'!B57<>"",'Chronos (M1..M20)'!C57,"") ->  | D57: =IF('Chronos (M1..M20)'!B57<>"",'Chronos (M1..M20)'!D57,"") ->  | E57: =IF('Chronos (M1..M20)'!B57<>"",'Chronos (M1..M20)'!E57,"") ->  | F57: 21 | G57: ='Chronos (M1..M20)'!G1976 -> 1 | H57: 1 | N57: =IF(B57<>"",'Classement Général'!BU57,"") ->  | O57: =IF(B57<>"",'Calculs (M1..M20)'!A60,"") ->  | AH57: 0
B58: =IF('Chronos (M1..M20)'!B58<>"",'Chronos (M1..M20)'!B58,"") ->  | C58: =IF('Chronos (M1..M20)'!B58<>"",'Chronos (M1..M20)'!C58,"") ->  | D58: =IF('Chronos (M1..M20)'!B58<>"",'Chronos (M1..M20)'!D58,"") ->  | E58: =IF('Chronos (M1..M20)'!B58<>"",'Chronos (M1..M20)'!E58,"") ->  | F58: 21 | G58: ='Chronos (M1..M20)'!G1977 -> 1 | H58: 1 | N58: =IF(B58<>"",'Classement Général'!BU58,"") ->  | O58: =IF(B58<>"",'Calculs (M1..M20)'!A61,"") ->  | AH58: 0
B59: =IF('Chronos (M1..M20)'!B59<>"",'Chronos (M1..M20)'!B59,"") ->  | C59: =IF('Chronos (M1..M20)'!B59<>"",'Chronos (M1..M20)'!C59,"") ->  | D59: =IF('Chronos (M1..M20)'!B59<>"",'Chronos (M1..M20)'!D59,"") ->  | E59: =IF('Chronos (M1..M20)'!B59<>"",'Chronos (M1..M20)'!E59,"") ->  | F59: 21 | G59: ='Chronos (M1..M20)'!G1978 -> 1 | H59: 1 | N59: =IF(B59<>"",'Classement Général'!BU59,"") ->  | O59: =IF(B59<>"",'Calculs (M1..M20)'!A62,"") ->  | AH59: 0
B60: =IF('Chronos (M1..M20)'!B60<>"",'Chronos (M1..M20)'!B60,"") ->  | C60: =IF('Chronos (M1..M20)'!B60<>"",'Chronos (M1..M20)'!C60,"") ->  | D60: =IF('Chronos (M1..M20)'!B60<>"",'Chronos (M1..M20)'!D60,"") ->  | E60: =IF('Chronos (M1..M20)'!B60<>"",'Chronos (M1..M20)'!E60,"") ->  | F60: 21 | G60: ='Chronos (M1..M20)'!G1979 -> 1 | H60: 1 | N60: =IF(B60<>"",'Classement Général'!BU60,"") ->  | O60: =IF(B60<>"",'Calculs (M1..M20)'!A63,"") ->  | AH60: 0
B61: =IF('Chronos (M1..M20)'!B61<>"",'Chronos (M1..M20)'!B61,"") ->  | C61: =IF('Chronos (M1..M20)'!B61<>"",'Chronos (M1..M20)'!C61,"") ->  | D61: =IF('Chronos (M1..M20)'!B61<>"",'Chronos (M1..M20)'!D61,"") ->  | E61: =IF('Chronos (M1..M20)'!B61<>"",'Chronos (M1..M20)'!E61,"") ->  | F61: 21 | G61: ='Chronos (M1..M20)'!G1980 -> 1 | H61: 1 | N61: =IF(B61<>"",'Classement Général'!BU61,"") ->  | O61: =IF(B61<>"",'Calculs (M1..M20)'!A64,"") ->  | AH61: 0
B62: =IF('Chronos (M1..M20)'!B62<>"",'Chronos (M1..M20)'!B62,"") ->  | C62: =IF('Chronos (M1..M20)'!B62<>"",'Chronos (M1..M20)'!C62,"") ->  | D62: =IF('Chronos (M1..M20)'!B62<>"",'Chronos (M1..M20)'!D62,"") ->  | E62: =IF('Chronos (M1..M20)'!B62<>"",'Chronos (M1..M20)'!E62,"") ->  | F62: 21 | G62: ='Chronos (M1..M20)'!G1981 -> 1 | H62: 1 | N62: =IF(B62<>"",'Classement Général'!BU62,"") ->  | O62: =IF(B62<>"",'Calculs (M1..M20)'!A65,"") ->  | AH62: 0
B63: =IF('Chronos (M1..M20)'!B63<>"",'Chronos (M1..M20)'!B63,"") ->  | C63: =IF('Chronos (M1..M20)'!B63<>"",'Chronos (M1..M20)'!C63,"") ->  | D63: =IF('Chronos (M1..M20)'!B63<>"",'Chronos (M1..M20)'!D63,"") ->  | E63: =IF('Chronos (M1..M20)'!B63<>"",'Chronos (M1..M20)'!E63,"") ->  | F63: 21 | G63: ='Chronos (M1..M20)'!G1982 -> 1 | H63: 1 | N63: =IF(B63<>"",'Classement Général'!BU63,"") ->  | O63: =IF(B63<>"",'Calculs (M1..M20)'!A66,"") ->  | AH63: 0
B64: =IF('Chronos (M1..M20)'!B64<>"",'Chronos (M1..M20)'!B64,"") ->  | C64: =IF('Chronos (M1..M20)'!B64<>"",'Chronos (M1..M20)'!C64,"") ->  | D64: =IF('Chronos (M1..M20)'!B64<>"",'Chronos (M1..M20)'!D64,"") ->  | E64: =IF('Chronos (M1..M20)'!B64<>"",'Chronos (M1..M20)'!E64,"") ->  | F64: 21 | G64: ='Chronos (M1..M20)'!G1983 -> 1 | H64: 1 | N64: =IF(B64<>"",'Classement Général'!BU64,"") ->  | O64: =IF(B64<>"",'Calculs (M1..M20)'!A67,"") ->  | AH64: 0
B65: =IF('Chronos (M1..M20)'!B65<>"",'Chronos (M1..M20)'!B65,"") ->  | C65: =IF('Chronos (M1..M20)'!B65<>"",'Chronos (M1..M20)'!C65,"") ->  | D65: =IF('Chronos (M1..M20)'!B65<>"",'Chronos (M1..M20)'!D65,"") ->  | E65: =IF('Chronos (M1..M20)'!B65<>"",'Chronos (M1..M20)'!E65,"") ->  | F65: 21 | G65: ='Chronos (M1..M20)'!G1984 -> 1 | H65: 1 | N65: =IF(B65<>"",'Classement Général'!BU65,"") ->  | O65: =IF(B65<>"",'Calculs (M1..M20)'!A68,"") ->  | AH65: 0
B66: =IF('Chronos (M1..M20)'!B66<>"",'Chronos (M1..M20)'!B66,"") ->  | C66: =IF('Chronos (M1..M20)'!B66<>"",'Chronos (M1..M20)'!C66,"") ->  | D66: =IF('Chronos (M1..M20)'!B66<>"",'Chronos (M1..M20)'!D66,"") ->  | E66: =IF('Chronos (M1..M20)'!B66<>"",'Chronos (M1..M20)'!E66,"") ->  | F66: 21 | G66: ='Chronos (M1..M20)'!G1985 -> 1 | H66: 1 | N66: =IF(B66<>"",'Classement Général'!BU66,"") ->  | O66: =IF(B66<>"",'Calculs (M1..M20)'!A69,"") ->  | AH66: 0
B67: =IF('Chronos (M1..M20)'!B67<>"",'Chronos (M1..M20)'!B67,"") ->  | C67: =IF('Chronos (M1..M20)'!B67<>"",'Chronos (M1..M20)'!C67,"") ->  | D67: =IF('Chronos (M1..M20)'!B67<>"",'Chronos (M1..M20)'!D67,"") ->  | E67: =IF('Chronos (M1..M20)'!B67<>"",'Chronos (M1..M20)'!E67,"") ->  | F67: 21 | G67: ='Chronos (M1..M20)'!G1986 -> 1 | H67: 1 | N67: =IF(B67<>"",'Classement Général'!BU67,"") ->  | O67: =IF(B67<>"",'Calculs (M1..M20)'!A70,"") ->  | AH67: 0
B68: =IF('Chronos (M1..M20)'!B68<>"",'Chronos (M1..M20)'!B68,"") ->  | C68: =IF('Chronos (M1..M20)'!B68<>"",'Chronos (M1..M20)'!C68,"") ->  | D68: =IF('Chronos (M1..M20)'!B68<>"",'Chronos (M1..M20)'!D68,"") ->  | E68: =IF('Chronos (M1..M20)'!B68<>"",'Chronos (M1..M20)'!E68,"") ->  | F68: 21 | G68: ='Chronos (M1..M20)'!G1987 -> 0 | H68: 0 | N68: =IF(B68<>"",'Classement Général'!BU68,"") ->  | O68: =IF(B68<>"",'Calculs (M1..M20)'!A71,"") ->  | AH68: 0
B69: =IF('Chronos (M1..M20)'!B69<>"",'Chronos (M1..M20)'!B69,"") ->  | C69: =IF('Chronos (M1..M20)'!B69<>"",'Chronos (M1..M20)'!C69,"") ->  | D69: =IF('Chronos (M1..M20)'!B69<>"",'Chronos (M1..M20)'!D69,"") ->  | E69: =IF('Chronos (M1..M20)'!B69<>"",'Chronos (M1..M20)'!E69,"") ->  | F69: 21 | G69: ='Chronos (M1..M20)'!G1988 -> 0 | H69: 0 | N69: =IF(B69<>"",'Classement Général'!BU69,"") ->  | O69: =IF(B69<>"",'Calculs (M1..M20)'!A72,"") ->  | AH69: 0
B70: =IF('Chronos (M1..M20)'!B70<>"",'Chronos (M1..M20)'!B70,"") ->  | C70: =IF('Chronos (M1..M20)'!B70<>"",'Chronos (M1..M20)'!C70,"") ->  | D70: =IF('Chronos (M1..M20)'!B70<>"",'Chronos (M1..M20)'!D70,"") ->  | E70: =IF('Chronos (M1..M20)'!B70<>"",'Chronos (M1..M20)'!E70,"") ->  | F70: 21 | G70: ='Chronos (M1..M20)'!G1989 -> 0 | H70: 0 | N70: =IF(B70<>"",'Classement Général'!BU70,"") ->  | O70: =IF(B70<>"",'Calculs (M1..M20)'!A73,"") ->  | AH70: 0
B71: =IF('Chronos (M1..M20)'!B71<>"",'Chronos (M1..M20)'!B71,"") ->  | C71: =IF('Chronos (M1..M20)'!B71<>"",'Chronos (M1..M20)'!C71,"") ->  | D71: =IF('Chronos (M1..M20)'!B71<>"",'Chronos (M1..M20)'!D71,"") ->  | E71: =IF('Chronos (M1..M20)'!B71<>"",'Chronos (M1..M20)'!E71,"") ->  | F71: 21 | G71: ='Chronos (M1..M20)'!G1990 -> 0 | H71: 0 | N71: =IF(B71<>"",'Classement Général'!BU71,"") ->  | O71: =IF(B71<>"",'Calculs (M1..M20)'!A74,"") ->  | AH71: 0
B72: =IF('Chronos (M1..M20)'!B72<>"",'Chronos (M1..M20)'!B72,"") ->  | C72: =IF('Chronos (M1..M20)'!B72<>"",'Chronos (M1..M20)'!C72,"") ->  | D72: =IF('Chronos (M1..M20)'!B72<>"",'Chronos (M1..M20)'!D72,"") ->  | E72: =IF('Chronos (M1..M20)'!B72<>"",'Chronos (M1..M20)'!E72,"") ->  | F72: 21 | G72: ='Chronos (M1..M20)'!G1991 -> 0 | H72: 0 | N72: =IF(B72<>"",'Classement Général'!BU72,"") ->  | O72: =IF(B72<>"",'Calculs (M1..M20)'!A75,"") ->  | AH72: 0
B73: =IF('Chronos (M1..M20)'!B73<>"",'Chronos (M1..M20)'!B73,"") ->  | C73: =IF('Chronos (M1..M20)'!B73<>"",'Chronos (M1..M20)'!C73,"") ->  | D73: =IF('Chronos (M1..M20)'!B73<>"",'Chronos (M1..M20)'!D73,"") ->  | E73: =IF('Chronos (M1..M20)'!B73<>"",'Chronos (M1..M20)'!E73,"") ->  | F73: 21 | G73: ='Chronos (M1..M20)'!G1992 -> 0 | H73: 0 | N73: =IF(B73<>"",'Classement Général'!BU73,"") ->  | O73: =IF(B73<>"",'Calculs (M1..M20)'!A76,"") ->  | AH73: 0
B74: =IF('Chronos (M1..M20)'!B74<>"",'Chronos (M1..M20)'!B74,"") ->  | C74: =IF('Chronos (M1..M20)'!B74<>"",'Chronos (M1..M20)'!C74,"") ->  | D74: =IF('Chronos (M1..M20)'!B74<>"",'Chronos (M1..M20)'!D74,"") ->  | E74: =IF('Chronos (M1..M20)'!B74<>"",'Chronos (M1..M20)'!E74,"") ->  | F74: 21 | G74: ='Chronos (M1..M20)'!G1993 -> 0 | H74: 0 | N74: =IF(B74<>"",'Classement Général'!BU74,"") ->  | O74: =IF(B74<>"",'Calculs (M1..M20)'!A77,"") ->  | AH74: 0
B75: =IF('Chronos (M1..M20)'!B75<>"",'Chronos (M1..M20)'!B75,"") ->  | C75: =IF('Chronos (M1..M20)'!B75<>"",'Chronos (M1..M20)'!C75,"") ->  | D75: =IF('Chronos (M1..M20)'!B75<>"",'Chronos (M1..M20)'!D75,"") ->  | E75: =IF('Chronos (M1..M20)'!B75<>"",'Chronos (M1..M20)'!E75,"") ->  | F75: 21 | G75: ='Chronos (M1..M20)'!G1994 -> 0 | H75: 0 | K75: =IF($B75<>"",IF(I75,(INDEX(P$11:Q$14,MATCH(H75,P$11:P$14),2)/I75)*1000,0),"") ->  | M75: =IF(B75<>"",RANK(L75,L$11:L$110),"") ->  | N75: =IF(B75<>"",'Classement Général'!BU75,"") ->  | O75: =IF(B75<>"",'Calculs (M1..M20)'!A78,"") ->  | AH75: 0
B76: =IF('Chronos (M1..M20)'!B76<>"",'Chronos (M1..M20)'!B76,"") ->  | C76: =IF('Chronos (M1..M20)'!B76<>"",'Chronos (M1..M20)'!C76,"") ->  | D76: =IF('Chronos (M1..M20)'!B76<>"",'Chronos (M1..M20)'!D76,"") ->  | E76: =IF('Chronos (M1..M20)'!B76<>"",'Chronos (M1..M20)'!E76,"") ->  | F76: 21 | G76: ='Chronos (M1..M20)'!G1995 -> 0 | H76: =IF($G76<>"",G76,"") -> 0 | L76: =IF(Q$11<>"",IF($B76<>"",K76-J76,""),"") ->  | N76: =IF(B76<>"",'Classement Général'!BU76,"") ->  | O76: =IF(B76<>"",'Calculs (M1..M20)'!A79,"") ->  | AH76: =IF($G76<>"",AG76,"") -> 0
B77: =IF('Chronos (M1..M20)'!B77<>"",'Chronos (M1..M20)'!B77,"") ->  | C77: =IF('Chronos (M1..M20)'!B77<>"",'Chronos (M1..M20)'!C77,"") ->  | D77: =IF('Chronos (M1..M20)'!B77<>"",'Chronos (M1..M20)'!D77,"") ->  | E77: =IF('Chronos (M1..M20)'!B77<>"",'Chronos (M1..M20)'!E77,"") ->  | F77: 21 | G77: ='Chronos (M1..M20)'!G1996 -> 0 | H77: 0 | N77: =IF(B77<>"",'Classement Général'!BU77,"") ->  | O77: =IF(B77<>"",'Calculs (M1..M20)'!A80,"") ->  | AH77: 0
B78: =IF('Chronos (M1..M20)'!B78<>"",'Chronos (M1..M20)'!B78,"") ->  | C78: =IF('Chronos (M1..M20)'!B78<>"",'Chronos (M1..M20)'!C78,"") ->  | D78: =IF('Chronos (M1..M20)'!B78<>"",'Chronos (M1..M20)'!D78,"") ->  | E78: =IF('Chronos (M1..M20)'!B78<>"",'Chronos (M1..M20)'!E78,"") ->  | F78: 21 | G78: ='Chronos (M1..M20)'!G1997 -> 0 | H78: 0 | N78: =IF(B78<>"",'Classement Général'!BU78,"") ->  | O78: =IF(B78<>"",'Calculs (M1..M20)'!A81,"") ->  | AH78: 0
B79: =IF('Chronos (M1..M20)'!B79<>"",'Chronos (M1..M20)'!B79,"") ->  | C79: =IF('Chronos (M1..M20)'!B79<>"",'Chronos (M1..M20)'!C79,"") ->  | D79: =IF('Chronos (M1..M20)'!B79<>"",'Chronos (M1..M20)'!D79,"") ->  | E79: =IF('Chronos (M1..M20)'!B79<>"",'Chronos (M1..M20)'!E79,"") ->  | F79: 21 | G79: ='Chronos (M1..M20)'!G1998 -> 0 | H79: 0 | N79: =IF(B79<>"",'Classement Général'!BU79,"") ->  | O79: =IF(B79<>"",'Calculs (M1..M20)'!A82,"") ->  | AH79: 0
B80: =IF('Chronos (M1..M20)'!B80<>"",'Chronos (M1..M20)'!B80,"") ->  | C80: =IF('Chronos (M1..M20)'!B80<>"",'Chronos (M1..M20)'!C80,"") ->  | D80: =IF('Chronos (M1..M20)'!B80<>"",'Chronos (M1..M20)'!D80,"") ->  | E80: =IF('Chronos (M1..M20)'!B80<>"",'Chronos (M1..M20)'!E80,"") ->  | F80: 21 | G80: ='Chronos (M1..M20)'!G1999 -> 0 | H80: 0 | N80: =IF(B80<>"",'Classement Général'!BU80,"") ->  | O80: =IF(B80<>"",'Calculs (M1..M20)'!A83,"") ->  | AH80: 0
B81: =IF('Chronos (M1..M20)'!B81<>"",'Chronos (M1..M20)'!B81,"") ->  | C81: =IF('Chronos (M1..M20)'!B81<>"",'Chronos (M1..M20)'!C81,"") ->  | D81: =IF('Chronos (M1..M20)'!B81<>"",'Chronos (M1..M20)'!D81,"") ->  | E81: =IF('Chronos (M1..M20)'!B81<>"",'Chronos (M1..M20)'!E81,"") ->  | F81: 21 | G81: ='Chronos (M1..M20)'!G2000 -> 0 | H81: 0 | N81: =IF(B81<>"",'Classement Général'!BU81,"") ->  | O81: =IF(B81<>"",'Calculs (M1..M20)'!A84,"") ->  | AH81: 0
B82: =IF('Chronos (M1..M20)'!B82<>"",'Chronos (M1..M20)'!B82,"") ->  | C82: =IF('Chronos (M1..M20)'!B82<>"",'Chronos (M1..M20)'!C82,"") ->  | D82: =IF('Chronos (M1..M20)'!B82<>"",'Chronos (M1..M20)'!D82,"") ->  | E82: =IF('Chronos (M1..M20)'!B82<>"",'Chronos (M1..M20)'!E82,"") ->  | F82: 21 | G82: ='Chronos (M1..M20)'!G2001 -> 0 | H82: 0 | N82: =IF(B82<>"",'Classement Général'!BU82,"") ->  | O82: =IF(B82<>"",'Calculs (M1..M20)'!A85,"") ->  | AH82: 0
B83: =IF('Chronos (M1..M20)'!B83<>"",'Chronos (M1..M20)'!B83,"") ->  | C83: =IF('Chronos (M1..M20)'!B83<>"",'Chronos (M1..M20)'!C83,"") ->  | D83: =IF('Chronos (M1..M20)'!B83<>"",'Chronos (M1..M20)'!D83,"") ->  | E83: =IF('Chronos (M1..M20)'!B83<>"",'Chronos (M1..M20)'!E83,"") ->  | F83: 21 | G83: ='Chronos (M1..M20)'!G2002 -> 0 | H83: 0 | N83: =IF(B83<>"",'Classement Général'!BU83,"") ->  | O83: =IF(B83<>"",'Calculs (M1..M20)'!A86,"") ->  | AH83: 0
B84: =IF('Chronos (M1..M20)'!B84<>"",'Chronos (M1..M20)'!B84,"") ->  | C84: =IF('Chronos (M1..M20)'!B84<>"",'Chronos (M1..M20)'!C84,"") ->  | D84: =IF('Chronos (M1..M20)'!B84<>"",'Chronos (M1..M20)'!D84,"") ->  | E84: =IF('Chronos (M1..M20)'!B84<>"",'Chronos (M1..M20)'!E84,"") ->  | F84: 21 | G84: ='Chronos (M1..M20)'!G2003 -> 0 | H84: 0 | N84: =IF(B84<>"",'Classement Général'!BU84,"") ->  | O84: =IF(B84<>"",'Calculs (M1..M20)'!A87,"") ->  | AH84: 0
B85: =IF('Chronos (M1..M20)'!B85<>"",'Chronos (M1..M20)'!B85,"") ->  | C85: =IF('Chronos (M1..M20)'!B85<>"",'Chronos (M1..M20)'!C85,"") ->  | D85: =IF('Chronos (M1..M20)'!B85<>"",'Chronos (M1..M20)'!D85,"") ->  | E85: =IF('Chronos (M1..M20)'!B85<>"",'Chronos (M1..M20)'!E85,"") ->  | F85: 21 | G85: ='Chronos (M1..M20)'!G2004 -> 0 | H85: 0 | N85: =IF(B85<>"",'Classement Général'!BU85,"") ->  | O85: =IF(B85<>"",'Calculs (M1..M20)'!A88,"") ->  | AH85: 0
B86: =IF('Chronos (M1..M20)'!B86<>"",'Chronos (M1..M20)'!B86,"") ->  | C86: =IF('Chronos (M1..M20)'!B86<>"",'Chronos (M1..M20)'!C86,"") ->  | D86: =IF('Chronos (M1..M20)'!B86<>"",'Chronos (M1..M20)'!D86,"") ->  | E86: =IF('Chronos (M1..M20)'!B86<>"",'Chronos (M1..M20)'!E86,"") ->  | F86: 21 | G86: ='Chronos (M1..M20)'!G2005 -> 0 | H86: 0 | N86: =IF(B86<>"",'Classement Général'!BU86,"") ->  | O86: =IF(B86<>"",'Calculs (M1..M20)'!A89,"") ->  | AH86: 0
B87: =IF('Chronos (M1..M20)'!B87<>"",'Chronos (M1..M20)'!B87,"") ->  | C87: =IF('Chronos (M1..M20)'!B87<>"",'Chronos (M1..M20)'!C87,"") ->  | D87: =IF('Chronos (M1..M20)'!B87<>"",'Chronos (M1..M20)'!D87,"") ->  | E87: =IF('Chronos (M1..M20)'!B87<>"",'Chronos (M1..M20)'!E87,"") ->  | F87: 21 | G87: ='Chronos (M1..M20)'!G2006 -> 0 | H87: 0 | N87: =IF(B87<>"",'Classement Général'!BU87,"") ->  | O87: =IF(B87<>"",'Calculs (M1..M20)'!A90,"") ->  | AH87: 0
B88: =IF('Chronos (M1..M20)'!B88<>"",'Chronos (M1..M20)'!B88,"") ->  | C88: =IF('Chronos (M1..M20)'!B88<>"",'Chronos (M1..M20)'!C88,"") ->  | D88: =IF('Chronos (M1..M20)'!B88<>"",'Chronos (M1..M20)'!D88,"") ->  | E88: =IF('Chronos (M1..M20)'!B88<>"",'Chronos (M1..M20)'!E88,"") ->  | F88: 21 | G88: ='Chronos (M1..M20)'!G2007 -> 0 | H88: 0 | N88: =IF(B88<>"",'Classement Général'!BU88,"") ->  | O88: =IF(B88<>"",'Calculs (M1..M20)'!A91,"") ->  | AH88: 0
B89: =IF('Chronos (M1..M20)'!B89<>"",'Chronos (M1..M20)'!B89,"") ->  | C89: =IF('Chronos (M1..M20)'!B89<>"",'Chronos (M1..M20)'!C89,"") ->  | D89: =IF('Chronos (M1..M20)'!B89<>"",'Chronos (M1..M20)'!D89,"") ->  | E89: =IF('Chronos (M1..M20)'!B89<>"",'Chronos (M1..M20)'!E89,"") ->  | F89: 21 | G89: ='Chronos (M1..M20)'!G2008 -> 0 | H89: 0 | N89: =IF(B89<>"",'Classement Général'!BU89,"") ->  | O89: =IF(B89<>"",'Calculs (M1..M20)'!A92,"") ->  | AH89: 0
B90: =IF('Chronos (M1..M20)'!B90<>"",'Chronos (M1..M20)'!B90,"") ->  | C90: =IF('Chronos (M1..M20)'!B90<>"",'Chronos (M1..M20)'!C90,"") ->  | D90: =IF('Chronos (M1..M20)'!B90<>"",'Chronos (M1..M20)'!D90,"") ->  | E90: =IF('Chronos (M1..M20)'!B90<>"",'Chronos (M1..M20)'!E90,"") ->  | F90: 21 | G90: ='Chronos (M1..M20)'!G2009 -> 0 | H90: 0 | N90: =IF(B90<>"",'Classement Général'!BU90,"") ->  | O90: =IF(B90<>"",'Calculs (M1..M20)'!A93,"") ->  | AH90: 0
B91: =IF('Chronos (M1..M20)'!B91<>"",'Chronos (M1..M20)'!B91,"") ->  | C91: =IF('Chronos (M1..M20)'!B91<>"",'Chronos (M1..M20)'!C91,"") ->  | D91: =IF('Chronos (M1..M20)'!B91<>"",'Chronos (M1..M20)'!D91,"") ->  | E91: =IF('Chronos (M1..M20)'!B91<>"",'Chronos (M1..M20)'!E91,"") ->  | F91: 21 | G91: ='Chronos (M1..M20)'!G2010 -> 0 | H91: 0 | N91: =IF(B91<>"",'Classement Général'!BU91,"") ->  | O91: =IF(B91<>"",'Calculs (M1..M20)'!A94,"") ->  | AH91: 0
B92: =IF('Chronos (M1..M20)'!B92<>"",'Chronos (M1..M20)'!B92,"") ->  | C92: =IF('Chronos (M1..M20)'!B92<>"",'Chronos (M1..M20)'!C92,"") ->  | D92: =IF('Chronos (M1..M20)'!B92<>"",'Chronos (M1..M20)'!D92,"") ->  | E92: =IF('Chronos (M1..M20)'!B92<>"",'Chronos (M1..M20)'!E92,"") ->  | F92: 21 | G92: ='Chronos (M1..M20)'!G2011 -> 0 | H92: 0 | N92: =IF(B92<>"",'Classement Général'!BU92,"") ->  | O92: =IF(B92<>"",'Calculs (M1..M20)'!A95,"") ->  | AH92: 0
B93: =IF('Chronos (M1..M20)'!B93<>"",'Chronos (M1..M20)'!B93,"") ->  | C93: =IF('Chronos (M1..M20)'!B93<>"",'Chronos (M1..M20)'!C93,"") ->  | D93: =IF('Chronos (M1..M20)'!B93<>"",'Chronos (M1..M20)'!D93,"") ->  | E93: =IF('Chronos (M1..M20)'!B93<>"",'Chronos (M1..M20)'!E93,"") ->  | F93: 21 | G93: ='Chronos (M1..M20)'!G2012 -> 0 | H93: 0 | N93: =IF(B93<>"",'Classement Général'!BU93,"") ->  | O93: =IF(B93<>"",'Calculs (M1..M20)'!A96,"") ->  | AH93: 0
B94: =IF('Chronos (M1..M20)'!B94<>"",'Chronos (M1..M20)'!B94,"") ->  | C94: =IF('Chronos (M1..M20)'!B94<>"",'Chronos (M1..M20)'!C94,"") ->  | D94: =IF('Chronos (M1..M20)'!B94<>"",'Chronos (M1..M20)'!D94,"") ->  | E94: =IF('Chronos (M1..M20)'!B94<>"",'Chronos (M1..M20)'!E94,"") ->  | F94: 21 | G94: ='Chronos (M1..M20)'!G2013 -> 0 | H94: 0 | N94: =IF(B94<>"",'Classement Général'!BU94,"") ->  | O94: =IF(B94<>"",'Calculs (M1..M20)'!A97,"") ->  | AH94: 0
B95: =IF('Chronos (M1..M20)'!B95<>"",'Chronos (M1..M20)'!B95,"") ->  | C95: =IF('Chronos (M1..M20)'!B95<>"",'Chronos (M1..M20)'!C95,"") ->  | D95: =IF('Chronos (M1..M20)'!B95<>"",'Chronos (M1..M20)'!D95,"") ->  | E95: =IF('Chronos (M1..M20)'!B95<>"",'Chronos (M1..M20)'!E95,"") ->  | F95: 21 | G95: ='Chronos (M1..M20)'!G2014 -> 0 | H95: 0 | N95: =IF(B95<>"",'Classement Général'!BU95,"") ->  | O95: =IF(B95<>"",'Calculs (M1..M20)'!A98,"") ->  | AH95: 0
B96: =IF('Chronos (M1..M20)'!B96<>"",'Chronos (M1..M20)'!B96,"") ->  | C96: =IF('Chronos (M1..M20)'!B96<>"",'Chronos (M1..M20)'!C96,"") ->  | D96: =IF('Chronos (M1..M20)'!B96<>"",'Chronos (M1..M20)'!D96,"") ->  | E96: =IF('Chronos (M1..M20)'!B96<>"",'Chronos (M1..M20)'!E96,"") ->  | F96: 21 | G96: ='Chronos (M1..M20)'!G2015 -> 0 | H96: 0 | N96: =IF(B96<>"",'Classement Général'!BU96,"") ->  | O96: =IF(B96<>"",'Calculs (M1..M20)'!A99,"") ->  | AH96: 0
B97: =IF('Chronos (M1..M20)'!B97<>"",'Chronos (M1..M20)'!B97,"") ->  | C97: =IF('Chronos (M1..M20)'!B97<>"",'Chronos (M1..M20)'!C97,"") ->  | D97: =IF('Chronos (M1..M20)'!B97<>"",'Chronos (M1..M20)'!D97,"") ->  | E97: =IF('Chronos (M1..M20)'!B97<>"",'Chronos (M1..M20)'!E97,"") ->  | F97: 21 | G97: ='Chronos (M1..M20)'!G2016 -> 0 | H97: 0 | N97: =IF(B97<>"",'Classement Général'!BU97,"") ->  | O97: =IF(B97<>"",'Calculs (M1..M20)'!A100,"") ->  | AH97: 0
B98: =IF('Chronos (M1..M20)'!B98<>"",'Chronos (M1..M20)'!B98,"") ->  | C98: =IF('Chronos (M1..M20)'!B98<>"",'Chronos (M1..M20)'!C98,"") ->  | D98: =IF('Chronos (M1..M20)'!B98<>"",'Chronos (M1..M20)'!D98,"") ->  | E98: =IF('Chronos (M1..M20)'!B98<>"",'Chronos (M1..M20)'!E98,"") ->  | F98: 21 | G98: ='Chronos (M1..M20)'!G2017 -> 0 | H98: 0 | N98: =IF(B98<>"",'Classement Général'!BU98,"") ->  | O98: =IF(B98<>"",'Calculs (M1..M20)'!A101,"") ->  | AH98: 0
B99: =IF('Chronos (M1..M20)'!B99<>"",'Chronos (M1..M20)'!B99,"") ->  | C99: =IF('Chronos (M1..M20)'!B99<>"",'Chronos (M1..M20)'!C99,"") ->  | D99: =IF('Chronos (M1..M20)'!B99<>"",'Chronos (M1..M20)'!D99,"") ->  | E99: =IF('Chronos (M1..M20)'!B99<>"",'Chronos (M1..M20)'!E99,"") ->  | F99: 21 | G99: ='Chronos (M1..M20)'!G2018 -> 0 | H99: 0 | N99: =IF(B99<>"",'Classement Général'!BU99,"") ->  | O99: =IF(B99<>"",'Calculs (M1..M20)'!A102,"") ->  | AH99: 0
B100: =IF('Chronos (M1..M20)'!B100<>"",'Chronos (M1..M20)'!B100,"") ->  | C100: =IF('Chronos (M1..M20)'!B100<>"",'Chronos (M1..M20)'!C100,"") ->  | D100: =IF('Chronos (M1..M20)'!B100<>"",'Chronos (M1..M20)'!D100,"") ->  | E100: =IF('Chronos (M1..M20)'!B100<>"",'Chronos (M1..M20)'!E100,"") ->  | F100: 21 | G100: ='Chronos (M1..M20)'!G2019 -> 0 | H100: 0 | N100: =IF(B100<>"",'Classement Général'!BU100,"") ->  | O100: =IF(B100<>"",'Calculs (M1..M20)'!A103,"") ->  | AH100: 0
B101: =IF('Chronos (M1..M20)'!B101<>"",'Chronos (M1..M20)'!B101,"") ->  | C101: =IF('Chronos (M1..M20)'!B101<>"",'Chronos (M1..M20)'!C101,"") ->  | D101: =IF('Chronos (M1..M20)'!B101<>"",'Chronos (M1..M20)'!D101,"") ->  | E101: =IF('Chronos (M1..M20)'!B101<>"",'Chronos (M1..M20)'!E101,"") ->  | F101: 21 | G101: ='Chronos (M1..M20)'!G2020 -> 0 | H101: 0 | N101: =IF(B101<>"",'Classement Général'!BU101,"") ->  | O101: =IF(B101<>"",'Calculs (M1..M20)'!A104,"") ->  | AH101: 0
B102: =IF('Chronos (M1..M20)'!B102<>"",'Chronos (M1..M20)'!B102,"") ->  | C102: =IF('Chronos (M1..M20)'!B102<>"",'Chronos (M1..M20)'!C102,"") ->  | D102: =IF('Chronos (M1..M20)'!B102<>"",'Chronos (M1..M20)'!D102,"") ->  | E102: =IF('Chronos (M1..M20)'!B102<>"",'Chronos (M1..M20)'!E102,"") ->  | F102: 21 | G102: ='Chronos (M1..M20)'!G2021 -> 0 | H102: 0 | N102: =IF(B102<>"",'Classement Général'!BU102,"") ->  | O102: =IF(B102<>"",'Calculs (M1..M20)'!A105,"") ->  | AH102: 0
B103: =IF('Chronos (M1..M20)'!B103<>"",'Chronos (M1..M20)'!B103,"") ->  | C103: =IF('Chronos (M1..M20)'!B103<>"",'Chronos (M1..M20)'!C103,"") ->  | D103: =IF('Chronos (M1..M20)'!B103<>"",'Chronos (M1..M20)'!D103,"") ->  | E103: =IF('Chronos (M1..M20)'!B103<>"",'Chronos (M1..M20)'!E103,"") ->  | F103: 21 | G103: ='Chronos (M1..M20)'!G2022 -> 0 | H103: 0 | N103: =IF(B103<>"",'Classement Général'!BU103,"") ->  | O103: =IF(B103<>"",'Calculs (M1..M20)'!A106,"") ->  | AH103: 0
B104: =IF('Chronos (M1..M20)'!B104<>"",'Chronos (M1..M20)'!B104,"") ->  | C104: =IF('Chronos (M1..M20)'!B104<>"",'Chronos (M1..M20)'!C104,"") ->  | D104: =IF('Chronos (M1..M20)'!B104<>"",'Chronos (M1..M20)'!D104,"") ->  | E104: =IF('Chronos (M1..M20)'!B104<>"",'Chronos (M1..M20)'!E104,"") ->  | F104: 21 | G104: ='Chronos (M1..M20)'!G2023 -> 0 | H104: 0 | N104: =IF(B104<>"",'Classement Général'!BU104,"") ->  | O104: =IF(B104<>"",'Calculs (M1..M20)'!A107,"") ->  | AH104: 0
B105: =IF('Chronos (M1..M20)'!B105<>"",'Chronos (M1..M20)'!B105,"") ->  | C105: =IF('Chronos (M1..M20)'!B105<>"",'Chronos (M1..M20)'!C105,"") ->  | D105: =IF('Chronos (M1..M20)'!B105<>"",'Chronos (M1..M20)'!D105,"") ->  | E105: =IF('Chronos (M1..M20)'!B105<>"",'Chronos (M1..M20)'!E105,"") ->  | F105: 21 | G105: ='Chronos (M1..M20)'!G2024 -> 0 | H105: 0 | N105: =IF(B105<>"",'Classement Général'!BU105,"") ->  | O105: =IF(B105<>"",'Calculs (M1..M20)'!A108,"") ->  | AH105: 0
B106: =IF('Chronos (M1..M20)'!B106<>"",'Chronos (M1..M20)'!B106,"") ->  | C106: =IF('Chronos (M1..M20)'!B106<>"",'Chronos (M1..M20)'!C106,"") ->  | D106: =IF('Chronos (M1..M20)'!B106<>"",'Chronos (M1..M20)'!D106,"") ->  | E106: =IF('Chronos (M1..M20)'!B106<>"",'Chronos (M1..M20)'!E106,"") ->  | F106: 21 | G106: ='Chronos (M1..M20)'!G2025 -> 0 | H106: 0 | N106: =IF(B106<>"",'Classement Général'!BU106,"") ->  | O106: =IF(B106<>"",'Calculs (M1..M20)'!A109,"") ->  | AH106: 0
B107: =IF('Chronos (M1..M20)'!B107<>"",'Chronos (M1..M20)'!B107,"") ->  | C107: =IF('Chronos (M1..M20)'!B107<>"",'Chronos (M1..M20)'!C107,"") ->  | D107: =IF('Chronos (M1..M20)'!B107<>"",'Chronos (M1..M20)'!D107,"") ->  | E107: =IF('Chronos (M1..M20)'!B107<>"",'Chronos (M1..M20)'!E107,"") ->  | F107: 21 | G107: ='Chronos (M1..M20)'!G2026 -> 0 | H107: 0 | M107: =IF(B107<>"",RANK(L107,L$11:L$110),"") ->  | N107: =IF(B107<>"",'Classement Général'!BU107,"") ->  | O107: =IF(B107<>"",'Calculs (M1..M20)'!A110,"") ->  | AH107: 0
B108: =IF('Chronos (M1..M20)'!B108<>"",'Chronos (M1..M20)'!B108,"") ->  | C108: =IF('Chronos (M1..M20)'!B108<>"",'Chronos (M1..M20)'!C108,"") ->  | D108: =IF('Chronos (M1..M20)'!B108<>"",'Chronos (M1..M20)'!D108,"") ->  | E108: =IF('Chronos (M1..M20)'!B108<>"",'Chronos (M1..M20)'!E108,"") ->  | F108: 21 | G108: ='Chronos (M1..M20)'!G2027 -> 0 | H108: 0 | L108: =IF(Q$11<>"",IF($B108<>"",K108-J108,""),"") ->  | M108: =IF(B108<>"",RANK(L108,L$11:L$110),"") ->  | N108: =IF(B108<>"",'Classement Général'!BU108,"") ->  | O108: =IF(B108<>"",'Calculs (M1..M20)'!A111,"") ->  | AH108: 0
B109: =IF('Chronos (M1..M20)'!B109<>"",'Chronos (M1..M20)'!B109,"") ->  | C109: =IF('Chronos (M1..M20)'!B109<>"",'Chronos (M1..M20)'!C109,"") ->  | D109: =IF('Chronos (M1..M20)'!B109<>"",'Chronos (M1..M20)'!D109,"") ->  | E109: =IF('Chronos (M1..M20)'!B109<>"",'Chronos (M1..M20)'!E109,"") ->  | F109: 21 | G109: ='Chronos (M1..M20)'!G2028 -> 0 | H109: 0 | L109: =IF(Q$11<>"",IF($B109<>"",K109-J109,""),"") ->  | M109: =IF(B109<>"",RANK(L109,L$11:L$110),"") ->  | N109: =IF(B109<>"",'Classement Général'!BU109,"") ->  | O109: =IF(B109<>"",'Calculs (M1..M20)'!A112,"") ->  | AH109: 0
B110: =IF('Chronos (M1..M20)'!B110<>"",'Chronos (M1..M20)'!B110,"") ->  | C110: =IF('Chronos (M1..M20)'!B110<>"",'Chronos (M1..M20)'!C110,"") ->  | D110: =IF('Chronos (M1..M20)'!B110<>"",'Chronos (M1..M20)'!D110,"") ->  | E110: =IF('Chronos (M1..M20)'!B110<>"",'Chronos (M1..M20)'!E110,"") ->  | F110: 21 | G110: ='Chronos (M1..M20)'!G2029 -> 0 | H110: 0 | L110: =IF(Q$11<>"",IF($B110<>"",K110-J110,""),"") ->  | M110: =IF(B110<>"",RANK(L110,L$11:L$110),"") ->  | N110: =IF(B110<>"",'Classement Général'!BU110,"") ->  | O110: =IF(B110<>"",'Calculs (M1..M20)'!A113,"") ->  | AH110: 0
B111: Nom | C111: Dossard | D111: Freq | E111: Equipe | F111: Manche | G111: Gpe | H111: GS | I111: Temps | J111: Penalité | K111: FAI Brut | L111: FAI Net | M111: ClastM | N111: ClastE | O111: ClastG | P111: GS | Q111: Min | R111: Max | S111: Moy | T111: Nbre Concurrents | U111: GS | AH111: GS | AI111: Temps | AJ111: Penalité
B112: =IF(B11<>"",B11,"") -> FOUCHER Jean-Luc | C112: 1 | D112: 0 | E112: 0 | F112: 22 | G112: =G11 -> 1 | H112: =IF($G112<>"",G112,"") -> 1 | K112: =IF($B112<>"",IF(I112,(INDEX(P$112:Q$115,MATCH(H112,P$112:P$115),2)/I112)*1000,0),"") -> 0 | L112: =IF(Q$112<>"",IF($B112<>"",K112-$J112,""),"") ->  | M112: =IF(B112<>"",RANK(L112,L$112:L$211),"") ->  | N112: =IF(B112<>"",'Classement Général'!BV11,"") ->  | O112: =IF(B112<>"",'Calculs (M1..M20)'!A14,"") -> 11 | P112: =IF(DMIN($H111:$I212,$P$10,$U$10:$U$11)<>0,1,"") -> 1 | Q112: =IF(DMIN($H111:$I212,$I$10,$U$10:$U$11)<>0,DMIN($H111:$I212,$I$10,$U$10:$U$11),"") ->  | R112: =IF(DMAX($H111:$I212,$I$10,$U$10:$U$11)<>0,DMAX($H111:$I212,$I$10,$U$10:$U$11),"") ->  | S112: =IF($P112<>"",IF(DAVERAGE($H111:$I212,$I$10,$U$10:$U$11)<>0,DAVERAGE($H111:$I212,$I$10,$U$10:$U$11),""),"") ->  | T112: =IF($P112<>"",IF(DCOUNTA($H111:$I212,$I$10,$U$10:$U$11)<>0,DCOUNTA($H111:$I212,$I$10,$U$10:$U$11),""),"") ->  | U112: 1 | AH112: =IF($G112<>"",AG112,"") -> 0
B113: DOUSSAUD Alexandre | C113: 2 | D113: 0 | E113: 0 | F113: 22 | G113: 1 | H113: =IF($G113<>"",G113,"") -> 1 | K113: 0 | N113: =IF(B113<>"",'Classement Général'!BV12,"") ->  | O113: =IF(B113<>"",'Calculs (M1..M20)'!A15,"") -> 14 | P113: =IF(DMIN($H111:$I212,$P$10,$U$12:$U$13)<>0,2,"") ->  | Q113: =IF(DMIN($H111:$I212,$I$10,$U$12:$U$13)<>0,DMIN($H111:$I212,$I$10,$U$12:$U$13),"") ->  | R113: =IF(DMAX($H111:$I212,$I$10,$U$12:$U$13)<>0,DMAX($H111:$I212,$I$10,$U$12:$U$13),"") ->  | S113: =IF($P113<>"",IF(DAVERAGE($H111:$I212,$I$10,$U$12:$U$13)<>0,DAVERAGE($H111:$I212,$I$10,$U$12:$U$13),""),"") ->  | T113: =IF($P112<>"",IF(DCOUNTA($H111:$I212,$I$10,$U$12:$U$13)<>0,DCOUNTA($H111:$I212,$I$10,$U$12:$U$13),""),"") ->  | U113: GS | AH113: =IF($G113<>"",AG113,"") -> 0
B114: BRAHIER Mickael | C114: 3 | D114: 0 | E114: 0 | F114: 22 | G114: 1 | H114: 1 | K114: 0 | N114: =IF(B114<>"",'Classement Général'!BV13,"") ->  | O114: =IF(B114<>"",'Calculs (M1..M20)'!A16,"") -> 8 | P114: =IF(DMIN($H111:$I212,$P$10,$U$14:$U$15)<>0,3,"") ->  | Q114: =IF(DMIN($H111:$I212,$I$10,$U$14:$U$15)<>0,DMIN($H111:$I212,$I$10,$U$14:$U$15),"") ->  | R114: =IF(DMAX($H111:$I212,$I$10,$U$14:$U$15)<>0,DMAX($H111:$I212,$I$10,$U$14:$U$15),"") ->  | S114: =IF($P114<>"",IF(DAVERAGE($H111:$I212,$I$10,$U$14:$U$15)<>0,DAVERAGE($H111:$I212,$I$10,$U$14:$U$15),""),"") ->  | T114: =IF($P114<>"",IF(DCOUNTA($H111:$I212,$I$10,$U$14:$U$15)<>0,DCOUNTA($H111:$I212,$I$10,$U$14:$U$15),""),"") ->  | U114: 2 | AH114: 0
B115: DELARBRE Serge | C115: 4 | D115: 0 | E115: 0 | F115: 22 | G115: 1 | H115: 1 | K115: 0 | N115: =IF(B115<>"",'Classement Général'!BV14,"") ->  | O115: =IF(B115<>"",'Calculs (M1..M20)'!A17,"") -> 10 | P115: =IF(DMIN($H111:$I212,$P$10,$U$16:$U$17)<>0,4,"") ->  | Q115: =IF(DMIN($H111:$I212,$I$10,$U$16:$U$17)<>0,DMIN($H111:$I212,$I$10,$U$16:$U$17),"") ->  | R115: =IF(DMAX($H111:$I212,$I$10,$U$16:$U$17)<>0,DMAX($H111:$I212,$I$10,$U$16:$U$17),"") ->  | S115: =IF($P115<>"",IF(DAVERAGE($H111:$I212,$I$10,$U$16:$U$17)<>0,DAVERAGE($H111:$I212,$I$10,$U$16:$U$17),""),"") ->  | T115: =IF($P114<>"",IF(DCOUNTA($H111:$I212,$I$10,$U$16:$U$17)<>0,DCOUNTA($H111:$I212,$I$10,$U$16:$U$17),""),"") ->  | U115: GS | AH115: 0
B116: LANES Sébastien | C116: 5 | D116: 0 | E116: 0 | F116: 22 | G116: 1 | H116: 1 | K116: 0 | N116: =IF(B116<>"",'Classement Général'!BV15,"") ->  | O116: =IF(B116<>"",'Calculs (M1..M20)'!A18,"") -> 2 | T116: =SUM(T112:T115) -> 0 | U116: 3 | V116: =T116 -> 0 | AH116: 0
B117: CHABAUD Sébastien | C117: 6 | D117: 0 | E117: 0 | F117: 22 | G117: 1 | H117: 1 | K117: 0 | N117: =IF(B117<>"",'Classement Général'!BV16,"") ->  | O117: =IF(B117<>"",'Calculs (M1..M20)'!A19,"") -> 13 | U117: GS | AH117: 0
B118: DIATTA Pierre | C118: 7 | D118: 0 | E118: 0 | F118: 22 | G118: 1 | H118: 1 | K118: 0 | N118: =IF(B118<>"",'Classement Général'!BV17,"") ->  | O118: =IF(B118<>"",'Calculs (M1..M20)'!A20,"") -> 6 | U118: 4 | AH118: 0
B119: FRICKE Andreas | C119: 8 | D119: 0 | E119: 0 | F119: 22 | G119: 1 | H119: 1 | K119: 0 | N119: =IF(B119<>"",'Classement Général'!BV18,"") ->  | O119: =IF(B119<>"",'Calculs (M1..M20)'!A21,"") -> 3 | AH119: 0
B120: SORBA Remy | C120: 9 | D120: 0 | E120: 0 | F120: 22 | G120: 1 | H120: 1 | K120: 0 | N120: =IF(B120<>"",'Classement Général'!BV19,"") ->  | O120: =IF(B120<>"",'Calculs (M1..M20)'!A22,"") -> 9 | AH120: 0
B121: DEGUELLE J-Bastien | C121: 10 | D121: 0 | E121: 0 | F121: 22 | G121: 1 | H121: 1 | K121: 0 | N121: =IF(B121<>"",'Classement Général'!BV20,"") ->  | O121: =IF(B121<>"",'Calculs (M1..M20)'!A23,"") -> 4 | AH121: 0
B122: DESANDRE Alain | C122: 11 | D122: 0 | E122: 0 | F122: 22 | G122: 1 | H122: 1 | K122: 0 | N122: =IF(B122<>"",'Classement Général'!BV21,"") ->  | O122: =IF(B122<>"",'Calculs (M1..M20)'!A24,"") -> 15 | AH122: 0
B123: DELARBRE Marie-Helene | C123: 12 | D123: 0 | E123: 0 | F123: 22 | G123: 1 | H123: 1 | K123: 0 | N123: =IF(B123<>"",'Classement Général'!BV22,"") ->  | O123: =IF(B123<>"",'Calculs (M1..M20)'!A25,"") -> 16 | AH123: 0
B124: LAFARGE Pascal | C124: 13 | D124: 0 | E124: 0 | F124: 22 | G124: 1 | H124: 1 | K124: 0 | N124: =IF(B124<>"",'Classement Général'!BV23,"") ->  | O124: =IF(B124<>"",'Calculs (M1..M20)'!A26,"") -> 12 | AH124: 0
B125: DAL HAVA Herve | C125: 14 | D125: 0 | E125: 0 | F125: 22 | G125: 1 | H125: 1 | K125: 0 | N125: =IF(B125<>"",'Classement Général'!BV24,"") ->  | O125: =IF(B125<>"",'Calculs (M1..M20)'!A27,"") -> 7 | AH125: 0
B126: LANES Philippe | C126: 15 | D126: 0 | E126: 0 | F126: 22 | G126: 1 | H126: 1 | K126: 0 | N126: =IF(B126<>"",'Classement Général'!BV25,"") ->  | O126: =IF(B126<>"",'Calculs (M1..M20)'!A28,"") -> 5 | AH126: 0
B127: PEREZ Domingo | C127: 16 | D127: 0 | E127: 0 | F127: 22 | G127: 1 | H127: 1 | K127: 0 | N127: =IF(B127<>"",'Classement Général'!BV26,"") ->  | O127: =IF(B127<>"",'Calculs (M1..M20)'!A29,"") -> 1 | AH127: 0
B128: LAFARGE Pascal | C128: 17 | F128: 22 | G128: 1 | H128: 1 | K128: 0 | N128: =IF(B128<>"",'Classement Général'!BV27,"") ->  | O128: =IF(B128<>"",'Calculs (M1..M20)'!A30,"") ->  | AH128: 0
F129: 22 | G129: 1 | H129: 1 | N129: =IF(B129<>"",'Classement Général'!BV28,"") ->  | O129: =IF(B129<>"",'Calculs (M1..M20)'!A31,"") ->  | AH129: 0
F130: 22 | G130: 1 | H130: 1 | N130: =IF(B130<>"",'Classement Général'!BV29,"") ->  | O130: =IF(B130<>"",'Calculs (M1..M20)'!A32,"") ->  | AH130: 0
F131: 22 | G131: 1 | H131: 1 | N131: =IF(B131<>"",'Classement Général'!BV30,"") ->  | O131: =IF(B131<>"",'Calculs (M1..M20)'!A33,"") ->  | AH131: 0
B132: =IF(B31<>"",B31,"") ->  | F132: 22 | G132: 1 | H132: 1 | N132: =IF(B132<>"",'Classement Général'!BV31,"") ->  | O132: =IF(B132<>"",'Calculs (M1..M20)'!A34,"") ->  | AH132: 0
F133: 22 | G133: 1 | H133: 1 | N133: =IF(B133<>"",'Classement Général'!BV32,"") ->  | O133: =IF(B133<>"",'Calculs (M1..M20)'!A35,"") ->  | AH133: 0
F134: 22 | G134: 1 | H134: 1 | N134: =IF(B134<>"",'Classement Général'!BV33,"") ->  | O134: =IF(B134<>"",'Calculs (M1..M20)'!A36,"") ->  | AH134: 0
F135: 22 | G135: 1 | H135: 1 | N135: =IF(B135<>"",'Classement Général'!BV34,"") ->  | O135: =IF(B135<>"",'Calculs (M1..M20)'!A37,"") ->  | AH135: 0
F136: 22 | G136: 1 | H136: 1 | N136: =IF(B136<>"",'Classement Général'!BV35,"") ->  | O136: =IF(B136<>"",'Calculs (M1..M20)'!A38,"") ->  | AH136: 0
F137: 22 | G137: 1 | H137: 1 | N137: =IF(B137<>"",'Classement Général'!BV36,"") ->  | O137: =IF(B137<>"",'Calculs (M1..M20)'!A39,"") ->  | AH137: 0
F138: 22 | G138: 1 | H138: 1 | N138: =IF(B138<>"",'Classement Général'!BV37,"") ->  | O138: =IF(B138<>"",'Calculs (M1..M20)'!A40,"") ->  | AH138: 0
F139: 22 | G139: 1 | H139: 1 | N139: =IF(B139<>"",'Classement Général'!BV38,"") ->  | O139: =IF(B139<>"",'Calculs (M1..M20)'!A41,"") ->  | AH139: 0
F140: 22 | G140: 1 | H140: 1 | N140: =IF(B140<>"",'Classement Général'!BV39,"") ->  | O140: =IF(B140<>"",'Calculs (M1..M20)'!A42,"") ->  | AH140: 0
F141: 22 | G141: 1 | H141: 1 | N141: =IF(B141<>"",'Classement Général'!BV40,"") ->  | O141: =IF(B141<>"",'Calculs (M1..M20)'!A43,"") ->  | AH141: 0
F142: 22 | G142: 1 | H142: 1 | N142: =IF(B142<>"",'Classement Général'!BV41,"") ->  | O142: =IF(B142<>"",'Calculs (M1..M20)'!A44,"") ->  | AH142: 0
F143: 22 | G143: 1 | H143: 1 | N143: =IF(B143<>"",'Classement Général'!BV42,"") ->  | O143: =IF(B143<>"",'Calculs (M1..M20)'!A45,"") ->  | AH143: 0
F144: 22 | G144: =G43 -> 1 | H144: 1 | K144: =IF($B144<>"",IF(I144,(INDEX(P$112:Q$115,MATCH(H144,P$112:P$115),2)/I144)*1000,0),"") ->  | L144: =IF(Q$112<>"",IF($B144<>"",K144-$J144,""),"") ->  | M144: =IF(B144<>"",RANK(L144,L$112:L$211),"") ->  | N144: =IF(B144<>"",'Classement Général'!BV43,"") ->  | O144: =IF(B144<>"",'Calculs (M1..M20)'!A46,"") ->  | AH144: 0
F145: 22 | G145: 1 | H145: 1 | N145: =IF(B145<>"",'Classement Général'!BV44,"") ->  | O145: =IF(B145<>"",'Calculs (M1..M20)'!A47,"") ->  | AH145: 0
F146: 22 | G146: 1 | H146: 1 | N146: =IF(B146<>"",'Classement Général'!BV45,"") ->  | O146: =IF(B146<>"",'Calculs (M1..M20)'!A48,"") ->  | AH146: 0
F147: 22 | G147: 1 | H147: 1 | N147: =IF(B147<>"",'Classement Général'!BV46,"") ->  | O147: =IF(B147<>"",'Calculs (M1..M20)'!A49,"") ->  | AH147: 0
F148: 22 | G148: 1 | H148: 1 | N148: =IF(B148<>"",'Classement Général'!BV47,"") ->  | O148: =IF(B148<>"",'Calculs (M1..M20)'!A50,"") ->  | AH148: 0
F149: 22 | G149: 1 | H149: 1 | N149: =IF(B149<>"",'Classement Général'!BV48,"") ->  | O149: =IF(B149<>"",'Calculs (M1..M20)'!A51,"") ->  | AH149: 0
F150: 22 | G150: 1 | H150: 1 | N150: =IF(B150<>"",'Classement Général'!BV49,"") ->  | O150: =IF(B150<>"",'Calculs (M1..M20)'!A52,"") ->  | AH150: 0
F151: 22 | G151: 1 | H151: 1 | N151: =IF(B151<>"",'Classement Général'!BV50,"") ->  | O151: =IF(B151<>"",'Calculs (M1..M20)'!A53,"") ->  | AH151: 0
B152: =IF(B51<>"",B51,"") ->  | F152: 22 | G152: 1 | H152: 1 | N152: =IF(B152<>"",'Classement Général'!BV51,"") ->  | O152: =IF(B152<>"",'Calculs (M1..M20)'!A54,"") ->  | AH152: 0
F153: 22 | G153: 1 | H153: 1 | N153: =IF(B153<>"",'Classement Général'!BV52,"") ->  | O153: =IF(B153<>"",'Calculs (M1..M20)'!A55,"") ->  | AH153: 0
F154: 22 | G154: 1 | H154: 1 | N154: =IF(B154<>"",'Classement Général'!BV53,"") ->  | O154: =IF(B154<>"",'Calculs (M1..M20)'!A56,"") ->  | AH154: 0
F155: 22 | G155: 1 | H155: 1 | N155: =IF(B155<>"",'Classement Général'!BV54,"") ->  | O155: =IF(B155<>"",'Calculs (M1..M20)'!A57,"") ->  | AH155: 0
F156: 22 | G156: 1 | H156: 1 | N156: =IF(B156<>"",'Classement Général'!BV55,"") ->  | O156: =IF(B156<>"",'Calculs (M1..M20)'!A58,"") ->  | AH156: 0
F157: 22 | G157: 1 | H157: 1 | N157: =IF(B157<>"",'Classement Général'!BV56,"") ->  | O157: =IF(B157<>"",'Calculs (M1..M20)'!A59,"") ->  | AH157: 0
F158: 22 | G158: 1 | H158: 1 | N158: =IF(B158<>"",'Classement Général'!BV57,"") ->  | O158: =IF(B158<>"",'Calculs (M1..M20)'!A60,"") ->  | AH158: 0
F159: 22 | G159: 1 | H159: 1 | N159: =IF(B159<>"",'Classement Général'!BV58,"") ->  | O159: =IF(B159<>"",'Calculs (M1..M20)'!A61,"") ->  | AH159: 0
F160: 22 | G160: 1 | H160: 1 | N160: =IF(B160<>"",'Classement Général'!BV59,"") ->  | O160: =IF(B160<>"",'Calculs (M1..M20)'!A62,"") ->  | AH160: 0
F161: 22 | G161: 1 | H161: 1 | N161: =IF(B161<>"",'Classement Général'!BV60,"") ->  | O161: =IF(B161<>"",'Calculs (M1..M20)'!A63,"") ->  | AH161: 0
F162: 22 | G162: 1 | H162: 1 | N162: =IF(B162<>"",'Classement Général'!BV61,"") ->  | O162: =IF(B162<>"",'Calculs (M1..M20)'!A64,"") ->  | AH162: 0
F163: 22 | G163: 1 | H163: 1 | N163: =IF(B163<>"",'Classement Général'!BV62,"") ->  | O163: =IF(B163<>"",'Calculs (M1..M20)'!A65,"") ->  | AH163: 0
F164: 22 | G164: 1 | H164: 1 | N164: =IF(B164<>"",'Classement Général'!BV63,"") ->  | O164: =IF(B164<>"",'Calculs (M1..M20)'!A66,"") ->  | AH164: 0
F165: 22 | G165: 1 | H165: 1 | N165: =IF(B165<>"",'Classement Général'!BV64,"") ->  | O165: =IF(B165<>"",'Calculs (M1..M20)'!A67,"") ->  | AH165: 0
F166: 22 | G166: 1 | H166: 1 | N166: =IF(B166<>"",'Classement Général'!BV65,"") ->  | O166: =IF(B166<>"",'Calculs (M1..M20)'!A68,"") ->  | AH166: 0
F167: 22 | G167: 1 | H167: 1 | N167: =IF(B167<>"",'Classement Général'!BV66,"") ->  | O167: =IF(B167<>"",'Calculs (M1..M20)'!A69,"") ->  | AH167: 0
F168: 22 | G168: 1 | H168: 1 | N168: =IF(B168<>"",'Classement Général'!BV67,"") ->  | O168: =IF(B168<>"",'Calculs (M1..M20)'!A70,"") ->  | AH168: 0
F169: 22 | G169: 0 | H169: 0 | N169: =IF(B169<>"",'Classement Général'!BV68,"") ->  | O169: =IF(B169<>"",'Calculs (M1..M20)'!A71,"") ->  | AH169: 0
F170: 22 | G170: 0 | H170: 0 | N170: =IF(B170<>"",'Classement Général'!BV69,"") ->  | O170: =IF(B170<>"",'Calculs (M1..M20)'!A72,"") ->  | AH170: 0
F171: 22 | G171: 0 | H171: 0 | N171: =IF(B171<>"",'Classement Général'!BV70,"") ->  | O171: =IF(B171<>"",'Calculs (M1..M20)'!A73,"") ->  | AH171: 0
B172: =IF(B71<>"",B71,"") ->  | F172: 22 | G172: 0 | H172: 0 | N172: =IF(B172<>"",'Classement Général'!BV71,"") ->  | O172: =IF(B172<>"",'Calculs (M1..M20)'!A74,"") ->  | AH172: 0
F173: 22 | G173: 0 | H173: 0 | N173: =IF(B173<>"",'Classement Général'!BV72,"") ->  | O173: =IF(B173<>"",'Calculs (M1..M20)'!A75,"") ->  | AH173: 0
F174: 22 | G174: 0 | H174: 0 | N174: =IF(B174<>"",'Classement Général'!BV73,"") ->  | O174: =IF(B174<>"",'Calculs (M1..M20)'!A76,"") ->  | AH174: 0
F175: 22 | G175: 0 | H175: 0 | N175: =IF(B175<>"",'Classement Général'!BV74,"") ->  | O175: =IF(B175<>"",'Calculs (M1..M20)'!A77,"") ->  | AH175: 0
F176: 22 | G176: =G75 -> 0 | H176: 0 | K176: =IF($B176<>"",IF(I176,(INDEX(P$112:Q$115,MATCH(H176,P$112:P$115),2)/I176)*1000,0),"") ->  | L176: =IF(Q$112<>"",IF($B176<>"",K176-$J176,""),"") ->  | M176: =IF(B176<>"",RANK(L176,L$112:L$211),"") ->  | N176: =IF(B176<>"",'Classement Général'!BV75,"") ->  | O176: =IF(B176<>"",'Calculs (M1..M20)'!A78,"") ->  | AH176: 0
F177: 22 | G177: 0 | H177: =IF($G177<>"",G177,"") -> 0 | N177: =IF(B177<>"",'Classement Général'!BV76,"") ->  | O177: =IF(B177<>"",'Calculs (M1..M20)'!A79,"") ->  | AH177: =IF($G177<>"",AG177,"") -> 0
F178: 22 | G178: 0 | H178: 0 | N178: =IF(B178<>"",'Classement Général'!BV77,"") ->  | O178: =IF(B178<>"",'Calculs (M1..M20)'!A80,"") ->  | AH178: 0
F179: 22 | G179: 0 | H179: 0 | N179: =IF(B179<>"",'Classement Général'!BV78,"") ->  | O179: =IF(B179<>"",'Calculs (M1..M20)'!A81,"") ->  | AH179: 0
F180: 22 | G180: 0 | H180: 0 | N180: =IF(B180<>"",'Classement Général'!BV79,"") ->  | O180: =IF(B180<>"",'Calculs (M1..M20)'!A82,"") ->  | AH180: 0
F181: 22 | G181: 0 | H181: 0 | N181: =IF(B181<>"",'Classement Général'!BV80,"") ->  | O181: =IF(B181<>"",'Calculs (M1..M20)'!A83,"") ->  | AH181: 0
F182: 22 | G182: 0 | H182: 0 | N182: =IF(B182<>"",'Classement Général'!BV81,"") ->  | O182: =IF(B182<>"",'Calculs (M1..M20)'!A84,"") ->  | AH182: 0
F183: 22 | G183: 0 | H183: 0 | N183: =IF(B183<>"",'Classement Général'!BV82,"") ->  | O183: =IF(B183<>"",'Calculs (M1..M20)'!A85,"") ->  | AH183: 0
F184: 22 | G184: 0 | H184: 0 | N184: =IF(B184<>"",'Classement Général'!BV83,"") ->  | O184: =IF(B184<>"",'Calculs (M1..M20)'!A86,"") ->  | AH184: 0
F185: 22 | G185: 0 | H185: 0 | N185: =IF(B185<>"",'Classement Général'!BV84,"") ->  | O185: =IF(B185<>"",'Calculs (M1..M20)'!A87,"") ->  | AH185: 0
F186: 22 | G186: 0 | H186: 0 | N186: =IF(B186<>"",'Classement Général'!BV85,"") ->  | O186: =IF(B186<>"",'Calculs (M1..M20)'!A88,"") ->  | AH186: 0
F187: 22 | G187: 0 | H187: 0 | N187: =IF(B187<>"",'Classement Général'!BV86,"") ->  | O187: =IF(B187<>"",'Calculs (M1..M20)'!A89,"") ->  | AH187: 0
F188: 22 | G188: 0 | H188: 0 | N188: =IF(B188<>"",'Classement Général'!BV87,"") ->  | O188: =IF(B188<>"",'Calculs (M1..M20)'!A90,"") ->  | AH188: 0
F189: 22 | G189: 0 | H189: 0 | N189: =IF(B189<>"",'Classement Général'!BV88,"") ->  | O189: =IF(B189<>"",'Calculs (M1..M20)'!A91,"") ->  | AH189: 0
F190: 22 | G190: 0 | H190: 0 | N190: =IF(B190<>"",'Classement Général'!BV89,"") ->  | O190: =IF(B190<>"",'Calculs (M1..M20)'!A92,"") ->  | AH190: 0
F191: 22 | G191: 0 | H191: 0 | N191: =IF(B191<>"",'Classement Général'!BV90,"") ->  | O191: =IF(B191<>"",'Calculs (M1..M20)'!A93,"") ->  | AH191: 0
B192: =IF(B91<>"",B91,"") ->  | F192: 22 | G192: 0 | H192: 0 | N192: =IF(B192<>"",'Classement Général'!BV91,"") ->  | O192: =IF(B192<>"",'Calculs (M1..M20)'!A94,"") ->  | AH192: 0
F193: 22 | G193: 0 | H193: 0 | N193: =IF(B193<>"",'Classement Général'!BV92,"") ->  | O193: =IF(B193<>"",'Calculs (M1..M20)'!A95,"") ->  | AH193: 0
F194: 22 | G194: 0 | H194: 0 | N194: =IF(B194<>"",'Classement Général'!BV93,"") ->  | O194: =IF(B194<>"",'Calculs (M1..M20)'!A96,"") ->  | AH194: 0
F195: 22 | G195: 0 | H195: 0 | N195: =IF(B195<>"",'Classement Général'!BV94,"") ->  | O195: =IF(B195<>"",'Calculs (M1..M20)'!A97,"") ->  | AH195: 0
F196: 22 | G196: 0 | H196: 0 | N196: =IF(B196<>"",'Classement Général'!BV95,"") ->  | O196: =IF(B196<>"",'Calculs (M1..M20)'!A98,"") ->  | AH196: 0
F197: 22 | G197: 0 | H197: 0 | N197: =IF(B197<>"",'Classement Général'!BV96,"") ->  | O197: =IF(B197<>"",'Calculs (M1..M20)'!A99,"") ->  | AH197: 0
F198: 22 | G198: 0 | H198: 0 | N198: =IF(B198<>"",'Classement Général'!BV97,"") ->  | O198: =IF(B198<>"",'Calculs (M1..M20)'!A100,"") ->  | AH198: 0
F199: 22 | G199: 0 | H199: 0 | N199: =IF(B199<>"",'Classement Général'!BV98,"") ->  | O199: =IF(B199<>"",'Calculs (M1..M20)'!A101,"") ->  | AH199: 0
F200: 22 | G200: 0 | H200: 0 | N200: =IF(B200<>"",'Classement Général'!BV99,"") ->  | O200: =IF(B200<>"",'Calculs (M1..M20)'!A102,"") ->  | AH200: 0
... 1830 more rows

Sheet Classement Général
B1: F3F - Classement évolutif | W1: Classement trié par dossard >>>>>>>>
B2: CLUB : | C2: =Pilotes!C2 -> CMR Rodez
B3: LIEU : | C3: =Pilotes!C3 -> Panat | AV3: Classement trié par dossard, pour copier/coller des classements intermédiaires
B4: DATE : | C4: =Pilotes!C4 -> 30 et 31 Mars 2019
B10: Général | C10: Points | D10: FAI / 1000 | E10: Pilote | F10: Dossard | G10: 1 | H10: 2 | I10: 3 | J10: 4 | K10: 5 | L10: 6 | M10: 7 | N10: 8 | O10: 9 | P10: 10 | Q10: 11 | R10: 12 | S10: 13 | T10: 14 | U10: 15 | V10: 16 | W10: 17 | X10: 18 | Y10: 19 | Z10: 20 | AA10: 21 | AB10: 22 | AC10: 23 | AD10: 24 | AE10: 25 | AF10: 26 | AG10: 27 | AH10: 28 | AI10: 29 | AJ10: 30 | AK10: 31 | AL10: 32 | AM10: 33 | AN10: 34 | AO10: 35 | AP10: 36 | AQ10: 37 | AR10: 38 | AS10: 39 | AT10: 40 | AV10: Général | AW10: Points | AX10: FAI / 1000 | AY10: Pilote | AZ10: Dossard | BA10: M1 | BB10: M2 | BC10: M3 | BD10: M4 | BE10: M5 | BF10: M6 | BG10: M7 | BH10: M8 | BI10: M9 | BJ10: M10 | BK10: M11 | BL10: M12 | BM10: M13 | BN10: M14 | BO10: M15 | BP10: M16 | BQ10: M17 | BR10: M18 | BS10: M19 | BT10: M20 | BU10: M21 | BV10: M22 | BW10: M23 | BX10: M24 | BY10: M25 | BZ10: M26 | CA10: M27 | CB10: M28 | CC10: M29 | CD10: M30 | CE10: M31 | CF10: M32 | CG10: M33 | CH10: M34 | CI10: M35 | CJ10: M36 | CK10: M37 | CL10: M38 | CM10: M39 | CN10: M40
B11: 1 | C11: =IF(ISNA(VLOOKUP(B11,ClassEvo,2,0)),"",VLOOKUP(B11,ClassEvo,2,0)) -> 15811.8966 | D11: =IF(ISNA(VLOOKUP($B11,ClassEvo,3,0)),"",VLOOKUP($B11,ClassEvo,3,0)) -> 1000 | E11: =IF(ISNA(VLOOKUP($B11,ClassEvo,4,0)),"",VLOOKUP($B11,ClassEvo,4,0)) -> GABANON Aubry | F11: =IF(ISNA(VLOOKUP($B11,ClassEvo,5,0)),"",VLOOKUP($B11,ClassEvo,5,0)) -> 16 | G11: =IF(ISNA(VLOOKUP($B11,ClassEvo,5+G$10,0)),"",VLOOKUP($B11,ClassEvo,5+G$10,0)) -> 2 | H11: 5 | I11: 6 | J11: 2 | K11: 1 | L11: 1 | M11: 1 | N11: 1 | O11: 1 | P11: 1 | Q11: =IF(ISNA(VLOOKUP($B11,ClassEvo,5+Q$10,0)),"",VLOOKUP($B11,ClassEvo,5+Q$10,0)) -> 1 | R11: 1 | S11: 1 | T11: 1 | U11: 1 | V11: 1 | W11: 1 | X11: 1 | Y11: 1 | AA11: =IF(ISNA(VLOOKUP($B11,ClassEvo,5+AA$10,0)),"",VLOOKUP($B11,ClassEvo,5+AA$10,0)) ->  | AK11: =IF(ISNA(VLOOKUP($B11,ClassEvo,5+AK$10,0)),"",VLOOKUP($B11,ClassEvo,5+AK$10,0)) ->  | AV11: ='Calculs (M21..M40)'!A14 -> 11 | AW11: ='Calculs (M21..M40)'!G14 -> 14082.53501 | AX11: ='Calculs (M21..M40)'!H14 -> 890.6290859 | AY11: ='Calculs (M21..M40)'!I14 -> FOUCHER Jean-Luc | AZ11: ='Calculs (M21..M40)'!C14 -> 1 | BA11: ='Calculs (M1..M20)'!GM14 -> 11 | BB11: ='Calculs (M1..M20)'!GN14 -> 11 | BC11: ='Calculs (M1..M20)'!GO14 -> 11 | BD11: ='Calculs (M1..M20)'!GP14 -> 12 | BE11: ='Calculs (M1..M20)'!GQ14 -> 12 | BF11: ='Calculs (M1..M20)'!GR14 -> 12 | BG11: ='Calculs (M1..M20)'!GS14 -> 12 | BH11: ='Calculs (M1..M20)'!GT14 -> 11 | BI11: ='Calculs (M1..M20)'!GU14 -> 8 | BJ11: ='Calculs (M1..M20)'!GV14 -> 10 | BK11: ='Calculs (M1..M20)'!GW14 -> 10 | BL11: ='Calculs (M1..M20)'!GX14 -> 10 | BM11: ='Calculs (M1..M20)'!GY14 -> 11 | BN11: ='Calculs (M1..M20)'!GZ14 -> 11 | BO11: ='Calculs (M1..M20)'!HA14 -> 11 | BP11: ='Calculs (M1..M20)'!HB14 -> 11 | BQ11: ='Calculs (M1..M20)'!HC14 -> 11 | BR11: ='Calculs (M1..M20)'!HD14 -> 11 | BS11: ='Calculs (M1..M20)'!HE14 -> 11 | BT11: ='Calculs (M1..M20)'!HF14 ->  | BU11: ='Calculs (M21..M40)'!GM14 ->  | BV11: ='Calculs (M21..M40)'!GN14 ->  | BW11: ='Calculs (M21..M40)'!GO14 ->  | BX11: ='Calculs (M21..M40)'!GP14 ->  | BY11: ='Calculs (M21..M40)'!GQ14 ->  | BZ11: ='Calculs (M21..M40)'!GR14 ->  | CA11: ='Calculs (M21..M40)'!GS14 ->  | CB11: ='Calculs (M21..M40)'!GT14 ->  | CC11: ='Calculs (M21..M40)'!GU14 ->  | CD11: ='Calculs (M21..M40)'!GV14 ->  | CE11: ='Calculs (M21..M40)'!GW14 ->  | CF11: ='Calculs (M21..M40)'!GX14 ->  | CG11: ='Calculs (M21..M40)'!GY14 ->  | CH11: ='Calculs (M21..M40)'!GZ14 ->  | CI11: ='Calculs (M21..M40)'!HA14 ->  | CJ11: ='Calculs (M21..M40)'!HB14 ->  | CK11: ='Calculs (M21..M40)'!HC14 ->  | CL11: ='Calculs (M21..M40)'!HD14 ->  | CM11: ='Calculs (M21..M40)'!HE14 ->  | CN11: ='Calculs (M21..M40)'!HF14 -> 
B12: 2 | C12: 15533.10178 | D12: 982.3680344 | E12: LANES Sébastien | F12: 5 | G12: 5 | H12: 1 | I12: 1 | J12: 1 | K12: 2 | L12: 3 | M12: 5 | N12: 5 | O12: 5 | P12: 3 | Q12: 3 | R12: 2 | S12: 2 | T12: 2 | U12: 3 | V12: 2 | W12: 2 | X12: 2 | Y12: 2 | AV12: ='Calculs (M21..M40)'!A15 -> 14 | AW12: ='Calculs (M21..M40)'!G15 -> 13280.18901 | AX12: ='Calculs (M21..M40)'!H15 -> 839.8859006 | AY12: ='Calculs (M21..M40)'!I15 -> DOUSSAUD Alexandre | AZ12: ='Calculs (M21..M40)'!C15 -> 2 | BA12: ='Calculs (M1..M20)'!GM15 -> 12 | BB12: ='Calculs (M1..M20)'!GN15 -> 14 | BC12: ='Calculs (M1..M20)'!GO15 -> 14 | BD12: ='Calculs (M1..M20)'!GP15 -> 14 | BE12: ='Calculs (M1..M20)'!GQ15 -> 14 | BF12: ='Calculs (M1..M20)'!GR15 -> 14 | BG12: ='Calculs (M1..M20)'!GS15 -> 14 | BH12: ='Calculs (M1..M20)'!GT15 -> 14 | BI12: ='Calculs (M1..M20)'!GU15 -> 14 | BJ12: ='Calculs (M1..M20)'!GV15 -> 13 | BK12: ='Calculs (M1..M20)'!GW15 -> 14 | BL12: ='Calculs (M1..M20)'!GX15 -> 13 | BM12: ='Calculs (M1..M20)'!GY15 -> 14 | BN12: ='Calculs (M1..M20)'!GZ15 -> 14 | BO12: ='Calculs (M1..M20)'!HA15 -> 14 | BP12: ='Calculs (M1..M20)'!HB15 -> 14 | BQ12: ='Calculs (M1..M20)'!HC15 -> 14 | BR12: ='Calculs (M1..M20)'!HD15 -> 14 | BS12: ='Calculs (M1..M20)'!HE15 -> 14 | BT12: ='Calculs (M1..M20)'!HF15 ->  | BU12: ='Calculs (M21..M40)'!GM15 ->  | BV12: ='Calculs (M21..M40)'!GN15 ->  | BW12: ='Calculs (M21..M40)'!GO15 ->  | BX12: ='Calculs (M21..M40)'!GP15 ->  | BY12: ='Calculs (M21..M40)'!GQ15 ->  | BZ12: ='Calculs (M21..M40)'!GR15 ->  | CA12: ='Calculs (M21..M40)'!GS15 ->  | CB12: ='Calculs (M21..M40)'!GT15 ->  | CC12: ='Calculs (M21..M40)'!GU15 ->  | CD12: ='Calculs (M21..M40)'!GV15 ->  | CE12: ='Calculs (M21..M40)'!GW15 ->  | CF12: ='Calculs (M21..M40)'!GX15 ->  | CG12: ='Calculs (M21..M40)'!GY15 ->  | CH12: ='Calculs (M21..M40)'!GZ15 ->  | CI12: ='Calculs (M21..M40)'!HA15 ->  | CJ12: ='Calculs (M21..M40)'!HB15 ->  | CK12: ='Calculs (M21..M40)'!HC15 ->  | CL12: ='Calculs (M21..M40)'!HD15 ->  | CM12: ='Calculs (M21..M40)'!HE15 ->  | CN12: ='Calculs (M21..M40)'!HF15 -> 
B13: 3 | C13: 15435.34016 | D13: 976.1852454 | E13: FRICKE Andreas | F13: 8 | G13: 3 | H13: 2 | I13: 2 | J13: 3 | K13: 3 | L13: 2 | M13: 2 | N13: 3 | O13: 3 | P13: 4 | Q13: 2 | R13: 3 | S13: 3 | T13: 3 | U13: 2 | V13: 3 | W13: 3 | X13: 3 | Y13: 3 | AV13: ='Calculs (M21..M40)'!A16 -> 8 | AW13: ='Calculs (M21..M40)'!G16 -> 14658.0059 | AX13: ='Calculs (M21..M40)'!H16 -> 927.0238909 | AY13: ='Calculs (M21..M40)'!I16 -> BRAHIER Mickael | AZ13: ='Calculs (M21..M40)'!C16 -> 3 | BA13: ='Calculs (M1..M20)'!GM16 -> 1 | BB13: ='Calculs (M1..M20)'!GN16 -> 4 | BC13: ='Calculs (M1..M20)'!GO16 -> 4 | BD13: ='Calculs (M1..M20)'!GP16 -> 4 | BE13: ='Calculs (M1..M20)'!GQ16 -> 7 | BF13: ='Calculs (M1..M20)'!GR16 -> 7 | BG13: ='Calculs (M1..M20)'!GS16 -> 7 | BH13: ='Calculs (M1..M20)'!GT16 -> 7 | BI13: ='Calculs (M1..M20)'!GU16 -> 11 | BJ13: ='Calculs (M1..M20)'!GV16 -> 7 | BK13: ='Calculs (M1..M20)'!GW16 -> 9 | BL13: ='Calculs (M1..M20)'!GX16 -> 9 | BM13: ='Calculs (M1..M20)'!GY16 -> 9 | BN13: ='Calculs (M1..M20)'!GZ16 -> 9 | BO13: ='Calculs (M1..M20)'!HA16 -> 10 | BP13: ='Calculs (M1..M20)'!HB16 -> 8 | BQ13: ='Calculs (M1..M20)'!HC16 -> 8 | BR13: ='Calculs (M1..M20)'!HD16 -> 8 | BS13: ='Calculs (M1..M20)'!HE16 -> 8 | BT13: ='Calculs (M1..M20)'!HF16 ->  | BU13: ='Calculs (M21..M40)'!GM16 ->  | BV13: ='Calculs (M21..M40)'!GN16 ->  | BW13: ='Calculs (M21..M40)'!GO16 ->  | BX13: ='Calculs (M21..M40)'!GP16 ->  | BY13: ='Calculs (M21..M40)'!GQ16 ->  | BZ13: ='Calculs (M21..M40)'!GR16 ->  | CA13: ='Calculs (M21..M40)'!GS16 ->  | CB13: ='Calculs (M21..M40)'!GT16 ->  | CC13: ='Calculs (M21..M40)'!GU16 ->  | CD13: ='Calculs (M21..M40)'!GV16 ->  | CE13: ='Calculs (M21..M40)'!GW16 ->  | CF13: ='Calculs (M21..M40)'!GX16 ->  | CG13: ='Calculs (M21..M40)'!GY16 ->  | CH13: ='Calculs (M21..M40)'!GZ16 ->  | CI13: ='Calculs (M21..M40)'!HA16 ->  | CJ13: ='Calculs (M21..M40)'!HB16 ->  | CK13: ='Calculs (M21..M40)'!HC16 ->  | CL13: ='Calculs (M21..M40)'!HD16 ->  | CM13: ='Calculs (M21..M40)'!HE16 ->  | CN13: ='Calculs (M21..M40)'!HF16 -> 
B14: 4 | C14: 15125.89255 | D14: 956.6146891 | E14: DEGUELLE J-Bastien | F14: 10 | G14: 8 | H14: 10 | I14: 8 | J14: 7 | K14: 8 | L14: 8 | M14: 9 | N14: 10 | O14: 7 | P14: 8 | Q14: 6 | R14: 6 | S14: 6 | T14: 6 | U14: 6 | V14: 7 | W14: 5 | X14: 5 | Y14: 4 | AV14: ='Calculs (M21..M40)'!A17 -> 10 | AW14: ='Calculs (M21..M40)'!G17 -> 14244.93311 | AX14: ='Calculs (M21..M40)'!H17 -> 900.8997135 | AY14: ='Calculs (M21..M40)'!I17 -> DELARBRE Serge | AZ14: ='Calculs (M21..M40)'!C17 -> 4 | BA14: ='Calculs (M1..M20)'!GM17 -> 9 | BB14: ='Calculs (M1..M20)'!GN17 -> 9 | BC14: ='Calculs (M1..M20)'!GO17 -> 10 | BD14: ='Calculs (M1..M20)'!GP17 -> 10 | BE14: ='Calculs (M1..M20)'!GQ17 -> 11 | BF14: ='Calculs (M1..M20)'!GR17 -> 11 | BG14: ='Calculs (M1..M20)'!GS17 -> 10 | BH14: ='Calculs (M1..M20)'!GT17 -> 9 | BI14: ='Calculs (M1..M20)'!GU17 -> 9 | BJ14: ='Calculs (M1..M20)'!GV17 -> 9 | BK14: ='Calculs (M1..M20)'!GW17 -> 8 | BL14: ='Calculs (M1..M20)'!GX17 -> 7 | BM14: ='Calculs (M1..M20)'!GY17 -> 7 | BN14: ='Calculs (M1..M20)'!GZ17 -> 8 | BO14: ='Calculs (M1..M20)'!HA17 -> 9 | BP14: ='Calculs (M1..M20)'!HB17 -> 9 | BQ14: ='Calculs (M1..M20)'!HC17 -> 10 | BR14: ='Calculs (M1..M20)'!HD17 -> 10 | BS14: ='Calculs (M1..M20)'!HE17 -> 10 | BT14: ='Calculs (M1..M20)'!HF17 ->  | BU14: ='Calculs (M21..M40)'!GM17 ->  | BV14: ='Calculs (M21..M40)'!GN17 ->  | BW14: ='Calculs (M21..M40)'!GO17 ->  | BX14: ='Calculs (M21..M40)'!GP17 ->  | BY14: ='Calculs (M21..M40)'!GQ17 ->  | BZ14: ='Calculs (M21..M40)'!GR17 ->  | CA14: ='Calculs (M21..M40)'!GS17 ->  | CB14: ='Calculs (M21..M40)'!GT17 ->  | CC14: ='Calculs (M21..M40)'!GU17 ->  | CD14: ='Calculs (M21..M40)'!GV17 ->  | CE14: ='Calculs (M21..M40)'!GW17 ->  | CF14: ='Calculs (M21..M40)'!GX17 ->  | CG14: ='Calculs (M21..M40)'!GY17 ->  | CH14: ='Calculs (M21..M40)'!GZ17 ->  | CI14: ='Calculs (M21..M40)'!HA17 ->  | CJ14: ='Calculs (M21..M40)'!HB17 ->  | CK14: ='Calculs (M21..M40)'!HC17 ->  | CL14: ='Calculs (M21..M40)'!HD17 ->  | CM14: ='Calculs (M21..M40)'!HE17 ->  | CN14: ='Calculs (M21..M40)'!HF17 -> 
B15: 5 | C15: 15105.15351 | D15: 955.3030794 | E15: LANES Philippe | F15: 15 | G15: 4 | H15: 3 | I15: 5 | J15: 5 | K15: 5 | L15: 4 | M15: 4 | N15: 4 | O15: 4 | P15: 5 | Q15: 5 | R15: 5 | S15: 5 | T15: 4 | U15: 4 | V15: 4 | W15: 4 | X15: 4 | Y15: 5 | AV15: ='Calculs (M21..M40)'!A18 -> 2 | AW15: ='Calculs (M21..M40)'!G18 -> 15533.10178 | AX15: ='Calculs (M21..M40)'!H18 -> 982.3680344 | AY15: ='Calculs (M21..M40)'!I18 -> LANES Sébastien | AZ15: ='Calculs (M21..M40)'!C18 -> 5 | BA15: ='Calculs (M1..M20)'!GM18 -> 5 | BB15: ='Calculs (M1..M20)'!GN18 -> 1 | BC15: ='Calculs (M1..M20)'!GO18 -> 1 | BD15: ='Calculs (M1..M20)'!GP18 -> 1 | BE15: ='Calculs (M1..M20)'!GQ18 -> 2 | BF15: ='Calculs (M1..M20)'!GR18 -> 3 | BG15: ='Calculs (M1..M20)'!GS18 -> 5 | BH15: ='Calculs (M1..M20)'!GT18 -> 5 | BI15: ='Calculs (M1..M20)'!GU18 -> 5 | BJ15: ='Calculs (M1..M20)'!GV18 -> 3 | BK15: ='Calculs (M1..M20)'!GW18 -> 3 | BL15: ='Calculs (M1..M20)'!GX18 -> 2 | BM15: ='Calculs (M1..M20)'!GY18 -> 2 | BN15: ='Calculs (M1..M20)'!GZ18 -> 2 | BO15: ='Calculs (M1..M20)'!HA18 -> 3 | BP15: ='Calculs (M1..M20)'!HB18 -> 2 | BQ15: ='Calculs (M1..M20)'!HC18 -> 2 | BR15: ='Calculs (M1..M20)'!HD18 -> 2 | BS15: ='Calculs (M1..M20)'!HE18 -> 2 | BT15: ='Calculs (M1..M20)'!HF18 ->  | BU15: ='Calculs (M21..M40)'!GM18 ->  | BV15: ='Calculs (M21..M40)'!GN18 ->  | BW15: ='Calculs (M21..M40)'!GO18 ->  | BX15: ='Calculs (M21..M40)'!GP18 ->  | BY15: ='Calculs (M21..M40)'!GQ18 ->  | BZ15: ='Calculs (M21..M40)'!GR18 ->  | CA15: ='Calculs (M21..M40)'!GS18 ->  | CB15: ='Calculs (M21..M40)'!GT18 ->  | CC15: ='Calculs (M21..M40)'!GU18 ->  | CD15: ='Calculs (M21..M40)'!GV18 ->  | CE15: ='Calculs (M21..M40)'!GW18 ->  | CF15: ='Calculs (M21..M40)'!GX18 ->  | CG15: ='Calculs (M21..M40)'!GY18 ->  | CH15: ='Calculs (M21..M40)'!GZ18 ->  | CI15: ='Calculs (M21..M40)'!HA18 ->  | CJ15: ='Calculs (M21..M40)'!HB18 ->  | CK15: ='Calculs (M21..M40)'!HC18 ->  | CL15: ='Calculs (M21..M40)'!HD18 ->  | CM15: ='Calculs (M21..M40)'!HE18 ->  | CN15: ='Calculs (M21..M40)'!HF18 -> 
B16: 6 | C16: 14932.97431 | D16: 944.4138606 | E16: DIATTA Pierre | F16: 7 | G16: 10 | H16: 6 | I16: 9 | J16: 9 | K16: 6 | L16: 6 | M16: 6 | N16: 6 | O16: 6 | P16: 6 | Q16: 7 | R16: 8 | S16: 8 | T16: 7 | U16: 7 | V16: 6 | W16: 7 | X16: 6 | Y16: 6 | AV16: ='Calculs (M21..M40)'!A19 -> 13 | AW16: ='Calculs (M21..M40)'!G19 -> 13310.2666 | AX16: ='Calculs (M21..M40)'!H19 -> 841.788113 | AY16: ='Calculs (M21..M40)'!I19 -> CHABAUD Sébastien | AZ16: ='Calculs (M21..M40)'!C19 -> 6 | BA16: ='Calculs (M1..M20)'!GM19 -> 13 | BB16: ='Calculs (M1..M20)'!GN19 -> 13 | BC16: ='Calculs (M1..M20)'!GO19 -> 13 | BD16: ='Calculs (M1..M20)'!GP19 -> 13 | BE16: ='Calculs (M1..M20)'!GQ19 -> 13 | BF16: ='Calculs (M1..M20)'!GR19 -> 13 | BG16: ='Calculs (M1..M20)'!GS19 -> 13 | BH16: ='Calculs (M1..M20)'!GT19 -> 13 | BI16: ='Calculs (M1..M20)'!GU19 -> 13 | BJ16: ='Calculs (M1..M20)'!GV19 -> 14 | BK16: ='Calculs (M1..M20)'!GW19 -> 13 | BL16: ='Calculs (M1..M20)'!GX19 -> 14 | BM16: ='Calculs (M1..M20)'!GY19 -> 13 | BN16: ='Calculs (M1..M20)'!GZ19 -> 13 | BO16: ='Calculs (M1..M20)'!HA19 -> 13 | BP16: ='Calculs (M1..M20)'!HB19 -> 13 | BQ16: ='Calculs (M1..M20)'!HC19 -> 13 | BR16: ='Calculs (M1..M20)'!HD19 -> 13 | BS16: ='Calculs (M1..M20)'!HE19 -> 13 | BT16: ='Calculs (M1..M20)'!HF19 ->  | BU16: ='Calculs (M21..M40)'!GM19 ->  | BV16: ='Calculs (M21..M40)'!GN19 ->  | BW16: ='Calculs (M21..M40)'!GO19 ->  | BX16: ='Calculs (M21..M40)'!GP19 ->  | BY16: ='Calculs (M21..M40)'!GQ19 ->  | BZ16: ='Calculs (M21..M40)'!GR19 ->  | CA16: ='Calculs (M21..M40)'!GS19 ->  | CB16: ='Calculs (M21..M40)'!GT19 ->  | CC16: ='Calculs (M21..M40)'!GU19 ->  | CD16: ='Calculs (M21..M40)'!GV19 ->  | CE16: ='Calculs (M21..M40)'!GW19 ->  | CF16: ='Calculs (M21..M40)'!GX19 ->  | CG16: ='Calculs (M21..M40)'!GY19 ->  | CH16: ='Calculs (M21..M40)'!GZ19 ->  | CI16: ='Calculs (M21..M40)'!HA19 ->  | CJ16: ='Calculs (M21..M40)'!HB19 ->  | CK16: ='Calculs (M21..M40)'!HC19 ->  | CL16: ='Calculs (M21..M40)'!HD19 ->  | CM16: ='Calculs (M21..M40)'!HE19 ->  | CN16: ='Calculs (M21..M40)'!HF19 -> 
B17: 7 | C17: 14684.38868 | D17: 928.6924307 | E17: DAL HAVA Herve | F17: 14 | G17: 6 | H17: 8 | I17: 3 | J17: 6 | K17: 4 | L17: 5 | M17: 3 | N17: 2 | O17: 2 | P17: 2 | Q17: 4 | R17: 4 | S17: 4 | T17: 5 | U17: 5 | V17: 5 | W17: 6 | X17: 7 | Y17: 7 | AV17: ='Calculs (M21..M40)'!A20 -> 6 | AW17: ='Calculs (M21..M40)'!G20 -> 14932.97431 | AX17: ='Calculs (M21..M40)'!H20 -> 944.4138606 | AY17: ='Calculs (M21..M40)'!I20 -> DIATTA Pierre | AZ17: ='Calculs (M21..M40)'!C20 -> 7 | BA17: ='Calculs (M1..M20)'!GM20 -> 10 | BB17: ='Calculs (M1..M20)'!GN20 -> 6 | BC17: ='Calculs (M1..M20)'!GO20 -> 9 | BD17: ='Calculs (M1..M20)'!GP20 -> 9 | BE17: ='Calculs (M1..M20)'!GQ20 -> 6 | BF17: ='Calculs (M1..M20)'!GR20 -> 6 | BG17: ='Calculs (M1..M20)'!GS20 -> 6 | BH17: ='Calculs (M1..M20)'!GT20 -> 6 | BI17: ='Calculs (M1..M20)'!GU20 -> 6 | BJ17: ='Calculs (M1..M20)'!GV20 -> 6 | BK17: ='Calculs (M1..M20)'!GW20 -> 7 | BL17: ='Calculs (M1..M20)'!GX20 -> 8 | BM17: ='Calculs (M1..M20)'!GY20 -> 8 | BN17: ='Calculs (M1..M20)'!GZ20 -> 7 | BO17: ='Calculs (M1..M20)'!HA20 -> 7 | BP17: ='Calculs (M1..M20)'!HB20 -> 6 | BQ17: ='Calculs (M1..M20)'!HC20 -> 7 | BR17: ='Calculs (M1..M20)'!HD20 -> 6 | BS17: ='Calculs (M1..M20)'!HE20 -> 6 | BT17: ='Calculs (M1..M20)'!HF20 ->  | BU17: ='Calculs (M21..M40)'!GM20 ->  | BV17: ='Calculs (M21..M40)'!GN20 ->  | BW17: ='Calculs (M21..M40)'!GO20 ->  | BX17: ='Calculs (M21..M40)'!GP20 ->  | BY17: ='Calculs (M21..M40)'!GQ20 ->  | BZ17: ='Calculs (M21..M40)'!GR20 ->  | CA17: ='Calculs (M21..M40)'!GS20 ->  | CB17: ='Calculs (M21..M40)'!GT20 ->  | CC17: ='Calculs (M21..M40)'!GU20 ->  | CD17: ='Calculs (M21..M40)'!GV20 ->  | CE17: ='Calculs (M21..M40)'!GW20 ->  | CF17: ='Calculs (M21..M40)'!GX20 ->  | CG17: ='Calculs (M21..M40)'!GY20 ->  | CH17: ='Calculs (M21..M40)'!GZ20 ->  | CI17: ='Calculs (M21..M40)'!HA20 ->  | CJ17: ='Calculs (M21..M40)'!HB20 ->  | CK17: ='Calculs (M21..M40)'!HC20 ->  | CL17: ='Calculs (M21..M40)'!HD20 ->  | CM17: ='Calculs (M21..M40)'!HE20 ->  | CN17: ='Calculs (M21..M40)'!HF20 -> 
B18: 8 | C18: 14658.0059 | D18: 927.0238909 | E18: BRAHIER Mickael | F18: 3 | G18: 1 | H18: 4 | I18: 4 | J18: 4 | K18: 7 | L18: 7 | M18: 7 | N18: 7 | O18: 11 | P18: 7 | Q18: 9 | R18: 9 | S18: 9 | T18: 9 | U18: 10 | V18: 8 | W18: 8 | X18: 8 | Y18: 8 | AV18: ='Calculs (M21..M40)'!A21 -> 3 | AW18: ='Calculs (M21..M40)'!G21 -> 15435.34016 | AX18: ='Calculs (M21..M40)'!H21 -> 976.1852454 | AY18: ='Calculs (M21..M40)'!I21 -> FRICKE Andreas | AZ18: ='Calculs (M21..M40)'!C21 -> 8 | BA18: ='Calculs (M1..M20)'!GM21 -> 3 | BB18: ='Calculs (M1..M20)'!GN21 -> 2 | BC18: ='Calculs (M1..M20)'!GO21 -> 2 | BD18: ='Calculs (M1..M20)'!GP21 -> 3 | BE18: ='Calculs (M1..M20)'!GQ21 -> 3 | BF18: ='Calculs (M1..M20)'!GR21 -> 2 | BG18: ='Calculs (M1..M20)'!GS21 -> 2 | BH18: ='Calculs (M1..M20)'!GT21 -> 3 | BI18: ='Calculs (M1..M20)'!GU21 -> 3 | BJ18: ='Calculs (M1..M20)'!GV21 -> 4 | BK18: ='Calculs (M1..M20)'!GW21 -> 2 | BL18: ='Calculs (M1..M20)'!GX21 -> 3 | BM18: ='Calculs (M1..M20)'!GY21 -> 3 | BN18: ='Calculs (M1..M20)'!GZ21 -> 3 | BO18: ='Calculs (M1..M20)'!HA21 -> 2 | BP18: ='Calculs (M1..M20)'!HB21 -> 3 | BQ18: ='Calculs (M1..M20)'!HC21 -> 3 | BR18: ='Calculs (M1..M20)'!HD21 -> 3 | BS18: ='Calculs (M1..M20)'!HE21 -> 3 | BT18: ='Calculs (M1..M20)'!HF21 ->  | BU18: ='Calculs (M21..M40)'!GM21 ->  | BV18: ='Calculs (M21..M40)'!GN21 ->  | BW18: ='Calculs (M21..M40)'!GO21 ->  | BX18: ='Calculs (M21..M40)'!GP21 ->  | BY18: ='Calculs (M21..M40)'!GQ21 ->  | BZ18: ='Calculs (M21..M40)'!GR21 ->  | CA18: ='Calculs (M21..M40)'!GS21 ->  | CB18: ='Calculs (M21..M40)'!GT21 ->  | CC18: ='Calculs (M21..M40)'!GU21 ->  | CD18: ='Calculs (M21..M40)'!GV21 ->  | CE18: ='Calculs (M21..M40)'!GW21 ->  | CF18: ='Calculs (M21..M40)'!GX21 ->  | CG18: ='Calculs (M21..M40)'!GY21 ->  | CH18: ='Calculs (M21..M40)'!GZ21 ->  | CI18: ='Calculs (M21..M40)'!HA21 ->  | CJ18: ='Calculs (M21..M40)'!HB21 ->  | CK18: ='Calculs (M21..M40)'!HC21 ->  | CL18: ='Calculs (M21..M40)'!HD21 ->  | CM18: ='Calculs (M21..M40)'!HE21 ->  | CN18: ='Calculs (M21..M40)'!HF21 -> 
B19: 9 | C19: 14588.37401 | D19: 922.6201245 | E19: SORBA Remy | F19: 9 | G19: 14 | H19: 12 | I19: 12 | J19: 11 | K19: 10 | L19: 10 | M19: 11 | N19: 12 | O19: 12 | P19: 12 | Q19: 12 | R19: 11 | S19: 10 | T19: 10 | U19: 8 | V19: 10 | W19: 9 | X19: 9 | Y19: 9 | AV19: ='Calculs (M21..M40)'!A22 -> 9 | AW19: ='Calculs (M21..M40)'!G22 -> 14588.37401 | AX19: ='Calculs (M21..M40)'!H22 -> 922.6201245 | AY19: ='Calculs (M21..M40)'!I22 -> SORBA Remy | AZ19: ='Calculs (M21..M40)'!C22 -> 9 | BA19: ='Calculs (M1..M20)'!GM22 -> 14 | BB19: ='Calculs (M1..M20)'!GN22 -> 12 | BC19: ='Calculs (M1..M20)'!GO22 -> 12 | BD19: ='Calculs (M1..M20)'!GP22 -> 11 | BE19: ='Calculs (M1..M20)'!GQ22 -> 10 | BF19: ='Calculs (M1..M20)'!GR22 -> 10 | BG19: ='Calculs (M1..M20)'!GS22 -> 11 | BH19: ='Calculs (M1..M20)'!GT22 -> 12 | BI19: ='Calculs (M1..M20)'!GU22 -> 12 | BJ19: ='Calculs (M1..M20)'!GV22 -> 12 | BK19: ='Calculs (M1..M20)'!GW22 -> 12 | BL19: ='Calculs (M1..M20)'!GX22 -> 11 | BM19: ='Calculs (M1..M20)'!GY22 -> 10 | BN19: ='Calculs (M1..M20)'!GZ22 -> 10 | BO19: ='Calculs (M1..M20)'!HA22 -> 8 | BP19: ='Calculs (M1..M20)'!HB22 -> 10 | BQ19: ='Calculs (M1..M20)'!HC22 -> 9 | BR19: ='Calculs (M1..M20)'!HD22 -> 9 | BS19: ='Calculs (M1..M20)'!HE22 -> 9 | BT19: ='Calculs (M1..M20)'!HF22 ->  | BU19: ='Calculs (M21..M40)'!GM22 ->  | BV19: ='Calculs (M21..M40)'!GN22 ->  | BW19: ='Calculs (M21..M40)'!GO22 ->  | BX19: ='Calculs (M21..M40)'!GP22 ->  | BY19: ='Calculs (M21..M40)'!GQ22 ->  | BZ19: ='Calculs (M21..M40)'!GR22 ->  | CA19: ='Calculs (M21..M40)'!GS22 ->  | CB19: ='Calculs (M21..M40)'!GT22 ->  | CC19: ='Calculs (M21..M40)'!GU22 ->  | CD19: ='Calculs (M21..M40)'!GV22 ->  | CE19: ='Calculs (M21..M40)'!GW22 ->  | CF19: ='Calculs (M21..M40)'!GX22 ->  | CG19: ='Calculs (M21..M40)'!GY22 ->  | CH19: ='Calculs (M21..M40)'!GZ22 ->  | CI19: ='Calculs (M21..M40)'!HA22 ->  | CJ19: ='Calculs (M21..M40)'!HB22 ->  | CK19: ='Calculs (M21..M40)'!HC22 ->  | CL19: ='Calculs (M21..M40)'!HD22 ->  | CM19: ='Calculs (M21..M40)'!HE22 ->  | CN19: ='Calculs (M21..M40)'!HF22 -> 
B20: 10 | C20: 14244.93311 | D20: 900.8997135 | E20: DELARBRE Serge | F20: 4 | G20: 9 | H20: 9 | I20: 10 | J20: 10 | K20: 11 | L20: 11 | M20: 10 | N20: 9 | O20: 9 | P20: 9 | Q20: 8 | R20: 7 | S20: 7 | T20: 8 | U20: 9 | V20: 9 | W20: 10 | X20: 10 | Y20: 10 | AV20: ='Calculs (M21..M40)'!A23 -> 4 | AW20: ='Calculs (M21..M40)'!G23 -> 15125.89255 | AX20: ='Calculs (M21..M40)'!H23 -> 956.6146891 | AY20: ='Calculs (M21..M40)'!I23 -> DEGUELLE J-Bastien | AZ20: ='Calculs (M21..M40)'!C23 -> 10 | BA20: ='Calculs (M1..M20)'!GM23 -> 8 | BB20: ='Calculs (M1..M20)'!GN23 -> 10 | BC20: ='Calculs (M1..M20)'!GO23 -> 8 | BD20: ='Calculs (M1..M20)'!GP23 -> 7 | BE20: ='Calculs (M1..M20)'!GQ23 -> 8 | BF20: ='Calculs (M1..M20)'!GR23 -> 8 | BG20: ='Calculs (M1..M20)'!GS23 -> 9 | BH20: ='Calculs (M1..M20)'!GT23 -> 10 | BI20: ='Calculs (M1..M20)'!GU23 -> 7 | BJ20: ='Calculs (M1..M20)'!GV23 -> 8 | BK20: ='Calculs (M1..M20)'!GW23 -> 6 | BL20: ='Calculs (M1..M20)'!GX23 -> 6 | BM20: ='Calculs (M1..M20)'!GY23 -> 6 | BN20: ='Calculs (M1..M20)'!GZ23 -> 6 | BO20: ='Calculs (M1..M20)'!HA23 -> 6 | BP20: ='Calculs (M1..M20)'!HB23 -> 7 | BQ20: ='Calculs (M1..M20)'!HC23 -> 5 | BR20: ='Calculs (M1..M20)'!HD23 -> 5 | BS20: ='Calculs (M1..M20)'!HE23 -> 4 | BT20: ='Calculs (M1..M20)'!HF23 ->  | BU20: ='Calculs (M21..M40)'!GM23 ->  | BV20: ='Calculs (M21..M40)'!GN23 ->  | BW20: ='Calculs (M21..M40)'!GO23 ->  | BX20: ='Calculs (M21..M40)'!GP23 ->  | BY20: ='Calculs (M21..M40)'!GQ23 ->  | BZ20: ='Calculs (M21..M40)'!GR23 ->  | CA20: ='Calculs (M21..M40)'!GS23 ->  | CB20: ='Calculs (M21..M40)'!GT23 ->  | CC20: ='Calculs (M21..M40)'!GU23 ->  | CD20: ='Calculs (M21..M40)'!GV23 ->  | CE20: ='Calculs (M21..M40)'!GW23 ->  | CF20: ='Calculs (M21..M40)'!GX23 ->  | CG20: ='Calculs (M21..M40)'!GY23 ->  | CH20: ='Calculs (M21..M40)'!GZ23 ->  | CI20: ='Calculs (M21..M40)'!HA23 ->  | CJ20: ='Calculs (M21..M40)'!HB23 ->  | CK20: ='Calculs (M21..M40)'!HC23 ->  | CL20: ='Calculs (M21..M40)'!HD23 ->  | CM20: ='Calculs (M21..M40)'!HE23 ->  | CN20: ='Calculs (M21..M40)'!HF23 -> 
B21: 11 | C21: 14082.53501 | D21: 890.6290859 | E21: FOUCHER Jean-Luc | F21: 1 | G21: =IF(ISNA(VLOOKUP($B21,ClassEvo,5+G$10,0)),"",VLOOKUP($B21,ClassEvo,5+G$10,0)) -> 11 | H21: 11 | I21: 11 | J21: 12 | K21: 12 | L21: 12 | M21: 12 | N21: 11 | O21: 8 | P21: 10 | Q21: =IF(ISNA(VLOOKUP($B21,ClassEvo,5+Q$10,0)),"",VLOOKUP($B21,ClassEvo,5+Q$10,0)) -> 10 | R21: 10 | S21: 11 | T21: 11 | U21: 11 | V21: 11 | W21: 11 | X21: 11 | Y21: 11 | AA21: =IF(ISNA(VLOOKUP($B21,ClassEvo,5+AA$10,0)),"",VLOOKUP($B21,ClassEvo,5+AA$10,0)) ->  | AK21: =IF(ISNA(VLOOKUP($B21,ClassEvo,5+AK$10,0)),"",VLOOKUP($B21,ClassEvo,5+AK$10,0)) ->  | AV21: ='Calculs (M21..M40)'!A24 -> 15 | AW21: ='Calculs (M21..M40)'!G24 -> 11377.32546 | AX21: ='Calculs (M21..M40)'!H24 -> 719.542111 | AY21: ='Calculs (M21..M40)'!I24 -> DESANDRE Alain | AZ21: ='Calculs (M21..M40)'!C24 -> 11 | BA21: ='Calculs (M1..M20)'!GM24 -> 15 | BB21: ='Calculs (M1..M20)'!GN24 -> 15 | BC21: ='Calculs (M1..M20)'!GO24 -> 15 | BD21: ='Calculs (M1..M20)'!GP24 -> 15 | BE21: ='Calculs (M1..M20)'!GQ24 -> 15 | BF21: ='Calculs (M1..M20)'!GR24 -> 15 | BG21: ='Calculs (M1..M20)'!GS24 -> 15 | BH21: ='Calculs (M1..M20)'!GT24 -> 15 | BI21: ='Calculs (M1..M20)'!GU24 -> 15 | BJ21: ='Calculs (M1..M20)'!GV24 -> 15 | BK21: ='Calculs (M1..M20)'!GW24 -> 15 | BL21: ='Calculs (M1..M20)'!GX24 -> 15 | BM21: ='Calculs (M1..M20)'!GY24 -> 15 | BN21: ='Calculs (M1..M20)'!GZ24 -> 15 | BO21: ='Calculs (M1..M20)'!HA24 -> 15 | BP21: ='Calculs (M1..M20)'!HB24 -> 15 | BQ21: ='Calculs (M1..M20)'!HC24 -> 15 | BR21: ='Calculs (M1..M20)'!HD24 -> 15 | BS21: ='Calculs (M1..M20)'!HE24 -> 15 | BT21: ='Calculs (M1..M20)'!HF24 ->  | BU21: ='Calculs (M21..M40)'!GM24 ->  | BV21: ='Calculs (M21..M40)'!GN24 ->  | BW21: ='Calculs (M21..M40)'!GO24 ->  | BX21: ='Calculs (M21..M40)'!GP24 ->  | BY21: ='Calculs (M21..M40)'!GQ24 ->  | BZ21: ='Calculs (M21..M40)'!GR24 ->  | CA21: ='Calculs (M21..M40)'!GS24 ->  | CB21: ='Calculs (M21..M40)'!GT24 ->  | CC21: ='Calculs (M21..M40)'!GU24 ->  | CD21: ='Calculs (M21..M40)'!GV24 ->  | CE21: ='Calculs (M21..M40)'!GW24 ->  | CF21: ='Calculs (M21..M40)'!GX24 ->  | CG21: ='Calculs (M21..M40)'!GY24 ->  | CH21: ='Calculs (M21..M40)'!GZ24 ->  | CI21: ='Calculs (M21..M40)'!HA24 ->  | CJ21: ='Calculs (M21..M40)'!HB24 ->  | CK21: ='Calculs (M21..M40)'!HC24 ->  | CL21: ='Calculs (M21..M40)'!HD24 ->  | CM21: ='Calculs (M21..M40)'!HE24 ->  | CN21: ='Calculs (M21..M40)'!HF24 -> 
B22: 12 | C22: 13820.32745 | D22: 874.0461564 | E22: LAFARGE Pascal | F22: 13 | G22: 7 | H22: 7 | I22: 7 | J22: 8 | K22: 9 | L22: 9 | M22: 8 | N22: 8 | O22: 10 | P22: 11 | Q22: 11 | R22: 12 | S22: 12 | T22: 12 | U22: 12 | V22: 12 | W22: 12 | X22: 12 | Y22: 12 | AV22: ='Calculs (M21..M40)'!A25 -> 16 | AW22: ='Calculs (M21..M40)'!G25 -> 0 | AX22: ='Calculs (M21..M40)'!H25 -> 0 | AY22: ='Calculs (M21..M40)'!I25 -> DELARBRE Marie-Helene | AZ22: ='Calculs (M21..M40)'!C25 -> 12 | BA22: ='Calculs (M1..M20)'!GM25 -> 16 | BB22: ='Calculs (M1..M20)'!GN25 -> 16 | BC22: ='Calculs (M1..M20)'!GO25 -> 16 | BD22: ='Calculs (M1..M20)'!GP25 -> 16 | BE22: ='Calculs (M1..M20)'!GQ25 -> 16 | BF22: ='Calculs (M1..M20)'!GR25 -> 16 | BG22: ='Calculs (M1..M20)'!GS25 -> 16 | BH22: ='Calculs (M1..M20)'!GT25 -> 16 | BI22: ='Calculs (M1..M20)'!GU25 -> 16 | BJ22: ='Calculs (M1..M20)'!GV25 -> 16 | BK22: ='Calculs (M1..M20)'!GW25 -> 16 | BL22: ='Calculs (M1..M20)'!GX25 -> 16 | BM22: ='Calculs (M1..M20)'!GY25 -> 16 | BN22: ='Calculs (M1..M20)'!GZ25 -> 16 | BO22: ='Calculs (M1..M20)'!HA25 -> 16 | BP22: ='Calculs (M1..M20)'!HB25 -> 16 | BQ22: ='Calculs (M1..M20)'!HC25 -> 16 | BR22: ='Calculs (M1..M20)'!HD25 -> 16 | BS22: ='Calculs (M1..M20)'!HE25 -> 16 | BT22: ='Calculs (M1..M20)'!HF25 ->  | BU22: ='Calculs (M21..M40)'!GM25 ->  | BV22: ='Calculs (M21..M40)'!GN25 ->  | BW22: ='Calculs (M21..M40)'!GO25 ->  | BX22: ='Calculs (M21..M40)'!GP25 ->  | BY22: ='Calculs (M21..M40)'!GQ25 ->  | BZ22: ='Calculs (M21..M40)'!GR25 ->  | CA22: ='Calculs (M21..M40)'!GS25 ->  | CB22: ='Calculs (M21..M40)'!GT25 ->  | CC22: ='Calculs (M21..M40)'!GU25 ->  | CD22: ='Calculs (M21..M40)'!GV25 ->  | CE22: ='Calculs (M21..M40)'!GW25 ->  | CF22: ='Calculs (M21..M40)'!GX25 ->  | CG22: ='Calculs (M21..M40)'!GY25 ->  | CH22: ='Calculs (M21..M40)'!GZ25 ->  | CI22: ='Calculs (M21..M40)'!HA25 ->  | CJ22: ='Calculs (M21..M40)'!HB25 ->  | CK22: ='Calculs (M21..M40)'!HC25 ->  | CL22: ='Calculs (M21..M40)'!HD25 ->  | CM22: ='Calculs (M21..M40)'!HE25 ->  | CN22: ='Calculs (M21..M40)'!HF25 -> 
B23: 13 | C23: 13310.2666 | D23: 841.788113 | E23: CHABAUD Sébastien | F23: 6 | G23: 13 | H23: 13 | I23: 13 | J23: 13 | K23: 13 | L23: 13 | M23: 13 | N23: 13 | O23: 13 | P23: 14 | Q23: 13 | R23: 14 | S23: 13 | T23: 13 | U23: 13 | V23: 13 | W23: 13 | X23: 13 | Y23: 13 | AV23: ='Calculs (M21..M40)'!A26 -> 12 | AW23: ='Calculs (M21..M40)'!G26 -> 13820.32745 | AX23: ='Calculs (M21..M40)'!H26 -> 874.0461564 | AY23: ='Calculs (M21..M40)'!I26 -> LAFARGE Pascal | AZ23: ='Calculs (M21..M40)'!C26 -> 13 | BA23: ='Calculs (M1..M20)'!GM26 -> 7 | BB23: ='Calculs (M1..M20)'!GN26 -> 7 | BC23: ='Calculs (M1..M20)'!GO26 -> 7 | BD23: ='Calculs (M1..M20)'!GP26 -> 8 | BE23: ='Calculs (M1..M20)'!GQ26 -> 9 | BF23: ='Calculs (M1..M20)'!GR26 -> 9 | BG23: ='Calculs (M1..M20)'!GS26 -> 8 | BH23: ='Calculs (M1..M20)'!GT26 -> 8 | BI23: ='Calculs (M1..M20)'!GU26 -> 10 | BJ23: ='Calculs (M1..M20)'!GV26 -> 11 | BK23: ='Calculs (M1..M20)'!GW26 -> 11 | BL23: ='Calculs (M1..M20)'!GX26 -> 12 | BM23: ='Calculs (M1..M20)'!GY26 -> 12 | BN23: ='Calculs (M1..M20)'!GZ26 -> 12 | BO23: ='Calculs (M1..M20)'!HA26 -> 12 | BP23: ='Calculs (M1..M20)'!HB26 -> 12 | BQ23: ='Calculs (M1..M20)'!HC26 -> 12 | BR23: ='Calculs (M1..M20)'!HD26 -> 12 | BS23: ='Calculs (M1..M20)'!HE26 -> 12 | BT23: ='Calculs (M1..M20)'!HF26 ->  | BU23: ='Calculs (M21..M40)'!GM26 ->  | BV23: ='Calculs (M21..M40)'!GN26 ->  | BW23: ='Calculs (M21..M40)'!GO26 ->  | BX23: ='Calculs (M21..M40)'!GP26 ->  | BY23: ='Calculs (M21..M40)'!GQ26 ->  | BZ23: ='Calculs (M21..M40)'!GR26 ->  | CA23: ='Calculs (M21..M40)'!GS26 ->  | CB23: ='Calculs (M21..M40)'!GT26 ->  | CC23: ='Calculs (M21..M40)'!GU26 ->  | CD23: ='Calculs (M21..M40)'!GV26 ->  | CE23: ='Calculs (M21..M40)'!GW26 ->  | CF23: ='Calculs (M21..M40)'!GX26 ->  | CG23: ='Calculs (M21..M40)'!GY26 ->  | CH23: ='Calculs (M21..M40)'!GZ26 ->  | CI23: ='Calculs (M21..M40)'!HA26 ->  | CJ23: ='Calculs (M21..M40)'!HB26 ->  | CK23: ='Calculs (M21..M40)'!HC26 ->  | CL23: ='Calculs (M21..M40)'!HD26 ->  | CM23: ='Calculs (M21..M40)'!HE26 ->  | CN23: ='Calculs (M21..M40)'!HF26 -> 
B24: 14 | C24: 13280.18901 | D24: 839.8859006 | E24: DOUSSAUD Alexandre | F24: 2 | G24: 12 | H24: 14 | I24: 14 | J24: 14 | K24: 14 | L24: 14 | M24: 14 | N24: 14 | O24: 14 | P24: 13 | Q24: 14 | R24: 13 | S24: 14 | T24: 14 | U24: 14 | V24: 14 | W24: 14 | X24: 14 | Y24: 14 | AV24: ='Calculs (M21..M40)'!A27 -> 7 | AW24: ='Calculs (M21..M40)'!G27 -> 14684.38868 | AX24: ='Calculs (M21..M40)'!H27 -> 928.6924307 | AY24: ='Calculs (M21..M40)'!I27 -> DAL HAVA Herve | AZ24: ='Calculs (M21..M40)'!C27 -> 14 | BA24: ='Calculs (M1..M20)'!GM27 -> 6 | BB24: ='Calculs (M1..M20)'!GN27 -> 8 | BC24: ='Calculs (M1..M20)'!GO27 -> 3 | BD24: ='Calculs (M1..M20)'!GP27 -> 6 | BE24: ='Calculs (M1..M20)'!GQ27 -> 4 | BF24: ='Calculs (M1..M20)'!GR27 -> 5 | BG24: ='Calculs (M1..M20)'!GS27 -> 3 | BH24: ='Calculs (M1..M20)'!GT27 -> 2 | BI24: ='Calculs (M1..M20)'!GU27 -> 2 | BJ24: ='Calculs (M1..M20)'!GV27 -> 2 | BK24: ='Calculs (M1..M20)'!GW27 -> 4 | BL24: ='Calculs (M1..M20)'!GX27 -> 4 | BM24: ='Calculs (M1..M20)'!GY27 -> 4 | BN24: ='Calculs (M1..M20)'!GZ27 -> 5 | BO24: ='Calculs (M1..M20)'!HA27 -> 5 | BP24: ='Calculs (M1..M20)'!HB27 -> 5 | BQ24: ='Calculs (M1..M20)'!HC27 -> 6 | BR24: ='Calculs (M1..M20)'!HD27 -> 7 | BS24: ='Calculs (M1..M20)'!HE27 -> 7 | BT24: ='Calculs (M1..M20)'!HF27 ->  | BU24: ='Calculs (M21..M40)'!GM27 ->  | BV24: ='Calculs (M21..M40)'!GN27 ->  | BW24: ='Calculs (M21..M40)'!GO27 ->  | BX24: ='Calculs (M21..M40)'!GP27 ->  | BY24: ='Calculs (M21..M40)'!GQ27 ->  | BZ24: ='Calculs (M21..M40)'!GR27 ->  | CA24: ='Calculs (M21..M40)'!GS27 ->  | CB24: ='Calculs (M21..M40)'!GT27 ->  | CC24: ='Calculs (M21..M40)'!GU27 ->  | CD24: ='Calculs (M21..M40)'!GV27 ->  | CE24: ='Calculs (M21..M40)'!GW27 ->  | CF24: ='Calculs (M21..M40)'!GX27 ->  | CG24: ='Calculs (M21..M40)'!GY27 ->  | CH24: ='Calculs (M21..M40)'!GZ27 ->  | CI24: ='Calculs (M21..M40)'!HA27 ->  | CJ24: ='Calculs (M21..M40)'!HB27 ->  | CK24: ='Calculs (M21..M40)'!HC27 ->  | CL24: ='Calculs (M21..M40)'!HD27 ->  | CM24: ='Calculs (M21..M40)'!HE27 ->  | CN24: ='Calculs (M21..M40)'!HF27 -> 
B25: 15 | C25: 11377.32546 | D25: 719.542111 | E25: DESANDRE Alain | F25: 11 | G25: 15 | H25: 15 | I25: 15 | J25: 15 | K25: 15 | L25: 15 | M25: 15 | N25: 15 | O25: 15 | P25: 15 | Q25: 15 | R25: 15 | S25: 15 | T25: 15 | U25: 15 | V25: 15 | W25: 15 | X25: 15 | Y25: 15 | AV25: ='Calculs (M21..M40)'!A28 -> 5 | AW25: ='Calculs (M21..M40)'!G28 -> 15105.15351 | AX25: ='Calculs (M21..M40)'!H28 -> 955.3030794 | AY25: ='Calculs (M21..M40)'!I28 -> LANES Philippe | AZ25: ='Calculs (M21..M40)'!C28 -> 15 | BA25: ='Calculs (M1..M20)'!GM28 -> 4 | BB25: ='Calculs (M1..M20)'!GN28 -> 3 | BC25: ='Calculs (M1..M20)'!GO28 -> 5 | BD25: ='Calculs (M1..M20)'!GP28 -> 5 | BE25: ='Calculs (M1..M20)'!GQ28 -> 5 | BF25: ='Calculs (M1..M20)'!GR28 -> 4 | BG25: ='Calculs (M1..M20)'!GS28 -> 4 | BH25: ='Calculs (M1..M20)'!GT28 -> 4 | BI25: ='Calculs (M1..M20)'!GU28 -> 4 | BJ25: ='Calculs (M1..M20)'!GV28 -> 5 | BK25: ='Calculs (M1..M20)'!GW28 -> 5 | BL25: ='Calculs (M1..M20)'!GX28 -> 5 | BM25: ='Calculs (M1..M20)'!GY28 -> 5 | BN25: ='Calculs (M1..M20)'!GZ28 -> 4 | BO25: ='Calculs (M1..M20)'!HA28 -> 4 | BP25: ='Calculs (M1..M20)'!HB28 -> 4 | BQ25: ='Calculs (M1..M20)'!HC28 -> 4 | BR25: ='Calculs (M1..M20)'!HD28 -> 4 | BS25: ='Calculs (M1..M20)'!HE28 -> 5 | BT25: ='Calculs (M1..M20)'!HF28 ->  | BU25: ='Calculs (M21..M40)'!GM28 ->  | BV25: ='Calculs (M21..M40)'!GN28 ->  | BW25: ='Calculs (M21..M40)'!GO28 ->  | BX25: ='Calculs (M21..M40)'!GP28 ->  | BY25: ='Calculs (M21..M40)'!GQ28 ->  | BZ25: ='Calculs (M21..M40)'!GR28 ->  | CA25: ='Calculs (M21..M40)'!GS28 ->  | CB25: ='Calculs (M21..M40)'!GT28 ->  | CC25: ='Calculs (M21..M40)'!GU28 ->  | CD25: ='Calculs (M21..M40)'!GV28 ->  | CE25: ='Calculs (M21..M40)'!GW28 ->  | CF25: ='Calculs (M21..M40)'!GX28 ->  | CG25: ='Calculs (M21..M40)'!GY28 ->  | CH25: ='Calculs (M21..M40)'!GZ28 ->  | CI25: ='Calculs (M21..M40)'!HA28 ->  | CJ25: ='Calculs (M21..M40)'!HB28 ->  | CK25: ='Calculs (M21..M40)'!HC28 ->  | CL25: ='Calculs (M21..M40)'!HD28 ->  | CM25: ='Calculs (M21..M40)'!HE28 ->  | CN25: ='Calculs (M21..M40)'!HF28 -> 
B26: 16 | C26: 0 | D26: 0 | E26: DELARBRE Marie-Helene | F26: 12 | G26: 16 | H26: 16 | I26: 16 | J26: 16 | K26: 16 | L26: 16 | M26: 16 | N26: 16 | O26: 16 | P26: 16 | Q26: 16 | R26: 16 | S26: 16 | T26: 16 | U26: 16 | V26: 16 | W26: 16 | X26: 16 | Y26: 16 | AV26: ='Calculs (M21..M40)'!A29 -> 1 | AW26: ='Calculs (M21..M40)'!G29 -> 15811.8966 | AX26: ='Calculs (M21..M40)'!H29 -> 1000 | AY26: ='Calculs (M21..M40)'!I29 -> GABANON Aubry | AZ26: ='Calculs (M21..M40)'!C29 -> 16 | BA26: ='Calculs (M1..M20)'!GM29 -> 2 | BB26: ='Calculs (M1..M20)'!GN29 -> 5 | BC26: ='Calculs (M1..M20)'!GO29 -> 6 | BD26: ='Calculs (M1..M20)'!GP29 -> 2 | BE26: ='Calculs (M1..M20)'!GQ29 -> 1 | BF26: ='Calculs (M1..M20)'!GR29 -> 1 | BG26: ='Calculs (M1..M20)'!GS29 -> 1 | BH26: ='Calculs (M1..M20)'!GT29 -> 1 | BI26: ='Calculs (M1..M20)'!GU29 -> 1 | BJ26: ='Calculs (M1..M20)'!GV29 -> 1 | BK26: ='Calculs (M1..M20)'!GW29 -> 1 | BL26: ='Calculs (M1..M20)'!GX29 -> 1 | BM26: ='Calculs (M1..M20)'!GY29 -> 1 | BN26: ='Calculs (M1..M20)'!GZ29 -> 1 | BO26: ='Calculs (M1..M20)'!HA29 -> 1 | BP26: ='Calculs (M1..M20)'!HB29 -> 1 | BQ26: ='Calculs (M1..M20)'!HC29 -> 1 | BR26: ='Calculs (M1..M20)'!HD29 -> 1 | BS26: ='Calculs (M1..M20)'!HE29 -> 1 | BT26: ='Calculs (M1..M20)'!HF29 ->  | BU26: ='Calculs (M21..M40)'!GM29 ->  | BV26: ='Calculs (M21..M40)'!GN29 ->  | BW26: ='Calculs (M21..M40)'!GO29 ->  | BX26: ='Calculs (M21..M40)'!GP29 ->  | BY26: ='Calculs (M21..M40)'!GQ29 ->  | BZ26: ='Calculs (M21..M40)'!GR29 ->  | CA26: ='Calculs (M21..M40)'!GS29 ->  | CB26: ='Calculs (M21..M40)'!GT29 ->  | CC26: ='Calculs (M21..M40)'!GU29 ->  | CD26: ='Calculs (M21..M40)'!GV29 ->  | CE26: ='Calculs (M21..M40)'!GW29 ->  | CF26: ='Calculs (M21..M40)'!GX29 ->  | CG26: ='Calculs (M21..M40)'!GY29 ->  | CH26: ='Calculs (M21..M40)'!GZ29 ->  | CI26: ='Calculs (M21..M40)'!HA29 ->  | CJ26: ='Calculs (M21..M40)'!HB29 ->  | CK26: ='Calculs (M21..M40)'!HC29 ->  | CL26: ='Calculs (M21..M40)'!HD29 ->  | CM26: ='Calculs (M21..M40)'!HE29 ->  | CN26: ='Calculs (M21..M40)'!HF29 -> 
B27: 17 | AV27: ='Calculs (M21..M40)'!A30 ->  | AW27: ='Calculs (M21..M40)'!G30 -> 0 | AX27: ='Calculs (M21..M40)'!H30 ->  | AY27: ='Calculs (M21..M40)'!I30 ->  | AZ27: ='Calculs (M21..M40)'!C30 ->  | BA27: ='Calculs (M1..M20)'!GM30 ->  | BB27: ='Calculs (M1..M20)'!GN30 ->  | BC27: ='Calculs (M1..M20)'!GO30 ->  | BD27: ='Calculs (M1..M20)'!GP30 ->  | BE27: ='Calculs (M1..M20)'!GQ30 ->  | BF27: ='Calculs (M1..M20)'!GR30 ->  | BG27: ='Calculs (M1..M20)'!GS30 ->  | BH27: ='Calculs (M1..M20)'!GT30 ->  | BI27: ='Calculs (M1..M20)'!GU30 ->  | BJ27: ='Calculs (M1..M20)'!GV30 ->  | BK27: ='Calculs (M1..M20)'!GW30 ->  | BL27: ='Calculs (M1..M20)'!GX30 ->  | BM27: ='Calculs (M1..M20)'!GY30 ->  | BN27: ='Calculs (M1..M20)'!GZ30 ->  | BO27: ='Calculs (M1..M20)'!HA30 ->  | BP27: ='Calculs (M1..M20)'!HB30 ->  | BQ27: ='Calculs (M1..M20)'!HC30 ->  | BR27: ='Calculs (M1..M20)'!HD30 ->  | BS27: ='Calculs (M1..M20)'!HE30 ->  | BT27: ='Calculs (M1..M20)'!HF30 ->  | BU27: ='Calculs (M21..M40)'!GM30 ->  | BV27: ='Calculs (M21..M40)'!GN30 ->  | BW27: ='Calculs (M21..M40)'!GO30 ->  | BX27: ='Calculs (M21..M40)'!GP30 ->  | BY27: ='Calculs (M21..M40)'!GQ30 ->  | BZ27: ='Calculs (M21..M40)'!GR30 ->  | CA27: ='Calculs (M21..M40)'!GS30 ->  | CB27: ='Calculs (M21..M40)'!GT30 ->  | CC27: ='Calculs (M21..M40)'!GU30 ->  | CD27: ='Calculs (M21..M40)'!GV30 ->  | CE27: ='Calculs (M21..M40)'!GW30 ->  | CF27: ='Calculs (M21..M40)'!GX30 ->  | CG27: ='Calculs (M21..M40)'!GY30 ->  | CH27: ='Calculs (M21..M40)'!GZ30 ->  | CI27: ='Calculs (M21..M40)'!HA30 ->  | CJ27: ='Calculs (M21..M40)'!HB30 ->  | CK27: ='Calculs (M21..M40)'!HC30 ->  | CL27: ='Calculs (M21..M40)'!HD30 ->  | CM27: ='Calculs (M21..M40)'!HE30 ->  | CN27: ='Calculs (M21..M40)'!HF30 -> 
B28: 18 | AV28: ='Calculs (M21..M40)'!A31 ->  | AW28: ='Calculs (M21..M40)'!G31 -> 0 | AX28: ='Calculs (M21..M40)'!H31 ->  | AY28: ='Calculs (M21..M40)'!I31 ->  | AZ28: ='Calculs (M21..M40)'!C31 ->  | BA28: ='Calculs (M1..M20)'!GM31 ->  | BB28: ='Calculs (M1..M20)'!GN31 ->  | BC28: ='Calculs (M1..M20)'!GO31 ->  | BD28: ='Calculs (M1..M20)'!GP31 ->  | BE28: ='Calculs (M1..M20)'!GQ31 ->  | BF28: ='Calculs (M1..M20)'!GR31 ->  | BG28: ='Calculs (M1..M20)'!GS31 ->  | BH28: ='Calculs (M1..M20)'!GT31 ->  | BI28: ='Calculs (M1..M20)'!GU31 ->  | BJ28: ='Calculs (M1..M20)'!GV31 ->  | BK28: ='Calculs (M1..M20)'!GW31 ->  | BL28: ='Calculs (M1..M20)'!GX31 ->  | BM28: ='Calculs (M1..M20)'!GY31 ->  | BN28: ='Calculs (M1..M20)'!GZ31 ->  | BO28: ='Calculs (M1..M20)'!HA31 ->  | BP28: ='Calculs (M1..M20)'!HB31 ->  | BQ28: ='Calculs (M1..M20)'!HC31 ->  | BR28: ='Calculs (M1..M20)'!HD31 ->  | BS28: ='Calculs (M1..M20)'!HE31 ->  | BT28: ='Calculs (M1..M20)'!HF31 ->  | BU28: ='Calculs (M21..M40)'!GM31 ->  | BV28: ='Calculs (M21..M40)'!GN31 ->  | BW28: ='Calculs (M21..M40)'!GO31 ->  | BX28: ='Calculs (M21..M40)'!GP31 ->  | BY28: ='Calculs (M21..M40)'!GQ31 ->  | BZ28: ='Calculs (M21..M40)'!GR31 ->  | CA28: ='Calculs (M21..M40)'!GS31 ->  | CB28: ='Calculs (M21..M40)'!GT31 ->  | CC28: ='Calculs (M21..M40)'!GU31 ->  | CD28: ='Calculs (M21..M40)'!GV31 ->  | CE28: ='Calculs (M21..M40)'!GW31 ->  | CF28: ='Calculs (M21..M40)'!GX31 ->  | CG28: ='Calculs (M21..M40)'!GY31 ->  | CH28: ='Calculs (M21..M40)'!GZ31 ->  | CI28: ='Calculs (M21..M40)'!HA31 ->  | CJ28: ='Calculs (M21..M40)'!HB31 ->  | CK28: ='Calculs (M21..M40)'!HC31 ->  | CL28: ='Calculs (M21..M40)'!HD31 ->  | CM28: ='Calculs (M21..M40)'!HE31 ->  | CN28: ='Calculs (M21..M40)'!HF31 -> 
B29: 19 | AV29: ='Calculs (M21..M40)'!A32 ->  | AW29: ='Calculs (M21..M40)'!G32 -> 0 | AX29: ='Calculs (M21..M40)'!H32 ->  | AY29: ='Calculs (M21..M40)'!I32 ->  | AZ29: ='Calculs (M21..M40)'!C32 ->  | BA29: ='Calculs (M1..M20)'!GM32 ->  | BB29: ='Calculs (M1..M20)'!GN32 ->  | BC29: ='Calculs (M1..M20)'!GO32 ->  | BD29: ='Calculs (M1..M20)'!GP32 ->  | BE29: ='Calculs (M1..M20)'!GQ32 ->  | BF29: ='Calculs (M1..M20)'!GR32 ->  | BG29: ='Calculs (M1..M20)'!GS32 ->  | BH29: ='Calculs (M1..M20)'!GT32 ->  | BI29: ='Calculs (M1..M20)'!GU32 ->  | BJ29: ='Calculs (M1..M20)'!GV32 ->  | BK29: ='Calculs (M1..M20)'!GW32 ->  | BL29: ='Calculs (M1..M20)'!GX32 ->  | BM29: ='Calculs (M1..M20)'!GY32 ->  | BN29: ='Calculs (M1..M20)'!GZ32 ->  | BO29: ='Calculs (M1..M20)'!HA32 ->  | BP29: ='Calculs (M1..M20)'!HB32 ->  | BQ29: ='Calculs (M1..M20)'!HC32 ->  | BR29: ='Calculs (M1..M20)'!HD32 ->  | BS29: ='Calculs (M1..M20)'!HE32 ->  | BT29: ='Calculs (M1..M20)'!HF32 ->  | BU29: ='Calculs (M21..M40)'!GM32 ->  | BV29: ='Calculs (M21..M40)'!GN32 ->  | BW29: ='Calculs (M21..M40)'!GO32 ->  | BX29: ='Calculs (M21..M40)'!GP32 ->  | BY29: ='Calculs (M21..M40)'!GQ32 ->  | BZ29: ='Calculs (M21..M40)'!GR32 ->  | CA29: ='Calculs (M21..M40)'!GS32 ->  | CB29: ='Calculs (M21..M40)'!GT32 ->  | CC29: ='Calculs (M21..M40)'!GU32 ->  | CD29: ='Calculs (M21..M40)'!GV32 ->  | CE29: ='Calculs (M21..M40)'!GW32 ->  | CF29: ='Calculs (M21..M40)'!GX32 ->  | CG29: ='Calculs (M21..M40)'!GY32 ->  | CH29: ='Calculs (M21..M40)'!GZ32 ->  | CI29: ='Calculs (M21..M40)'!HA32 ->  | CJ29: ='Calculs (M21..M40)'!HB32 ->  | CK29: ='Calculs (M21..M40)'!HC32 ->  | CL29: ='Calculs (M21..M40)'!HD32 ->  | CM29: ='Calculs (M21..M40)'!HE32 ->  | CN29: ='Calculs (M21..M40)'!HF32 -> 
B30: 20 | AV30: ='Calculs (M21..M40)'!A33 ->  | AW30: ='Calculs (M21..M40)'!G33 -> 0 | AX30: ='Calculs (M21..M40)'!H33 ->  | AY30: ='Calculs (M21..M40)'!I33 ->  | AZ30: ='Calculs (M21..M40)'!C33 ->  | BA30: ='Calculs (M1..M20)'!GM33 ->  | BB30: ='Calculs (M1..M20)'!GN33 ->  | BC30: ='Calculs (M1..M20)'!GO33 ->  | BD30: ='Calculs (M1..M20)'!GP33 ->  | BE30: ='Calculs (M1..M20)'!GQ33 ->  | BF30: ='Calculs (M1..M20)'!GR33 ->  | BG30: ='Calculs (M1..M20)'!GS33 ->  | BH30: ='Calculs (M1..M20)'!GT33 ->  | BI30: ='Calculs (M1..M20)'!GU33 ->  | BJ30: ='Calculs (M1..M20)'!GV33 ->  | BK30: ='Calculs (M1..M20)'!GW33 ->  | BL30: ='Calculs (M1..M20)'!GX33 ->  | BM30: ='Calculs (M1..M20)'!GY33 ->  | BN30: ='Calculs (M1..M20)'!GZ33 ->  | BO30: ='Calculs (M1..M20)'!HA33 ->  | BP30: ='Calculs (M1..M20)'!HB33 ->  | BQ30: ='Calculs (M1..M20)'!HC33 ->  | BR30: ='Calculs (M1..M20)'!HD33 ->  | BS30: ='Calculs (M1..M20)'!HE33 ->  | BT30: ='Calculs (M1..M20)'!HF33 ->  | BU30: ='Calculs (M21..M40)'!GM33 ->  | BV30: ='Calculs (M21..M40)'!GN33 ->  | BW30: ='Calculs (M21..M40)'!GO33 ->  | BX30: ='Calculs (M21..M40)'!GP33 ->  | BY30: ='Calculs (M21..M40)'!GQ33 ->  | BZ30: ='Calculs (M21..M40)'!GR33 ->  | CA30: ='Calculs (M21..M40)'!GS33 ->  | CB30: ='Calculs (M21..M40)'!GT33 ->  | CC30: ='Calculs (M21..M40)'!GU33 ->  | CD30: ='Calculs (M21..M40)'!GV33 ->  | CE30: ='Calculs (M21..M40)'!GW33 ->  | CF30: ='Calculs (M21..M40)'!GX33 ->  | CG30: ='Calculs (M21..M40)'!GY33 ->  | CH30: ='Calculs (M21..M40)'!GZ33 ->  | CI30: ='Calculs (M21..M40)'!HA33 ->  | CJ30: ='Calculs (M21..M40)'!HB33 ->  | CK30: ='Calculs (M21..M40)'!HC33 ->  | CL30: ='Calculs (M21..M40)'!HD33 ->  | CM30: ='Calculs (M21..M40)'!HE33 ->  | CN30: ='Calculs (M21..M40)'!HF33 -> 
B31: 21 | G31: =IF(ISNA(VLOOKUP($B31,ClassEvo,5+G$10,0)),"",VLOOKUP($B31,ClassEvo,5+G$10,0)) ->  | Q31: =IF(ISNA(VLOOKUP($B31,ClassEvo,5+Q$10,0)),"",VLOOKUP($B31,ClassEvo,5+Q$10,0)) ->  | AA31: =IF(ISNA(VLOOKUP($B31,ClassEvo,5+AA$10,0)),"",VLOOKUP($B31,ClassEvo,5+AA$10,0)) ->  | AK31: =IF(ISNA(VLOOKUP($B31,ClassEvo,5+AK$10,0)),"",VLOOKUP($B31,ClassEvo,5+AK$10,0)) ->  | AV31: ='Calculs (M21..M40)'!A34 ->  | AW31: ='Calculs (M21..M40)'!G34 -> 0 | AX31: ='Calculs (M21..M40)'!H34 ->  | AY31: ='Calculs (M21..M40)'!I34 ->  | AZ31: ='Calculs (M21..M40)'!C34 ->  | BA31: ='Calculs (M1..M20)'!GM34 ->  | BB31: ='Calculs (M1..M20)'!GN34 ->  | BC31: ='Calculs (M1..M20)'!GO34 ->  | BD31: ='Calculs (M1..M20)'!GP34 ->  | BE31: ='Calculs (M1..M20)'!GQ34 ->  | BF31: ='Calculs (M1..M20)'!GR34 ->  | BG31: ='Calculs (M1..M20)'!GS34 ->  | BH31: ='Calculs (M1..M20)'!GT34 ->  | BI31: ='Calculs (M1..M20)'!GU34 ->  | BJ31: ='Calculs (M1..M20)'!GV34 ->  | BK31: ='Calculs (M1..M20)'!GW34 ->  | BL31: ='Calculs (M1..M20)'!GX34 ->  | BM31: ='Calculs (M1..M20)'!GY34 ->  | BN31: ='Calculs (M1..M20)'!GZ34 ->  | BO31: ='Calculs (M1..M20)'!HA34 ->  | BP31: ='Calculs (M1..M20)'!HB34 ->  | BQ31: ='Calculs (M1..M20)'!HC34 ->  | BR31: ='Calculs (M1..M20)'!HD34 ->  | BS31: ='Calculs (M1..M20)'!HE34 ->  | BT31: ='Calculs (M1..M20)'!HF34 ->  | BU31: ='Calculs (M21..M40)'!GM34 ->  | BV31: ='Calculs (M21..M40)'!GN34 ->  | BW31: ='Calculs (M21..M40)'!GO34 ->  | BX31: ='Calculs (M21..M40)'!GP34 ->  | BY31: ='Calculs (M21..M40)'!GQ34 ->  | BZ31: ='Calculs (M21..M40)'!GR34 ->  | CA31: ='Calculs (M21..M40)'!GS34 ->  | CB31: ='Calculs (M21..M40)'!GT34 ->  | CC31: ='Calculs (M21..M40)'!GU34 ->  | CD31: ='Calculs (M21..M40)'!GV34 ->  | CE31: ='Calculs (M21..M40)'!GW34 ->  | CF31: ='Calculs (M21..M40)'!GX34 ->  | CG31: ='Calculs (M21..M40)'!GY34 ->  | CH31: ='Calculs (M21..M40)'!GZ34 ->  | CI31: ='Calculs (M21..M40)'!HA34 ->  | CJ31: ='Calculs (M21..M40)'!HB34 ->  | CK31: ='Calculs (M21..M40)'!HC34 ->  | CL31: ='Calculs (M21..M40)'!HD34 ->  | CM31: ='Calculs (M21..M40)'!HE34 ->  | CN31: ='Calculs (M21..M40)'!HF34 -> 
B32: 22 | AV32: ='Calculs (M21..M40)'!A35 ->  | AW32: ='Calculs (M21..M40)'!G35 -> 0 | AX32: ='Calculs (M21..M40)'!H35 ->  | AY32: ='Calculs (M21..M40)'!I35 ->  | AZ32: ='Calculs (M21..M40)'!C35 ->  | BA32: ='Calculs (M1..M20)'!GM35 ->  | BB32: ='Calculs (M1..M20)'!GN35 ->  | BC32: ='Calculs (M1..M20)'!GO35 ->  | BD32: ='Calculs (M1..M20)'!GP35 ->  | BE32: ='Calculs (M1..M20)'!GQ35 ->  | BF32: ='Calculs (M1..M20)'!GR35 ->  | BG32: ='Calculs (M1..M20)'!GS35 ->  | BH32: ='Calculs (M1..M20)'!GT35 ->  | BI32: ='Calculs (M1..M20)'!GU35 ->  | BJ32: ='Calculs (M1..M20)'!GV35 ->  | BK32: ='Calculs (M1..M20)'!GW35 ->  | BL32: ='Calculs (M1..M20)'!GX35 ->  | BM32: ='Calculs (M1..M20)'!GY35 ->  | BN32: ='Calculs (M1..M20)'!GZ35 ->  | BO32: ='Calculs (M1..M20)'!HA35 ->  | BP32: ='Calculs (M1..M20)'!HB35 ->  | BQ32: ='Calculs (M1..M20)'!HC35 ->  | BR32: ='Calculs (M1..M20)'!HD35 ->  | BS32: ='Calculs (M1..M20)'!HE35 ->  | BT32: ='Calculs (M1..M20)'!HF35 ->  | BU32: ='Calculs (M21..M40)'!GM35 ->  | BV32: ='Calculs (M21..M40)'!GN35 ->  | BW32: ='Calculs (M21..M40)'!GO35 ->  | BX32: ='Calculs (M21..M40)'!GP35 ->  | BY32: ='Calculs (M21..M40)'!GQ35 ->  | BZ32: ='Calculs (M21..M40)'!GR35 ->  | CA32: ='Calculs (M21..M40)'!GS35 ->  | CB32: ='Calculs (M21..M40)'!GT35 ->  | CC32: ='Calculs (M21..M40)'!GU35 ->  | CD32: ='Calculs (M21..M40)'!GV35 ->  | CE32: ='Calculs (M21..M40)'!GW35 ->  | CF32: ='Calculs (M21..M40)'!GX35 ->  | CG32: ='Calculs (M21..M40)'!GY35 ->  | CH32: ='Calculs (M21..M40)'!GZ35 ->  | CI32: ='Calculs (M21..M40)'!HA35 ->  | CJ32: ='Calculs (M21..M40)'!HB35 ->  | CK32: ='Calculs (M21..M40)'!HC35 ->  | CL32: ='Calculs (M21..M40)'!HD35 ->  | CM32: ='Calculs (M21..M40)'!HE35 ->  | CN32: ='Calculs (M21..M40)'!HF35 -> 
B33: 23 | AV33: ='Calculs (M21..M40)'!A36 ->  | AW33: ='Calculs (M21..M40)'!G36 -> 0 | AX33: ='Calculs (M21..M40)'!H36 ->  | AY33: ='Calculs (M21..M40)'!I36 ->  | AZ33: ='Calculs (M21..M40)'!C36 ->  | BA33: ='Calculs (M1..M20)'!GM36 ->  | BB33: ='Calculs (M1..M20)'!GN36 ->  | BC33: ='Calculs (M1..M20)'!GO36 ->  | BD33: ='Calculs (M1..M20)'!GP36 ->  | BE33: ='Calculs (M1..M20)'!GQ36 ->  | BF33: ='Calculs (M1..M20)'!GR36 ->  | BG33: ='Calculs (M1..M20)'!GS36 ->  | BH33: ='Calculs (M1..M20)'!GT36 ->  | BI33: ='Calculs (M1..M20)'!GU36 ->  | BJ33: ='Calculs (M1..M20)'!GV36 ->  | BK33: ='Calculs (M1..M20)'!GW36 ->  | BL33: ='Calculs (M1..M20)'!GX36 ->  | BM33: ='Calculs (M1..M20)'!GY36 ->  | BN33: ='Calculs (M1..M20)'!GZ36 ->  | BO33: ='Calculs (M1..M20)'!HA36 ->  | BP33: ='Calculs (M1..M20)'!HB36 ->  | BQ33: ='Calculs (M1..M20)'!HC36 ->  | BR33: ='Calculs (M1..M20)'!HD36 ->  | BS33: ='Calculs (M1..M20)'!HE36 ->  | BT33: ='Calculs (M1..M20)'!HF36 ->  | BU33: ='Calculs (M21..M40)'!GM36 ->  | BV33: ='Calculs (M21..M40)'!GN36 ->  | BW33: ='Calculs (M21..M40)'!GO36 ->  | BX33: ='Calculs (M21..M40)'!GP36 ->  | BY33: ='Calculs (M21..M40)'!GQ36 ->  | BZ33: ='Calculs (M21..M40)'!GR36 ->  | CA33: ='Calculs (M21..M40)'!GS36 ->  | CB33: ='Calculs (M21..M40)'!GT36 ->  | CC33: ='Calculs (M21..M40)'!GU36 ->  | CD33: ='Calculs (M21..M40)'!GV36 ->  | CE33: ='Calculs (M21..M40)'!GW36 ->  | CF33: ='Calculs (M21..M40)'!GX36 ->  | CG33: ='Calculs (M21..M40)'!GY36 ->  | CH33: ='Calculs (M21..M40)'!GZ36 ->  | CI33: ='Calculs (M21..M40)'!HA36 ->  | CJ33: ='Calculs (M21..M40)'!HB36 ->  | CK33: ='Calculs (M21..M40)'!HC36 ->  | CL33: ='Calculs (M21..M40)'!HD36 ->  | CM33: ='Calculs (M21..M40)'!HE36 ->  | CN33: ='Calculs (M21..M40)'!HF36 -> 
B34: 24 | AV34: ='Calculs (M21..M40)'!A37 ->  | AW34: ='Calculs (M21..M40)'!G37 -> 0 | AX34: ='Calculs (M21..M40)'!H37 ->  | AY34: ='Calculs (M21..M40)'!I37 ->  | AZ34: ='Calculs (M21..M40)'!C37 ->  | BA34: ='Calculs (M1..M20)'!GM37 ->  | BB34: ='Calculs (M1..M20)'!GN37 ->  | BC34: ='Calculs (M1..M20)'!GO37 ->  | BD34: ='Calculs (M1..M20)'!GP37 ->  | BE34: ='Calculs (M1..M20)'!GQ37 ->  | BF34: ='Calculs (M1..M20)'!GR37 ->  | BG34: ='Calculs (M1..M20)'!GS37 ->  | BH34: ='Calculs (M1..M20)'!GT37 ->  | BI34: ='Calculs (M1..M20)'!GU37 ->  | BJ34: ='Calculs (M1..M20)'!GV37 ->  | BK34: ='Calculs (M1..M20)'!GW37 ->  | BL34: ='Calculs (M1..M20)'!GX37 ->  | BM34: ='Calculs (M1..M20)'!GY37 ->  | BN34: ='Calculs (M1..M20)'!GZ37 ->  | BO34: ='Calculs (M1..M20)'!HA37 ->  | BP34: ='Calculs (M1..M20)'!HB37 ->  | BQ34: ='Calculs (M1..M20)'!HC37 ->  | BR34: ='Calculs (M1..M20)'!HD37 ->  | BS34: ='Calculs (M1..M20)'!HE37 ->  | BT34: ='Calculs (M1..M20)'!HF37 ->  | BU34: ='Calculs (M21..M40)'!GM37 ->  | BV34: ='Calculs (M21..M40)'!GN37 ->  | BW34: ='Calculs (M21..M40)'!GO37 ->  | BX34: ='Calculs (M21..M40)'!GP37 ->  | BY34: ='Calculs (M21..M40)'!GQ37 ->  | BZ34: ='Calculs (M21..M40)'!GR37 ->  | CA34: ='Calculs (M21..M40)'!GS37 ->  | CB34: ='Calculs (M21..M40)'!GT37 ->  | CC34: ='Calculs (M21..M40)'!GU37 ->  | CD34: ='Calculs (M21..M40)'!GV37 ->  | CE34: ='Calculs (M21..M40)'!GW37 ->  | CF34: ='Calculs (M21..M40)'!GX37 ->  | CG34: ='Calculs (M21..M40)'!GY37 ->  | CH34: ='Calculs (M21..M40)'!GZ37 ->  | CI34: ='Calculs (M21..M40)'!HA37 ->  | CJ34: ='Calculs (M21..M40)'!HB37 ->  | CK34: ='Calculs (M21..M40)'!HC37 ->  | CL34: ='Calculs (M21..M40)'!HD37 ->  | CM34: ='Calculs (M21..M40)'!HE37 ->  | CN34: ='Calculs (M21..M40)'!HF37 -> 
B35: 25 | AV35: ='Calculs (M21..M40)'!A38 ->  | AW35: ='Calculs (M21..M40)'!G38 -> 0 | AX35: ='Calculs (M21..M40)'!H38 ->  | AY35: ='Calculs (M21..M40)'!I38 ->  | AZ35: ='Calculs (M21..M40)'!C38 ->  | BA35: ='Calculs (M1..M20)'!GM38 ->  | BB35: ='Calculs (M1..M20)'!GN38 ->  | BC35: ='Calculs (M1..M20)'!GO38 ->  | BD35: ='Calculs (M1..M20)'!GP38 ->  | BE35: ='Calculs (M1..M20)'!GQ38 ->  | BF35: ='Calculs (M1..M20)'!GR38 ->  | BG35: ='Calculs (M1..M20)'!GS38 ->  | BH35: ='Calculs (M1..M20)'!GT38 ->  | BI35: ='Calculs (M1..M20)'!GU38 ->  | BJ35: ='Calculs (M1..M20)'!GV38 ->  | BK35: ='Calculs (M1..M20)'!GW38 ->  | BL35: ='Calculs (M1..M20)'!GX38 ->  | BM35: ='Calculs (M1..M20)'!GY38 ->  | BN35: ='Calculs (M1..M20)'!GZ38 ->  | BO35: ='Calculs (M1..M20)'!HA38 ->  | BP35: ='Calculs (M1..M20)'!HB38 ->  | BQ35: ='Calculs (M1..M20)'!HC38 ->  | BR35: ='Calculs (M1..M20)'!HD38 ->  | BS35: ='Calculs (M1..M20)'!HE38 ->  | BT35: ='Calculs (M1..M20)'!HF38 ->  | BU35: ='Calculs (M21..M40)'!GM38 ->  | BV35: ='Calculs (M21..M40)'!GN38 ->  | BW35: ='Calculs (M21..M40)'!GO38 ->  | BX35: ='Calculs (M21..M40)'!GP38 ->  | BY35: ='Calculs (M21..M40)'!GQ38 ->  | BZ35: ='Calculs (M21..M40)'!GR38 ->  | CA35: ='Calculs (M21..M40)'!GS38 ->  | CB35: ='Calculs (M21..M40)'!GT38 ->  | CC35: ='Calculs (M21..M40)'!GU38 ->  | CD35: ='Calculs (M21..M40)'!GV38 ->  | CE35: ='Calculs (M21..M40)'!GW38 ->  | CF35: ='Calculs (M21..M40)'!GX38 ->  | CG35: ='Calculs (M21..M40)'!GY38 ->  | CH35: ='Calculs (M21..M40)'!GZ38 ->  | CI35: ='Calculs (M21..M40)'!HA38 ->  | CJ35: ='Calculs (M21..M40)'!HB38 ->  | CK35: ='Calculs (M21..M40)'!HC38 ->  | CL35: ='Calculs (M21..M40)'!HD38 ->  | CM35: ='Calculs (M21..M40)'!HE38 ->  | CN35: ='Calculs (M21..M40)'!HF38 -> 
B36: 26 | AV36: ='Calculs (M21..M40)'!A39 ->  | AW36: ='Calculs (M21..M40)'!G39 -> 0 | AX36: ='Calculs (M21..M40)'!H39 ->  | AY36: ='Calculs (M21..M40)'!I39 ->  | AZ36: ='Calculs (M21..M40)'!C39 ->  | BA36: ='Calculs (M1..M20)'!GM39 ->  | BB36: ='Calculs (M1..M20)'!GN39 ->  | BC36: ='Calculs (M1..M20)'!GO39 ->  | BD36: ='Calculs (M1..M20)'!GP39 ->  | BE36: ='Calculs (M1..M20)'!GQ39 ->  | BF36: ='Calculs (M1..M20)'!GR39 ->  | BG36: ='Calculs (M1..M20)'!GS39 ->  | BH36: ='Calculs (M1..M20)'!GT39 ->  | BI36: ='Calculs (M1..M20)'!GU39 ->  | BJ36: ='Calculs (M1..M20)'!GV39 ->  | BK36: ='Calculs (M1..M20)'!GW39 ->  | BL36: ='Calculs (M1..M20)'!GX39 ->  | BM36: ='Calculs (M1..M20)'!GY39 ->  | BN36: ='Calculs (M1..M20)'!GZ39 ->  | BO36: ='Calculs (M1..M20)'!HA39 ->  | BP36: ='Calculs (M1..M20)'!HB39 ->  | BQ36: ='Calculs (M1..M20)'!HC39 ->  | BR36: ='Calculs (M1..M20)'!HD39 ->  | BS36: ='Calculs (M1..M20)'!HE39 ->  | BT36: ='Calculs (M1..M20)'!HF39 ->  | BU36: ='Calculs (M21..M40)'!GM39 ->  | BV36: ='Calculs (M21..M40)'!GN39 ->  | BW36: ='Calculs (M21..M40)'!GO39 ->  | BX36: ='Calculs (M21..M40)'!GP39 ->  | BY36: ='Calculs (M21..M40)'!GQ39 ->  | BZ36: ='Calculs (M21..M40)'!GR39 ->  | CA36: ='Calculs (M21..M40)'!GS39 ->  | CB36: ='Calculs (M21..M40)'!GT39 ->  | CC36: ='Calculs (M21..M40)'!GU39 ->  | CD36: ='Calculs (M21..M40)'!GV39 ->  | CE36: ='Calculs (M21..M40)'!GW39 ->  | CF36: ='Calculs (M21..M40)'!GX39 ->  | CG36: ='Calculs (M21..M40)'!GY39 ->  | CH36: ='Calculs (M21..M40)'!GZ39 ->  | CI36: ='Calculs (M21..M40)'!HA39 ->  | CJ36: ='Calculs (M21..M40)'!HB39 ->  | CK36: ='Calculs (M21..M40)'!HC39 ->  | CL36: ='Calculs (M21..M40)'!HD39 ->  | CM36: ='Calculs (M21..M40)'!HE39 ->  | CN36: ='Calculs (M21..M40)'!HF39 -> 
B37: 27 | AV37: ='Calculs (M21..M40)'!A40 ->  | AW37: ='Calculs (M21..M40)'!G40 -> 0 | AX37: ='Calculs (M21..M40)'!H40 ->  | AY37: ='Calculs (M21..M40)'!I40 ->  | AZ37: ='Calculs (M21..M40)'!C40 ->  | BA37: ='Calculs (M1..M20)'!GM40 ->  | BB37: ='Calculs (M1..M20)'!GN40 ->  | BC37: ='Calculs (M1..M20)'!GO40 ->  | BD37: ='Calculs (M1..M20)'!GP40 ->  | BE37: ='Calculs (M1..M20)'!GQ40 ->  | BF37: ='Calculs (M1..M20)'!GR40 ->  | BG37: ='Calculs (M1..M20)'!GS40 ->  | BH37: ='Calculs (M1..M20)'!GT40 ->  | BI37: ='Calculs (M1..M20)'!GU40 ->  | BJ37: ='Calculs (M1..M20)'!GV40 ->  | BK37: ='Calculs (M1..M20)'!GW40 ->  | BL37: ='Calculs (M1..M20)'!GX40 ->  | BM37: ='Calculs (M1..M20)'!GY40 ->  | BN37: ='Calculs (M1..M20)'!GZ40 ->  | BO37: ='Calculs (M1..M20)'!HA40 ->  | BP37: ='Calculs (M1..M20)'!HB40 ->  | BQ37: ='Calculs (M1..M20)'!HC40 ->  | BR37: ='Calculs (M1..M20)'!HD40 ->  | BS37: ='Calculs (M1..M20)'!HE40 ->  | BT37: ='Calculs (M1..M20)'!HF40 ->  | BU37: ='Calculs (M21..M40)'!GM40 ->  | BV37: ='Calculs (M21..M40)'!GN40 ->  | BW37: ='Calculs (M21..M40)'!GO40 ->  | BX37: ='Calculs (M21..M40)'!GP40 ->  | BY37: ='Calculs (M21..M40)'!GQ40 ->  | BZ37: ='Calculs (M21..M40)'!GR40 ->  | CA37: ='Calculs (M21..M40)'!GS40 ->  | CB37: ='Calculs (M21..M40)'!GT40 ->  | CC37: ='Calculs (M21..M40)'!GU40 ->  | CD37: ='Calculs (M21..M40)'!GV40 ->  | CE37: ='Calculs (M21..M40)'!GW40 ->  | CF37: ='Calculs (M21..M40)'!GX40 ->  | CG37: ='Calculs (M21..M40)'!GY40 ->  | CH37: ='Calculs (M21..M40)'!GZ40 ->  | CI37: ='Calculs (M21..M40)'!HA40 ->  | CJ37: ='Calculs (M21..M40)'!HB40 ->  | CK37: ='Calculs (M21..M40)'!HC40 ->  | CL37: ='Calculs (M21..M40)'!HD40 ->  | CM37: ='Calculs (M21..M40)'!HE40 ->  | CN37: ='Calculs (M21..M40)'!HF40 -> 
B38: 28 | AV38: ='Calculs (M21..M40)'!A41 ->  | AW38: ='Calculs (M21..M40)'!G41 -> 0 | AX38: ='Calculs (M21..M40)'!H41 ->  | AY38: ='Calculs (M21..M40)'!I41 ->  | AZ38: ='Calculs (M21..M40)'!C41 ->  | BA38: ='Calculs (M1..M20)'!GM41 ->  | BB38: ='Calculs (M1..M20)'!GN41 ->  | BC38: ='Calculs (M1..M20)'!GO41 ->  | BD38: ='Calculs (M1..M20)'!GP41 ->  | BE38: ='Calculs (M1..M20)'!GQ41 ->  | BF38: ='Calculs (M1..M20)'!GR41 ->  | BG38: ='Calculs (M1..M20)'!GS41 ->  | BH38: ='Calculs (M1..M20)'!GT41 ->  | BI38: ='Calculs (M1..M20)'!GU41 ->  | BJ38: ='Calculs (M1..M20)'!GV41 ->  | BK38: ='Calculs (M1..M20)'!GW41 ->  | BL38: ='Calculs (M1..M20)'!GX41 ->  | BM38: ='Calculs (M1..M20)'!GY41 ->  | BN38: ='Calculs (M1..M20)'!GZ41 ->  | BO38: ='Calculs (M1..M20)'!HA41 ->  | BP38: ='Calculs (M1..M20)'!HB41 ->  | BQ38: ='Calculs (M1..M20)'!HC41 ->  | BR38: ='Calculs (M1..M20)'!HD41 ->  | BS38: ='Calculs (M1..M20)'!HE41 ->  | BT38: ='Calculs (M1..M20)'!HF41 ->  | BU38: ='Calculs (M21..M40)'!GM41 ->  | BV38: ='Calculs (M21..M40)'!GN41 ->  | BW38: ='Calculs (M21..M40)'!GO41 ->  | BX38: ='Calculs (M21..M40)'!GP41 ->  | BY38: ='Calculs (M21..M40)'!GQ41 ->  | BZ38: ='Calculs (M21..M40)'!GR41 ->  | CA38: ='Calculs (M21..M40)'!GS41 ->  | CB38: ='Calculs (M21..M40)'!GT41 ->  | CC38: ='Calculs (M21..M40)'!GU41 ->  | CD38: ='Calculs (M21..M40)'!GV41 ->  | CE38: ='Calculs (M21..M40)'!GW41 ->  | CF38: ='Calculs (M21..M40)'!GX41 ->  | CG38: ='Calculs (M21..M40)'!GY41 ->  | CH38: ='Calculs (M21..M40)'!GZ41 ->  | CI38: ='Calculs (M21..M40)'!HA41 ->  | CJ38: ='Calculs (M21..M40)'!HB41 ->  | CK38: ='Calculs (M21..M40)'!HC41 ->  | CL38: ='Calculs (M21..M40)'!HD41 ->  | CM38: ='Calculs (M21..M40)'!HE41 ->  | CN38: ='Calculs (M21..M40)'!HF41 -> 
B39: 29 | AV39: ='Calculs (M21..M40)'!A42 ->  | AW39: ='Calculs (M21..M40)'!G42 -> 0 | AX39: ='Calculs (M21..M40)'!H42 ->  | AY39: ='Calculs (M21..M40)'!I42 ->  | AZ39: ='Calculs (M21..M40)'!C42 ->  | BA39: ='Calculs (M1..M20)'!GM42 ->  | BB39: ='Calculs (M1..M20)'!GN42 ->  | BC39: ='Calculs (M1..M20)'!GO42 ->  | BD39: ='Calculs (M1..M20)'!GP42 ->  | BE39: ='Calculs (M1..M20)'!GQ42 ->  | BF39: ='Calculs (M1..M20)'!GR42 ->  | BG39: ='Calculs (M1..M20)'!GS42 ->  | BH39: ='Calculs (M1..M20)'!GT42 ->  | BI39: ='Calculs (M1..M20)'!GU42 ->  | BJ39: ='Calculs (M1..M20)'!GV42 ->  | BK39: ='Calculs (M1..M20)'!GW42 ->  | BL39: ='Calculs (M1..M20)'!GX42 ->  | BM39: ='Calculs (M1..M20)'!GY42 ->  | BN39: ='Calculs (M1..M20)'!GZ42 ->  | BO39: ='Calculs (M1..M20)'!HA42 ->  | BP39: ='Calculs (M1..M20)'!HB42 ->  | BQ39: ='Calculs (M1..M20)'!HC42 ->  | BR39: ='Calculs (M1..M20)'!HD42 ->  | BS39: ='Calculs (M1..M20)'!HE42 ->  | BT39: ='Calculs (M1..M20)'!HF42 ->  | BU39: ='Calculs (M21..M40)'!GM42 ->  | BV39: ='Calculs (M21..M40)'!GN42 ->  | BW39: ='Calculs (M21..M40)'!GO42 ->  | BX39: ='Calculs (M21..M40)'!GP42 ->  | BY39: ='Calculs (M21..M40)'!GQ42 ->  | BZ39: ='Calculs (M21..M40)'!GR42 ->  | CA39: ='Calculs (M21..M40)'!GS42 ->  | CB39: ='Calculs (M21..M40)'!GT42 ->  | CC39: ='Calculs (M21..M40)'!GU42 ->  | CD39: ='Calculs (M21..M40)'!GV42 ->  | CE39: ='Calculs (M21..M40)'!GW42 ->  | CF39: ='Calculs (M21..M40)'!GX42 ->  | CG39: ='Calculs (M21..M40)'!GY42 ->  | CH39: ='Calculs (M21..M40)'!GZ42 ->  | CI39: ='Calculs (M21..M40)'!HA42 ->  | CJ39: ='Calculs (M21..M40)'!HB42 ->  | CK39: ='Calculs (M21..M40)'!HC42 ->  | CL39: ='Calculs (M21..M40)'!HD42 ->  | CM39: ='Calculs (M21..M40)'!HE42 ->  | CN39: ='Calculs (M21..M40)'!HF42 -> 
B40: 30 | AV40: ='Calculs (M21..M40)'!A43 ->  | AW40: ='Calculs (M21..M40)'!G43 -> 0 | AX40: ='Calculs (M21..M40)'!H43 ->  | AY40: ='Calculs (M21..M40)'!I43 ->  | AZ40: ='Calculs (M21..M40)'!C43 ->  | BA40: ='Calculs (M1..M20)'!GM43 ->  | BB40: ='Calculs (M1..M20)'!GN43 ->  | BC40: ='Calculs (M1..M20)'!GO43 ->  | BD40: ='Calculs (M1..M20)'!GP43 ->  | BE40: ='Calculs (M1..M20)'!GQ43 ->  | BF40: ='Calculs (M1..M20)'!GR43 ->  | BG40: ='Calculs (M1..M20)'!GS43 ->  | BH40: ='Calculs (M1..M20)'!GT43 ->  | BI40: ='Calculs (M1..M20)'!GU43 ->  | BJ40: ='Calculs (M1..M20)'!GV43 ->  | BK40: ='Calculs (M1..M20)'!GW43 ->  | BL40: ='Calculs (M1..M20)'!GX43 ->  | BM40: ='Calculs (M1..M20)'!GY43 ->  | BN40: ='Calculs (M1..M20)'!GZ43 ->  | BO40: ='Calculs (M1..M20)'!HA43 ->  | BP40: ='Calculs (M1..M20)'!HB43 ->  | BQ40: ='Calculs (M1..M20)'!HC43 ->  | BR40: ='Calculs (M1..M20)'!HD43 ->  | BS40: ='Calculs (M1..M20)'!HE43 ->  | BT40: ='Calculs (M1..M20)'!HF43 ->  | BU40: ='Calculs (M21..M40)'!GM43 ->  | BV40: ='Calculs (M21..M40)'!GN43 ->  | BW40: ='Calculs (M21..M40)'!GO43 ->  | BX40: ='Calculs (M21..M40)'!GP43 ->  | BY40: ='Calculs (M21..M40)'!GQ43 ->  | BZ40: ='Calculs (M21..M40)'!GR43 ->  | CA40: ='Calculs (M21..M40)'!GS43 ->  | CB40: ='Calculs (M21..M40)'!GT43 ->  | CC40: ='Calculs (M21..M40)'!GU43 ->  | CD40: ='Calculs (M21..M40)'!GV43 ->  | CE40: ='Calculs (M21..M40)'!GW43 ->  | CF40: ='Calculs (M21..M40)'!GX43 ->  | CG40: ='Calculs (M21..M40)'!GY43 ->  | CH40: ='Calculs (M21..M40)'!GZ43 ->  | CI40: ='Calculs (M21..M40)'!HA43 ->  | CJ40: ='Calculs (M21..M40)'!HB43 ->  | CK40: ='Calculs (M21..M40)'!HC43 ->  | CL40: ='Calculs (M21..M40)'!HD43 ->  | CM40: ='Calculs (M21..M40)'!HE43 ->  | CN40: ='Calculs (M21..M40)'!HF43 -> 
B41: 31 | G41: =IF(ISNA(VLOOKUP($B41,ClassEvo,5+G$10,0)),"",VLOOKUP($B41,ClassEvo,5+G$10,0)) ->  | Q41: =IF(ISNA(VLOOKUP($B41,ClassEvo,5+Q$10,0)),"",VLOOKUP($B41,ClassEvo,5+Q$10,0)) ->  | AA41: =IF(ISNA(VLOOKUP($B41,ClassEvo,5+AA$10,0)),"",VLOOKUP($B41,ClassEvo,5+AA$10,0)) ->  | AK41: =IF(ISNA(VLOOKUP($B41,ClassEvo,5+AK$10,0)),"",VLOOKUP($B41,ClassEvo,5+AK$10,0)) ->  | AV41: ='Calculs (M21..M40)'!A44 ->  | AW41: ='Calculs (M21..M40)'!G44 -> 0 | AX41: ='Calculs (M21..M40)'!H44 ->  | AY41: ='Calculs (M21..M40)'!I44 ->  | AZ41: ='Calculs (M21..M40)'!C44 ->  | BA41: ='Calculs (M1..M20)'!GM44 ->  | BB41: ='Calculs (M1..M20)'!GN44 ->  | BC41: ='Calculs (M1..M20)'!GO44 ->  | BD41: ='Calculs (M1..M20)'!GP44 ->  | BE41: ='Calculs (M1..M20)'!GQ44 ->  | BF41: ='Calculs (M1..M20)'!GR44 ->  | BG41: ='Calculs (M1..M20)'!GS44 ->  | BH41: ='Calculs (M1..M20)'!GT44 ->  | BI41: ='Calculs (M1..M20)'!GU44 ->  | BJ41: ='Calculs (M1..M20)'!GV44 ->  | BK41: ='Calculs (M1..M20)'!GW44 ->  | BL41: ='Calculs (M1..M20)'!GX44 ->  | BM41: ='Calculs (M1..M20)'!GY44 ->  | BN41: ='Calculs (M1..M20)'!GZ44 ->  | BO41: ='Calculs (M1..M20)'!HA44 ->  | BP41: ='Calculs (M1..M20)'!HB44 ->  | BQ41: ='Calculs (M1..M20)'!HC44 ->  | BR41: ='Calculs (M1..M20)'!HD44 ->  | BS41: ='Calculs (M1..M20)'!HE44 ->  | BT41: ='Calculs (M1..M20)'!HF44 ->  | BU41: ='Calculs (M21..M40)'!GM44 ->  | BV41: ='Calculs (M21..M40)'!GN44 ->  | BW41: ='Calculs (M21..M40)'!GO44 ->  | BX41: ='Calculs (M21..M40)'!GP44 ->  | BY41: ='Calculs (M21..M40)'!GQ44 ->  | BZ41: ='Calculs (M21..M40)'!GR44 ->  | CA41: ='Calculs (M21..M40)'!GS44 ->  | CB41: ='Calculs (M21..M40)'!GT44 ->  | CC41: ='Calculs (M21..M40)'!GU44 ->  | CD41: ='Calculs (M21..M40)'!GV44 ->  | CE41: ='Calculs (M21..M40)'!GW44 ->  | CF41: ='Calculs (M21..M40)'!GX44 ->  | CG41: ='Calculs (M21..M40)'!GY44 ->  | CH41: ='Calculs (M21..M40)'!GZ44 ->  | CI41: ='Calculs (M21..M40)'!HA44 ->  | CJ41: ='Calculs (M21..M40)'!HB44 ->  | CK41: ='Calculs (M21..M40)'!HC44 ->  | CL41: ='Calculs (M21..M40)'!HD44 ->  | CM41: ='Calculs (M21..M40)'!HE44 ->  | CN41: ='Calculs (M21..M40)'!HF44 -> 
B42: 32 | AV42: ='Calculs (M21..M40)'!A45 ->  | AW42: ='Calculs (M21..M40)'!G45 -> 0 | AX42: ='Calculs (M21..M40)'!H45 ->  | AY42: ='Calculs (M21..M40)'!I45 ->  | AZ42: ='Calculs (M21..M40)'!C45 ->  | BA42: ='Calculs (M1..M20)'!GM45 ->  | BB42: ='Calculs (M1..M20)'!GN45 ->  | BC42: ='Calculs (M1..M20)'!GO45 ->  | BD42: ='Calculs (M1..M20)'!GP45 ->  | BE42: ='Calculs (M1..M20)'!GQ45 ->  | BF42: ='Calculs (M1..M20)'!GR45 ->  | BG42: ='Calculs (M1..M20)'!GS45 ->  | BH42: ='Calculs (M1..M20)'!GT45 ->  | BI42: ='Calculs (M1..M20)'!GU45 ->  | BJ42: ='Calculs (M1..M20)'!GV45 ->  | BK42: ='Calculs (M1..M20)'!GW45 ->  | BL42: ='Calculs (M1..M20)'!GX45 ->  | BM42: ='Calculs (M1..M20)'!GY45 ->  | BN42: ='Calculs (M1..M20)'!GZ45 ->  | BO42: ='Calculs (M1..M20)'!HA45 ->  | BP42: ='Calculs (M1..M20)'!HB45 ->  | BQ42: ='Calculs (M1..M20)'!HC45 ->  | BR42: ='Calculs (M1..M20)'!HD45 ->  | BS42: ='Calculs (M1..M20)'!HE45 ->  | BT42: ='Calculs (M1..M20)'!HF45 ->  | BU42: ='Calculs (M21..M40)'!GM45 ->  | BV42: ='Calculs (M21..M40)'!GN45 ->  | BW42: ='Calculs (M21..M40)'!GO45 ->  | BX42: ='Calculs (M21..M40)'!GP45 ->  | BY42: ='Calculs (M21..M40)'!GQ45 ->  | BZ42: ='Calculs (M21..M40)'!GR45 ->  | CA42: ='Calculs (M21..M40)'!GS45 ->  | CB42: ='Calculs (M21..M40)'!GT45 ->  | CC42: ='Calculs (M21..M40)'!GU45 ->  | CD42: ='Calculs (M21..M40)'!GV45 ->  | CE42: ='Calculs (M21..M40)'!GW45 ->  | CF42: ='Calculs (M21..M40)'!GX45 ->  | CG42: ='Calculs (M21..M40)'!GY45 ->  | CH42: ='Calculs (M21..M40)'!GZ45 ->  | CI42: ='Calculs (M21..M40)'!HA45 ->  | CJ42: ='Calculs (M21..M40)'!HB45 ->  | CK42: ='Calculs (M21..M40)'!HC45 ->  | CL42: ='Calculs (M21..M40)'!HD45 ->  | CM42: ='Calculs (M21..M40)'!HE45 ->  | CN42: ='Calculs (M21..M40)'!HF45 -> 
B43: 33 | C43: =IF(ISNA(VLOOKUP(B43,ClassEvo,2,0)),"",VLOOKUP(B43,ClassEvo,2,0)) ->  | D43: =IF(ISNA(VLOOKUP($B43,ClassEvo,3,0)),"",VLOOKUP($B43,ClassEvo,3,0)) ->  | E43: =IF(ISNA(VLOOKUP($B43,ClassEvo,4,0)),"",VLOOKUP($B43,ClassEvo,4,0)) ->  | F43: =IF(ISNA(VLOOKUP($B43,ClassEvo,5,0)),"",VLOOKUP($B43,ClassEvo,5,0)) ->  | AV43: ='Calculs (M21..M40)'!A46 ->  | AW43: ='Calculs (M21..M40)'!G46 -> 0 | AX43: ='Calculs (M21..M40)'!H46 ->  | AY43: ='Calculs (M21..M40)'!I46 ->  | AZ43: ='Calculs (M21..M40)'!C46 ->  | BA43: ='Calculs (M1..M20)'!GM46 ->  | BB43: ='Calculs (M1..M20)'!GN46 ->  | BC43: ='Calculs (M1..M20)'!GO46 ->  | BD43: ='Calculs (M1..M20)'!GP46 ->  | BE43: ='Calculs (M1..M20)'!GQ46 ->  | BF43: ='Calculs (M1..M20)'!GR46 ->  | BG43: ='Calculs (M1..M20)'!GS46 ->  | BH43: ='Calculs (M1..M20)'!GT46 ->  | BI43: ='Calculs (M1..M20)'!GU46 ->  | BJ43: ='Calculs (M1..M20)'!GV46 ->  | BK43: ='Calculs (M1..M20)'!GW46 ->  | BL43: ='Calculs (M1..M20)'!GX46 ->  | BM43: ='Calculs (M1..M20)'!GY46 ->  | BN43: ='Calculs (M1..M20)'!GZ46 ->  | BO43: ='Calculs (M1..M20)'!HA46 ->  | BP43: ='Calculs (M1..M20)'!HB46 ->  | BQ43: ='Calculs (M1..M20)'!HC46 ->  | BR43: ='Calculs (M1..M20)'!HD46 ->  | BS43: ='Calculs (M1..M20)'!HE46 ->  | BT43: ='Calculs (M1..M20)'!HF46 ->  | BU43: ='Calculs (M21..M40)'!GM46 ->  | BV43: ='Calculs (M21..M40)'!GN46 ->  | BW43: ='Calculs (M21..M40)'!GO46 ->  | BX43: ='Calculs (M21..M40)'!GP46 ->  | BY43: ='Calculs (M21..M40)'!GQ46 ->  | BZ43: ='Calculs (M21..M40)'!GR46 ->  | CA43: ='Calculs (M21..M40)'!GS46 ->  | CB43: ='Calculs (M21..M40)'!GT46 ->  | CC43: ='Calculs (M21..M40)'!GU46 ->  | CD43: ='Calculs (M21..M40)'!GV46 ->  | CE43: ='Calculs (M21..M40)'!GW46 ->  | CF43: ='Calculs (M21..M40)'!GX46 ->  | CG43: ='Calculs (M21..M40)'!GY46 ->  | CH43: ='Calculs (M21..M40)'!GZ46 ->  | CI43: ='Calculs (M21..M40)'!HA46 ->  | CJ43: ='Calculs (M21..M40)'!HB46 ->  | CK43: ='Calculs (M21..M40)'!HC46 ->  | CL43: ='Calculs (M21..M40)'!HD46 ->  | CM43: ='Calculs (M21..M40)'!HE46 ->  | CN43: ='Calculs (M21..M40)'!HF46 -> 
B44: 34 | AV44: ='Calculs (M21..M40)'!A47 ->  | AW44: ='Calculs (M21..M40)'!G47 -> 0 | AX44: ='Calculs (M21..M40)'!H47 ->  | AY44: ='Calculs (M21..M40)'!I47 ->  | AZ44: ='Calculs (M21..M40)'!C47 ->  | BA44: ='Calculs (M1..M20)'!GM47 ->  | BB44: ='Calculs (M1..M20)'!GN47 ->  | BC44: ='Calculs (M1..M20)'!GO47 ->  | BD44: ='Calculs (M1..M20)'!GP47 ->  | BE44: ='Calculs (M1..M20)'!GQ47 ->  | BF44: ='Calculs (M1..M20)'!GR47 ->  | BG44: ='Calculs (M1..M20)'!GS47 ->  | BH44: ='Calculs (M1..M20)'!GT47 ->  | BI44: ='Calculs (M1..M20)'!GU47 ->  | BJ44: ='Calculs (M1..M20)'!GV47 ->  | BK44: ='Calculs (M1..M20)'!GW47 ->  | BL44: ='Calculs (M1..M20)'!GX47 ->  | BM44: ='Calculs (M1..M20)'!GY47 ->  | BN44: ='Calculs (M1..M20)'!GZ47 ->  | BO44: ='Calculs (M1..M20)'!HA47 ->  | BP44: ='Calculs (M1..M20)'!HB47 ->  | BQ44: ='Calculs (M1..M20)'!HC47 ->  | BR44: ='Calculs (M1..M20)'!HD47 ->  | BS44: ='Calculs (M1..M20)'!HE47 ->  | BT44: ='Calculs (M1..M20)'!HF47 ->  | BU44: ='Calculs (M21..M40)'!GM47 ->  | BV44: ='Calculs (M21..M40)'!GN47 ->  | BW44: ='Calculs (M21..M40)'!GO47 ->  | BX44: ='Calculs (M21..M40)'!GP47 ->  | BY44: ='Calculs (M21..M40)'!GQ47 ->  | BZ44: ='Calculs (M21..M40)'!GR47 ->  | CA44: ='Calculs (M21..M40)'!GS47 ->  | CB44: ='Calculs (M21..M40)'!GT47 ->  | CC44: ='Calculs (M21..M40)'!GU47 ->  | CD44: ='Calculs (M21..M40)'!GV47 ->  | CE44: ='Calculs (M21..M40)'!GW47 ->  | CF44: ='Calculs (M21..M40)'!GX47 ->  | CG44: ='Calculs (M21..M40)'!GY47 ->  | CH44: ='Calculs (M21..M40)'!GZ47 ->  | CI44: ='Calculs (M21..M40)'!HA47 ->  | CJ44: ='Calculs (M21..M40)'!HB47 ->  | CK44: ='Calculs (M21..M40)'!HC47 ->  | CL44: ='Calculs (M21..M40)'!HD47 ->  | CM44: ='Calculs (M21..M40)'!HE47 ->  | CN44: ='Calculs (M21..M40)'!HF47 -> 
B45: 35 | AV45: ='Calculs (M21..M40)'!A48 ->  | AW45: ='Calculs (M21..M40)'!G48 -> 0 | AX45: ='Calculs (M21..M40)'!H48 ->  | AY45: ='Calculs (M21..M40)'!I48 ->  | AZ45: ='Calculs (M21..M40)'!C48 ->  | BA45: ='Calculs (M1..M20)'!GM48 ->  | BB45: ='Calculs (M1..M20)'!GN48 ->  | BC45: ='Calculs (M1..M20)'!GO48 ->  | BD45: ='Calculs (M1..M20)'!GP48 ->  | BE45: ='Calculs (M1..M20)'!GQ48 ->  | BF45: ='Calculs (M1..M20)'!GR48 ->  | BG45: ='Calculs (M1..M20)'!GS48 ->  | BH45: ='Calculs (M1..M20)'!GT48 ->  | BI45: ='Calculs (M1..M20)'!GU48 ->  | BJ45: ='Calculs (M1..M20)'!GV48 ->  | BK45: ='Calculs (M1..M20)'!GW48 ->  | BL45: ='Calculs (M1..M20)'!GX48 ->  | BM45: ='Calculs (M1..M20)'!GY48 ->  | BN45: ='Calculs (M1..M20)'!GZ48 ->  | BO45: ='Calculs (M1..M20)'!HA48 ->  | BP45: ='Calculs (M1..M20)'!HB48 ->  | BQ45: ='Calculs (M1..M20)'!HC48 ->  | BR45: ='Calculs (M1..M20)'!HD48 ->  | BS45: ='Calculs (M1..M20)'!HE48 ->  | BT45: ='Calculs (M1..M20)'!HF48 ->  | BU45: ='Calculs (M21..M40)'!GM48 ->  | BV45: ='Calculs (M21..M40)'!GN48 ->  | BW45: ='Calculs (M21..M40)'!GO48 ->  | BX45: ='Calculs (M21..M40)'!GP48 ->  | BY45: ='Calculs (M21..M40)'!GQ48 ->  | BZ45: ='Calculs (M21..M40)'!GR48 ->  | CA45: ='Calculs (M21..M40)'!GS48 ->  | CB45: ='Calculs (M21..M40)'!GT48 ->  | CC45: ='Calculs (M21..M40)'!GU48 ->  | CD45: ='Calculs (M21..M40)'!GV48 ->  | CE45: ='Calculs (M21..M40)'!GW48 ->  | CF45: ='Calculs (M21..M40)'!GX48 ->  | CG45: ='Calculs (M21..M40)'!GY48 ->  | CH45: ='Calculs (M21..M40)'!GZ48 ->  | CI45: ='Calculs (M21..M40)'!HA48 ->  | CJ45: ='Calculs (M21..M40)'!HB48 ->  | CK45: ='Calculs (M21..M40)'!HC48 ->  | CL45: ='Calculs (M21..M40)'!HD48 ->  | CM45: ='Calculs (M21..M40)'!HE48 ->  | CN45: ='Calculs (M21..M40)'!HF48 -> 
B46: 36 | AV46: ='Calculs (M21..M40)'!A49 ->  | AW46: ='Calculs (M21..M40)'!G49 -> 0 | AX46: ='Calculs (M21..M40)'!H49 ->  | AY46: ='Calculs (M21..M40)'!I49 ->  | AZ46: ='Calculs (M21..M40)'!C49 ->  | BA46: ='Calculs (M1..M20)'!GM49 ->  | BB46: ='Calculs (M1..M20)'!GN49 ->  | BC46: ='Calculs (M1..M20)'!GO49 ->  | BD46: ='Calculs (M1..M20)'!GP49 ->  | BE46: ='Calculs (M1..M20)'!GQ49 ->  | BF46: ='Calculs (M1..M20)'!GR49 ->  | BG46: ='Calculs (M1..M20)'!GS49 ->  | BH46: ='Calculs (M1..M20)'!GT49 ->  | BI46: ='Calculs (M1..M20)'!GU49 ->  | BJ46: ='Calculs (M1..M20)'!GV49 ->  | BK46: ='Calculs (M1..M20)'!GW49 ->  | BL46: ='Calculs (M1..M20)'!GX49 ->  | BM46: ='Calculs (M1..M20)'!GY49 ->  | BN46: ='Calculs (M1..M20)'!GZ49 ->  | BO46: ='Calculs (M1..M20)'!HA49 ->  | BP46: ='Calculs (M1..M20)'!HB49 ->  | BQ46: ='Calculs (M1..M20)'!HC49 ->  | BR46: ='Calculs (M1..M20)'!HD49 ->  | BS46: ='Calculs (M1..M20)'!HE49 ->  | BT46: ='Calculs (M1..M20)'!HF49 ->  | BU46: ='Calculs (M21..M40)'!GM49 ->  | BV46: ='Calculs (M21..M40)'!GN49 ->  | BW46: ='Calculs (M21..M40)'!GO49 ->  | BX46: ='Calculs (M21..M40)'!GP49 ->  | BY46: ='Calculs (M21..M40)'!GQ49 ->  | BZ46: ='Calculs (M21..M40)'!GR49 ->  | CA46: ='Calculs (M21..M40)'!GS49 ->  | CB46: ='Calculs (M21..M40)'!GT49 ->  | CC46: ='Calculs (M21..M40)'!GU49 ->  | CD46: ='Calculs (M21..M40)'!GV49 ->  | CE46: ='Calculs (M21..M40)'!GW49 ->  | CF46: ='Calculs (M21..M40)'!GX49 ->  | CG46: ='Calculs (M21..M40)'!GY49 ->  | CH46: ='Calculs (M21..M40)'!GZ49 ->  | CI46: ='Calculs (M21..M40)'!HA49 ->  | CJ46: ='Calculs (M21..M40)'!HB49 ->  | CK46: ='Calculs (M21..M40)'!HC49 ->  | CL46: ='Calculs (M21..M40)'!HD49 ->  | CM46: ='Calculs (M21..M40)'!HE49 ->  | CN46: ='Calculs (M21..M40)'!HF49 -> 
B47: 37 | AV47: ='Calculs (M21..M40)'!A50 ->  | AW47: ='Calculs (M21..M40)'!G50 -> 0 | AX47: ='Calculs (M21..M40)'!H50 ->  | AY47: ='Calculs (M21..M40)'!I50 ->  | AZ47: ='Calculs (M21..M40)'!C50 ->  | BA47: ='Calculs (M1..M20)'!GM50 ->  | BB47: ='Calculs (M1..M20)'!GN50 ->  | BC47: ='Calculs (M1..M20)'!GO50 ->  | BD47: ='Calculs (M1..M20)'!GP50 ->  | BE47: ='Calculs (M1..M20)'!GQ50 ->  | BF47: ='Calculs (M1..M20)'!GR50 ->  | BG47: ='Calculs (M1..M20)'!GS50 ->  | BH47: ='Calculs (M1..M20)'!GT50 ->  | BI47: ='Calculs (M1..M20)'!GU50 ->  | BJ47: ='Calculs (M1..M20)'!GV50 ->  | BK47: ='Calculs (M1..M20)'!GW50 ->  | BL47: ='Calculs (M1..M20)'!GX50 ->  | BM47: ='Calculs (M1..M20)'!GY50 ->  | BN47: ='Calculs (M1..M20)'!GZ50 ->  | BO47: ='Calculs (M1..M20)'!HA50 ->  | BP47: ='Calculs (M1..M20)'!HB50 ->  | BQ47: ='Calculs (M1..M20)'!HC50 ->  | BR47: ='Calculs (M1..M20)'!HD50 ->  | BS47: ='Calculs (M1..M20)'!HE50 ->  | BT47: ='Calculs (M1..M20)'!HF50 ->  | BU47: ='Calculs (M21..M40)'!GM50 ->  | BV47: ='Calculs (M21..M40)'!GN50 ->  | BW47: ='Calculs (M21..M40)'!GO50 ->  | BX47: ='Calculs (M21..M40)'!GP50 ->  | BY47: ='Calculs (M21..M40)'!GQ50 ->  | BZ47: ='Calculs (M21..M40)'!GR50 ->  | CA47: ='Calculs (M21..M40)'!GS50 ->  | CB47: ='Calculs (M21..M40)'!GT50 ->  | CC47: ='Calculs (M21..M40)'!GU50 ->  | CD47: ='Calculs (M21..M40)'!GV50 ->  | CE47: ='Calculs (M21..M40)'!GW50 ->  | CF47: ='Calculs (M21..M40)'!GX50 ->  | CG47: ='Calculs (M21..M40)'!GY50 ->  | CH47: ='Calculs (M21..M40)'!GZ50 ->  | CI47: ='Calculs (M21..M40)'!HA50 ->  | CJ47: ='Calculs (M21..M40)'!HB50 ->  | CK47: ='Calculs (M21..M40)'!HC50 ->  | CL47: ='Calculs (M21..M40)'!HD50 ->  | CM47: ='Calculs (M21..M40)'!HE50 ->  | CN47: ='Calculs (M21..M40)'!HF50 -> 
B48: 38 | AV48: ='Calculs (M21..M40)'!A51 ->  | AW48: ='Calculs (M21..M40)'!G51 -> 0 | AX48: ='Calculs (M21..M40)'!H51 ->  | AY48: ='Calculs (M21..M40)'!I51 ->  | AZ48: ='Calculs (M21..M40)'!C51 ->  | BA48: ='Calculs (M1..M20)'!GM51 ->  | BB48: ='Calculs (M1..M20)'!GN51 ->  | BC48: ='Calculs (M1..M20)'!GO51 ->  | BD48: ='Calculs (M1..M20)'!GP51 ->  | BE48: ='Calculs (M1..M20)'!GQ51 ->  | BF48: ='Calculs (M1..M20)'!GR51 ->  | BG48: ='Calculs (M1..M20)'!GS51 ->  | BH48: ='Calculs (M1..M20)'!GT51 ->  | BI48: ='Calculs (M1..M20)'!GU51 ->  | BJ48: ='Calculs (M1..M20)'!GV51 ->  | BK48: ='Calculs (M1..M20)'!GW51 ->  | BL48: ='Calculs (M1..M20)'!GX51 ->  | BM48: ='Calculs (M1..M20)'!GY51 ->  | BN48: ='Calculs (M1..M20)'!GZ51 ->  | BO48: ='Calculs (M1..M20)'!HA51 ->  | BP48: ='Calculs (M1..M20)'!HB51 ->  | BQ48: ='Calculs (M1..M20)'!HC51 ->  | BR48: ='Calculs (M1..M20)'!HD51 ->  | BS48: ='Calculs (M1..M20)'!HE51 ->  | BT48: ='Calculs (M1..M20)'!HF51 ->  | BU48: ='Calculs (M21..M40)'!GM51 ->  | BV48: ='Calculs (M21..M40)'!GN51 ->  | BW48: ='Calculs (M21..M40)'!GO51 ->  | BX48: ='Calculs (M21..M40)'!GP51 ->  | BY48: ='Calculs (M21..M40)'!GQ51 ->  | BZ48: ='Calculs (M21..M40)'!GR51 ->  | CA48: ='Calculs (M21..M40)'!GS51 ->  | CB48: ='Calculs (M21..M40)'!GT51 ->  | CC48: ='Calculs (M21..M40)'!GU51 ->  | CD48: ='Calculs (M21..M40)'!GV51 ->  | CE48: ='Calculs (M21..M40)'!GW51 ->  | CF48: ='Calculs (M21..M40)'!GX51 ->  | CG48: ='Calculs (M21..M40)'!GY51 ->  | CH48: ='Calculs (M21..M40)'!GZ51 ->  | CI48: ='Calculs (M21..M40)'!HA51 ->  | CJ48: ='Calculs (M21..M40)'!HB51 ->  | CK48: ='Calculs (M21..M40)'!HC51 ->  | CL48: ='Calculs (M21..M40)'!HD51 ->  | CM48: ='Calculs (M21..M40)'!HE51 ->  | CN48: ='Calculs (M21..M40)'!HF51 -> 
B49: 39 | AV49: ='Calculs (M21..M40)'!A52 ->  | AW49: ='Calculs (M21..M40)'!G52 -> 0 | AX49: ='Calculs (M21..M40)'!H52 ->  | AY49: ='Calculs (M21..M40)'!I52 ->  | AZ49: ='Calculs (M21..M40)'!C52 ->  | BA49: ='Calculs (M1..M20)'!GM52 ->  | BB49: ='Calculs (M1..M20)'!GN52 ->  | BC49: ='Calculs (M1..M20)'!GO52 ->  | BD49: ='Calculs (M1..M20)'!GP52 ->  | BE49: ='Calculs (M1..M20)'!GQ52 ->  | BF49: ='Calculs (M1..M20)'!GR52 ->  | BG49: ='Calculs (M1..M20)'!GS52 ->  | BH49: ='Calculs (M1..M20)'!GT52 ->  | BI49: ='Calculs (M1..M20)'!GU52 ->  | BJ49: ='Calculs (M1..M20)'!GV52 ->  | BK49: ='Calculs (M1..M20)'!GW52 ->  | BL49: ='Calculs (M1..M20)'!GX52 ->  | BM49: ='Calculs (M1..M20)'!GY52 ->  | BN49: ='Calculs (M1..M20)'!GZ52 ->  | BO49: ='Calculs (M1..M20)'!HA52 ->  | BP49: ='Calculs (M1..M20)'!HB52 ->  | BQ49: ='Calculs (M1..M20)'!HC52 ->  | BR49: ='Calculs (M1..M20)'!HD52 ->  | BS49: ='Calculs (M1..M20)'!HE52 ->  | BT49: ='Calculs (M1..M20)'!HF52 ->  | BU49: ='Calculs (M21..M40)'!GM52 ->  | BV49: ='Calculs (M21..M40)'!GN52 ->  | BW49: ='Calculs (M21..M40)'!GO52 ->  | BX49: ='Calculs (M21..M40)'!GP52 ->  | BY49: ='Calculs (M21..M40)'!GQ52 ->  | BZ49: ='Calculs (M21..M40)'!GR52 ->  | CA49: ='Calculs (M21..M40)'!GS52 ->  | CB49: ='Calculs (M21..M40)'!GT52 ->  | CC49: ='Calculs (M21..M40)'!GU52 ->  | CD49: ='Calculs (M21..M40)'!GV52 ->  | CE49: ='Calculs (M21..M40)'!GW52 ->  | CF49: ='Calculs (M21..M40)'!GX52 ->  | CG49: ='Calculs (M21..M40)'!GY52 ->  | CH49: ='Calculs (M21..M40)'!GZ52 ->  | CI49: ='Calculs (M21..M40)'!HA52 ->  | CJ49: ='Calculs (M21..M40)'!HB52 ->  | CK49: ='Calculs (M21..M40)'!HC52 ->  | CL49: ='Calculs (M21..M40)'!HD52 ->  | CM49: ='Calculs (M21..M40)'!HE52 ->  | CN49: ='Calculs (M21..M40)'!HF52 -> 
B50: 40 | AV50: ='Calculs (M21..M40)'!A53 ->  | AW50: ='Calculs (M21..M40)'!G53 -> 0 | AX50: ='Calculs (M21..M40)'!H53 ->  | AY50: ='Calculs (M21..M40)'!I53 ->  | AZ50: ='Calculs (M21..M40)'!C53 ->  | BA50: ='Calculs (M1..M20)'!GM53 ->  | BB50: ='Calculs (M1..M20)'!GN53 ->  | BC50: ='Calculs (M1..M20)'!GO53 ->  | BD50: ='Calculs (M1..M20)'!GP53 ->  | BE50: ='Calculs (M1..M20)'!GQ53 ->  | BF50: ='Calculs (M1..M20)'!GR53 ->  | BG50: ='Calculs (M1..M20)'!GS53 ->  | BH50: ='Calculs (M1..M20)'!GT53 ->  | BI50: ='Calculs (M1..M20)'!GU53 ->  | BJ50: ='Calculs (M1..M20)'!GV53 ->  | BK50: ='Calculs (M1..M20)'!GW53 ->  | BL50: ='Calculs (M1..M20)'!GX53 ->  | BM50: ='Calculs (M1..M20)'!GY53 ->  | BN50: ='Calculs (M1..M20)'!GZ53 ->  | BO50: ='Calculs (M1..M20)'!HA53 ->  | BP50: ='Calculs (M1..M20)'!HB53 ->  | BQ50: ='Calculs (M1..M20)'!HC53 ->  | BR50: ='Calculs (M1..M20)'!HD53 ->  | BS50: ='Calculs (M1..M20)'!HE53 ->  | BT50: ='Calculs (M1..M20)'!HF53 ->  | BU50: ='Calculs (M21..M40)'!GM53 ->  | BV50: ='Calculs (M21..M40)'!GN53 ->  | BW50: ='Calculs (M21..M40)'!GO53 ->  | BX50: ='Calculs (M21..M40)'!GP53 ->  | BY50: ='Calculs (M21..M40)'!GQ53 ->  | BZ50: ='Calculs (M21..M40)'!GR53 ->  | CA50: ='Calculs (M21..M40)'!GS53 ->  | CB50: ='Calculs (M21..M40)'!GT53 ->  | CC50: ='Calculs (M21..M40)'!GU53 ->  | CD50: ='Calculs (M21..M40)'!GV53 ->  | CE50: ='Calculs (M21..M40)'!GW53 ->  | CF50: ='Calculs (M21..M40)'!GX53 ->  | CG50: ='Calculs (M21..M40)'!GY53 ->  | CH50: ='Calculs (M21..M40)'!GZ53 ->  | CI50: ='Calculs (M21..M40)'!HA53 ->  | CJ50: ='Calculs (M21..M40)'!HB53 ->  | CK50: ='Calculs (M21..M40)'!HC53 ->  | CL50: ='Calculs (M21..M40)'!HD53 ->  | CM50: ='Calculs (M21..M40)'!HE53 ->  | CN50: ='Calculs (M21..M40)'!HF53 -> 
B51: 41 | G51: =IF(ISNA(VLOOKUP($B51,ClassEvo,5+G$10,0)),"",VLOOKUP($B51,ClassEvo,5+G$10,0)) ->  | Q51: =IF(ISNA(VLOOKUP($B51,ClassEvo,5+Q$10,0)),"",VLOOKUP($B51,ClassEvo,5+Q$10,0)) ->  | AA51: =IF(ISNA(VLOOKUP($B51,ClassEvo,5+AA$10,0)),"",VLOOKUP($B51,ClassEvo,5+AA$10,0)) ->  | AK51: =IF(ISNA(VLOOKUP($B51,ClassEvo,5+AK$10,0)),"",VLOOKUP($B51,ClassEvo,5+AK$10,0)) ->  | AV51: ='Calculs (M21..M40)'!A54 ->  | AW51: ='Calculs (M21..M40)'!G54 -> 0 | AX51: ='Calculs (M21..M40)'!H54 ->  | AY51: ='Calculs (M21..M40)'!I54 ->  | AZ51: ='Calculs (M21..M40)'!C54 ->  | BA51: ='Calculs (M1..M20)'!GM54 ->  | BB51: ='Calculs (M1..M20)'!GN54 ->  | BC51: ='Calculs (M1..M20)'!GO54 ->  | BD51: ='Calculs (M1..M20)'!GP54 ->  | BE51: ='Calculs (M1..M20)'!GQ54 ->  | BF51: ='Calculs (M1..M20)'!GR54 ->  | BG51: ='Calculs (M1..M20)'!GS54 ->  | BH51: ='Calculs (M1..M20)'!GT54 ->  | BI51: ='Calculs (M1..M20)'!GU54 ->  | BJ51: ='Calculs (M1..M20)'!GV54 ->  | BK51: ='Calculs (M1..M20)'!GW54 ->  | BL51: ='Calculs (M1..M20)'!GX54 ->  | BM51: ='Calculs (M1..M20)'!GY54 ->  | BN51: ='Calculs (M1..M20)'!GZ54 ->  | BO51: ='Calculs (M1..M20)'!HA54 ->  | BP51: ='Calculs (M1..M20)'!HB54 ->  | BQ51: ='Calculs (M1..M20)'!HC54 ->  | BR51: ='Calculs (M1..M20)'!HD54 ->  | BS51: ='Calculs (M1..M20)'!HE54 ->  | BT51: ='Calculs (M1..M20)'!HF54 ->  | BU51: ='Calculs (M21..M40)'!GM54 ->  | BV51: ='Calculs (M21..M40)'!GN54 ->  | BW51: ='Calculs (M21..M40)'!GO54 ->  | BX51: ='Calculs (M21..M40)'!GP54 ->  | BY51: ='Calculs (M21..M40)'!GQ54 ->  | BZ51: ='Calculs (M21..M40)'!GR54 ->  | CA51: ='Calculs (M21..M40)'!GS54 ->  | CB51: ='Calculs (M21..M40)'!GT54 ->  | CC51: ='Calculs (M21..M40)'!GU54 ->  | CD51: ='Calculs (M21..M40)'!GV54 ->  | CE51: ='Calculs (M21..M40)'!GW54 ->  | CF51: ='Calculs (M21..M40)'!GX54 ->  | CG51: ='Calculs (M21..M40)'!GY54 ->  | CH51: ='Calculs (M21..M40)'!GZ54 ->  | CI51: ='Calculs (M21..M40)'!HA54 ->  | CJ51: ='Calculs (M21..M40)'!HB54 ->  | CK51: ='Calculs (M21..M40)'!HC54 ->  | CL51: ='Calculs (M21..M40)'!HD54 ->  | CM51: ='Calculs (M21..M40)'!HE54 ->  | CN51: ='Calculs (M21..M40)'!HF54 -> 
B52: 42 | AV52: ='Calculs (M21..M40)'!A55 ->  | AW52: ='Calculs (M21..M40)'!G55 -> 0 | AX52: ='Calculs (M21..M40)'!H55 ->  | AY52: ='Calculs (M21..M40)'!I55 ->  | AZ52: ='Calculs (M21..M40)'!C55 ->  | BA52: ='Calculs (M1..M20)'!GM55 ->  | BB52: ='Calculs (M1..M20)'!GN55 ->  | BC52: ='Calculs (M1..M20)'!GO55 ->  | BD52: ='Calculs (M1..M20)'!GP55 ->  | BE52: ='Calculs (M1..M20)'!GQ55 ->  | BF52: ='Calculs (M1..M20)'!GR55 ->  | BG52: ='Calculs (M1..M20)'!GS55 ->  | BH52: ='Calculs (M1..M20)'!GT55 ->  | BI52: ='Calculs (M1..M20)'!GU55 ->  | BJ52: ='Calculs (M1..M20)'!GV55 ->  | BK52: ='Calculs (M1..M20)'!GW55 ->  | BL52: ='Calculs (M1..M20)'!GX55 ->  | BM52: ='Calculs (M1..M20)'!GY55 ->  | BN52: ='Calculs (M1..M20)'!GZ55 ->  | BO52: ='Calculs (M1..M20)'!HA55 ->  | BP52: ='Calculs (M1..M20)'!HB55 ->  | BQ52: ='Calculs (M1..M20)'!HC55 ->  | BR52: ='Calculs (M1..M20)'!HD55 ->  | BS52: ='Calculs (M1..M20)'!HE55 ->  | BT52: ='Calculs (M1..M20)'!HF55 ->  | BU52: ='Calculs (M21..M40)'!GM55 ->  | BV52: ='Calculs (M21..M40)'!GN55 ->  | BW52: ='Calculs (M21..M40)'!GO55 ->  | BX52: ='Calculs (M21..M40)'!GP55 ->  | BY52: ='Calculs (M21..M40)'!GQ55 ->  | BZ52: ='Calculs (M21..M40)'!GR55 ->  | CA52: ='Calculs (M21..M40)'!GS55 ->  | CB52: ='Calculs (M21..M40)'!GT55 ->  | CC52: ='Calculs (M21..M40)'!GU55 ->  | CD52: ='Calculs (M21..M40)'!GV55 ->  | CE52: ='Calculs (M21..M40)'!GW55 ->  | CF52: ='Calculs (M21..M40)'!GX55 ->  | CG52: ='Calculs (M21..M40)'!GY55 ->  | CH52: ='Calculs (M21..M40)'!GZ55 ->  | CI52: ='Calculs (M21..M40)'!HA55 ->  | CJ52: ='Calculs (M21..M40)'!HB55 ->  | CK52: ='Calculs (M21..M40)'!HC55 ->  | CL52: ='Calculs (M21..M40)'!HD55 ->  | CM52: ='Calculs (M21..M40)'!HE55 ->  | CN52: ='Calculs (M21..M40)'!HF55 -> 
B53: 43 | AV53: ='Calculs (M21..M40)'!A56 ->  | AW53: ='Calculs (M21..M40)'!G56 -> 0 | AX53: ='Calculs (M21..M40)'!H56 ->  | AY53: ='Calculs (M21..M40)'!I56 ->  | AZ53: ='Calculs (M21..M40)'!C56 ->  | BA53: ='Calculs (M1..M20)'!GM56 ->  | BB53: ='Calculs (M1..M20)'!GN56 ->  | BC53: ='Calculs (M1..M20)'!GO56 ->  | BD53: ='Calculs (M1..M20)'!GP56 ->  | BE53: ='Calculs (M1..M20)'!GQ56 ->  | BF53: ='Calculs (M1..M20)'!GR56 ->  | BG53: ='Calculs (M1..M20)'!GS56 ->  | BH53: ='Calculs (M1..M20)'!GT56 ->  | BI53: ='Calculs (M1..M20)'!GU56 ->  | BJ53: ='Calculs (M1..M20)'!GV56 ->  | BK53: ='Calculs (M1..M20)'!GW56 ->  | BL53: ='Calculs (M1..M20)'!GX56 ->  | BM53: ='Calculs (M1..M20)'!GY56 ->  | BN53: ='Calculs (M1..M20)'!GZ56 ->  | BO53: ='Calculs (M1..M20)'!HA56 ->  | BP53: ='Calculs (M1..M20)'!HB56 ->  | BQ53: ='Calculs (M1..M20)'!HC56 ->  | BR53: ='Calculs (M1..M20)'!HD56 ->  | BS53: ='Calculs (M1..M20)'!HE56 ->  | BT53: ='Calculs (M1..M20)'!HF56 ->  | BU53: ='Calculs (M21..M40)'!GM56 ->  | BV53: ='Calculs (M21..M40)'!GN56 ->  | BW53: ='Calculs (M21..M40)'!GO56 ->  | BX53: ='Calculs (M21..M40)'!GP56 ->  | BY53: ='Calculs (M21..M40)'!GQ56 ->  | BZ53: ='Calculs (M21..M40)'!GR56 ->  | CA53: ='Calculs (M21..M40)'!GS56 ->  | CB53: ='Calculs (M21..M40)'!GT56 ->  | CC53: ='Calculs (M21..M40)'!GU56 ->  | CD53: ='Calculs (M21..M40)'!GV56 ->  | CE53: ='Calculs (M21..M40)'!GW56 ->  | CF53: ='Calculs (M21..M40)'!GX56 ->  | CG53: ='Calculs (M21..M40)'!GY56 ->  | CH53: ='Calculs (M21..M40)'!GZ56 ->  | CI53: ='Calculs (M21..M40)'!HA56 ->  | CJ53: ='Calculs (M21..M40)'!HB56 ->  | CK53: ='Calculs (M21..M40)'!HC56 ->  | CL53: ='Calculs (M21..M40)'!HD56 ->  | CM53: ='Calculs (M21..M40)'!HE56 ->  | CN53: ='Calculs (M21..M40)'!HF56 -> 
B54: 44 | AV54: ='Calculs (M21..M40)'!A57 ->  | AW54: ='Calculs (M21..M40)'!G57 -> 0 | AX54: ='Calculs (M21..M40)'!H57 ->  | AY54: ='Calculs (M21..M40)'!I57 ->  | AZ54: ='Calculs (M21..M40)'!C57 ->  | BA54: ='Calculs (M1..M20)'!GM57 ->  | BB54: ='Calculs (M1..M20)'!GN57 ->  | BC54: ='Calculs (M1..M20)'!GO57 ->  | BD54: ='Calculs (M1..M20)'!GP57 ->  | BE54: ='Calculs (M1..M20)'!GQ57 ->  | BF54: ='Calculs (M1..M20)'!GR57 ->  | BG54: ='Calculs (M1..M20)'!GS57 ->  | BH54: ='Calculs (M1..M20)'!GT57 ->  | BI54: ='Calculs (M1..M20)'!GU57 ->  | BJ54: ='Calculs (M1..M20)'!GV57 ->  | BK54: ='Calculs (M1..M20)'!GW57 ->  | BL54: ='Calculs (M1..M20)'!GX57 ->  | BM54: ='Calculs (M1..M20)'!GY57 ->  | BN54: ='Calculs (M1..M20)'!GZ57 ->  | BO54: ='Calculs (M1..M20)'!HA57 ->  | BP54: ='Calculs (M1..M20)'!HB57 ->  | BQ54: ='Calculs (M1..M20)'!HC57 ->  | BR54: ='Calculs (M1..M20)'!HD57 ->  | BS54: ='Calculs (M1..M20)'!HE57 ->  | BT54: ='Calculs (M1..M20)'!HF57 ->  | BU54: ='Calculs (M21..M40)'!GM57 ->  | BV54: ='Calculs (M21..M40)'!GN57 ->  | BW54: ='Calculs (M21..M40)'!GO57 ->  | BX54: ='Calculs (M21..M40)'!GP57 ->  | BY54: ='Calculs (M21..M40)'!GQ57 ->  | BZ54: ='Calculs (M21..M40)'!GR57 ->  | CA54: ='Calculs (M21..M40)'!GS57 ->  | CB54: ='Calculs (M21..M40)'!GT57 ->  | CC54: ='Calculs (M21..M40)'!GU57 ->  | CD54: ='Calculs (M21..M40)'!GV57 ->  | CE54: ='Calculs (M21..M40)'!GW57 ->  | CF54: ='Calculs (M21..M40)'!GX57 ->  | CG54: ='Calculs (M21..M40)'!GY57 ->  | CH54: ='Calculs (M21..M40)'!GZ57 ->  | CI54: ='Calculs (M21..M40)'!HA57 ->  | CJ54: ='Calculs (M21..M40)'!HB57 ->  | CK54: ='Calculs (M21..M40)'!HC57 ->  | CL54: ='Calculs (M21..M40)'!HD57 ->  | CM54: ='Calculs (M21..M40)'!HE57 ->  | CN54: ='Calculs (M21..M40)'!HF57 -> 
B55: 45 | AV55: ='Calculs (M21..M40)'!A58 ->  | AW55: ='Calculs (M21..M40)'!G58 -> 0 | AX55: ='Calculs (M21..M40)'!H58 ->  | AY55: ='Calculs (M21..M40)'!I58 ->  | AZ55: ='Calculs (M21..M40)'!C58 ->  | BA55: ='Calculs (M1..M20)'!GM58 ->  | BB55: ='Calculs (M1..M20)'!GN58 ->  | BC55: ='Calculs (M1..M20)'!GO58 ->  | BD55: ='Calculs (M1..M20)'!GP58 ->  | BE55: ='Calculs (M1..M20)'!GQ58 ->  | BF55: ='Calculs (M1..M20)'!GR58 ->  | BG55: ='Calculs (M1..M20)'!GS58 ->  | BH55: ='Calculs (M1..M20)'!GT58 ->  | BI55: ='Calculs (M1..M20)'!GU58 ->  | BJ55: ='Calculs (M1..M20)'!GV58 ->  | BK55: ='Calculs (M1..M20)'!GW58 ->  | BL55: ='Calculs (M1..M20)'!GX58 ->  | BM55: ='Calculs (M1..M20)'!GY58 ->  | BN55: ='Calculs (M1..M20)'!GZ58 ->  | BO55: ='Calculs (M1..M20)'!HA58 ->  | BP55: ='Calculs (M1..M20)'!HB58 ->  | BQ55: ='Calculs (M1..M20)'!HC58 ->  | BR55: ='Calculs (M1..M20)'!HD58 ->  | BS55: ='Calculs (M1..M20)'!HE58 ->  | BT55: ='Calculs (M1..M20)'!HF58 ->  | BU55: ='Calculs (M21..M40)'!GM58 ->  | BV55: ='Calculs (M21..M40)'!GN58 ->  | BW55: ='Calculs (M21..M40)'!GO58 ->  | BX55: ='Calculs (M21..M40)'!GP58 ->  | BY55: ='Calculs (M21..M40)'!GQ58 ->  | BZ55: ='Calculs (M21..M40)'!GR58 ->  | CA55: ='Calculs (M21..M40)'!GS58 ->  | CB55: ='Calculs (M21..M40)'!GT58 ->  | CC55: ='Calculs (M21..M40)'!GU58 ->  | CD55: ='Calculs (M21..M40)'!GV58 ->  | CE55: ='Calculs (M21..M40)'!GW58 ->  | CF55: ='Calculs (M21..M40)'!GX58 ->  | CG55: ='Calculs (M21..M40)'!GY58 ->  | CH55: ='Calculs (M21..M40)'!GZ58 ->  | CI55: ='Calculs (M21..M40)'!HA58 ->  | CJ55: ='Calculs (M21..M40)'!HB58 ->  | CK55: ='Calculs (M21..M40)'!HC58 ->  | CL55: ='Calculs (M21..M40)'!HD58 ->  | CM55: ='Calculs (M21..M40)'!HE58 ->  | CN55: ='Calculs (M21..M40)'!HF58 -> 
B56: 46 | AV56: ='Calculs (M21..M40)'!A59 ->  | AW56: ='Calculs (M21..M40)'!G59 -> 0 | AX56: ='Calculs (M21..M40)'!H59 ->  | AY56: ='Calculs (M21..M40)'!I59 ->  | AZ56: ='Calculs (M21..M40)'!C59 ->  | BA56: ='Calculs (M1..M20)'!GM59 ->  | BB56: ='Calculs (M1..M20)'!GN59 ->  | BC56: ='Calculs (M1..M20)'!GO59 ->  | BD56: ='Calculs (M1..M20)'!GP59 ->  | BE56: ='Calculs (M1..M20)'!GQ59 ->  | BF56: ='Calculs (M1..M20)'!GR59 ->  | BG56: ='Calculs (M1..M20)'!GS59 ->  | BH56: ='Calculs (M1..M20)'!GT59 ->  | BI56: ='Calculs (M1..M20)'!GU59 ->  | BJ56: ='Calculs (M1..M20)'!GV59 ->  | BK56: ='Calculs (M1..M20)'!GW59 ->  | BL56: ='Calculs (M1..M20)'!GX59 ->  | BM56: ='Calculs (M1..M20)'!GY59 ->  | BN56: ='Calculs (M1..M20)'!GZ59 ->  | BO56: ='Calculs (M1..M20)'!HA59 ->  | BP56: ='Calculs (M1..M20)'!HB59 ->  | BQ56: ='Calculs (M1..M20)'!HC59 ->  | BR56: ='Calculs (M1..M20)'!HD59 ->  | BS56: ='Calculs (M1..M20)'!HE59 ->  | BT56: ='Calculs (M1..M20)'!HF59 ->  | BU56: ='Calculs (M21..M40)'!GM59 ->  | BV56: ='Calculs (M21..M40)'!GN59 ->  | BW56: ='Calculs (M21..M40)'!GO59 ->  | BX56: ='Calculs (M21..M40)'!GP59 ->  | BY56: ='Calculs (M21..M40)'!GQ59 ->  | BZ56: ='Calculs (M21..M40)'!GR59 ->  | CA56: ='Calculs (M21..M40)'!GS59 ->  | CB56: ='Calculs (M21..M40)'!GT59 ->  | CC56: ='Calculs (M21..M40)'!GU59 ->  | CD56: ='Calculs (M21..M40)'!GV59 ->  | CE56: ='Calculs (M21..M40)'!GW59 ->  | CF56: ='Calculs (M21..M40)'!GX59 ->  | CG56: ='Calculs (M21..M40)'!GY59 ->  | CH56: ='Calculs (M21..M40)'!GZ59 ->  | CI56: ='Calculs (M21..M40)'!HA59 ->  | CJ56: ='Calculs (M21..M40)'!HB59 ->  | CK56: ='Calculs (M21..M40)'!HC59 ->  | CL56: ='Calculs (M21..M40)'!HD59 ->  | CM56: ='Calculs (M21..M40)'!HE59 ->  | CN56: ='Calculs (M21..M40)'!HF59 -> 
B57: 47 | AV57: ='Calculs (M21..M40)'!A60 ->  | AW57: ='Calculs (M21..M40)'!G60 -> 0 | AX57: ='Calculs (M21..M40)'!H60 ->  | AY57: ='Calculs (M21..M40)'!I60 ->  | AZ57: ='Calculs (M21..M40)'!C60 ->  | BA57: ='Calculs (M1..M20)'!GM60 ->  | BB57: ='Calculs (M1..M20)'!GN60 ->  | BC57: ='Calculs (M1..M20)'!GO60 ->  | BD57: ='Calculs (M1..M20)'!GP60 ->  | BE57: ='Calculs (M1..M20)'!GQ60 ->  | BF57: ='Calculs (M1..M20)'!GR60 ->  | BG57: ='Calculs (M1..M20)'!GS60 ->  | BH57: ='Calculs (M1..M20)'!GT60 ->  | BI57: ='Calculs (M1..M20)'!GU60 ->  | BJ57: ='Calculs (M1..M20)'!GV60 ->  | BK57: ='Calculs (M1..M20)'!GW60 ->  | BL57: ='Calculs (M1..M20)'!GX60 ->  | BM57: ='Calculs (M1..M20)'!GY60 ->  | BN57: ='Calculs (M1..M20)'!GZ60 ->  | BO57: ='Calculs (M1..M20)'!HA60 ->  | BP57: ='Calculs (M1..M20)'!HB60 ->  | BQ57: ='Calculs (M1..M20)'!HC60 ->  | BR57: ='Calculs (M1..M20)'!HD60 ->  | BS57: ='Calculs (M1..M20)'!HE60 ->  | BT57: ='Calculs (M1..M20)'!HF60 ->  | BU57: ='Calculs (M21..M40)'!GM60 ->  | BV57: ='Calculs (M21..M40)'!GN60 ->  | BW57: ='Calculs (M21..M40)'!GO60 ->  | BX57: ='Calculs (M21..M40)'!GP60 ->  | BY57: ='Calculs (M21..M40)'!GQ60 ->  | BZ57: ='Calculs (M21..M40)'!GR60 ->  | CA57: ='Calculs (M21..M40)'!GS60 ->  | CB57: ='Calculs (M21..M40)'!GT60 ->  | CC57: ='Calculs (M21..M40)'!GU60 ->  | CD57: ='Calculs (M21..M40)'!GV60 ->  | CE57: ='Calculs (M21..M40)'!GW60 ->  | CF57: ='Calculs (M21..M40)'!GX60 ->  | CG57: ='Calculs (M21..M40)'!GY60 ->  | CH57: ='Calculs (M21..M40)'!GZ60 ->  | CI57: ='Calculs (M21..M40)'!HA60 ->  | CJ57: ='Calculs (M21..M40)'!HB60 ->  | CK57: ='Calculs (M21..M40)'!HC60 ->  | CL57: ='Calculs (M21..M40)'!HD60 ->  | CM57: ='Calculs (M21..M40)'!HE60 ->  | CN57: ='Calculs (M21..M40)'!HF60 -> 
B58: 48 | AV58: ='Calculs (M21..M40)'!A61 ->  | AW58: ='Calculs (M21..M40)'!G61 -> 0 | AX58: ='Calculs (M21..M40)'!H61 ->  | AY58: ='Calculs (M21..M40)'!I61 ->  | AZ58: ='Calculs (M21..M40)'!C61 ->  | BA58: ='Calculs (M1..M20)'!GM61 ->  | BB58: ='Calculs (M1..M20)'!GN61 ->  | BC58: ='Calculs (M1..M20)'!GO61 ->  | BD58: ='Calculs (M1..M20)'!GP61 ->  | BE58: ='Calculs (M1..M20)'!GQ61 ->  | BF58: ='Calculs (M1..M20)'!GR61 ->  | BG58: ='Calculs (M1..M20)'!GS61 ->  | BH58: ='Calculs (M1..M20)'!GT61 ->  | BI58: ='Calculs (M1..M20)'!GU61 ->  | BJ58: ='Calculs (M1..M20)'!GV61 ->  | BK58: ='Calculs (M1..M20)'!GW61 ->  | BL58: ='Calculs (M1..M20)'!GX61 ->  | BM58: ='Calculs (M1..M20)'!GY61 ->  | BN58: ='Calculs (M1..M20)'!GZ61 ->  | BO58: ='Calculs (M1..M20)'!HA61 ->  | BP58: ='Calculs (M1..M20)'!HB61 ->  | BQ58: ='Calculs (M1..M20)'!HC61 ->  | BR58: ='Calculs (M1..M20)'!HD61 ->  | BS58: ='Calculs (M1..M20)'!HE61 ->  | BT58: ='Calculs (M1..M20)'!HF61 ->  | BU58: ='Calculs (M21..M40)'!GM61 ->  | BV58: ='Calculs (M21..M40)'!GN61 ->  | BW58: ='Calculs (M21..M40)'!GO61 ->  | BX58: ='Calculs (M21..M40)'!GP61 ->  | BY58: ='Calculs (M21..M40)'!GQ61 ->  | BZ58: ='Calculs (M21..M40)'!GR61 ->  | CA58: ='Calculs (M21..M40)'!GS61 ->  | CB58: ='Calculs (M21..M40)'!GT61 ->  | CC58: ='Calculs (M21..M40)'!GU61 ->  | CD58: ='Calculs (M21..M40)'!GV61 ->  | CE58: ='Calculs (M21..M40)'!GW61 ->  | CF58: ='Calculs (M21..M40)'!GX61 ->  | CG58: ='Calculs (M21..M40)'!GY61 ->  | CH58: ='Calculs (M21..M40)'!GZ61 ->  | CI58: ='Calculs (M21..M40)'!HA61 ->  | CJ58: ='Calculs (M21..M40)'!HB61 ->  | CK58: ='Calculs (M21..M40)'!HC61 ->  | CL58: ='Calculs (M21..M40)'!HD61 ->  | CM58: ='Calculs (M21..M40)'!HE61 ->  | CN58: ='Calculs (M21..M40)'!HF61 -> 
B59: 49 | AV59: ='Calculs (M21..M40)'!A62 ->  | AW59: ='Calculs (M21..M40)'!G62 -> 0 | AX59: ='Calculs (M21..M40)'!H62 ->  | AY59: ='Calculs (M21..M40)'!I62 ->  | AZ59: ='Calculs (M21..M40)'!C62 ->  | BA59: ='Calculs (M1..M20)'!GM62 ->  | BB59: ='Calculs (M1..M20)'!GN62 ->  | BC59: ='Calculs (M1..M20)'!GO62 ->  | BD59: ='Calculs (M1..M20)'!GP62 ->  | BE59: ='Calculs (M1..M20)'!GQ62 ->  | BF59: ='Calculs (M1..M20)'!GR62 ->  | BG59: ='Calculs (M1..M20)'!GS62 ->  | BH59: ='Calculs (M1..M20)'!GT62 ->  | BI59: ='Calculs (M1..M20)'!GU62 ->  | BJ59: ='Calculs (M1..M20)'!GV62 ->  | BK59: ='Calculs (M1..M20)'!GW62 ->  | BL59: ='Calculs (M1..M20)'!GX62 ->  | BM59: ='Calculs (M1..M20)'!GY62 ->  | BN59: ='Calculs (M1..M20)'!GZ62 ->  | BO59: ='Calculs (M1..M20)'!HA62 ->  | BP59: ='Calculs (M1..M20)'!HB62 ->  | BQ59: ='Calculs (M1..M20)'!HC62 ->  | BR59: ='Calculs (M1..M20)'!HD62 ->  | BS59: ='Calculs (M1..M20)'!HE62 ->  | BT59: ='Calculs (M1..M20)'!HF62 ->  | BU59: ='Calculs (M21..M40)'!GM62 ->  | BV59: ='Calculs (M21..M40)'!GN62 ->  | BW59: ='Calculs (M21..M40)'!GO62 ->  | BX59: ='Calculs (M21..M40)'!GP62 ->  | BY59: ='Calculs (M21..M40)'!GQ62 ->  | BZ59: ='Calculs (M21..M40)'!GR62 ->  | CA59: ='Calculs (M21..M40)'!GS62 ->  | CB59: ='Calculs (M21..M40)'!GT62 ->  | CC59: ='Calculs (M21..M40)'!GU62 ->  | CD59: ='Calculs (M21..M40)'!GV62 ->  | CE59: ='Calculs (M21..M40)'!GW62 ->  | CF59: ='Calculs (M21..M40)'!GX62 ->  | CG59: ='Calculs (M21..M40)'!GY62 ->  | CH59: ='Calculs (M21..M40)'!GZ62 ->  | CI59: ='Calculs (M21..M40)'!HA62 ->  | CJ59: ='Calculs (M21..M40)'!HB62 ->  | CK59: ='Calculs (M21..M40)'!HC62 ->  | CL59: ='Calculs (M21..M40)'!HD62 ->  | CM59: ='Calculs (M21..M40)'!HE62 ->  | CN59: ='Calculs (M21..M40)'!HF62 -> 
B60: 50 | AV60: ='Calculs (M21..M40)'!A63 ->  | AW60: ='Calculs (M21..M40)'!G63 -> 0 | AX60: ='Calculs (M21..M40)'!H63 ->  | AY60: ='Calculs (M21..M40)'!I63 ->  | AZ60: ='Calculs (M21..M40)'!C63 ->  | BA60: ='Calculs (M1..M20)'!GM63 ->  | BB60: ='Calculs (M1..M20)'!GN63 ->  | BC60: ='Calculs (M1..M20)'!GO63 ->  | BD60: ='Calculs (M1..M20)'!GP63 ->  | BE60: ='Calculs (M1..M20)'!GQ63 ->  | BF60: ='Calculs (M1..M20)'!GR63 ->  | BG60: ='Calculs (M1..M20)'!GS63 ->  | BH60: ='Calculs (M1..M20)'!GT63 ->  | BI60: ='Calculs (M1..M20)'!GU63 ->  | BJ60: ='Calculs (M1..M20)'!GV63 ->  | BK60: ='Calculs (M1..M20)'!GW63 ->  | BL60: ='Calculs (M1..M20)'!GX63 ->  | BM60: ='Calculs (M1..M20)'!GY63 ->  | BN60: ='Calculs (M1..M20)'!GZ63 ->  | BO60: ='Calculs (M1..M20)'!HA63 ->  | BP60: ='Calculs (M1..M20)'!HB63 ->  | BQ60: ='Calculs (M1..M20)'!HC63 ->  | BR60: ='Calculs (M1..M20)'!HD63 ->  | BS60: ='Calculs (M1..M20)'!HE63 ->  | BT60: ='Calculs (M1..M20)'!HF63 ->  | BU60: ='Calculs (M21..M40)'!GM63 ->  | BV60: ='Calculs (M21..M40)'!GN63 ->  | BW60: ='Calculs (M21..M40)'!GO63 ->  | BX60: ='Calculs (M21..M40)'!GP63 ->  | BY60: ='Calculs (M21..M40)'!GQ63 ->  | BZ60: ='Calculs (M21..M40)'!GR63 ->  | CA60: ='Calculs (M21..M40)'!GS63 ->  | CB60: ='Calculs (M21..M40)'!GT63 ->  | CC60: ='Calculs (M21..M40)'!GU63 ->  | CD60: ='Calculs (M21..M40)'!GV63 ->  | CE60: ='Calculs (M21..M40)'!GW63 ->  | CF60: ='Calculs (M21..M40)'!GX63 ->  | CG60: ='Calculs (M21..M40)'!GY63 ->  | CH60: ='Calculs (M21..M40)'!GZ63 ->  | CI60: ='Calculs (M21..M40)'!HA63 ->  | CJ60: ='Calculs (M21..M40)'!HB63 ->  | CK60: ='Calculs (M21..M40)'!HC63 ->  | CL60: ='Calculs (M21..M40)'!HD63 ->  | CM60: ='Calculs (M21..M40)'!HE63 ->  | CN60: ='Calculs (M21..M40)'!HF63 -> 
B61: 51 | G61: =IF(ISNA(VLOOKUP($B61,ClassEvo,5+G$10,0)),"",VLOOKUP($B61,ClassEvo,5+G$10,0)) ->  | Q61: =IF(ISNA(VLOOKUP($B61,ClassEvo,5+Q$10,0)),"",VLOOKUP($B61,ClassEvo,5+Q$10,0)) ->  | AA61: =IF(ISNA(VLOOKUP($B61,ClassEvo,5+AA$10,0)),"",VLOOKUP($B61,ClassEvo,5+AA$10,0)) ->  | AK61: =IF(ISNA(VLOOKUP($B61,ClassEvo,5+AK$10,0)),"",VLOOKUP($B61,ClassEvo,5+AK$10,0)) ->  | AV61: ='Calculs (M21..M40)'!A64 ->  | AW61: ='Calculs (M21..M40)'!G64 -> 0 | AX61: ='Calculs (M21..M40)'!H64 ->  | AY61: ='Calculs (M21..M40)'!I64 ->  | AZ61: ='Calculs (M21..M40)'!C64 ->  | BA61: ='Calculs (M1..M20)'!GM64 ->  | BB61: ='Calculs (M1..M20)'!GN64 ->  | BC61: ='Calculs (M1..M20)'!GO64 ->  | BD61: ='Calculs (M1..M20)'!GP64 ->  | BE61: ='Calculs (M1..M20)'!GQ64 ->  | BF61: ='Calculs (M1..M20)'!GR64 ->  | BG61: ='Calculs (M1..M20)'!GS64 ->  | BH61: ='Calculs (M1..M20)'!GT64 ->  | BI61: ='Calculs (M1..M20)'!GU64 ->  | BJ61: ='Calculs (M1..M20)'!GV64 ->  | BK61: ='Calculs (M1..M20)'!GW64 ->  | BL61: ='Calculs (M1..M20)'!GX64 ->  | BM61: ='Calculs (M1..M20)'!GY64 ->  | BN61: ='Calculs (M1..M20)'!GZ64 ->  | BO61: ='Calculs (M1..M20)'!HA64 ->  | BP61: ='Calculs (M1..M20)'!HB64 ->  | BQ61: ='Calculs (M1..M20)'!HC64 ->  | BR61: ='Calculs (M1..M20)'!HD64 ->  | BS61: ='Calculs (M1..M20)'!HE64 ->  | BT61: ='Calculs (M1..M20)'!HF64 ->  | BU61: ='Calculs (M21..M40)'!GM64 ->  | BV61: ='Calculs (M21..M40)'!GN64 ->  | BW61: ='Calculs (M21..M40)'!GO64 ->  | BX61: ='Calculs (M21..M40)'!GP64 ->  | BY61: ='Calculs (M21..M40)'!GQ64 ->  | BZ61: ='Calculs (M21..M40)'!GR64 ->  | CA61: ='Calculs (M21..M40)'!GS64 ->  | CB61: ='Calculs (M21..M40)'!GT64 ->  | CC61: ='Calculs (M21..M40)'!GU64 ->  | CD61: ='Calculs (M21..M40)'!GV64 ->  | CE61: ='Calculs (M21..M40)'!GW64 ->  | CF61: ='Calculs (M21..M40)'!GX64 ->  | CG61: ='Calculs (M21..M40)'!GY64 ->  | CH61: ='Calculs (M21..M40)'!GZ64 ->  | CI61: ='Calculs (M21..M40)'!HA64 ->  | CJ61: ='Calculs (M21..M40)'!HB64 ->  | CK61: ='Calculs (M21..M40)'!HC64 ->  | CL61: ='Calculs (M21..M40)'!HD64 ->  | CM61: ='Calculs (M21..M40)'!HE64 ->  | CN61: ='Calculs (M21..M40)'!HF64 -> 
B62: 52 | AV62: ='Calculs (M21..M40)'!A65 ->  | AW62: ='Calculs (M21..M40)'!G65 -> 0 | AX62: ='Calculs (M21..M40)'!H65 ->  | AY62: ='Calculs (M21..M40)'!I65 ->  | AZ62: ='Calculs (M21..M40)'!C65 ->  | BA62: ='Calculs (M1..M20)'!GM65 ->  | BB62: ='Calculs (M1..M20)'!GN65 ->  | BC62: ='Calculs (M1..M20)'!GO65 ->  | BD62: ='Calculs (M1..M20)'!GP65 ->  | BE62: ='Calculs (M1..M20)'!GQ65 ->  | BF62: ='Calculs (M1..M20)'!GR65 ->  | BG62: ='Calculs (M1..M20)'!GS65 ->  | BH62: ='Calculs (M1..M20)'!GT65 ->  | BI62: ='Calculs (M1..M20)'!GU65 ->  | BJ62: ='Calculs (M1..M20)'!GV65 ->  | BK62: ='Calculs (M1..M20)'!GW65 ->  | BL62: ='Calculs (M1..M20)'!GX65 ->  | BM62: ='Calculs (M1..M20)'!GY65 ->  | BN62: ='Calculs (M1..M20)'!GZ65 ->  | BO62: ='Calculs (M1..M20)'!HA65 ->  | BP62: ='Calculs (M1..M20)'!HB65 ->  | BQ62: ='Calculs (M1..M20)'!HC65 ->  | BR62: ='Calculs (M1..M20)'!HD65 ->  | BS62: ='Calculs (M1..M20)'!HE65 ->  | BT62: ='Calculs (M1..M20)'!HF65 ->  | BU62: ='Calculs (M21..M40)'!GM65 ->  | BV62: ='Calculs (M21..M40)'!GN65 ->  | BW62: ='Calculs (M21..M40)'!GO65 ->  | BX62: ='Calculs (M21..M40)'!GP65 ->  | BY62: ='Calculs (M21..M40)'!GQ65 ->  | BZ62: ='Calculs (M21..M40)'!GR65 ->  | CA62: ='Calculs (M21..M40)'!GS65 ->  | CB62: ='Calculs (M21..M40)'!GT65 ->  | CC62: ='Calculs (M21..M40)'!GU65 ->  | CD62: ='Calculs (M21..M40)'!GV65 ->  | CE62: ='Calculs (M21..M40)'!GW65 ->  | CF62: ='Calculs (M21..M40)'!GX65 ->  | CG62: ='Calculs (M21..M40)'!GY65 ->  | CH62: ='Calculs (M21..M40)'!GZ65 ->  | CI62: ='Calculs (M21..M40)'!HA65 ->  | CJ62: ='Calculs (M21..M40)'!HB65 ->  | CK62: ='Calculs (M21..M40)'!HC65 ->  | CL62: ='Calculs (M21..M40)'!HD65 ->  | CM62: ='Calculs (M21..M40)'!HE65 ->  | CN62: ='Calculs (M21..M40)'!HF65 -> 
B63: 53 | AV63: ='Calculs (M21..M40)'!A66 ->  | AW63: ='Calculs (M21..M40)'!G66 -> 0 | AX63: ='Calculs (M21..M40)'!H66 ->  | AY63: ='Calculs (M21..M40)'!I66 ->  | AZ63: ='Calculs (M21..M40)'!C66 ->  | BA63: ='Calculs (M1..M20)'!GM66 ->  | BB63: ='Calculs (M1..M20)'!GN66 ->  | BC63: ='Calculs (M1..M20)'!GO66 ->  | BD63: ='Calculs (M1..M20)'!GP66 ->  | BE63: ='Calculs (M1..M20)'!GQ66 ->  | BF63: ='Calculs (M1..M20)'!GR66 ->  | BG63: ='Calculs (M1..M20)'!GS66 ->  | BH63: ='Calculs (M1..M20)'!GT66 ->  | BI63: ='Calculs (M1..M20)'!GU66 ->  | BJ63: ='Calculs (M1..M20)'!GV66 ->  | BK63: ='Calculs (M1..M20)'!GW66 ->  | BL63: ='Calculs (M1..M20)'!GX66 ->  | BM63: ='Calculs (M1..M20)'!GY66 ->  | BN63: ='Calculs (M1..M20)'!GZ66 ->  | BO63: ='Calculs (M1..M20)'!HA66 ->  | BP63: ='Calculs (M1..M20)'!HB66 ->  | BQ63: ='Calculs (M1..M20)'!HC66 ->  | BR63: ='Calculs (M1..M20)'!HD66 ->  | BS63: ='Calculs (M1..M20)'!HE66 ->  | BT63: ='Calculs (M1..M20)'!HF66 ->  | BU63: ='Calculs (M21..M40)'!GM66 ->  | BV63: ='Calculs (M21..M40)'!GN66 ->  | BW63: ='Calculs (M21..M40)'!GO66 ->  | BX63: ='Calculs (M21..M40)'!GP66 ->  | BY63: ='Calculs (M21..M40)'!GQ66 ->  | BZ63: ='Calculs (M21..M40)'!GR66 ->  | CA63: ='Calculs (M21..M40)'!GS66 ->  | CB63: ='Calculs (M21..M40)'!GT66 ->  | CC63: ='Calculs (M21..M40)'!GU66 ->  | CD63: ='Calculs (M21..M40)'!GV66 ->  | CE63: ='Calculs (M21..M40)'!GW66 ->  | CF63: ='Calculs (M21..M40)'!GX66 ->  | CG63: ='Calculs (M21..M40)'!GY66 ->  | CH63: ='Calculs (M21..M40)'!GZ66 ->  | CI63: ='Calculs (M21..M40)'!HA66 ->  | CJ63: ='Calculs (M21..M40)'!HB66 ->  | CK63: ='Calculs (M21..M40)'!HC66 ->  | CL63: ='Calculs (M21..M40)'!HD66 ->  | CM63: ='Calculs (M21..M40)'!HE66 ->  | CN63: ='Calculs (M21..M40)'!HF66 -> 
B64: 54 | AV64: ='Calculs (M21..M40)'!A67 ->  | AW64: ='Calculs (M21..M40)'!G67 -> 0 | AX64: ='Calculs (M21..M40)'!H67 ->  | AY64: ='Calculs (M21..M40)'!I67 ->  | AZ64: ='Calculs (M21..M40)'!C67 ->  | BA64: ='Calculs (M1..M20)'!GM67 ->  | BB64: ='Calculs (M1..M20)'!GN67 ->  | BC64: ='Calculs (M1..M20)'!GO67 ->  | BD64: ='Calculs (M1..M20)'!GP67 ->  | BE64: ='Calculs (M1..M20)'!GQ67 ->  | BF64: ='Calculs (M1..M20)'!GR67 ->  | BG64: ='Calculs (M1..M20)'!GS67 ->  | BH64: ='Calculs (M1..M20)'!GT67 ->  | BI64: ='Calculs (M1..M20)'!GU67 ->  | BJ64: ='Calculs (M1..M20)'!GV67 ->  | BK64: ='Calculs (M1..M20)'!GW67 ->  | BL64: ='Calculs (M1..M20)'!GX67 ->  | BM64: ='Calculs (M1..M20)'!GY67 ->  | BN64: ='Calculs (M1..M20)'!GZ67 ->  | BO64: ='Calculs (M1..M20)'!HA67 ->  | BP64: ='Calculs (M1..M20)'!HB67 ->  | BQ64: ='Calculs (M1..M20)'!HC67 ->  | BR64: ='Calculs (M1..M20)'!HD67 ->  | BS64: ='Calculs (M1..M20)'!HE67 ->  | BT64: ='Calculs (M1..M20)'!HF67 ->  | BU64: ='Calculs (M21..M40)'!GM67 ->  | BV64: ='Calculs (M21..M40)'!GN67 ->  | BW64: ='Calculs (M21..M40)'!GO67 ->  | BX64: ='Calculs (M21..M40)'!GP67 ->  | BY64: ='Calculs (M21..M40)'!GQ67 ->  | BZ64: ='Calculs (M21..M40)'!GR67 ->  | CA64: ='Calculs (M21..M40)'!GS67 ->  | CB64: ='Calculs (M21..M40)'!GT67 ->  | CC64: ='Calculs (M21..M40)'!GU67 ->  | CD64: ='Calculs (M21..M40)'!GV67 ->  | CE64: ='Calculs (M21..M40)'!GW67 ->  | CF64: ='Calculs (M21..M40)'!GX67 ->  | CG64: ='Calculs (M21..M40)'!GY67 ->  | CH64: ='Calculs (M21..M40)'!GZ67 ->  | CI64: ='Calculs (M21..M40)'!HA67 ->  | CJ64: ='Calculs (M21..M40)'!HB67 ->  | CK64: ='Calculs (M21..M40)'!HC67 ->  | CL64: ='Calculs (M21..M40)'!HD67 ->  | CM64: ='Calculs (M21..M40)'!HE67 ->  | CN64: ='Calculs (M21..M40)'!HF67 -> 
B65: 55 | AV65: ='Calculs (M21..M40)'!A68 ->  | AW65: ='Calculs (M21..M40)'!G68 -> 0 | AX65: ='Calculs (M21..M40)'!H68 ->  | AY65: ='Calculs (M21..M40)'!I68 ->  | AZ65: ='Calculs (M21..M40)'!C68 ->  | BA65: ='Calculs (M1..M20)'!GM68 ->  | BB65: ='Calculs (M1..M20)'!GN68 ->  | BC65: ='Calculs (M1..M20)'!GO68 ->  | BD65: ='Calculs (M1..M20)'!GP68 ->  | BE65: ='Calculs (M1..M20)'!GQ68 ->  | BF65: ='Calculs (M1..M20)'!GR68 ->  | BG65: ='Calculs (M1..M20)'!GS68 ->  | BH65: ='Calculs (M1..M20)'!GT68 ->  | BI65: ='Calculs (M1..M20)'!GU68 ->  | BJ65: ='Calculs (M1..M20)'!GV68 ->  | BK65: ='Calculs (M1..M20)'!GW68 ->  | BL65: ='Calculs (M1..M20)'!GX68 ->  | BM65: ='Calculs (M1..M20)'!GY68 ->  | BN65: ='Calculs (M1..M20)'!GZ68 ->  | BO65: ='Calculs (M1..M20)'!HA68 ->  | BP65: ='Calculs (M1..M20)'!HB68 ->  | BQ65: ='Calculs (M1..M20)'!HC68 ->  | BR65: ='Calculs (M1..M20)'!HD68 ->  | BS65: ='Calculs (M1..M20)'!HE68 ->  | BT65: ='Calculs (M1..M20)'!HF68 ->  | BU65: ='Calculs (M21..M40)'!GM68 ->  | BV65: ='Calculs (M21..M40)'!GN68 ->  | BW65: ='Calculs (M21..M40)'!GO68 ->  | BX65: ='Calculs (M21..M40)'!GP68 ->  | BY65: ='Calculs (M21..M40)'!GQ68 ->  | BZ65: ='Calculs (M21..M40)'!GR68 ->  | CA65: ='Calculs (M21..M40)'!GS68 ->  | CB65: ='Calculs (M21..M40)'!GT68 ->  | CC65: ='Calculs (M21..M40)'!GU68 ->  | CD65: ='Calculs (M21..M40)'!GV68 ->  | CE65: ='Calculs (M21..M40)'!GW68 ->  | CF65: ='Calculs (M21..M40)'!GX68 ->  | CG65: ='Calculs (M21..M40)'!GY68 ->  | CH65: ='Calculs (M21..M40)'!GZ68 ->  | CI65: ='Calculs (M21..M40)'!HA68 ->  | CJ65: ='Calculs (M21..M40)'!HB68 ->  | CK65: ='Calculs (M21..M40)'!HC68 ->  | CL65: ='Calculs (M21..M40)'!HD68 ->  | CM65: ='Calculs (M21..M40)'!HE68 ->  | CN65: ='Calculs (M21..M40)'!HF68 -> 
B66: 56 | AV66: ='Calculs (M21..M40)'!A69 ->  | AW66: ='Calculs (M21..M40)'!G69 -> 0 | AX66: ='Calculs (M21..M40)'!H69 ->  | AY66: ='Calculs (M21..M40)'!I69 ->  | AZ66: ='Calculs (M21..M40)'!C69 ->  | BA66: ='Calculs (M1..M20)'!GM69 ->  | BB66: ='Calculs (M1..M20)'!GN69 ->  | BC66: ='Calculs (M1..M20)'!GO69 ->  | BD66: ='Calculs (M1..M20)'!GP69 ->  | BE66: ='Calculs (M1..M20)'!GQ69 ->  | BF66: ='Calculs (M1..M20)'!GR69 ->  | BG66: ='Calculs (M1..M20)'!GS69 ->  | BH66: ='Calculs (M1..M20)'!GT69 ->  | BI66: ='Calculs (M1..M20)'!GU69 ->  | BJ66: ='Calculs (M1..M20)'!GV69 ->  | BK66: ='Calculs (M1..M20)'!GW69 ->  | BL66: ='Calculs (M1..M20)'!GX69 ->  | BM66: ='Calculs (M1..M20)'!GY69 ->  | BN66: ='Calculs (M1..M20)'!GZ69 ->  | BO66: ='Calculs (M1..M20)'!HA69 ->  | BP66: ='Calculs (M1..M20)'!HB69 ->  | BQ66: ='Calculs (M1..M20)'!HC69 ->  | BR66: ='Calculs (M1..M20)'!HD69 ->  | BS66: ='Calculs (M1..M20)'!HE69 ->  | BT66: ='Calculs (M1..M20)'!HF69 ->  | BU66: ='Calculs (M21..M40)'!GM69 ->  | BV66: ='Calculs (M21..M40)'!GN69 ->  | BW66: ='Calculs (M21..M40)'!GO69 ->  | BX66: ='Calculs (M21..M40)'!GP69 ->  | BY66: ='Calculs (M21..M40)'!GQ69 ->  | BZ66: ='Calculs (M21..M40)'!GR69 ->  | CA66: ='Calculs (M21..M40)'!GS69 ->  | CB66: ='Calculs (M21..M40)'!GT69 ->  | CC66: ='Calculs (M21..M40)'!GU69 ->  | CD66: ='Calculs (M21..M40)'!GV69 ->  | CE66: ='Calculs (M21..M40)'!GW69 ->  | CF66: ='Calculs (M21..M40)'!GX69 ->  | CG66: ='Calculs (M21..M40)'!GY69 ->  | CH66: ='Calculs (M21..M40)'!GZ69 ->  | CI66: ='Calculs (M21..M40)'!HA69 ->  | CJ66: ='Calculs (M21..M40)'!HB69 ->  | CK66: ='Calculs (M21..M40)'!HC69 ->  | CL66: ='Calculs (M21..M40)'!HD69 ->  | CM66: ='Calculs (M21..M40)'!HE69 ->  | CN66: ='Calculs (M21..M40)'!HF69 -> 
B67: 57 | AV67: ='Calculs (M21..M40)'!A70 ->  | AW67: ='Calculs (M21..M40)'!G70 -> 0 | AX67: ='Calculs (M21..M40)'!H70 ->  | AY67: ='Calculs (M21..M40)'!I70 ->  | AZ67: ='Calculs (M21..M40)'!C70 ->  | BA67: ='Calculs (M1..M20)'!GM70 ->  | BB67: ='Calculs (M1..M20)'!GN70 ->  | BC67: ='Calculs (M1..M20)'!GO70 ->  | BD67: ='Calculs (M1..M20)'!GP70 ->  | BE67: ='Calculs (M1..M20)'!GQ70 ->  | BF67: ='Calculs (M1..M20)'!GR70 ->  | BG67: ='Calculs (M1..M20)'!GS70 ->  | BH67: ='Calculs (M1..M20)'!GT70 ->  | BI67: ='Calculs (M1..M20)'!GU70 ->  | BJ67: ='Calculs (M1..M20)'!GV70 ->  | BK67: ='Calculs (M1..M20)'!GW70 ->  | BL67: ='Calculs (M1..M20)'!GX70 ->  | BM67: ='Calculs (M1..M20)'!GY70 ->  | BN67: ='Calculs (M1..M20)'!GZ70 ->  | BO67: ='Calculs (M1..M20)'!HA70 ->  | BP67: ='Calculs (M1..M20)'!HB70 ->  | BQ67: ='Calculs (M1..M20)'!HC70 ->  | BR67: ='Calculs (M1..M20)'!HD70 ->  | BS67: ='Calculs (M1..M20)'!HE70 ->  | BT67: ='Calculs (M1..M20)'!HF70 ->  | BU67: ='Calculs (M21..M40)'!GM70 ->  | BV67: ='Calculs (M21..M40)'!GN70 ->  | BW67: ='Calculs (M21..M40)'!GO70 ->  | BX67: ='Calculs (M21..M40)'!GP70 ->  | BY67: ='Calculs (M21..M40)'!GQ70 ->  | BZ67: ='Calculs (M21..M40)'!GR70 ->  | CA67: ='Calculs (M21..M40)'!GS70 ->  | CB67: ='Calculs (M21..M40)'!GT70 ->  | CC67: ='Calculs (M21..M40)'!GU70 ->  | CD67: ='Calculs (M21..M40)'!GV70 ->  | CE67: ='Calculs (M21..M40)'!GW70 ->  | CF67: ='Calculs (M21..M40)'!GX70 ->  | CG67: ='Calculs (M21..M40)'!GY70 ->  | CH67: ='Calculs (M21..M40)'!GZ70 ->  | CI67: ='Calculs (M21..M40)'!HA70 ->  | CJ67: ='Calculs (M21..M40)'!HB70 ->  | CK67: ='Calculs (M21..M40)'!HC70 ->  | CL67: ='Calculs (M21..M40)'!HD70 ->  | CM67: ='Calculs (M21..M40)'!HE70 ->  | CN67: ='Calculs (M21..M40)'!HF70 -> 
B68: 58 | AV68: ='Calculs (M21..M40)'!A71 ->  | AW68: ='Calculs (M21..M40)'!G71 -> 0 | AX68: ='Calculs (M21..M40)'!H71 ->  | AY68: ='Calculs (M21..M40)'!I71 ->  | AZ68: ='Calculs (M21..M40)'!C71 ->  | BA68: ='Calculs (M1..M20)'!GM71 ->  | BB68: ='Calculs (M1..M20)'!GN71 ->  | BC68: ='Calculs (M1..M20)'!GO71 ->  | BD68: ='Calculs (M1..M20)'!GP71 ->  | BE68: ='Calculs (M1..M20)'!GQ71 ->  | BF68: ='Calculs (M1..M20)'!GR71 ->  | BG68: ='Calculs (M1..M20)'!GS71 ->  | BH68: ='Calculs (M1..M20)'!GT71 ->  | BI68: ='Calculs (M1..M20)'!GU71 ->  | BJ68: ='Calculs (M1..M20)'!GV71 ->  | BK68: ='Calculs (M1..M20)'!GW71 ->  | BL68: ='Calculs (M1..M20)'!GX71 ->  | BM68: ='Calculs (M1..M20)'!GY71 ->  | BN68: ='Calculs (M1..M20)'!GZ71 ->  | BO68: ='Calculs (M1..M20)'!HA71 ->  | BP68: ='Calculs (M1..M20)'!HB71 ->  | BQ68: ='Calculs (M1..M20)'!HC71 ->  | BR68: ='Calculs (M1..M20)'!HD71 ->  | BS68: ='Calculs (M1..M20)'!HE71 ->  | BT68: ='Calculs (M1..M20)'!HF71 ->  | BU68: ='Calculs (M21..M40)'!GM71 ->  | BV68: ='Calculs (M21..M40)'!GN71 ->  | BW68: ='Calculs (M21..M40)'!GO71 ->  | BX68: ='Calculs (M21..M40)'!GP71 ->  | BY68: ='Calculs (M21..M40)'!GQ71 ->  | BZ68: ='Calculs (M21..M40)'!GR71 ->  | CA68: ='Calculs (M21..M40)'!GS71 ->  | CB68: ='Calculs (M21..M40)'!GT71 ->  | CC68: ='Calculs (M21..M40)'!GU71 ->  | CD68: ='Calculs (M21..M40)'!GV71 ->  | CE68: ='Calculs (M21..M40)'!GW71 ->  | CF68: ='Calculs (M21..M40)'!GX71 ->  | CG68: ='Calculs (M21..M40)'!GY71 ->  | CH68: ='Calculs (M21..M40)'!GZ71 ->  | CI68: ='Calculs (M21..M40)'!HA71 ->  | CJ68: ='Calculs (M21..M40)'!HB71 ->  | CK68: ='Calculs (M21..M40)'!HC71 ->  | CL68: ='Calculs (M21..M40)'!HD71 ->  | CM68: ='Calculs (M21..M40)'!HE71 ->  | CN68: ='Calculs (M21..M40)'!HF71 -> 
B69: 59 | AV69: ='Calculs (M21..M40)'!A72 ->  | AW69: ='Calculs (M21..M40)'!G72 -> 0 | AX69: ='Calculs (M21..M40)'!H72 ->  | AY69: ='Calculs (M21..M40)'!I72 ->  | AZ69: ='Calculs (M21..M40)'!C72 ->  | BA69: ='Calculs (M1..M20)'!GM72 ->  | BB69: ='Calculs (M1..M20)'!GN72 ->  | BC69: ='Calculs (M1..M20)'!GO72 ->  | BD69: ='Calculs (M1..M20)'!GP72 ->  | BE69: ='Calculs (M1..M20)'!GQ72 ->  | BF69: ='Calculs (M1..M20)'!GR72 ->  | BG69: ='Calculs (M1..M20)'!GS72 ->  | BH69: ='Calculs (M1..M20)'!GT72 ->  | BI69: ='Calculs (M1..M20)'!GU72 ->  | BJ69: ='Calculs (M1..M20)'!GV72 ->  | BK69: ='Calculs (M1..M20)'!GW72 ->  | BL69: ='Calculs (M1..M20)'!GX72 ->  | BM69: ='Calculs (M1..M20)'!GY72 ->  | BN69: ='Calculs (M1..M20)'!GZ72 ->  | BO69: ='Calculs (M1..M20)'!HA72 ->  | BP69: ='Calculs (M1..M20)'!HB72 ->  | BQ69: ='Calculs (M1..M20)'!HC72 ->  | BR69: ='Calculs (M1..M20)'!HD72 ->  | BS69: ='Calculs (M1..M20)'!HE72 ->  | BT69: ='Calculs (M1..M20)'!HF72 ->  | BU69: ='Calculs (M21..M40)'!GM72 ->  | BV69: ='Calculs (M21..M40)'!GN72 ->  | BW69: ='Calculs (M21..M40)'!GO72 ->  | BX69: ='Calculs (M21..M40)'!GP72 ->  | BY69: ='Calculs (M21..M40)'!GQ72 ->  | BZ69: ='Calculs (M21..M40)'!GR72 ->  | CA69: ='Calculs (M21..M40)'!GS72 ->  | CB69: ='Calculs (M21..M40)'!GT72 ->  | CC69: ='Calculs (M21..M40)'!GU72 ->  | CD69: ='Calculs (M21..M40)'!GV72 ->  | CE69: ='Calculs (M21..M40)'!GW72 ->  | CF69: ='Calculs (M21..M40)'!GX72 ->  | CG69: ='Calculs (M21..M40)'!GY72 ->  | CH69: ='Calculs (M21..M40)'!GZ72 ->  | CI69: ='Calculs (M21..M40)'!HA72 ->  | CJ69: ='Calculs (M21..M40)'!HB72 ->  | CK69: ='Calculs (M21..M40)'!HC72 ->  | CL69: ='Calculs (M21..M40)'!HD72 ->  | CM69: ='Calculs (M21..M40)'!HE72 ->  | CN69: ='Calculs (M21..M40)'!HF72 -> 
B70: 60 | AV70: ='Calculs (M21..M40)'!A73 ->  | AW70: ='Calculs (M21..M40)'!G73 -> 0 | AX70: ='Calculs (M21..M40)'!H73 ->  | AY70: ='Calculs (M21..M40)'!I73 ->  | AZ70: ='Calculs (M21..M40)'!C73 ->  | BA70: ='Calculs (M1..M20)'!GM73 ->  | BB70: ='Calculs (M1..M20)'!GN73 ->  | BC70: ='Calculs (M1..M20)'!GO73 ->  | BD70: ='Calculs (M1..M20)'!GP73 ->  | BE70: ='Calculs (M1..M20)'!GQ73 ->  | BF70: ='Calculs (M1..M20)'!GR73 ->  | BG70: ='Calculs (M1..M20)'!GS73 ->  | BH70: ='Calculs (M1..M20)'!GT73 ->  | BI70: ='Calculs (M1..M20)'!GU73 ->  | BJ70: ='Calculs (M1..M20)'!GV73 ->  | BK70: ='Calculs (M1..M20)'!GW73 ->  | BL70: ='Calculs (M1..M20)'!GX73 ->  | BM70: ='Calculs (M1..M20)'!GY73 ->  | BN70: ='Calculs (M1..M20)'!GZ73 ->  | BO70: ='Calculs (M1..M20)'!HA73 ->  | BP70: ='Calculs (M1..M20)'!HB73 ->  | BQ70: ='Calculs (M1..M20)'!HC73 ->  | BR70: ='Calculs (M1..M20)'!HD73 ->  | BS70: ='Calculs (M1..M20)'!HE73 ->  | BT70: ='Calculs (M1..M20)'!HF73 ->  | BU70: ='Calculs (M21..M40)'!GM73 ->  | BV70: ='Calculs (M21..M40)'!GN73 ->  | BW70: ='Calculs (M21..M40)'!GO73 ->  | BX70: ='Calculs (M21..M40)'!GP73 ->  | BY70: ='Calculs (M21..M40)'!GQ73 ->  | BZ70: ='Calculs (M21..M40)'!GR73 ->  | CA70: ='Calculs (M21..M40)'!GS73 ->  | CB70: ='Calculs (M21..M40)'!GT73 ->  | CC70: ='Calculs (M21..M40)'!GU73 ->  | CD70: ='Calculs (M21..M40)'!GV73 ->  | CE70: ='Calculs (M21..M40)'!GW73 ->  | CF70: ='Calculs (M21..M40)'!GX73 ->  | CG70: ='Calculs (M21..M40)'!GY73 ->  | CH70: ='Calculs (M21..M40)'!GZ73 ->  | CI70: ='Calculs (M21..M40)'!HA73 ->  | CJ70: ='Calculs (M21..M40)'!HB73 ->  | CK70: ='Calculs (M21..M40)'!HC73 ->  | CL70: ='Calculs (M21..M40)'!HD73 ->  | CM70: ='Calculs (M21..M40)'!HE73 ->  | CN70: ='Calculs (M21..M40)'!HF73 -> 
B71: 61 | G71: =IF(ISNA(VLOOKUP($B71,ClassEvo,5+G$10,0)),"",VLOOKUP($B71,ClassEvo,5+G$10,0)) ->  | Q71: =IF(ISNA(VLOOKUP($B71,ClassEvo,5+Q$10,0)),"",VLOOKUP($B71,ClassEvo,5+Q$10,0)) ->  | AA71: =IF(ISNA(VLOOKUP($B71,ClassEvo,5+AA$10,0)),"",VLOOKUP($B71,ClassEvo,5+AA$10,0)) ->  | AK71: =IF(ISNA(VLOOKUP($B71,ClassEvo,5+AK$10,0)),"",VLOOKUP($B71,ClassEvo,5+AK$10,0)) ->  | AV71: ='Calculs (M21..M40)'!A74 ->  | AW71: ='Calculs (M21..M40)'!G74 -> 0 | AX71: ='Calculs (M21..M40)'!H74 ->  | AY71: ='Calculs (M21..M40)'!I74 ->  | AZ71: ='Calculs (M21..M40)'!C74 ->  | BA71: ='Calculs (M1..M20)'!GM74 ->  | BB71: ='Calculs (M1..M20)'!GN74 ->  | BC71: ='Calculs (M1..M20)'!GO74 ->  | BD71: ='Calculs (M1..M20)'!GP74 ->  | BE71: ='Calculs (M1..M20)'!GQ74 ->  | BF71: ='Calculs (M1..M20)'!GR74 ->  | BG71: ='Calculs (M1..M20)'!GS74 ->  | BH71: ='Calculs (M1..M20)'!GT74 ->  | BI71: ='Calculs (M1..M20)'!GU74 ->  | BJ71: ='Calculs (M1..M20)'!GV74 ->  | BK71: ='Calculs (M1..M20)'!GW74 ->  | BL71: ='Calculs (M1..M20)'!GX74 ->  | BM71: ='Calculs (M1..M20)'!GY74 ->  | BN71: ='Calculs (M1..M20)'!GZ74 ->  | BO71: ='Calculs (M1..M20)'!HA74 ->  | BP71: ='Calculs (M1..M20)'!HB74 ->  | BQ71: ='Calculs (M1..M20)'!HC74 ->  | BR71: ='Calculs (M1..M20)'!HD74 ->  | BS71: ='Calculs (M1..M20)'!HE74 ->  | BT71: ='Calculs (M1..M20)'!HF74 ->  | BU71: ='Calculs (M21..M40)'!GM74 ->  | BV71: ='Calculs (M21..M40)'!GN74 ->  | BW71: ='Calculs (M21..M40)'!GO74 ->  | BX71: ='Calculs (M21..M40)'!GP74 ->  | BY71: ='Calculs (M21..M40)'!GQ74 ->  | BZ71: ='Calculs (M21..M40)'!GR74 ->  | CA71: ='Calculs (M21..M40)'!GS74 ->  | CB71: ='Calculs (M21..M40)'!GT74 ->  | CC71: ='Calculs (M21..M40)'!GU74 ->  | CD71: ='Calculs (M21..M40)'!GV74 ->  | CE71: ='Calculs (M21..M40)'!GW74 ->  | CF71: ='Calculs (M21..M40)'!GX74 ->  | CG71: ='Calculs (M21..M40)'!GY74 ->  | CH71: ='Calculs (M21..M40)'!GZ74 ->  | CI71: ='Calculs (M21..M40)'!HA74 ->  | CJ71: ='Calculs (M21..M40)'!HB74 ->  | CK71: ='Calculs (M21..M40)'!HC74 ->  | CL71: ='Calculs (M21..M40)'!HD74 ->  | CM71: ='Calculs (M21..M40)'!HE74 ->  | CN71: ='Calculs (M21..M40)'!HF74 -> 
B72: 62 | AV72: ='Calculs (M21..M40)'!A75 ->  | AW72: ='Calculs (M21..M40)'!G75 -> 0 | AX72: ='Calculs (M21..M40)'!H75 ->  | AY72: ='Calculs (M21..M40)'!I75 ->  | AZ72: ='Calculs (M21..M40)'!C75 ->  | BA72: ='Calculs (M1..M20)'!GM75 ->  | BB72: ='Calculs (M1..M20)'!GN75 ->  | BC72: ='Calculs (M1..M20)'!GO75 ->  | BD72: ='Calculs (M1..M20)'!GP75 ->  | BE72: ='Calculs (M1..M20)'!GQ75 ->  | BF72: ='Calculs (M1..M20)'!GR75 ->  | BG72: ='Calculs (M1..M20)'!GS75 ->  | BH72: ='Calculs (M1..M20)'!GT75 ->  | BI72: ='Calculs (M1..M20)'!GU75 ->  | BJ72: ='Calculs (M1..M20)'!GV75 ->  | BK72: ='Calculs (M1..M20)'!GW75 ->  | BL72: ='Calculs (M1..M20)'!GX75 ->  | BM72: ='Calculs (M1..M20)'!GY75 ->  | BN72: ='Calculs (M1..M20)'!GZ75 ->  | BO72: ='Calculs (M1..M20)'!HA75 ->  | BP72: ='Calculs (M1..M20)'!HB75 ->  | BQ72: ='Calculs (M1..M20)'!HC75 ->  | BR72: ='Calculs (M1..M20)'!HD75 ->  | BS72: ='Calculs (M1..M20)'!HE75 ->  | BT72: ='Calculs (M1..M20)'!HF75 ->  | BU72: ='Calculs (M21..M40)'!GM75 ->  | BV72: ='Calculs (M21..M40)'!GN75 ->  | BW72: ='Calculs (M21..M40)'!GO75 ->  | BX72: ='Calculs (M21..M40)'!GP75 ->  | BY72: ='Calculs (M21..M40)'!GQ75 ->  | BZ72: ='Calculs (M21..M40)'!GR75 ->  | CA72: ='Calculs (M21..M40)'!GS75 ->  | CB72: ='Calculs (M21..M40)'!GT75 ->  | CC72: ='Calculs (M21..M40)'!GU75 ->  | CD72: ='Calculs (M21..M40)'!GV75 ->  | CE72: ='Calculs (M21..M40)'!GW75 ->  | CF72: ='Calculs (M21..M40)'!GX75 ->  | CG72: ='Calculs (M21..M40)'!GY75 ->  | CH72: ='Calculs (M21..M40)'!GZ75 ->  | CI72: ='Calculs (M21..M40)'!HA75 ->  | CJ72: ='Calculs (M21..M40)'!HB75 ->  | CK72: ='Calculs (M21..M40)'!HC75 ->  | CL72: ='Calculs (M21..M40)'!HD75 ->  | CM72: ='Calculs (M21..M40)'!HE75 ->  | CN72: ='Calculs (M21..M40)'!HF75 -> 
B73: 63 | AV73: ='Calculs (M21..M40)'!A76 ->  | AW73: ='Calculs (M21..M40)'!G76 -> 0 | AX73: ='Calculs (M21..M40)'!H76 ->  | AY73: ='Calculs (M21..M40)'!I76 ->  | AZ73: ='Calculs (M21..M40)'!C76 ->  | BA73: ='Calculs (M1..M20)'!GM76 ->  | BB73: ='Calculs (M1..M20)'!GN76 ->  | BC73: ='Calculs (M1..M20)'!GO76 ->  | BD73: ='Calculs (M1..M20)'!GP76 ->  | BE73: ='Calculs (M1..M20)'!GQ76 ->  | BF73: ='Calculs (M1..M20)'!GR76 ->  | BG73: ='Calculs (M1..M20)'!GS76 ->  | BH73: ='Calculs (M1..M20)'!GT76 ->  | BI73: ='Calculs (M1..M20)'!GU76 ->  | BJ73: ='Calculs (M1..M20)'!GV76 ->  | BK73: ='Calculs (M1..M20)'!GW76 ->  | BL73: ='Calculs (M1..M20)'!GX76 ->  | BM73: ='Calculs (M1..M20)'!GY76 ->  | BN73: ='Calculs (M1..M20)'!GZ76 ->  | BO73: ='Calculs (M1..M20)'!HA76 ->  | BP73: ='Calculs (M1..M20)'!HB76 ->  | BQ73: ='Calculs (M1..M20)'!HC76 ->  | BR73: ='Calculs (M1..M20)'!HD76 ->  | BS73: ='Calculs (M1..M20)'!HE76 ->  | BT73: ='Calculs (M1..M20)'!HF76 ->  | BU73: ='Calculs (M21..M40)'!GM76 ->  | BV73: ='Calculs (M21..M40)'!GN76 ->  | BW73: ='Calculs (M21..M40)'!GO76 ->  | BX73: ='Calculs (M21..M40)'!GP76 ->  | BY73: ='Calculs (M21..M40)'!GQ76 ->  | BZ73: ='Calculs (M21..M40)'!GR76 ->  | CA73: ='Calculs (M21..M40)'!GS76 ->  | CB73: ='Calculs (M21..M40)'!GT76 ->  | CC73: ='Calculs (M21..M40)'!GU76 ->  | CD73: ='Calculs (M21..M40)'!GV76 ->  | CE73: ='Calculs (M21..M40)'!GW76 ->  | CF73: ='Calculs (M21..M40)'!GX76 ->  | CG73: ='Calculs (M21..M40)'!GY76 ->  | CH73: ='Calculs (M21..M40)'!GZ76 ->  | CI73: ='Calculs (M21..M40)'!HA76 ->  | CJ73: ='Calculs (M21..M40)'!HB76 ->  | CK73: ='Calculs (M21..M40)'!HC76 ->  | CL73: ='Calculs (M21..M40)'!HD76 ->  | CM73: ='Calculs (M21..M40)'!HE76 ->  | CN73: ='Calculs (M21..M40)'!HF76 -> 
B74: 64 | AV74: ='Calculs (M21..M40)'!A77 ->  | AW74: ='Calculs (M21..M40)'!G77 -> 0 | AX74: ='Calculs (M21..M40)'!H77 ->  | AY74: ='Calculs (M21..M40)'!I77 ->  | AZ74: ='Calculs (M21..M40)'!C77 ->  | BA74: ='Calculs (M1..M20)'!GM77 ->  | BB74: ='Calculs (M1..M20)'!GN77 ->  | BC74: ='Calculs (M1..M20)'!GO77 ->  | BD74: ='Calculs (M1..M20)'!GP77 ->  | BE74: ='Calculs (M1..M20)'!GQ77 ->  | BF74: ='Calculs (M1..M20)'!GR77 ->  | BG74: ='Calculs (M1..M20)'!GS77 ->  | BH74: ='Calculs (M1..M20)'!GT77 ->  | BI74: ='Calculs (M1..M20)'!GU77 ->  | BJ74: ='Calculs (M1..M20)'!GV77 ->  | BK74: ='Calculs (M1..M20)'!GW77 ->  | BL74: ='Calculs (M1..M20)'!GX77 ->  | BM74: ='Calculs (M1..M20)'!GY77 ->  | BN74: ='Calculs (M1..M20)'!GZ77 ->  | BO74: ='Calculs (M1..M20)'!HA77 ->  | BP74: ='Calculs (M1..M20)'!HB77 ->  | BQ74: ='Calculs (M1..M20)'!HC77 ->  | BR74: ='Calculs (M1..M20)'!HD77 ->  | BS74: ='Calculs (M1..M20)'!HE77 ->  | BT74: ='Calculs (M1..M20)'!HF77 ->  | BU74: ='Calculs (M21..M40)'!GM77 ->  | BV74: ='Calculs (M21..M40)'!GN77 ->  | BW74: ='Calculs (M21..M40)'!GO77 ->  | BX74: ='Calculs (M21..M40)'!GP77 ->  | BY74: ='Calculs (M21..M40)'!GQ77 ->  | BZ74: ='Calculs (M21..M40)'!GR77 ->  | CA74: ='Calculs (M21..M40)'!GS77 ->  | CB74: ='Calculs (M21..M40)'!GT77 ->  | CC74: ='Calculs (M21..M40)'!GU77 ->  | CD74: ='Calculs (M21..M40)'!GV77 ->  | CE74: ='Calculs (M21..M40)'!GW77 ->  | CF74: ='Calculs (M21..M40)'!GX77 ->  | CG74: ='Calculs (M21..M40)'!GY77 ->  | CH74: ='Calculs (M21..M40)'!GZ77 ->  | CI74: ='Calculs (M21..M40)'!HA77 ->  | CJ74: ='Calculs (M21..M40)'!HB77 ->  | CK74: ='Calculs (M21..M40)'!HC77 ->  | CL74: ='Calculs (M21..M40)'!HD77 ->  | CM74: ='Calculs (M21..M40)'!HE77 ->  | CN74: ='Calculs (M21..M40)'!HF77 -> 
B75: 65 | C75: =IF(ISNA(VLOOKUP(B75,ClassEvo,2,0)),"",VLOOKUP(B75,ClassEvo,2,0)) ->  | D75: =IF(ISNA(VLOOKUP($B75,ClassEvo,3,0)),"",VLOOKUP($B75,ClassEvo,3,0)) ->  | E75: =IF(ISNA(VLOOKUP($B75,ClassEvo,4,0)),"",VLOOKUP($B75,ClassEvo,4,0)) ->  | F75: =IF(ISNA(VLOOKUP($B75,ClassEvo,5,0)),"",VLOOKUP($B75,ClassEvo,5,0)) ->  | AV75: ='Calculs (M21..M40)'!A78 ->  | AW75: ='Calculs (M21..M40)'!G78 -> 0 | AX75: ='Calculs (M21..M40)'!H78 ->  | AY75: ='Calculs (M21..M40)'!I78 ->  | AZ75: ='Calculs (M21..M40)'!C78 ->  | BA75: ='Calculs (M1..M20)'!GM78 ->  | BB75: ='Calculs (M1..M20)'!GN78 ->  | BC75: ='Calculs (M1..M20)'!GO78 ->  | BD75: ='Calculs (M1..M20)'!GP78 ->  | BE75: ='Calculs (M1..M20)'!GQ78 ->  | BF75: ='Calculs (M1..M20)'!GR78 ->  | BG75: ='Calculs (M1..M20)'!GS78 ->  | BH75: ='Calculs (M1..M20)'!GT78 ->  | BI75: ='Calculs (M1..M20)'!GU78 ->  | BJ75: ='Calculs (M1..M20)'!GV78 ->  | BK75: ='Calculs (M1..M20)'!GW78 ->  | BL75: ='Calculs (M1..M20)'!GX78 ->  | BM75: ='Calculs (M1..M20)'!GY78 ->  | BN75: ='Calculs (M1..M20)'!GZ78 ->  | BO75: ='Calculs (M1..M20)'!HA78 ->  | BP75: ='Calculs (M1..M20)'!HB78 ->  | BQ75: ='Calculs (M1..M20)'!HC78 ->  | BR75: ='Calculs (M1..M20)'!HD78 ->  | BS75: ='Calculs (M1..M20)'!HE78 ->  | BT75: ='Calculs (M1..M20)'!HF78 ->  | BU75: ='Calculs (M21..M40)'!GM78 ->  | BV75: ='Calculs (M21..M40)'!GN78 ->  | BW75: ='Calculs (M21..M40)'!GO78 ->  | BX75: ='Calculs (M21..M40)'!GP78 ->  | BY75: ='Calculs (M21..M40)'!GQ78 ->  | BZ75: ='Calculs (M21..M40)'!GR78 ->  | CA75: ='Calculs (M21..M40)'!GS78 ->  | CB75: ='Calculs (M21..M40)'!GT78 ->  | CC75: ='Calculs (M21..M40)'!GU78 ->  | CD75: ='Calculs (M21..M40)'!GV78 ->  | CE75: ='Calculs (M21..M40)'!GW78 ->  | CF75: ='Calculs (M21..M40)'!GX78 ->  | CG75: ='Calculs (M21..M40)'!GY78 ->  | CH75: ='Calculs (M21..M40)'!GZ78 ->  | CI75: ='Calculs (M21..M40)'!HA78 ->  | CJ75: ='Calculs (M21..M40)'!HB78 ->  | CK75: ='Calculs (M21..M40)'!HC78 ->  | CL75: ='Calculs (M21..M40)'!HD78 ->  | CM75: ='Calculs (M21..M40)'!HE78 ->  | CN75: ='Calculs (M21..M40)'!HF78 -> 
B76: 66 | AV76: ='Calculs (M21..M40)'!A79 ->  | AW76: ='Calculs (M21..M40)'!G79 -> 0 | AX76: ='Calculs (M21..M40)'!H79 ->  | AY76: ='Calculs (M21..M40)'!I79 ->  | AZ76: ='Calculs (M21..M40)'!C79 ->  | BA76: ='Calculs (M1..M20)'!GM79 ->  | BB76: ='Calculs (M1..M20)'!GN79 ->  | BC76: ='Calculs (M1..M20)'!GO79 ->  | BD76: ='Calculs (M1..M20)'!GP79 ->  | BE76: ='Calculs (M1..M20)'!GQ79 ->  | BF76: ='Calculs (M1..M20)'!GR79 ->  | BG76: ='Calculs (M1..M20)'!GS79 ->  | BH76: ='Calculs (M1..M20)'!GT79 ->  | BI76: ='Calculs (M1..M20)'!GU79 ->  | BJ76: ='Calculs (M1..M20)'!GV79 ->  | BK76: ='Calculs (M1..M20)'!GW79 ->  | BL76: ='Calculs (M1..M20)'!GX79 ->  | BM76: ='Calculs (M1..M20)'!GY79 ->  | BN76: ='Calculs (M1..M20)'!GZ79 ->  | BO76: ='Calculs (M1..M20)'!HA79 ->  | BP76: ='Calculs (M1..M20)'!HB79 ->  | BQ76: ='Calculs (M1..M20)'!HC79 ->  | BR76: ='Calculs (M1..M20)'!HD79 ->  | BS76: ='Calculs (M1..M20)'!HE79 ->  | BT76: ='Calculs (M1..M20)'!HF79 ->  | BU76: ='Calculs (M21..M40)'!GM79 ->  | BV76: ='Calculs (M21..M40)'!GN79 ->  | BW76: ='Calculs (M21..M40)'!GO79 ->  | BX76: ='Calculs (M21..M40)'!GP79 ->  | BY76: ='Calculs (M21..M40)'!GQ79 ->  | BZ76: ='Calculs (M21..M40)'!GR79 ->  | CA76: ='Calculs (M21..M40)'!GS79 ->  | CB76: ='Calculs (M21..M40)'!GT79 ->  | CC76: ='Calculs (M21..M40)'!GU79 ->  | CD76: ='Calculs (M21..M40)'!GV79 ->  | CE76: ='Calculs (M21..M40)'!GW79 ->  | CF76: ='Calculs (M21..M40)'!GX79 ->  | CG76: ='Calculs (M21..M40)'!GY79 ->  | CH76: ='Calculs (M21..M40)'!GZ79 ->  | CI76: ='Calculs (M21..M40)'!HA79 ->  | CJ76: ='Calculs (M21..M40)'!HB79 ->  | CK76: ='Calculs (M21..M40)'!HC79 ->  | CL76: ='Calculs (M21..M40)'!HD79 ->  | CM76: ='Calculs (M21..M40)'!HE79 ->  | CN76: ='Calculs (M21..M40)'!HF79 -> 
B77: 67 | AV77: ='Calculs (M21..M40)'!A80 ->  | AW77: ='Calculs (M21..M40)'!G80 -> 0 | AX77: ='Calculs (M21..M40)'!H80 ->  | AY77: ='Calculs (M21..M40)'!I80 ->  | AZ77: ='Calculs (M21..M40)'!C80 ->  | BA77: ='Calculs (M1..M20)'!GM80 ->  | BB77: ='Calculs (M1..M20)'!GN80 ->  | BC77: ='Calculs (M1..M20)'!GO80 ->  | BD77: ='Calculs (M1..M20)'!GP80 ->  | BE77: ='Calculs (M1..M20)'!GQ80 ->  | BF77: ='Calculs (M1..M20)'!GR80 ->  | BG77: ='Calculs (M1..M20)'!GS80 ->  | BH77: ='Calculs (M1..M20)'!GT80 ->  | BI77: ='Calculs (M1..M20)'!GU80 ->  | BJ77: ='Calculs (M1..M20)'!GV80 ->  | BK77: ='Calculs (M1..M20)'!GW80 ->  | BL77: ='Calculs (M1..M20)'!GX80 ->  | BM77: ='Calculs (M1..M20)'!GY80 ->  | BN77: ='Calculs (M1..M20)'!GZ80 ->  | BO77: ='Calculs (M1..M20)'!HA80 ->  | BP77: ='Calculs (M1..M20)'!HB80 ->  | BQ77: ='Calculs (M1..M20)'!HC80 ->  | BR77: ='Calculs (M1..M20)'!HD80 ->  | BS77: ='Calculs (M1..M20)'!HE80 ->  | BT77: ='Calculs (M1..M20)'!HF80 ->  | BU77: ='Calculs (M21..M40)'!GM80 ->  | BV77: ='Calculs (M21..M40)'!GN80 ->  | BW77: ='Calculs (M21..M40)'!GO80 ->  | BX77: ='Calculs (M21..M40)'!GP80 ->  | BY77: ='Calculs (M21..M40)'!GQ80 ->  | BZ77: ='Calculs (M21..M40)'!GR80 ->  | CA77: ='Calculs (M21..M40)'!GS80 ->  | CB77: ='Calculs (M21..M40)'!GT80 ->  | CC77: ='Calculs (M21..M40)'!GU80 ->  | CD77: ='Calculs (M21..M40)'!GV80 ->  | CE77: ='Calculs (M21..M40)'!GW80 ->  | CF77: ='Calculs (M21..M40)'!GX80 ->  | CG77: ='Calculs (M21..M40)'!GY80 ->  | CH77: ='Calculs (M21..M40)'!GZ80 ->  | CI77: ='Calculs (M21..M40)'!HA80 ->  | CJ77: ='Calculs (M21..M40)'!HB80 ->  | CK77: ='Calculs (M21..M40)'!HC80 ->  | CL77: ='Calculs (M21..M40)'!HD80 ->  | CM77: ='Calculs (M21..M40)'!HE80 ->  | CN77: ='Calculs (M21..M40)'!HF80 -> 
B78: 68 | AV78: ='Calculs (M21..M40)'!A81 ->  | AW78: ='Calculs (M21..M40)'!G81 -> 0 | AX78: ='Calculs (M21..M40)'!H81 ->  | AY78: ='Calculs (M21..M40)'!I81 ->  | AZ78: ='Calculs (M21..M40)'!C81 ->  | BA78: ='Calculs (M1..M20)'!GM81 ->  | BB78: ='Calculs (M1..M20)'!GN81 ->  | BC78: ='Calculs (M1..M20)'!GO81 ->  | BD78: ='Calculs (M1..M20)'!GP81 ->  | BE78: ='Calculs (M1..M20)'!GQ81 ->  | BF78: ='Calculs (M1..M20)'!GR81 ->  | BG78: ='Calculs (M1..M20)'!GS81 ->  | BH78: ='Calculs (M1..M20)'!GT81 ->  | BI78: ='Calculs (M1..M20)'!GU81 ->  | BJ78: ='Calculs (M1..M20)'!GV81 ->  | BK78: ='Calculs (M1..M20)'!GW81 ->  | BL78: ='Calculs (M1..M20)'!GX81 ->  | BM78: ='Calculs (M1..M20)'!GY81 ->  | BN78: ='Calculs (M1..M20)'!GZ81 ->  | BO78: ='Calculs (M1..M20)'!HA81 ->  | BP78: ='Calculs (M1..M20)'!HB81 ->  | BQ78: ='Calculs (M1..M20)'!HC81 ->  | BR78: ='Calculs (M1..M20)'!HD81 ->  | BS78: ='Calculs (M1..M20)'!HE81 ->  | BT78: ='Calculs (M1..M20)'!HF81 ->  | BU78: ='Calculs (M21..M40)'!GM81 ->  | BV78: ='Calculs (M21..M40)'!GN81 ->  | BW78: ='Calculs (M21..M40)'!GO81 ->  | BX78: ='Calculs (M21..M40)'!GP81 ->  | BY78: ='Calculs (M21..M40)'!GQ81 ->  | BZ78: ='Calculs (M21..M40)'!GR81 ->  | CA78: ='Calculs (M21..M40)'!GS81 ->  | CB78: ='Calculs (M21..M40)'!GT81 ->  | CC78: ='Calculs (M21..M40)'!GU81 ->  | CD78: ='Calculs (M21..M40)'!GV81 ->  | CE78: ='Calculs (M21..M40)'!GW81 ->  | CF78: ='Calculs (M21..M40)'!GX81 ->  | CG78: ='Calculs (M21..M40)'!GY81 ->  | CH78: ='Calculs (M21..M40)'!GZ81 ->  | CI78: ='Calculs (M21..M40)'!HA81 ->  | CJ78: ='Calculs (M21..M40)'!HB81 ->  | CK78: ='Calculs (M21..M40)'!HC81 ->  | CL78: ='Calculs (M21..M40)'!HD81 ->  | CM78: ='Calculs (M21..M40)'!HE81 ->  | CN78: ='Calculs (M21..M40)'!HF81 -> 
B79: 69 | AV79: ='Calculs (M21..M40)'!A82 ->  | AW79: ='Calculs (M21..M40)'!G82 -> 0 | AX79: ='Calculs (M21..M40)'!H82 ->  | AY79: ='Calculs (M21..M40)'!I82 ->  | AZ79: ='Calculs (M21..M40)'!C82 ->  | BA79: ='Calculs (M1..M20)'!GM82 ->  | BB79: ='Calculs (M1..M20)'!GN82 ->  | BC79: ='Calculs (M1..M20)'!GO82 ->  | BD79: ='Calculs (M1..M20)'!GP82 ->  | BE79: ='Calculs (M1..M20)'!GQ82 ->  | BF79: ='Calculs (M1..M20)'!GR82 ->  | BG79: ='Calculs (M1..M20)'!GS82 ->  | BH79: ='Calculs (M1..M20)'!GT82 ->  | BI79: ='Calculs (M1..M20)'!GU82 ->  | BJ79: ='Calculs (M1..M20)'!GV82 ->  | BK79: ='Calculs (M1..M20)'!GW82 ->  | BL79: ='Calculs (M1..M20)'!GX82 ->  | BM79: ='Calculs (M1..M20)'!GY82 ->  | BN79: ='Calculs (M1..M20)'!GZ82 ->  | BO79: ='Calculs (M1..M20)'!HA82 ->  | BP79: ='Calculs (M1..M20)'!HB82 ->  | BQ79: ='Calculs (M1..M20)'!HC82 ->  | BR79: ='Calculs (M1..M20)'!HD82 ->  | BS79: ='Calculs (M1..M20)'!HE82 ->  | BT79: ='Calculs (M1..M20)'!HF82 ->  | BU79: ='Calculs (M21..M40)'!GM82 ->  | BV79: ='Calculs (M21..M40)'!GN82 ->  | BW79: ='Calculs (M21..M40)'!GO82 ->  | BX79: ='Calculs (M21..M40)'!GP82 ->  | BY79: ='Calculs (M21..M40)'!GQ82 ->  | BZ79: ='Calculs (M21..M40)'!GR82 ->  | CA79: ='Calculs (M21..M40)'!GS82 ->  | CB79: ='Calculs (M21..M40)'!GT82 ->  | CC79: ='Calculs (M21..M40)'!GU82 ->  | CD79: ='Calculs (M21..M40)'!GV82 ->  | CE79: ='Calculs (M21..M40)'!GW82 ->  | CF79: ='Calculs (M21..M40)'!GX82 ->  | CG79: ='Calculs (M21..M40)'!GY82 ->  | CH79: ='Calculs (M21..M40)'!GZ82 ->  | CI79: ='Calculs (M21..M40)'!HA82 ->  | CJ79: ='Calculs (M21..M40)'!HB82 ->  | CK79: ='Calculs (M21..M40)'!HC82 ->  | CL79: ='Calculs (M21..M40)'!HD82 ->  | CM79: ='Calculs (M21..M40)'!HE82 ->  | CN79: ='Calculs (M21..M40)'!HF82 -> 
B80: 70 | AV80: ='Calculs (M21..M40)'!A83 ->  | AW80: ='Calculs (M21..M40)'!G83 -> 0 | AX80: ='Calculs (M21..M40)'!H83 ->  | AY80: ='Calculs (M21..M40)'!I83 ->  | AZ80: ='Calculs (M21..M40)'!C83 ->  | BA80: ='Calculs (M1..M20)'!GM83 ->  | BB80: ='Calculs (M1..M20)'!GN83 ->  | BC80: ='Calculs (M1..M20)'!GO83 ->  | BD80: ='Calculs (M1..M20)'!GP83 ->  | BE80: ='Calculs (M1..M20)'!GQ83 ->  | BF80: ='Calculs (M1..M20)'!GR83 ->  | BG80: ='Calculs (M1..M20)'!GS83 ->  | BH80: ='Calculs (M1..M20)'!GT83 ->  | BI80: ='Calculs (M1..M20)'!GU83 ->  | BJ80: ='Calculs (M1..M20)'!GV83 ->  | BK80: ='Calculs (M1..M20)'!GW83 ->  | BL80: ='Calculs (M1..M20)'!GX83 ->  | BM80: ='Calculs (M1..M20)'!GY83 ->  | BN80: ='Calculs (M1..M20)'!GZ83 ->  | BO80: ='Calculs (M1..M20)'!HA83 ->  | BP80: ='Calculs (M1..M20)'!HB83 ->  | BQ80: ='Calculs (M1..M20)'!HC83 ->  | BR80: ='Calculs (M1..M20)'!HD83 ->  | BS80: ='Calculs (M1..M20)'!HE83 ->  | BT80: ='Calculs (M1..M20)'!HF83 ->  | BU80: ='Calculs (M21..M40)'!GM83 ->  | BV80: ='Calculs (M21..M40)'!GN83 ->  | BW80: ='Calculs (M21..M40)'!GO83 ->  | BX80: ='Calculs (M21..M40)'!GP83 ->  | BY80: ='Calculs (M21..M40)'!GQ83 ->  | BZ80: ='Calculs (M21..M40)'!GR83 ->  | CA80: ='Calculs (M21..M40)'!GS83 ->  | CB80: ='Calculs (M21..M40)'!GT83 ->  | CC80: ='Calculs (M21..M40)'!GU83 ->  | CD80: ='Calculs (M21..M40)'!GV83 ->  | CE80: ='Calculs (M21..M40)'!GW83 ->  | CF80: ='Calculs (M21..M40)'!GX83 ->  | CG80: ='Calculs (M21..M40)'!GY83 ->  | CH80: ='Calculs (M21..M40)'!GZ83 ->  | CI80: ='Calculs (M21..M40)'!HA83 ->  | CJ80: ='Calculs (M21..M40)'!HB83 ->  | CK80: ='Calculs (M21..M40)'!HC83 ->  | CL80: ='Calculs (M21..M40)'!HD83 ->  | CM80: ='Calculs (M21..M40)'!HE83 ->  | CN80: ='Calculs (M21..M40)'!HF83 -> 
B81: 71 | G81: =IF(ISNA(VLOOKUP($B81,ClassEvo,5+G$10,0)),"",VLOOKUP($B81,ClassEvo,5+G$10,0)) ->  | Q81: =IF(ISNA(VLOOKUP($B81,ClassEvo,5+Q$10,0)),"",VLOOKUP($B81,ClassEvo,5+Q$10,0)) ->  | AA81: =IF(ISNA(VLOOKUP($B81,ClassEvo,5+AA$10,0)),"",VLOOKUP($B81,ClassEvo,5+AA$10,0)) ->  | AK81: =IF(ISNA(VLOOKUP($B81,ClassEvo,5+AK$10,0)),"",VLOOKUP($B81,ClassEvo,5+AK$10,0)) ->  | AV81: ='Calculs (M21..M40)'!A84 ->  | AW81: ='Calculs (M21..M40)'!G84 -> 0 | AX81: ='Calculs (M21..M40)'!H84 ->  | AY81: ='Calculs (M21..M40)'!I84 ->  | AZ81: ='Calculs (M21..M40)'!C84 ->  | BA81: ='Calculs (M1..M20)'!GM84 ->  | BB81: ='Calculs (M1..M20)'!GN84 ->  | BC81: ='Calculs (M1..M20)'!GO84 ->  | BD81: ='Calculs (M1..M20)'!GP84 ->  | BE81: ='Calculs (M1..M20)'!GQ84 ->  | BF81: ='Calculs (M1..M20)'!GR84 ->  | BG81: ='Calculs (M1..M20)'!GS84 ->  | BH81: ='Calculs (M1..M20)'!GT84 ->  | BI81: ='Calculs (M1..M20)'!GU84 ->  | BJ81: ='Calculs (M1..M20)'!GV84 ->  | BK81: ='Calculs (M1..M20)'!GW84 ->  | BL81: ='Calculs (M1..M20)'!GX84 ->  | BM81: ='Calculs (M1..M20)'!GY84 ->  | BN81: ='Calculs (M1..M20)'!GZ84 ->  | BO81: ='Calculs (M1..M20)'!HA84 ->  | BP81: ='Calculs (M1..M20)'!HB84 ->  | BQ81: ='Calculs (M1..M20)'!HC84 ->  | BR81: ='Calculs (M1..M20)'!HD84 ->  | BS81: ='Calculs (M1..M20)'!HE84 ->  | BT81: ='Calculs (M1..M20)'!HF84 ->  | BU81: ='Calculs (M21..M40)'!GM84 ->  | BV81: ='Calculs (M21..M40)'!GN84 ->  | BW81: ='Calculs (M21..M40)'!GO84 ->  | BX81: ='Calculs (M21..M40)'!GP84 ->  | BY81: ='Calculs (M21..M40)'!GQ84 ->  | BZ81: ='Calculs (M21..M40)'!GR84 ->  | CA81: ='Calculs (M21..M40)'!GS84 ->  | CB81: ='Calculs (M21..M40)'!GT84 ->  | CC81: ='Calculs (M21..M40)'!GU84 ->  | CD81: ='Calculs (M21..M40)'!GV84 ->  | CE81: ='Calculs (M21..M40)'!GW84 ->  | CF81: ='Calculs (M21..M40)'!GX84 ->  | CG81: ='Calculs (M21..M40)'!GY84 ->  | CH81: ='Calculs (M21..M40)'!GZ84 ->  | CI81: ='Calculs (M21..M40)'!HA84 ->  | CJ81: ='Calculs (M21..M40)'!HB84 ->  | CK81: ='Calculs (M21..M40)'!HC84 ->  | CL81: ='Calculs (M21..M40)'!HD84 ->  | CM81: ='Calculs (M21..M40)'!HE84 ->  | CN81: ='Calculs (M21..M40)'!HF84 -> 
B82: 72 | AV82: ='Calculs (M21..M40)'!A85 ->  | AW82: ='Calculs (M21..M40)'!G85 -> 0 | AX82: ='Calculs (M21..M40)'!H85 ->  | AY82: ='Calculs (M21..M40)'!I85 ->  | AZ82: ='Calculs (M21..M40)'!C85 ->  | BA82: ='Calculs (M1..M20)'!GM85 ->  | BB82: ='Calculs (M1..M20)'!GN85 ->  | BC82: ='Calculs (M1..M20)'!GO85 ->  | BD82: ='Calculs (M1..M20)'!GP85 ->  | BE82: ='Calculs (M1..M20)'!GQ85 ->  | BF82: ='Calculs (M1..M20)'!GR85 ->  | BG82: ='Calculs (M1..M20)'!GS85 ->  | BH82: ='Calculs (M1..M20)'!GT85 ->  | BI82: ='Calculs (M1..M20)'!GU85 ->  | BJ82: ='Calculs (M1..M20)'!GV85 ->  | BK82: ='Calculs (M1..M20)'!GW85 ->  | BL82: ='Calculs (M1..M20)'!GX85 ->  | BM82: ='Calculs (M1..M20)'!GY85 ->  | BN82: ='Calculs (M1..M20)'!GZ85 ->  | BO82: ='Calculs (M1..M20)'!HA85 ->  | BP82: ='Calculs (M1..M20)'!HB85 ->  | BQ82: ='Calculs (M1..M20)'!HC85 ->  | BR82: ='Calculs (M1..M20)'!HD85 ->  | BS82: ='Calculs (M1..M20)'!HE85 ->  | BT82: ='Calculs (M1..M20)'!HF85 ->  | BU82: ='Calculs (M21..M40)'!GM85 ->  | BV82: ='Calculs (M21..M40)'!GN85 ->  | BW82: ='Calculs (M21..M40)'!GO85 ->  | BX82: ='Calculs (M21..M40)'!GP85 ->  | BY82: ='Calculs (M21..M40)'!GQ85 ->  | BZ82: ='Calculs (M21..M40)'!GR85 ->  | CA82: ='Calculs (M21..M40)'!GS85 ->  | CB82: ='Calculs (M21..M40)'!GT85 ->  | CC82: ='Calculs (M21..M40)'!GU85 ->  | CD82: ='Calculs (M21..M40)'!GV85 ->  | CE82: ='Calculs (M21..M40)'!GW85 ->  | CF82: ='Calculs (M21..M40)'!GX85 ->  | CG82: ='Calculs (M21..M40)'!GY85 ->  | CH82: ='Calculs (M21..M40)'!GZ85 ->  | CI82: ='Calculs (M21..M40)'!HA85 ->  | CJ82: ='Calculs (M21..M40)'!HB85 ->  | CK82: ='Calculs (M21..M40)'!HC85 ->  | CL82: ='Calculs (M21..M40)'!HD85 ->  | CM82: ='Calculs (M21..M40)'!HE85 ->  | CN82: ='Calculs (M21..M40)'!HF85 -> 
B83: 73 | AV83: ='Calculs (M21..M40)'!A86 ->  | AW83: ='Calculs (M21..M40)'!G86 -> 0 | AX83: ='Calculs (M21..M40)'!H86 ->  | AY83: ='Calculs (M21..M40)'!I86 ->  | AZ83: ='Calculs (M21..M40)'!C86 ->  | BA83: ='Calculs (M1..M20)'!GM86 ->  | BB83: ='Calculs (M1..M20)'!GN86 ->  | BC83: ='Calculs (M1..M20)'!GO86 ->  | BD83: ='Calculs (M1..M20)'!GP86 ->  | BE83: ='Calculs (M1..M20)'!GQ86 ->  | BF83: ='Calculs (M1..M20)'!GR86 ->  | BG83: ='Calculs (M1..M20)'!GS86 ->  | BH83: ='Calculs (M1..M20)'!GT86 ->  | BI83: ='Calculs (M1..M20)'!GU86 ->  | BJ83: ='Calculs (M1..M20)'!GV86 ->  | BK83: ='Calculs (M1..M20)'!GW86 ->  | BL83: ='Calculs (M1..M20)'!GX86 ->  | BM83: ='Calculs (M1..M20)'!GY86 ->  | BN83: ='Calculs (M1..M20)'!GZ86 ->  | BO83: ='Calculs (M1..M20)'!HA86 ->  | BP83: ='Calculs (M1..M20)'!HB86 ->  | BQ83: ='Calculs (M1..M20)'!HC86 ->  | BR83: ='Calculs (M1..M20)'!HD86 ->  | BS83: ='Calculs (M1..M20)'!HE86 ->  | BT83: ='Calculs (M1..M20)'!HF86 ->  | BU83: ='Calculs (M21..M40)'!GM86 ->  | BV83: ='Calculs (M21..M40)'!GN86 ->  | BW83: ='Calculs (M21..M40)'!GO86 ->  | BX83: ='Calculs (M21..M40)'!GP86 ->  | BY83: ='Calculs (M21..M40)'!GQ86 ->  | BZ83: ='Calculs (M21..M40)'!GR86 ->  | CA83: ='Calculs (M21..M40)'!GS86 ->  | CB83: ='Calculs (M21..M40)'!GT86 ->  | CC83: ='Calculs (M21..M40)'!GU86 ->  | CD83: ='Calculs (M21..M40)'!GV86 ->  | CE83: ='Calculs (M21..M40)'!GW86 ->  | CF83: ='Calculs (M21..M40)'!GX86 ->  | CG83: ='Calculs (M21..M40)'!GY86 ->  | CH83: ='Calculs (M21..M40)'!GZ86 ->  | CI83: ='Calculs (M21..M40)'!HA86 ->  | CJ83: ='Calculs (M21..M40)'!HB86 ->  | CK83: ='Calculs (M21..M40)'!HC86 ->  | CL83: ='Calculs (M21..M40)'!HD86 ->  | CM83: ='Calculs (M21..M40)'!HE86 ->  | CN83: ='Calculs (M21..M40)'!HF86 -> 
B84: 74 | AV84: ='Calculs (M21..M40)'!A87 ->  | AW84: ='Calculs (M21..M40)'!G87 -> 0 | AX84: ='Calculs (M21..M40)'!H87 ->  | AY84: ='Calculs (M21..M40)'!I87 ->  | AZ84: ='Calculs (M21..M40)'!C87 ->  | BA84: ='Calculs (M1..M20)'!GM87 ->  | BB84: ='Calculs (M1..M20)'!GN87 ->  | BC84: ='Calculs (M1..M20)'!GO87 ->  | BD84: ='Calculs (M1..M20)'!GP87 ->  | BE84: ='Calculs (M1..M20)'!GQ87 ->  | BF84: ='Calculs (M1..M20)'!GR87 ->  | BG84: ='Calculs (M1..M20)'!GS87 ->  | BH84: ='Calculs (M1..M20)'!GT87 ->  | BI84: ='Calculs (M1..M20)'!GU87 ->  | BJ84: ='Calculs (M1..M20)'!GV87 ->  | BK84: ='Calculs (M1..M20)'!GW87 ->  | BL84: ='Calculs (M1..M20)'!GX87 ->  | BM84: ='Calculs (M1..M20)'!GY87 ->  | BN84: ='Calculs (M1..M20)'!GZ87 ->  | BO84: ='Calculs (M1..M20)'!HA87 ->  | BP84: ='Calculs (M1..M20)'!HB87 ->  | BQ84: ='Calculs (M1..M20)'!HC87 ->  | BR84: ='Calculs (M1..M20)'!HD87 ->  | BS84: ='Calculs (M1..M20)'!HE87 ->  | BT84: ='Calculs (M1..M20)'!HF87 ->  | BU84: ='Calculs (M21..M40)'!GM87 ->  | BV84: ='Calculs (M21..M40)'!GN87 ->  | BW84: ='Calculs (M21..M40)'!GO87 ->  | BX84: ='Calculs (M21..M40)'!GP87 ->  | BY84: ='Calculs (M21..M40)'!GQ87 ->  | BZ84: ='Calculs (M21..M40)'!GR87 ->  | CA84: ='Calculs (M21..M40)'!GS87 ->  | CB84: ='Calculs (M21..M40)'!GT87 ->  | CC84: ='Calculs (M21..M40)'!GU87 ->  | CD84: ='Calculs (M21..M40)'!GV87 ->  | CE84: ='Calculs (M21..M40)'!GW87 ->  | CF84: ='Calculs (M21..M40)'!GX87 ->  | CG84: ='Calculs (M21..M40)'!GY87 ->  | CH84: ='Calculs (M21..M40)'!GZ87 ->  | CI84: ='Calculs (M21..M40)'!HA87 ->  | CJ84: ='Calculs (M21..M40)'!HB87 ->  | CK84: ='Calculs (M21..M40)'!HC87 ->  | CL84: ='Calculs (M21..M40)'!HD87 ->  | CM84: ='Calculs (M21..M40)'!HE87 ->  | CN84: ='Calculs (M21..M40)'!HF87 -> 
B85: 75 | AV85: ='Calculs (M21..M40)'!A88 ->  | AW85: ='Calculs (M21..M40)'!G88 -> 0 | AX85: ='Calculs (M21..M40)'!H88 ->  | AY85: ='Calculs (M21..M40)'!I88 ->  | AZ85: ='Calculs (M21..M40)'!C88 ->  | BA85: ='Calculs (M1..M20)'!GM88 ->  | BB85: ='Calculs (M1..M20)'!GN88 ->  | BC85: ='Calculs (M1..M20)'!GO88 ->  | BD85: ='Calculs (M1..M20)'!GP88 ->  | BE85: ='Calculs (M1..M20)'!GQ88 ->  | BF85: ='Calculs (M1..M20)'!GR88 ->  | BG85: ='Calculs (M1..M20)'!GS88 ->  | BH85: ='Calculs (M1..M20)'!GT88 ->  | BI85: ='Calculs (M1..M20)'!GU88 ->  | BJ85: ='Calculs (M1..M20)'!GV88 ->  | BK85: ='Calculs (M1..M20)'!GW88 ->  | BL85: ='Calculs (M1..M20)'!GX88 ->  | BM85: ='Calculs (M1..M20)'!GY88 ->  | BN85: ='Calculs (M1..M20)'!GZ88 ->  | BO85: ='Calculs (M1..M20)'!HA88 ->  | BP85: ='Calculs (M1..M20)'!HB88 ->  | BQ85: ='Calculs (M1..M20)'!HC88 ->  | BR85: ='Calculs (M1..M20)'!HD88 ->  | BS85: ='Calculs (M1..M20)'!HE88 ->  | BT85: ='Calculs (M1..M20)'!HF88 ->  | BU85: ='Calculs (M21..M40)'!GM88 ->  | BV85: ='Calculs (M21..M40)'!GN88 ->  | BW85: ='Calculs (M21..M40)'!GO88 ->  | BX85: ='Calculs (M21..M40)'!GP88 ->  | BY85: ='Calculs (M21..M40)'!GQ88 ->  | BZ85: ='Calculs (M21..M40)'!GR88 ->  | CA85: ='Calculs (M21..M40)'!GS88 ->  | CB85: ='Calculs (M21..M40)'!GT88 ->  | CC85: ='Calculs (M21..M40)'!GU88 ->  | CD85: ='Calculs (M21..M40)'!GV88 ->  | CE85: ='Calculs (M21..M40)'!GW88 ->  | CF85: ='Calculs (M21..M40)'!GX88 ->  | CG85: ='Calculs (M21..M40)'!GY88 ->  | CH85: ='Calculs (M21..M40)'!GZ88 ->  | CI85: ='Calculs (M21..M40)'!HA88 ->  | CJ85: ='Calculs (M21..M40)'!HB88 ->  | CK85: ='Calculs (M21..M40)'!HC88 ->  | CL85: ='Calculs (M21..M40)'!HD88 ->  | CM85: ='Calculs (M21..M40)'!HE88 ->  | CN85: ='Calculs (M21..M40)'!HF88 -> 
B86: 76 | AV86: ='Calculs (M21..M40)'!A89 ->  | AW86: ='Calculs (M21..M40)'!G89 -> 0 | AX86: ='Calculs (M21..M40)'!H89 ->  | AY86: ='Calculs (M21..M40)'!I89 ->  | AZ86: ='Calculs (M21..M40)'!C89 ->  | BA86: ='Calculs (M1..M20)'!GM89 ->  | BB86: ='Calculs (M1..M20)'!GN89 ->  | BC86: ='Calculs (M1..M20)'!GO89 ->  | BD86: ='Calculs (M1..M20)'!GP89 ->  | BE86: ='Calculs (M1..M20)'!GQ89 ->  | BF86: ='Calculs (M1..M20)'!GR89 ->  | BG86: ='Calculs (M1..M20)'!GS89 ->  | BH86: ='Calculs (M1..M20)'!GT89 ->  | BI86: ='Calculs (M1..M20)'!GU89 ->  | BJ86: ='Calculs (M1..M20)'!GV89 ->  | BK86: ='Calculs (M1..M20)'!GW89 ->  | BL86: ='Calculs (M1..M20)'!GX89 ->  | BM86: ='Calculs (M1..M20)'!GY89 ->  | BN86: ='Calculs (M1..M20)'!GZ89 ->  | BO86: ='Calculs (M1..M20)'!HA89 ->  | BP86: ='Calculs (M1..M20)'!HB89 ->  | BQ86: ='Calculs (M1..M20)'!HC89 ->  | BR86: ='Calculs (M1..M20)'!HD89 ->  | BS86: ='Calculs (M1..M20)'!HE89 ->  | BT86: ='Calculs (M1..M20)'!HF89 ->  | BU86: ='Calculs (M21..M40)'!GM89 ->  | BV86: ='Calculs (M21..M40)'!GN89 ->  | BW86: ='Calculs (M21..M40)'!GO89 ->  | BX86: ='Calculs (M21..M40)'!GP89 ->  | BY86: ='Calculs (M21..M40)'!GQ89 ->  | BZ86: ='Calculs (M21..M40)'!GR89 ->  | CA86: ='Calculs (M21..M40)'!GS89 ->  | CB86: ='Calculs (M21..M40)'!GT89 ->  | CC86: ='Calculs (M21..M40)'!GU89 ->  | CD86: ='Calculs (M21..M40)'!GV89 ->  | CE86: ='Calculs (M21..M40)'!GW89 ->  | CF86: ='Calculs (M21..M40)'!GX89 ->  | CG86: ='Calculs (M21..M40)'!GY89 ->  | CH86: ='Calculs (M21..M40)'!GZ89 ->  | CI86: ='Calculs (M21..M40)'!HA89 ->  | CJ86: ='Calculs (M21..M40)'!HB89 ->  | CK86: ='Calculs (M21..M40)'!HC89 ->  | CL86: ='Calculs (M21..M40)'!HD89 ->  | CM86: ='Calculs (M21..M40)'!HE89 ->  | CN86: ='Calculs (M21..M40)'!HF89 -> 
B87: 77 | AV87: ='Calculs (M21..M40)'!A90 ->  | AW87: ='Calculs (M21..M40)'!G90 -> 0 | AX87: ='Calculs (M21..M40)'!H90 ->  | AY87: ='Calculs (M21..M40)'!I90 ->  | AZ87: ='Calculs (M21..M40)'!C90 ->  | BA87: ='Calculs (M1..M20)'!GM90 ->  | BB87: ='Calculs (M1..M20)'!GN90 ->  | BC87: ='Calculs (M1..M20)'!GO90 ->  | BD87: ='Calculs (M1..M20)'!GP90 ->  | BE87: ='Calculs (M1..M20)'!GQ90 ->  | BF87: ='Calculs (M1..M20)'!GR90 ->  | BG87: ='Calculs (M1..M20)'!GS90 ->  | BH87: ='Calculs (M1..M20)'!GT90 ->  | BI87: ='Calculs (M1..M20)'!GU90 ->  | BJ87: ='Calculs (M1..M20)'!GV90 ->  | BK87: ='Calculs (M1..M20)'!GW90 ->  | BL87: ='Calculs (M1..M20)'!GX90 ->  | BM87: ='Calculs (M1..M20)'!GY90 ->  | BN87: ='Calculs (M1..M20)'!GZ90 ->  | BO87: ='Calculs (M1..M20)'!HA90 ->  | BP87: ='Calculs (M1..M20)'!HB90 ->  | BQ87: ='Calculs (M1..M20)'!HC90 ->  | BR87: ='Calculs (M1..M20)'!HD90 ->  | BS87: ='Calculs (M1..M20)'!HE90 ->  | BT87: ='Calculs (M1..M20)'!HF90 ->  | BU87: ='Calculs (M21..M40)'!GM90 ->  | BV87: ='Calculs (M21..M40)'!GN90 ->  | BW87: ='Calculs (M21..M40)'!GO90 ->  | BX87: ='Calculs (M21..M40)'!GP90 ->  | BY87: ='Calculs (M21..M40)'!GQ90 ->  | BZ87: ='Calculs (M21..M40)'!GR90 ->  | CA87: ='Calculs (M21..M40)'!GS90 ->  | CB87: ='Calculs (M21..M40)'!GT90 ->  | CC87: ='Calculs (M21..M40)'!GU90 ->  | CD87: ='Calculs (M21..M40)'!GV90 ->  | CE87: ='Calculs (M21..M40)'!GW90 ->  | CF87: ='Calculs (M21..M40)'!GX90 ->  | CG87: ='Calculs (M21..M40)'!GY90 ->  | CH87: ='Calculs (M21..M40)'!GZ90 ->  | CI87: ='Calculs (M21..M40)'!HA90 ->  | CJ87: ='Calculs (M21..M40)'!HB90 ->  | CK87: ='Calculs (M21..M40)'!HC90 ->  | CL87: ='Calculs (M21..M40)'!HD90 ->  | CM87: ='Calculs (M21..M40)'!HE90 ->  | CN87: ='Calculs (M21..M40)'!HF90 -> 
B88: 78 | AV88: ='Calculs (M21..M40)'!A91 ->  | AW88: ='Calculs (M21..M40)'!G91 -> 0 | AX88: ='Calculs (M21..M40)'!H91 ->  | AY88: ='Calculs (M21..M40)'!I91 ->  | AZ88: ='Calculs (M21..M40)'!C91 ->  | BA88: ='Calculs (M1..M20)'!GM91 ->  | BB88: ='Calculs (M1..M20)'!GN91 ->  | BC88: ='Calculs (M1..M20)'!GO91 ->  | BD88: ='Calculs (M1..M20)'!GP91 ->  | BE88: ='Calculs (M1..M20)'!GQ91 ->  | BF88: ='Calculs (M1..M20)'!GR91 ->  | BG88: ='Calculs (M1..M20)'!GS91 ->  | BH88: ='Calculs (M1..M20)'!GT91 ->  | BI88: ='Calculs (M1..M20)'!GU91 ->  | BJ88: ='Calculs (M1..M20)'!GV91 ->  | BK88: ='Calculs (M1..M20)'!GW91 ->  | BL88: ='Calculs (M1..M20)'!GX91 ->  | BM88: ='Calculs (M1..M20)'!GY91 ->  | BN88: ='Calculs (M1..M20)'!GZ91 ->  | BO88: ='Calculs (M1..M20)'!HA91 ->  | BP88: ='Calculs (M1..M20)'!HB91 ->  | BQ88: ='Calculs (M1..M20)'!HC91 ->  | BR88: ='Calculs (M1..M20)'!HD91 ->  | BS88: ='Calculs (M1..M20)'!HE91 ->  | BT88: ='Calculs (M1..M20)'!HF91 ->  | BU88: ='Calculs (M21..M40)'!GM91 ->  | BV88: ='Calculs (M21..M40)'!GN91 ->  | BW88: ='Calculs (M21..M40)'!GO91 ->  | BX88: ='Calculs (M21..M40)'!GP91 ->  | BY88: ='Calculs (M21..M40)'!GQ91 ->  | BZ88: ='Calculs (M21..M40)'!GR91 ->  | CA88: ='Calculs (M21..M40)'!GS91 ->  | CB88: ='Calculs (M21..M40)'!GT91 ->  | CC88: ='Calculs (M21..M40)'!GU91 ->  | CD88: ='Calculs (M21..M40)'!GV91 ->  | CE88: ='Calculs (M21..M40)'!GW91 ->  | CF88: ='Calculs (M21..M40)'!GX91 ->  | CG88: ='Calculs (M21..M40)'!GY91 ->  | CH88: ='Calculs (M21..M40)'!GZ91 ->  | CI88: ='Calculs (M21..M40)'!HA91 ->  | CJ88: ='Calculs (M21..M40)'!HB91 ->  | CK88: ='Calculs (M21..M40)'!HC91 ->  | CL88: ='Calculs (M21..M40)'!HD91 ->  | CM88: ='Calculs (M21..M40)'!HE91 ->  | CN88: ='Calculs (M21..M40)'!HF91 -> 
B89: 79 | AV89: ='Calculs (M21..M40)'!A92 ->  | AW89: ='Calculs (M21..M40)'!G92 -> 0 | AX89: ='Calculs (M21..M40)'!H92 ->  | AY89: ='Calculs (M21..M40)'!I92 ->  | AZ89: ='Calculs (M21..M40)'!C92 ->  | BA89: ='Calculs (M1..M20)'!GM92 ->  | BB89: ='Calculs (M1..M20)'!GN92 ->  | BC89: ='Calculs (M1..M20)'!GO92 ->  | BD89: ='Calculs (M1..M20)'!GP92 ->  | BE89: ='Calculs (M1..M20)'!GQ92 ->  | BF89: ='Calculs (M1..M20)'!GR92 ->  | BG89: ='Calculs (M1..M20)'!GS92 ->  | BH89: ='Calculs (M1..M20)'!GT92 ->  | BI89: ='Calculs (M1..M20)'!GU92 ->  | BJ89: ='Calculs (M1..M20)'!GV92 ->  | BK89: ='Calculs (M1..M20)'!GW92 ->  | BL89: ='Calculs (M1..M20)'!GX92 ->  | BM89: ='Calculs (M1..M20)'!GY92 ->  | BN89: ='Calculs (M1..M20)'!GZ92 ->  | BO89: ='Calculs (M1..M20)'!HA92 ->  | BP89: ='Calculs (M1..M20)'!HB92 ->  | BQ89: ='Calculs (M1..M20)'!HC92 ->  | BR89: ='Calculs (M1..M20)'!HD92 ->  | BS89: ='Calculs (M1..M20)'!HE92 ->  | BT89: ='Calculs (M1..M20)'!HF92 ->  | BU89: ='Calculs (M21..M40)'!GM92 ->  | BV89: ='Calculs (M21..M40)'!GN92 ->  | BW89: ='Calculs (M21..M40)'!GO92 ->  | BX89: ='Calculs (M21..M40)'!GP92 ->  | BY89: ='Calculs (M21..M40)'!GQ92 ->  | BZ89: ='Calculs (M21..M40)'!GR92 ->  | CA89: ='Calculs (M21..M40)'!GS92 ->  | CB89: ='Calculs (M21..M40)'!GT92 ->  | CC89: ='Calculs (M21..M40)'!GU92 ->  | CD89: ='Calculs (M21..M40)'!GV92 ->  | CE89: ='Calculs (M21..M40)'!GW92 ->  | CF89: ='Calculs (M21..M40)'!GX92 ->  | CG89: ='Calculs (M21..M40)'!GY92 ->  | CH89: ='Calculs (M21..M40)'!GZ92 ->  | CI89: ='Calculs (M21..M40)'!HA92 ->  | CJ89: ='Calculs (M21..M40)'!HB92 ->  | CK89: ='Calculs (M21..M40)'!HC92 ->  | CL89: ='Calculs (M21..M40)'!HD92 ->  | CM89: ='Calculs (M21..M40)'!HE92 ->  | CN89: ='Calculs (M21..M40)'!HF92 -> 
B90: 80 | AV90: ='Calculs (M21..M40)'!A93 ->  | AW90: ='Calculs (M21..M40)'!G93 -> 0 | AX90: ='Calculs (M21..M40)'!H93 ->  | AY90: ='Calculs (M21..M40)'!I93 ->  | AZ90: ='Calculs (M21..M40)'!C93 ->  | BA90: ='Calculs (M1..M20)'!GM93 ->  | BB90: ='Calculs (M1..M20)'!GN93 ->  | BC90: ='Calculs (M1..M20)'!GO93 ->  | BD90: ='Calculs (M1..M20)'!GP93 ->  | BE90: ='Calculs (M1..M20)'!GQ93 ->  | BF90: ='Calculs (M1..M20)'!GR93 ->  | BG90: ='Calculs (M1..M20)'!GS93 ->  | BH90: ='Calculs (M1..M20)'!GT93 ->  | BI90: ='Calculs (M1..M20)'!GU93 ->  | BJ90: ='Calculs (M1..M20)'!GV93 ->  | BK90: ='Calculs (M1..M20)'!GW93 ->  | BL90: ='Calculs (M1..M20)'!GX93 ->  | BM90: ='Calculs (M1..M20)'!GY93 ->  | BN90: ='Calculs (M1..M20)'!GZ93 ->  | BO90: ='Calculs (M1..M20)'!HA93 ->  | BP90: ='Calculs (M1..M20)'!HB93 ->  | BQ90: ='Calculs (M1..M20)'!HC93 ->  | BR90: ='Calculs (M1..M20)'!HD93 ->  | BS90: ='Calculs (M1..M20)'!HE93 ->  | BT90: ='Calculs (M1..M20)'!HF93 ->  | BU90: ='Calculs (M21..M40)'!GM93 ->  | BV90: ='Calculs (M21..M40)'!GN93 ->  | BW90: ='Calculs (M21..M40)'!GO93 ->  | BX90: ='Calculs (M21..M40)'!GP93 ->  | BY90: ='Calculs (M21..M40)'!GQ93 ->  | BZ90: ='Calculs (M21..M40)'!GR93 ->  | CA90: ='Calculs (M21..M40)'!GS93 ->  | CB90: ='Calculs (M21..M40)'!GT93 ->  | CC90: ='Calculs (M21..M40)'!GU93 ->  | CD90: ='Calculs (M21..M40)'!GV93 ->  | CE90: ='Calculs (M21..M40)'!GW93 ->  | CF90: ='Calculs (M21..M40)'!GX93 ->  | CG90: ='Calculs (M21..M40)'!GY93 ->  | CH90: ='Calculs (M21..M40)'!GZ93 ->  | CI90: ='Calculs (M21..M40)'!HA93 ->  | CJ90: ='Calculs (M21..M40)'!HB93 ->  | CK90: ='Calculs (M21..M40)'!HC93 ->  | CL90: ='Calculs (M21..M40)'!HD93 ->  | CM90: ='Calculs (M21..M40)'!HE93 ->  | CN90: ='Calculs (M21..M40)'!HF93 -> 
B91: 81 | G91: =IF(ISNA(VLOOKUP($B91,ClassEvo,5+G$10,0)),"",VLOOKUP($B91,ClassEvo,5+G$10,0)) ->  | Q91: =IF(ISNA(VLOOKUP($B91,ClassEvo,5+Q$10,0)),"",VLOOKUP($B91,ClassEvo,5+Q$10,0)) ->  | AA91: =IF(ISNA(VLOOKUP($B91,ClassEvo,5+AA$10,0)),"",VLOOKUP($B91,ClassEvo,5+AA$10,0)) ->  | AK91: =IF(ISNA(VLOOKUP($B91,ClassEvo,5+AK$10,0)),"",VLOOKUP($B91,ClassEvo,5+AK$10,0)) ->  | AV91: ='Calculs (M21..M40)'!A94 ->  | AW91: ='Calculs (M21..M40)'!G94 -> 0 | AX91: ='Calculs (M21..M40)'!H94 ->  | AY91: ='Calculs (M21..M40)'!I94 ->  | AZ91: ='Calculs (M21..M40)'!C94 ->  | BA91: ='Calculs (M1..M20)'!GM94 ->  | BB91: ='Calculs (M1..M20)'!GN94 ->  | BC91: ='Calculs (M1..M20)'!GO94 ->  | BD91: ='Calculs (M1..M20)'!GP94 ->  | BE91: ='Calculs (M1..M20)'!GQ94 ->  | BF91: ='Calculs (M1..M20)'!GR94 ->  | BG91: ='Calculs (M1..M20)'!GS94 ->  | BH91: ='Calculs (M1..M20)'!GT94 ->  | BI91: ='Calculs (M1..M20)'!GU94 ->  | BJ91: ='Calculs (M1..M20)'!GV94 ->  | BK91: ='Calculs (M1..M20)'!GW94 ->  | BL91: ='Calculs (M1..M20)'!GX94 ->  | BM91: ='Calculs (M1..M20)'!GY94 ->  | BN91: ='Calculs (M1..M20)'!GZ94 ->  | BO91: ='Calculs (M1..M20)'!HA94 ->  | BP91: ='Calculs (M1..M20)'!HB94 ->  | BQ91: ='Calculs (M1..M20)'!HC94 ->  | BR91: ='Calculs (M1..M20)'!HD94 ->  | BS91: ='Calculs (M1..M20)'!HE94 ->  | BT91: ='Calculs (M1..M20)'!HF94 ->  | BU91: ='Calculs (M21..M40)'!GM94 ->  | BV91: ='Calculs (M21..M40)'!GN94 ->  | BW91: ='Calculs (M21..M40)'!GO94 ->  | BX91: ='Calculs (M21..M40)'!GP94 ->  | BY91: ='Calculs (M21..M40)'!GQ94 ->  | BZ91: ='Calculs (M21..M40)'!GR94 ->  | CA91: ='Calculs (M21..M40)'!GS94 ->  | CB91: ='Calculs (M21..M40)'!GT94 ->  | CC91: ='Calculs (M21..M40)'!GU94 ->  | CD91: ='Calculs (M21..M40)'!GV94 ->  | CE91: ='Calculs (M21..M40)'!GW94 ->  | CF91: ='Calculs (M21..M40)'!GX94 ->  | CG91: ='Calculs (M21..M40)'!GY94 ->  | CH91: ='Calculs (M21..M40)'!GZ94 ->  | CI91: ='Calculs (M21..M40)'!HA94 ->  | CJ91: ='Calculs (M21..M40)'!HB94 ->  | CK91: ='Calculs (M21..M40)'!HC94 ->  | CL91: ='Calculs (M21..M40)'!HD94 ->  | CM91: ='Calculs (M21..M40)'!HE94 ->  | CN91: ='Calculs (M21..M40)'!HF94 -> 
B92: 82 | AV92: ='Calculs (M21..M40)'!A95 ->  | AW92: ='Calculs (M21..M40)'!G95 -> 0 | AX92: ='Calculs (M21..M40)'!H95 ->  | AY92: ='Calculs (M21..M40)'!I95 ->  | AZ92: ='Calculs (M21..M40)'!C95 ->  | BA92: ='Calculs (M1..M20)'!GM95 ->  | BB92: ='Calculs (M1..M20)'!GN95 ->  | BC92: ='Calculs (M1..M20)'!GO95 ->  | BD92: ='Calculs (M1..M20)'!GP95 ->  | BE92: ='Calculs (M1..M20)'!GQ95 ->  | BF92: ='Calculs (M1..M20)'!GR95 ->  | BG92: ='Calculs (M1..M20)'!GS95 ->  | BH92: ='Calculs (M1..M20)'!GT95 ->  | BI92: ='Calculs (M1..M20)'!GU95 ->  | BJ92: ='Calculs (M1..M20)'!GV95 ->  | BK92: ='Calculs (M1..M20)'!GW95 ->  | BL92: ='Calculs (M1..M20)'!GX95 ->  | BM92: ='Calculs (M1..M20)'!GY95 ->  | BN92: ='Calculs (M1..M20)'!GZ95 ->  | BO92: ='Calculs (M1..M20)'!HA95 ->  | BP92: ='Calculs (M1..M20)'!HB95 ->  | BQ92: ='Calculs (M1..M20)'!HC95 ->  | BR92: ='Calculs (M1..M20)'!HD95 ->  | BS92: ='Calculs (M1..M20)'!HE95 ->  | BT92: ='Calculs (M1..M20)'!HF95 ->  | BU92: ='Calculs (M21..M40)'!GM95 ->  | BV92: ='Calculs (M21..M40)'!GN95 ->  | BW92: ='Calculs (M21..M40)'!GO95 ->  | BX92: ='Calculs (M21..M40)'!GP95 ->  | BY92: ='Calculs (M21..M40)'!GQ95 ->  | BZ92: ='Calculs (M21..M40)'!GR95 ->  | CA92: ='Calculs (M21..M40)'!GS95 ->  | CB92: ='Calculs (M21..M40)'!GT95 ->  | CC92: ='Calculs (M21..M40)'!GU95 ->  | CD92: ='Calculs (M21..M40)'!GV95 ->  | CE92: ='Calculs (M21..M40)'!GW95 ->  | CF92: ='Calculs (M21..M40)'!GX95 ->  | CG92: ='Calculs (M21..M40)'!GY95 ->  | CH92: ='Calculs (M21..M40)'!GZ95 ->  | CI92: ='Calculs (M21..M40)'!HA95 ->  | CJ92: ='Calculs (M21..M40)'!HB95 ->  | CK92: ='Calculs (M21..M40)'!HC95 ->  | CL92: ='Calculs (M21..M40)'!HD95 ->  | CM92: ='Calculs (M21..M40)'!HE95 ->  | CN92: ='Calculs (M21..M40)'!HF95 -> 
B93: 83 | AV93: ='Calculs (M21..M40)'!A96 ->  | AW93: ='Calculs (M21..M40)'!G96 -> 0 | AX93: ='Calculs (M21..M40)'!H96 ->  | AY93: ='Calculs (M21..M40)'!I96 ->  | AZ93: ='Calculs (M21..M40)'!C96 ->  | BA93: ='Calculs (M1..M20)'!GM96 ->  | BB93: ='Calculs (M1..M20)'!GN96 ->  | BC93: ='Calculs (M1..M20)'!GO96 ->  | BD93: ='Calculs (M1..M20)'!GP96 ->  | BE93: ='Calculs (M1..M20)'!GQ96 ->  | BF93: ='Calculs (M1..M20)'!GR96 ->  | BG93: ='Calculs (M1..M20)'!GS96 ->  | BH93: ='Calculs (M1..M20)'!GT96 ->  | BI93: ='Calculs (M1..M20)'!GU96 ->  | BJ93: ='Calculs (M1..M20)'!GV96 ->  | BK93: ='Calculs (M1..M20)'!GW96 ->  | BL93: ='Calculs (M1..M20)'!GX96 ->  | BM93: ='Calculs (M1..M20)'!GY96 ->  | BN93: ='Calculs (M1..M20)'!GZ96 ->  | BO93: ='Calculs (M1..M20)'!HA96 ->  | BP93: ='Calculs (M1..M20)'!HB96 ->  | BQ93: ='Calculs (M1..M20)'!HC96 ->  | BR93: ='Calculs (M1..M20)'!HD96 ->  | BS93: ='Calculs (M1..M20)'!HE96 ->  | BT93: ='Calculs (M1..M20)'!HF96 ->  | BU93: ='Calculs (M21..M40)'!GM96 ->  | BV93: ='Calculs (M21..M40)'!GN96 ->  | BW93: ='Calculs (M21..M40)'!GO96 ->  | BX93: ='Calculs (M21..M40)'!GP96 ->  | BY93: ='Calculs (M21..M40)'!GQ96 ->  | BZ93: ='Calculs (M21..M40)'!GR96 ->  | CA93: ='Calculs (M21..M40)'!GS96 ->  | CB93: ='Calculs (M21..M40)'!GT96 ->  | CC93: ='Calculs (M21..M40)'!GU96 ->  | CD93: ='Calculs (M21..M40)'!GV96 ->  | CE93: ='Calculs (M21..M40)'!GW96 ->  | CF93: ='Calculs (M21..M40)'!GX96 ->  | CG93: ='Calculs (M21..M40)'!GY96 ->  | CH93: ='Calculs (M21..M40)'!GZ96 ->  | CI93: ='Calculs (M21..M40)'!HA96 ->  | CJ93: ='Calculs (M21..M40)'!HB96 ->  | CK93: ='Calculs (M21..M40)'!HC96 ->  | CL93: ='Calculs (M21..M40)'!HD96 ->  | CM93: ='Calculs (M21..M40)'!HE96 ->  | CN93: ='Calculs (M21..M40)'!HF96 -> 
B94: 84 | AV94: ='Calculs (M21..M40)'!A97 ->  | AW94: ='Calculs (M21..M40)'!G97 -> 0 | AX94: ='Calculs (M21..M40)'!H97 ->  | AY94: ='Calculs (M21..M40)'!I97 ->  | AZ94: ='Calculs (M21..M40)'!C97 ->  | BA94: ='Calculs (M1..M20)'!GM97 ->  | BB94: ='Calculs (M1..M20)'!GN97 ->  | BC94: ='Calculs (M1..M20)'!GO97 ->  | BD94: ='Calculs (M1..M20)'!GP97 ->  | BE94: ='Calculs (M1..M20)'!GQ97 ->  | BF94: ='Calculs (M1..M20)'!GR97 ->  | BG94: ='Calculs (M1..M20)'!GS97 ->  | BH94: ='Calculs (M1..M20)'!GT97 ->  | BI94: ='Calculs (M1..M20)'!GU97 ->  | BJ94: ='Calculs (M1..M20)'!GV97 ->  | BK94: ='Calculs (M1..M20)'!GW97 ->  | BL94: ='Calculs (M1..M20)'!GX97 ->  | BM94: ='Calculs (M1..M20)'!GY97 ->  | BN94: ='Calculs (M1..M20)'!GZ97 ->  | BO94: ='Calculs (M1..M20)'!HA97 ->  | BP94: ='Calculs (M1..M20)'!HB97 ->  | BQ94: ='Calculs (M1..M20)'!HC97 ->  | BR94: ='Calculs (M1..M20)'!HD97 ->  | BS94: ='Calculs (M1..M20)'!HE97 ->  | BT94: ='Calculs (M1..M20)'!HF97 ->  | BU94: ='Calculs (M21..M40)'!GM97 ->  | BV94: ='Calculs (M21..M40)'!GN97 ->  | BW94: ='Calculs (M21..M40)'!GO97 ->  | BX94: ='Calculs (M21..M40)'!GP97 ->  | BY94: ='Calculs (M21..M40)'!GQ97 ->  | BZ94: ='Calculs (M21..M40)'!GR97 ->  | CA94: ='Calculs (M21..M40)'!GS97 ->  | CB94: ='Calculs (M21..M40)'!GT97 ->  | CC94: ='Calculs (M21..M40)'!GU97 ->  | CD94: ='Calculs (M21..M40)'!GV97 ->  | CE94: ='Calculs (M21..M40)'!GW97 ->  | CF94: ='Calculs (M21..M40)'!GX97 ->  | CG94: ='Calculs (M21..M40)'!GY97 ->  | CH94: ='Calculs (M21..M40)'!GZ97 ->  | CI94: ='Calculs (M21..M40)'!HA97 ->  | CJ94: ='Calculs (M21..M40)'!HB97 ->  | CK94: ='Calculs (M21..M40)'!HC97 ->  | CL94: ='Calculs (M21..M40)'!HD97 ->  | CM94: ='Calculs (M21..M40)'!HE97 ->  | CN94: ='Calculs (M21..M40)'!HF97 -> 
B95: 85 | AV95: ='Calculs (M21..M40)'!A98 ->  | AW95: ='Calculs (M21..M40)'!G98 -> 0 | AX95: ='Calculs (M21..M40)'!H98 ->  | AY95: ='Calculs (M21..M40)'!I98 ->  | AZ95: ='Calculs (M21..M40)'!C98 ->  | BA95: ='Calculs (M1..M20)'!GM98 ->  | BB95: ='Calculs (M1..M20)'!GN98 ->  | BC95: ='Calculs (M1..M20)'!GO98 ->  | BD95: ='Calculs (M1..M20)'!GP98 ->  | BE95: ='Calculs (M1..M20)'!GQ98 ->  | BF95: ='Calculs (M1..M20)'!GR98 ->  | BG95: ='Calculs (M1..M20)'!GS98 ->  | BH95: ='Calculs (M1..M20)'!GT98 ->  | BI95: ='Calculs (M1..M20)'!GU98 ->  | BJ95: ='Calculs (M1..M20)'!GV98 ->  | BK95: ='Calculs (M1..M20)'!GW98 ->  | BL95: ='Calculs (M1..M20)'!GX98 ->  | BM95: ='Calculs (M1..M20)'!GY98 ->  | BN95: ='Calculs (M1..M20)'!GZ98 ->  | BO95: ='Calculs (M1..M20)'!HA98 ->  | BP95: ='Calculs (M1..M20)'!HB98 ->  | BQ95: ='Calculs (M1..M20)'!HC98 ->  | BR95: ='Calculs (M1..M20)'!HD98 ->  | BS95: ='Calculs (M1..M20)'!HE98 ->  | BT95: ='Calculs (M1..M20)'!HF98 ->  | BU95: ='Calculs (M21..M40)'!GM98 ->  | BV95: ='Calculs (M21..M40)'!GN98 ->  | BW95: ='Calculs (M21..M40)'!GO98 ->  | BX95: ='Calculs (M21..M40)'!GP98 ->  | BY95: ='Calculs (M21..M40)'!GQ98 ->  | BZ95: ='Calculs (M21..M40)'!GR98 ->  | CA95: ='Calculs (M21..M40)'!GS98 ->  | CB95: ='Calculs (M21..M40)'!GT98 ->  | CC95: ='Calculs (M21..M40)'!GU98 ->  | CD95: ='Calculs (M21..M40)'!GV98 ->  | CE95: ='Calculs (M21..M40)'!GW98 ->  | CF95: ='Calculs (M21..M40)'!GX98 ->  | CG95: ='Calculs (M21..M40)'!GY98 ->  | CH95: ='Calculs (M21..M40)'!GZ98 ->  | CI95: ='Calculs (M21..M40)'!HA98 ->  | CJ95: ='Calculs (M21..M40)'!HB98 ->  | CK95: ='Calculs (M21..M40)'!HC98 ->  | CL95: ='Calculs (M21..M40)'!HD98 ->  | CM95: ='Calculs (M21..M40)'!HE98 ->  | CN95: ='Calculs (M21..M40)'!HF98 -> 
B96: 86 | AV96: ='Calculs (M21..M40)'!A99 ->  | AW96: ='Calculs (M21..M40)'!G99 -> 0 | AX96: ='Calculs (M21..M40)'!H99 ->  | AY96: ='Calculs (M21..M40)'!I99 ->  | AZ96: ='Calculs (M21..M40)'!C99 ->  | BA96: ='Calculs (M1..M20)'!GM99 ->  | BB96: ='Calculs (M1..M20)'!GN99 ->  | BC96: ='Calculs (M1..M20)'!GO99 ->  | BD96: ='Calculs (M1..M20)'!GP99 ->  | BE96: ='Calculs (M1..M20)'!GQ99 ->  | BF96: ='Calculs (M1..M20)'!GR99 ->  | BG96: ='Calculs (M1..M20)'!GS99 ->  | BH96: ='Calculs (M1..M20)'!GT99 ->  | BI96: ='Calculs (M1..M20)'!GU99 ->  | BJ96: ='Calculs (M1..M20)'!GV99 ->  | BK96: ='Calculs (M1..M20)'!GW99 ->  | BL96: ='Calculs (M1..M20)'!GX99 ->  | BM96: ='Calculs (M1..M20)'!GY99 ->  | BN96: ='Calculs (M1..M20)'!GZ99 ->  | BO96: ='Calculs (M1..M20)'!HA99 ->  | BP96: ='Calculs (M1..M20)'!HB99 ->  | BQ96: ='Calculs (M1..M20)'!HC99 ->  | BR96: ='Calculs (M1..M20)'!HD99 ->  | BS96: ='Calculs (M1..M20)'!HE99 ->  | BT96: ='Calculs (M1..M20)'!HF99 ->  | BU96: ='Calculs (M21..M40)'!GM99 ->  | BV96: ='Calculs (M21..M40)'!GN99 ->  | BW96: ='Calculs (M21..M40)'!GO99 ->  | BX96: ='Calculs (M21..M40)'!GP99 ->  | BY96: ='Calculs (M21..M40)'!GQ99 ->  | BZ96: ='Calculs (M21..M40)'!GR99 ->  | CA96: ='Calculs (M21..M40)'!GS99 ->  | CB96: ='Calculs (M21..M40)'!GT99 ->  | CC96: ='Calculs (M21..M40)'!GU99 ->  | CD96: ='Calculs (M21..M40)'!GV99 ->  | CE96: ='Calculs (M21..M40)'!GW99 ->  | CF96: ='Calculs (M21..M40)'!GX99 ->  | CG96: ='Calculs (M21..M40)'!GY99 ->  | CH96: ='Calculs (M21..M40)'!GZ99 ->  | CI96: ='Calculs (M21..M40)'!HA99 ->  | CJ96: ='Calculs (M21..M40)'!HB99 ->  | CK96: ='Calculs (M21..M40)'!HC99 ->  | CL96: ='Calculs (M21..M40)'!HD99 ->  | CM96: ='Calculs (M21..M40)'!HE99 ->  | CN96: ='Calculs (M21..M40)'!HF99 -> 
B97: 87 | AV97: ='Calculs (M21..M40)'!A100 ->  | AW97: ='Calculs (M21..M40)'!G100 -> 0 | AX97: ='Calculs (M21..M40)'!H100 ->  | AY97: ='Calculs (M21..M40)'!I100 ->  | AZ97: ='Calculs (M21..M40)'!C100 ->  | BA97: ='Calculs (M1..M20)'!GM100 ->  | BB97: ='Calculs (M1..M20)'!GN100 ->  | BC97: ='Calculs (M1..M20)'!GO100 ->  | BD97: ='Calculs (M1..M20)'!GP100 ->  | BE97: ='Calculs (M1..M20)'!GQ100 ->  | BF97: ='Calculs (M1..M20)'!GR100 ->  | BG97: ='Calculs (M1..M20)'!GS100 ->  | BH97: ='Calculs (M1..M20)'!GT100 ->  | BI97: ='Calculs (M1..M20)'!GU100 ->  | BJ97: ='Calculs (M1..M20)'!GV100 ->  | BK97: ='Calculs (M1..M20)'!GW100 ->  | BL97: ='Calculs (M1..M20)'!GX100 ->  | BM97: ='Calculs (M1..M20)'!GY100 ->  | BN97: ='Calculs (M1..M20)'!GZ100 ->  | BO97: ='Calculs (M1..M20)'!HA100 ->  | BP97: ='Calculs (M1..M20)'!HB100 ->  | BQ97: ='Calculs (M1..M20)'!HC100 ->  | BR97: ='Calculs (M1..M20)'!HD100 ->  | BS97: ='Calculs (M1..M20)'!HE100 ->  | BT97: ='Calculs (M1..M20)'!HF100 ->  | BU97: ='Calculs (M21..M40)'!GM100 ->  | BV97: ='Calculs (M21..M40)'!GN100 ->  | BW97: ='Calculs (M21..M40)'!GO100 ->  | BX97: ='Calculs (M21..M40)'!GP100 ->  | BY97: ='Calculs (M21..M40)'!GQ100 ->  | BZ97: ='Calculs (M21..M40)'!GR100 ->  | CA97: ='Calculs (M21..M40)'!GS100 ->  | CB97: ='Calculs (M21..M40)'!GT100 ->  | CC97: ='Calculs (M21..M40)'!GU100 ->  | CD97: ='Calculs (M21..M40)'!GV100 ->  | CE97: ='Calculs (M21..M40)'!GW100 ->  | CF97: ='Calculs (M21..M40)'!GX100 ->  | CG97: ='Calculs (M21..M40)'!GY100 ->  | CH97: ='Calculs (M21..M40)'!GZ100 ->  | CI97: ='Calculs (M21..M40)'!HA100 ->  | CJ97: ='Calculs (M21..M40)'!HB100 ->  | CK97: ='Calculs (M21..M40)'!HC100 ->  | CL97: ='Calculs (M21..M40)'!HD100 ->  | CM97: ='Calculs (M21..M40)'!HE100 ->  | CN97: ='Calculs (M21..M40)'!HF100 -> 
B98: 88 | AV98: ='Calculs (M21..M40)'!A101 ->  | AW98: ='Calculs (M21..M40)'!G101 -> 0 | AX98: ='Calculs (M21..M40)'!H101 ->  | AY98: ='Calculs (M21..M40)'!I101 ->  | AZ98: ='Calculs (M21..M40)'!C101 ->  | BA98: ='Calculs (M1..M20)'!GM101 ->  | BB98: ='Calculs (M1..M20)'!GN101 ->  | BC98: ='Calculs (M1..M20)'!GO101 ->  | BD98: ='Calculs (M1..M20)'!GP101 ->  | BE98: ='Calculs (M1..M20)'!GQ101 ->  | BF98: ='Calculs (M1..M20)'!GR101 ->  | BG98: ='Calculs (M1..M20)'!GS101 ->  | BH98: ='Calculs (M1..M20)'!GT101 ->  | BI98: ='Calculs (M1..M20)'!GU101 ->  | BJ98: ='Calculs (M1..M20)'!GV101 ->  | BK98: ='Calculs (M1..M20)'!GW101 ->  | BL98: ='Calculs (M1..M20)'!GX101 ->  | BM98: ='Calculs (M1..M20)'!GY101 ->  | BN98: ='Calculs (M1..M20)'!GZ101 ->  | BO98: ='Calculs (M1..M20)'!HA101 ->  | BP98: ='Calculs (M1..M20)'!HB101 ->  | BQ98: ='Calculs (M1..M20)'!HC101 ->  | BR98: ='Calculs (M1..M20)'!HD101 ->  | BS98: ='Calculs (M1..M20)'!HE101 ->  | BT98: ='Calculs (M1..M20)'!HF101 ->  | BU98: ='Calculs (M21..M40)'!GM101 ->  | BV98: ='Calculs (M21..M40)'!GN101 ->  | BW98: ='Calculs (M21..M40)'!GO101 ->  | BX98: ='Calculs (M21..M40)'!GP101 ->  | BY98: ='Calculs (M21..M40)'!GQ101 ->  | BZ98: ='Calculs (M21..M40)'!GR101 ->  | CA98: ='Calculs (M21..M40)'!GS101 ->  | CB98: ='Calculs (M21..M40)'!GT101 ->  | CC98: ='Calculs (M21..M40)'!GU101 ->  | CD98: ='Calculs (M21..M40)'!GV101 ->  | CE98: ='Calculs (M21..M40)'!GW101 ->  | CF98: ='Calculs (M21..M40)'!GX101 ->  | CG98: ='Calculs (M21..M40)'!GY101 ->  | CH98: ='Calculs (M21..M40)'!GZ101 ->  | CI98: ='Calculs (M21..M40)'!HA101 ->  | CJ98: ='Calculs (M21..M40)'!HB101 ->  | CK98: ='Calculs (M21..M40)'!HC101 ->  | CL98: ='Calculs (M21..M40)'!HD101 ->  | CM98: ='Calculs (M21..M40)'!HE101 ->  | CN98: ='Calculs (M21..M40)'!HF101 -> 
B99: 89 | AV99: ='Calculs (M21..M40)'!A102 ->  | AW99: ='Calculs (M21..M40)'!G102 -> 0 | AX99: ='Calculs (M21..M40)'!H102 ->  | AY99: ='Calculs (M21..M40)'!I102 ->  | AZ99: ='Calculs (M21..M40)'!C102 ->  | BA99: ='Calculs (M1..M20)'!GM102 ->  | BB99: ='Calculs (M1..M20)'!GN102 ->  | BC99: ='Calculs (M1..M20)'!GO102 ->  | BD99: ='Calculs (M1..M20)'!GP102 ->  | BE99: ='Calculs (M1..M20)'!GQ102 ->  | BF99: ='Calculs (M1..M20)'!GR102 ->  | BG99: ='Calculs (M1..M20)'!GS102 ->  | BH99: ='Calculs (M1..M20)'!GT102 ->  | BI99: ='Calculs (M1..M20)'!GU102 ->  | BJ99: ='Calculs (M1..M20)'!GV102 ->  | BK99: ='Calculs (M1..M20)'!GW102 ->  | BL99: ='Calculs (M1..M20)'!GX102 ->  | BM99: ='Calculs (M1..M20)'!GY102 ->  | BN99: ='Calculs (M1..M20)'!GZ102 ->  | BO99: ='Calculs (M1..M20)'!HA102 ->  | BP99: ='Calculs (M1..M20)'!HB102 ->  | BQ99: ='Calculs (M1..M20)'!HC102 ->  | BR99: ='Calculs (M1..M20)'!HD102 ->  | BS99: ='Calculs (M1..M20)'!HE102 ->  | BT99: ='Calculs (M1..M20)'!HF102 ->  | BU99: ='Calculs (M21..M40)'!GM102 ->  | BV99: ='Calculs (M21..M40)'!GN102 ->  | BW99: ='Calculs (M21..M40)'!GO102 ->  | BX99: ='Calculs (M21..M40)'!GP102 ->  | BY99: ='Calculs (M21..M40)'!GQ102 ->  | BZ99: ='Calculs (M21..M40)'!GR102 ->  | CA99: ='Calculs (M21..M40)'!GS102 ->  | CB99: ='Calculs (M21..M40)'!GT102 ->  | CC99: ='Calculs (M21..M40)'!GU102 ->  | CD99: ='Calculs (M21..M40)'!GV102 ->  | CE99: ='Calculs (M21..M40)'!GW102 ->  | CF99: ='Calculs (M21..M40)'!GX102 ->  | CG99: ='Calculs (M21..M40)'!GY102 ->  | CH99: ='Calculs (M21..M40)'!GZ102 ->  | CI99: ='Calculs (M21..M40)'!HA102 ->  | CJ99: ='Calculs (M21..M40)'!HB102 ->  | CK99: ='Calculs (M21..M40)'!HC102 ->  | CL99: ='Calculs (M21..M40)'!HD102 ->  | CM99: ='Calculs (M21..M40)'!HE102 ->  | CN99: ='Calculs (M21..M40)'!HF102 -> 
B100: 90 | AV100: ='Calculs (M21..M40)'!A103 ->  | AW100: ='Calculs (M21..M40)'!G103 -> 0 | AX100: ='Calculs (M21..M40)'!H103 ->  | AY100: ='Calculs (M21..M40)'!I103 ->  | AZ100: ='Calculs (M21..M40)'!C103 ->  | BA100: ='Calculs (M1..M20)'!GM103 ->  | BB100: ='Calculs (M1..M20)'!GN103 ->  | BC100: ='Calculs (M1..M20)'!GO103 ->  | BD100: ='Calculs (M1..M20)'!GP103 ->  | BE100: ='Calculs (M1..M20)'!GQ103 ->  | BF100: ='Calculs (M1..M20)'!GR103 ->  | BG100: ='Calculs (M1..M20)'!GS103 ->  | BH100: ='Calculs (M1..M20)'!GT103 ->  | BI100: ='Calculs (M1..M20)'!GU103 ->  | BJ100: ='Calculs (M1..M20)'!GV103 ->  | BK100: ='Calculs (M1..M20)'!GW103 ->  | BL100: ='Calculs (M1..M20)'!GX103 ->  | BM100: ='Calculs (M1..M20)'!GY103 ->  | BN100: ='Calculs (M1..M20)'!GZ103 ->  | BO100: ='Calculs (M1..M20)'!HA103 ->  | BP100: ='Calculs (M1..M20)'!HB103 ->  | BQ100: ='Calculs (M1..M20)'!HC103 ->  | BR100: ='Calculs (M1..M20)'!HD103 ->  | BS100: ='Calculs (M1..M20)'!HE103 ->  | BT100: ='Calculs (M1..M20)'!HF103 ->  | BU100: ='Calculs (M21..M40)'!GM103 ->  | BV100: ='Calculs (M21..M40)'!GN103 ->  | BW100: ='Calculs (M21..M40)'!GO103 ->  | BX100: ='Calculs (M21..M40)'!GP103 ->  | BY100: ='Calculs (M21..M40)'!GQ103 ->  | BZ100: ='Calculs (M21..M40)'!GR103 ->  | CA100: ='Calculs (M21..M40)'!GS103 ->  | CB100: ='Calculs (M21..M40)'!GT103 ->  | CC100: ='Calculs (M21..M40)'!GU103 ->  | CD100: ='Calculs (M21..M40)'!GV103 ->  | CE100: ='Calculs (M21..M40)'!GW103 ->  | CF100: ='Calculs (M21..M40)'!GX103 ->  | CG100: ='Calculs (M21..M40)'!GY103 ->  | CH100: ='Calculs (M21..M40)'!GZ103 ->  | CI100: ='Calculs (M21..M40)'!HA103 ->  | CJ100: ='Calculs (M21..M40)'!HB103 ->  | CK100: ='Calculs (M21..M40)'!HC103 ->  | CL100: ='Calculs (M21..M40)'!HD103 ->  | CM100: ='Calculs (M21..M40)'!HE103 ->  | CN100: ='Calculs (M21..M40)'!HF103 -> 
